Workbook

Sheet Правила пользования кальк.
B3: 1 | C3: Для начала работы с файлом необходимо нажать "Включить макросы"/"Включить содержимое" в выплывающем окне сверху
B4: =B3+1 -> 2 | C4: Важнейший подготовительный шаг: на листе "Шаг 0 - Мастер-лист" необходимо выбрать регион, где размещен туристский кластер. Для этого нажмите на светло-зеленую ячейку напротив вопроса №2, в правом углу появится кнопка, нажмите на нее и в выпадающем списке выберите подходящий регион
B5: =B4+1 -> 3 | C5: Вносить данные только в светло-зеленые ячейки
B6: 4 | C6: Не копировать в калькулятор лист или форму с данными по проекту целиком. Вносить данные от руки или использовать "Копировать" и только в чейки светло-зеленого цвета.
B7: 5 | C7: Обращайте внимание на единицы измерения, если указаны "тысяч рублей", вносите численные значения уже в тысячах рублей
B8: 6 | C8: В случае, если форма единиц измерения указана как "% от итогового значения", то необходимо вносить не целочисленное значение процента, например "100", а "100%" со знаком процент или "1"
B9: 7 | C9: При заполнении данных по коммерческим проектам (Шаг - 1) в первую очередь выберите ОКВЭД 2 из выпадающего списка. Для этого необходимо нажать на светло-зеленую ячейку, располагающейся под темно-зеленой ячейкой с текстом "ОКВЭД 2 (XX)". В правом углу ячейки, на которую Вы нажали, появится кнопка, нажмите на нее и в списке выберите подходящий ОКВЭД 2
B10: 8 | C10: Виды деятельности агрегированы до класса, поэтому выберите наиболее подходящий по основной деятельности проекта
B11: 9 | C11: Год начала и окончания проекта, название пользователь вносит "от руки"
B12: 10 | C12: При дальнейшем заполнении показателей проекта вносите числа только в те светло-зеленые ячейки, которые соответствуют периоду начала и окончания проекта. Не изменяйте значения календарных лет над светло-зелеными ячейками при заполнении показателей проекта.
B13: 11 | C13: При заполнении данных об инвестициях в проект (на листах "Шаг-1" и "Шаг-2") не забудьте указать структуру инвестиций (в процентах)
B14: 12 | C14: В формах №1 на листах коммерческой и базовой/обеспечивающей инфраструктры представлены как примеры заполнения. Удалите и замените данные внутри светло-зеленых ячейкеек в соответствии с показателями Вашего проекта из финансовой модели
B15: 13 | C15: Пользователь заполняет светло-зеленые ячейки только на листах "Шаг-1", "Шаг-2" и "Шаг-3". Результат расчета социально-экономических эффектов от проектов находится на листе "Шаг-4". После внесения всех данных по проектам, перейдите на лист "Шаг-4" и нажмите клавишу F9 на своей клавиатуре.

Sheet Шаг 0 - Мастер-лист
B3: Вводная информация по мастер-плану
C5: 1 | D5: Укажите название целевой территории (кластера)
C7: 2 | D7: В каком регионе России размещена целевая территория? | E7: Камчатский край
C9: 3 | D9: Какое количество коммерческой инфраструктуры (туристических проектов) предполагает Мастер-план территории? | E9: 99
C11: 4 | D11: Какое количество проектов по строительству базовой инфраструктуры, в том числе инженерной и линейной инфраструктуры, предполагает мастер-план территории? | E11: 20
D15: 1 | F15: 2018 | G15: Алтайский край | I15: А 01 Растениеводство, животноводство, охота и предоставление услуг в этих областях | K15: Нет | L15: 001 | N15: Алтайский край | O15: Алтайский край
D16: 2 | F16: 2019 | G16: Волгоградская область | I16: А 02 Лесоводство и лесозаготовки | K16: Да | L16: 002 | N16: Волгоградская область | O16: Волгоградская область
D17: 3 | F17: 2020 | G17: Воронежская область | I17: А 03 Рыболовство и рыбоводство | L17: 003 | N17: Воронежская область | O17: Воронежская область
D18: 4 | F18: 2021 | G18: Иркутская область | I18: С (10-12) Производство пищевых продуктов, напитков, табачных изделий | L18: 005 | N18: Иркутская область | O18: Иркутская область
D19: 5 | F19: 2022 | G19: Калужская область | I19: С (13-15) Производство текстильных изделий, одежды, кожаной и относящейся к ней продукции | L19: 014 | N19: Калужская область | O19: Калужская область
D20: 6 | F20: 2023 | G20: Камчатский край | I20: С 16 Обработка древесины и производство изделий из дерева и пробки, кроме мебели, производство изделий из соломки и материалов для плетения | L20: 015 | N20: Камчатский край | O20: Камчатский край
D21: 7 | F21: 2024 | G21: Кемеровская область | I21: С 17 Производство бумаги и бумажных изделий | L21: 016 | N21: Кемеровская область | O21: Кемеровская область
D22: 8 | F22: 2025 | G22: Краснодарский край | I22: С 18 Деятельность полиграфическая и копирование носителей информации | L22: 017 | N22: Краснодарский край | O22: Краснодарский край
D23: 9 | F23: 2026 | G23: Красноярский край | I23: С 21 Производство лекарственных средств и материалов, применяемых в медицинских целях | L23: 018 | N23: Красноярский край | O23: Красноярский край
D24: 10 | F24: 2027 | G24: Ленинградская область | I24: С 23 Производство прочей неметаллической минеральной продукции | L24: 019 | N24: Ленинградская область | O24: Ленинградская область
D25: 11 | F25: 2028 | G25: Московская область | I25: С 25 Производство готовых металлических изделий, кроме машин и оборудования | L25: 020 | N25: Московская область | O25: Московская область
D26: 12 | F26: 2029 | G26: Мурманская область | I26: С (31-32) Производство мебели, прочих готовых изделий | L26: 021 | N26: Мурманская область | O26: Мурманская область
D27: 13 | F27: 2030 | G27: Новгородская область | I27: С 33 Ремонт и монтаж машин и оборудования | L27: 022 | N27: Новгородская область | O27: Новгородская область
D28: 14 | F28: 2031 | G28: Оренбургская область | I28: D 35 Обеспечение электрической энергией, газом и паром; кондиционирование воздуха | L28: 023 | N28: Оренбургская область | O28: Оренбургская область
D29: 15 | F29: 2032 | G29: Приморский край | I29: Е 36 Забор, очистка и распределение воды | L29: 024 | N29: Приморский край | O29: Приморский край
D30: 16 | F30: 2033 | G30: Республика Башкортостан | I30: Е (37-39) Сбор и обработка сточных вод; сбор, обработка и утилизация отходов; предоставление услуг в области ликвидации последствий загрязнений и прочих услуг, связанных с удалением отходов | L30: 025 | N30: Республика Башкортостан | O30: Республика Башкортостан
D31: 17 | F31: 2034 | G31: Республика Бурятия | I31: F (41-43) Строительство | L31: 026 | N31: Республика Бурятия | O31: Республика Бурятия
D32: 18 | F32: 2035 | G32: Республика Калмыкия | I32: G 46 Торговля оптовая, кроме оптовой торговли автотранспортными средствами и мотоциклами | L32: 027 | N32: Республика Калмыкия | O32: Республика Калмыкия
D33: 19 | F33: 2036 | G33: Республика Карелия | I33: G 47 Торговля розничная, кроме розничной торговли автотранспортными средствами и мотоциклами | L33: 028 | N33: Республика Карелия | O33: Республика Карелия
D34: 20 | F34: 2037 | G34: Республика Коми | I34: H 50 Деятельность водного транспорта | L34: 029 | N34: Республика Коми | O34: Республика Коми
D35: 21 | F35: 2038 | G35: Республика Саха (Якутия) | I35: H 52 Складское хозяйство и вспомогательная транспортная деятельность | L35: 030 | N35: Республика Саха (Якутия) | O35: Республика Саха (Якутия)
D36: 22 | F36: 2039 | G36: Республика Татарстан (Татарстан) | I36: H 53 Деятельность почтовой связи и курьерская деятельность | L36: 035 | N36: Республика Татарстан (Татарстан) | O36: Республика Татарстан (Татарстан)
D37: 23 | F37: 2040 | G37: Республика Хакасия | I37: I (55-56) Деятельность по предоставлению мест для временного проживания | L37: 036 | N37: Республика Хакасия | O37: Республика Хакасия
D38: 24 | F38: 2041 | G38: Рязанская область | I38: J 58 Деятельность издательская | L38: 037 | N38: Рязанская область | O38: Рязанская область
D39: 25 | F39: 2042 | G39: Самарская область | I39: I (55-56) Деятельность по предоставлению продуктов питания и напитков | L39: 038 | N39: Самарская область | O39: Самарская область
D40: 26 | F40: 2043 | G40: Сахалинская область | I40: J (59-60) Производство кинофильмов, видеофильмов и телевизионных программ, издание звукозаписей и нот; деятельность в области телевизионного и радиовещания | L40: 040 | N40: Сахалинская область | O40: Сахалинская область
D41: 27 | F41: 2044 | G41: Свердловская область | I41: J 61 Деятельность в сфере телекоммуникаций | L41: 041 | N41: Свердловская область | O41: Свердловская область
D42: 28 | F42: 2045 | G42: Смоленская область | I42: J (62-63) Разработка компьютерного программного обеспечения, консультационные услуги в данной области и другие сопутствующие услуги | L42: 042 | N42: Смоленская область | O42: Смоленская область
D43: 29 | F43: 2046 | G43: Тульская область | I43: L 68 Операции с недвижимым имуществом | L43: 043 | N43: Тульская область | O43: Тульская область
D44: 30 | F44: 2047 | G44: Хабаровский край | I44: M (69-70) Деятельность в области права и бухгалтерского учета; деятельность головных компаний; консультации по вопросам управления | L44: 045 | N44: Хабаровский край | O44: Хабаровский край
D45: 31 | F45: 2048 | G45: Челябинская область | I45: M 73 Деятельность рекламная и исследование конъюнктуры рынка | L45: 049 | N45: Челябинская область | O45: Челябинская область
D46: 32 | F46: 2049 | G46: Ярославская область | I46: M 71 Деятельность в области архитектуры и инженерно-технического проектирования, технических испытаний, исследований и анализа | L46: 051 | N46: Ярославская область | O46: Ярославская область
D47: 33 | F47: 2050 | I47: M 72 Научные исследования и разработки | L47: 062
D48: 34 | F48: 2051 | I48: M (74-75) Прочая профессиональная, научная и техническая деятельность; ветеринарная деятельность | L48: 063
D49: 35 | F49: 2052 | I49: N 77 Аренда и лизинг | L49: 064
D50: 36 | F50: 2053 | I50: N 78 Деятельность по трудоустройству и подбору персонала | L50: 065
D51: 37 | F51: 2054 | I51: N 79 Деятельность туристических агентств и прочих организаций, предоставляющих услуги в сфере туризма | L51: 070
D52: 38 | F52: 2055 | I52: P 85 Образование | L52: 071
D53: 39 | F53: 2056 | I53: Q 86 Деятельность в области здравоохранения | L53: 072
D54: 40 | F54: 2057 | I54: Q (87-88) Деятельность по уходу с обеспечением проживания; предоставление социальных услуг без обеспечения проживания | L54: 073
D55: 41 | F55: 2058 | I55: R (90-92) Деятельность в области творчества, искусства и организации развлечений, библиотек, архивов, музеев и прочих объектов культуры, по организации и проведению азартных игр и заключению пари, по организации и проведению лотерей | L55: 074
D56: 42 | F56: 2059 | I56: R 93 Деятельность в области спорта, отдыха и развлечений | L56: 075
D57: 43 | F57: 2060 | I57: S 94 Деятельность общественных организаций | L57: 076
D58: 44 | F58: 2061 | I58: S 95 Ремонт компьютеров, предметов личного потребления и бытовых товаров | L58: 077
D59: 45 | F59: 2062 | I59: S 96 Деятельность по предоставлению прочих персональных услуг | L59: 079
D60: 46 | F60: 2063 | I60: T Деятельность домашних хозяйств как работодателей; недифференцированная деятельность частных домашних хозяйств по производству товаров и оказанию услуг для собственного потребления нанимающих домашнюю прислугу и производящих товары и услуги для собственного потребления | L60: 080
D61: 47 | F61: 2064 | L61: 081
D62: 48 | F62: 2065 | L62: 082
D63: 49 | F63: 2066 | L63: 086
D64: 50 | F64: 2067 | L64: 087
D65: 51 | F65: 2068 | L65: 088
D66: 52 | L66: 089
D67: 53 | L67: 090
D68: 54 | L68: 092
D69: 55 | L69: 093
D70: 56 | L70: 095
D71: 57 | L71: 096
D72: 58 | L72: 097
D73: 59 | L73: 098
D74: 60
D75: 61
D76: 62
D77: 63
D78: 64
D79: 65
D80: 66
D81: 67
D82: 68
D83: 69
D84: 70
D85: 71
D86: 72
D87: 73
D88: 74
D89: 75
D90: 76
D91: 77
D92: 78
D93: 79
D94: 80
D95: 81
D96: 82
D97: 83
D98: 84
D99: 85
D100: 86
D101: 87
D102: 88
D103: 89
D104: 90
D105: 91
D106: 92
D107: 93
D108: 94
D109: 95
D110: 96
D111: 97
D112: 98
D113: 99
D114: 100

Sheet Шаг 1 - коммерч. инфр.
B1: Шаг 1 - Впишите в ячейки показатели по проектам коммерческой инфраструктуры
F2: Да
F3: Нет
A4: 1
B5: Название коммерческого проекта | C5: ОКВЭД 2 (XX) | D5: Период начала (год начала инвестиционной фазы) | E5: Период окончания (год завершения проекта или прогноза) | F5: Предусматривает ли проект объекты капитального строительства? (Да/Нет)
B6: Пример: Шоу-парк | C6: R 93 Деятельность в области спорта, отдыха и развлечений
B8: Инвестиции | E8: Итого за весь период | F8: 2019 | G8: 2020 | H8: 2021 | I8: 2022 | J8: 2023 | K8: 2024 | L8: 2025 | M8: 2026 | N8: 2027 | O8: 2028 | P8: 2029 | Q8: 2030 | R8: 2031 | S8: 2032 | T8: 2033 | U8: 2034 | V8: 2035 | W8: 2036 | X8: 2037 | Y8: 2038 | Z8: 2039 | AA8: 2040
B9: Государственные инвестиции в проект | C9: тысяч рублей | D9: =C6 -> R 93 Деятельность в области спорта, отдыха и развлечений | E9: =SUM(F9:AA9) -> 510000 | F9: 170000 | I9: 170000 | L9: 170000
B11: Частные инвестиции в проект | C11: тысяч рублей | D11: =C6 -> R 93 Деятельность в области спорта, отдыха и развлечений | E11: =SUM(F11:AA11) -> 510000 | G11: 170000 | J11: 170000 | R11: 170000
B13: Структура инвестиций в проект | E13: Итого за весь период
B14: Здания и сооружения | C14: % от инвестиционного бюджета проекта | D14: =C6 -> R 93 Деятельность в области спорта, отдыха и развлечений | E14: 0.75 | F14: =E14*SUM(F9:F11) -> 127500 | G14: =E14*SUM(G9:G11) -> 127500 | H14: =E14*SUM(H9:H11) -> 0 | I14: =E14*SUM(I9:I11) -> 127500 | J14: =E14*SUM(J9:J11) -> 127500 | K14: =E14*SUM(K9:K11) -> 0 | L14: =E14*SUM(L9:L11) -> 127500 | M14: =E14*SUM(M9:M11) -> 0 | N14: =E14*SUM(N9:N11) -> 0 | O14: =E14*SUM(O9:O11) -> 0 | P14: =E14*SUM(P9:P11) -> 0 | Q14: =E14*SUM(Q9:Q11) -> 0 | R14: =E14*SUM(R9:R11) -> 127500 | S14: =E14*SUM(S9:S11) -> 0 | T14: =E14*SUM(T9:T11) -> 0 | U14: =E14*SUM(U9:U11) -> 0 | V14: =E14*SUM(V9:V11) -> 0 | W14: =E14*SUM(W9:W11) -> 0 | X14: =E14*SUM(X9:X11) -> 0 | Y14: =E14*SUM(Y9:Y11) -> 0 | Z14: =E14*SUM(Z9:Z11) -> 0 | AA14: =E14*SUM(AA9:AA11) -> 0
B16: Машины и оборудование | C16: % от инвестиционного бюджета проекта | D16: =C6 -> R 93 Деятельность в области спорта, отдыха и развлечений | E16: 0.15 | F16: =E16*SUM(F9:F11) -> 25500 | G16: =E16*SUM(G9:G11) -> 25500 | H16: =E16*SUM(H9:H11) -> 0 | I16: =E16*SUM(I9:I11) -> 25500 | J16: =E16*SUM(J9:J11) -> 25500 | K16: =E16*SUM(K9:K11) -> 0 | L16: =E16*SUM(L9:L11) -> 25500 | M16: =E16*SUM(M9:M11) -> 0 | N16: =E16*SUM(N9:N11) -> 0 | O16: =E16*SUM(O9:O11) -> 0 | P16: =E16*SUM(P9:P11) -> 0 | Q16: =E16*SUM(Q9:Q11) -> 0 | R16: =E16*SUM(R9:R11) -> 25500 | S16: =E16*SUM(S9:S11) -> 0 | T16: =E16*SUM(T9:T11) -> 0 | U16: =E16*SUM(U9:U11) -> 0 | V16: =E16*SUM(V9:V11) -> 0 | W16: =E16*SUM(W9:W11) -> 0 | X16: =E16*SUM(X9:X11) -> 0 | Y16: =E16*SUM(Y9:Y11) -> 0 | Z16: =E16*SUM(Z9:Z11) -> 0 | AA16: =E16*SUM(AA9:AA11) -> 0
B18: Инженерные и прочие професcиональные услуги | C18: % от инвестиционного бюджета проекта | D18: =C6 -> R 93 Деятельность в области спорта, отдыха и развлечений | E18: 0.1 | F18: =E18*SUM(F9:F11) -> 17000 | G18: =E18*SUM(G9:G11) -> 17000 | H18: =E18*SUM(H9:H11) -> 0 | I18: =E18*SUM(I9:I11) -> 17000 | J18: =E18*SUM(J9:J11) -> 17000 | K18: =E18*SUM(K9:K11) -> 0 | L18: =E18*SUM(L9:L11) -> 17000 | M18: =E18*SUM(M9:M11) -> 0 | N18: =E18*SUM(N9:N11) -> 0 | O18: =E18*SUM(O9:O11) -> 0 | P18: =E18*SUM(P9:P11) -> 0 | Q18: =E18*SUM(Q9:Q11) -> 0 | R18: =E18*SUM(R9:R11) -> 17000 | S18: =E18*SUM(S9:S11) -> 0 | T18: =E18*SUM(T9:T11) -> 0 | U18: =E18*SUM(U9:U11) -> 0 | V18: =E18*SUM(V9:V11) -> 0 | W18: =E18*SUM(W9:W11) -> 0 | X18: =E18*SUM(X9:X11) -> 0 | Y18: =E18*SUM(Y9:Y11) -> 0 | Z18: =E18*SUM(Z9:Z11) -> 0 | AA18: =E18*SUM(AA9:AA11) -> 0
B20: Мебель и инвентарь | C20: % от инвестиционного бюджета проекта | D20: =C6 -> R 93 Деятельность в области спорта, отдыха и развлечений | F20: =E20*SUM(F9:F11) -> 0 | G20: =E20*SUM(G9:G11) -> 0 | H20: =E20*SUM(H9:H11) -> 0 | I20: =E20*SUM(I9:I11) -> 0 | J20: =E20*SUM(J9:J11) -> 0 | K20: =E20*SUM(K9:K11) -> 0 | L20: =E20*SUM(L9:L11) -> 0 | M20: =E20*SUM(M9:M11) -> 0 | N20: =E20*SUM(N9:N11) -> 0 | O20: =E20*SUM(O9:O11) -> 0 | P20: =E20*SUM(P9:P11) -> 0 | Q20: =E20*SUM(Q9:Q11) -> 0 | R20: =E20*SUM(R9:R11) -> 0 | S20: =E20*SUM(S9:S11) -> 0 | T20: =E20*SUM(T9:T11) -> 0 | U20: =E20*SUM(U9:U11) -> 0 | V20: =E20*SUM(V9:V11) -> 0 | W20: =E20*SUM(W9:W11) -> 0 | X20: =E20*SUM(X9:X11) -> 0 | Y20: =E20*SUM(Y9:Y11) -> 0 | Z20: =E20*SUM(Z9:Z11) -> 0 | AA20: =E20*SUM(AA9:AA11) -> 0
B22: Транспортные средства | C22: % от инвестиционного бюджета проекта | D22: =C6 -> R 93 Деятельность в области спорта, отдыха и развлечений | F22: =E22*SUM(F9:F11) -> 0 | G22: =E22*SUM(G9:G11) -> 0 | H22: =E22*SUM(H9:H11) -> 0 | I22: =E22*SUM(I9:I11) -> 0 | J22: =E22*SUM(J9:J11) -> 0 | K22: =E22*SUM(K9:K11) -> 0 | L22: =E22*SUM(L9:L11) -> 0 | M22: =E22*SUM(M9:M11) -> 0 | N22: =E22*SUM(N9:N11) -> 0 | O22: =E22*SUM(O9:O11) -> 0 | P22: =E22*SUM(P9:P11) -> 0 | Q22: =E22*SUM(Q9:Q11) -> 0 | R22: =E22*SUM(R9:R11) -> 0 | S22: =E22*SUM(S9:S11) -> 0 | T22: =E22*SUM(T9:T11) -> 0 | U22: =E22*SUM(U9:U11) -> 0 | V22: =E22*SUM(V9:V11) -> 0 | W22: =E22*SUM(W9:W11) -> 0 | X22: =E22*SUM(X9:X11) -> 0 | Y22: =E22*SUM(Y9:Y11) -> 0 | Z22: =E22*SUM(Z9:Z11) -> 0 | AA22: =E22*SUM(AA9:AA11) -> 0
B24: Прочие услуги | C24: % от инвестиционного бюджета проекта | D24: =C6 -> R 93 Деятельность в области спорта, отдыха и развлечений | F24: =E24*SUM(F9:F11) -> 0 | G24: =E24*SUM(G9:G11) -> 0 | H24: =E24*SUM(H9:H11) -> 0 | I24: =E24*SUM(I9:I11) -> 0 | J24: =E24*SUM(J9:J11) -> 0 | K24: =E24*SUM(K9:K11) -> 0 | L24: =E24*SUM(L9:L11) -> 0 | M24: =E24*SUM(M9:M11) -> 0 | N24: =E24*SUM(N9:N11) -> 0 | O24: =E24*SUM(O9:O11) -> 0 | P24: =E24*SUM(P9:P11) -> 0 | Q24: =E24*SUM(Q9:Q11) -> 0 | R24: =E24*SUM(R9:R11) -> 0 | S24: =E24*SUM(S9:S11) -> 0 | T24: =E24*SUM(T9:T11) -> 0 | U24: =E24*SUM(U9:U11) -> 0 | V24: =E24*SUM(V9:V11) -> 0 | W24: =E24*SUM(W9:W11) -> 0 | X24: =E24*SUM(X9:X11) -> 0 | Y24: =E24*SUM(Y9:Y11) -> 0 | Z24: =E24*SUM(Z9:Z11) -> 0 | AA24: =E24*SUM(AA9:AA11) -> 0
B26: Прочие товары | C26: % от инвестиционного бюджета проекта | D26: =C6 -> R 93 Деятельность в области спорта, отдыха и развлечений | F26: =E26*SUM(F9:F11) -> 0 | G26: =E26*SUM(G9:G11) -> 0 | H26: =E26*SUM(H9:H11) -> 0 | I26: =E26*SUM(I9:I11) -> 0 | J26: =E26*SUM(J9:J11) -> 0 | K26: =E26*SUM(K9:K11) -> 0 | L26: =E26*SUM(L9:L11) -> 0 | M26: =E26*SUM(M9:M11) -> 0 | N26: =E26*SUM(N9:N11) -> 0 | O26: =E26*SUM(O9:O11) -> 0 | P26: =E26*SUM(P9:P11) -> 0 | Q26: =E26*SUM(Q9:Q11) -> 0 | R26: =E26*SUM(R9:R11) -> 0 | S26: =E26*SUM(S9:S11) -> 0 | T26: =E26*SUM(T9:T11) -> 0 | U26: =E26*SUM(U9:U11) -> 0 | V26: =E26*SUM(V9:V11) -> 0 | W26: =E26*SUM(W9:W11) -> 0 | X26: =E26*SUM(X9:X11) -> 0 | Y26: =E26*SUM(Y9:Y11) -> 0 | Z26: =E26*SUM(Z9:Z11) -> 0 | AA26: =E26*SUM(AA9:AA11) -> 0
B28: Операционные показатели проекта | E28: Итого за весь период | F28: 2019 | G28: 2020 | H28: 2021 | I28: 2022 | J28: 2023 | K28: 2024 | L28: 2025 | M28: 2026 | N28: 2027 | O28: 2028 | P28: 2029 | Q28: 2030 | R28: 2031 | S28: 2032 | T28: 2033 | U28: 2034 | V28: 2035 | W28: 2036 | X28: 2037 | Y28: 2038 | Z28: 2039 | AA28: 2040
B29: Выручка проекта без НДС и акцизов с учетом субсидий на текущую деятельность | C29: тысяч рублей | D29: =C6 -> R 93 Деятельность в области спорта, отдыха и развлечений | E29: =SUM(F29:AA29) -> 13800000 | H29: 420000 | I29: 420000 | J29: 720000 | K29: 720000 | L29: 720000 | M29: 720000 | N29: 720000 | O29: 720000 | P29: 720000 | Q29: 720000 | R29: 720000 | S29: 720000 | T29: 720000 | U29: 720000 | V29: 720000 | W29: 720000 | X29: 720000 | Y29: 720000 | Z29: 720000 | AA29: 720000
B31: Субсидии на текущую деятельность | C31: тысяч рублей | D31: =C6 -> R 93 Деятельность в области спорта, отдыха и развлечений | E31: =SUM(F31:AA31) -> 12000 | H31: 2000 | I31: 2000 | J31: 2000 | K31: 2000 | L31: 2000 | M31: 2000
B33: Оплата труда постоянного персонала за вычетом налогов и обязательных отчислений | C33: тысяч рублей | D33: =C6 -> R 93 Деятельность в области спорта, отдыха и развлечений | E33: =SUM(F33:AA33) -> 2070000 | H33: =H29*0.15 -> 63000 | I33: =I29*0.15 -> 63000 | J33: 108000 | K33: 108000 | L33: 108000 | M33: 108000 | N33: 108000 | O33: 108000 | P33: 108000 | Q33: 108000 | R33: 108000 | S33: 108000 | T33: 108000 | U33: 108000 | V33: 108000 | W33: 108000 | X33: 108000 | Y33: 108000 | Z33: 108000 | AA33: 108000
B35: Оплата труда временного персонала за вычетом налогов и обязательных отчислений | C35: тысяч рублей | D35: =C6 -> R 93 Деятельность в области спорта, отдыха и развлечений | E35: =SUM(F35:AA35) -> 2070000 | H35: =H29*0.15 -> 63000 | I35: =I29*0.15 -> 63000 | J35: 108000 | K35: 108000 | L35: 108000 | M35: 108000 | N35: 108000 | O35: 108000 | P35: 108000 | Q35: 108000 | R35: 108000 | S35: 108000 | T35: 108000 | U35: 108000 | V35: 108000 | W35: 108000 | X35: 108000 | Y35: 108000 | Z35: 108000 | AA35: 108000
B37: Операционная прибыль проекта | C37: тысяч рублей | D37: =C6 -> R 93 Деятельность в области спорта, отдыха и развлечений | E37: =SUM(F37:AA37) -> 4140000 | H37: =H29*0.3 -> 126000 | I37: =I29*0.3 -> 126000 | J37: 216000 | K37: 216000 | L37: 216000 | M37: 216000 | N37: 216000 | O37: 216000 | P37: 216000 | Q37: 216000 | R37: 216000 | S37: 216000 | T37: 216000 | U37: 216000 | V37: 216000 | W37: 216000 | X37: 216000 | Y37: 216000 | Z37: 216000 | AA37: 216000
B39: Расходы на ремонт основных средств | C39: тысяч рублей | D39: =C6 -> R 93 Деятельность в области спорта, отдыха и развлечений | E39: =SUM(F39:AA39) -> 414000 | H39: =H29*0.03 -> 12600 | I39: =I29*0.03 -> 12600 | J39: 21600 | K39: 21600 | L39: 21600 | M39: 21600 | N39: 21600 | O39: 21600 | P39: 21600 | Q39: 21600 | R39: 21600 | S39: 21600 | T39: 21600 | U39: 21600 | V39: 21600 | W39: 21600 | X39: 21600 | Y39: 21600 | Z39: 21600 | AA39: 21600
B41: Показатели занятости | F41: 2019 | G41: 2020 | H41: 2021 | I41: 2022 | J41: 2023 | K41: 2024 | L41: 2025 | M41: 2026 | N41: 2027 | O41: 2028 | P41: 2029 | Q41: 2030 | R41: 2031 | S41: 2032 | T41: 2033 | U41: 2034 | V41: 2035 | W41: 2036 | X41: 2037 | Y41: 2038 | Z41: 2039 | AA41: 2040
B42: Количество постоянного персонала | C42: человек | D42: =C6 -> R 93 Деятельность в области спорта, отдыха и развлечений | H42: =H33/12/35 -> 150 | I42: =I33/12/35 -> 150 | J42: 257.1428571 | K42: 257.1428571 | L42: 257.1428571 | M42: 257.1428571 | N42: 257.1428571 | O42: 257.1428571 | P42: 257.1428571 | Q42: 257.1428571 | R42: 257.1428571 | S42: 257.1428571 | T42: 257.1428571 | U42: 257.1428571 | V42: 257.1428571 | W42: 257.1428571 | X42: 257.1428571 | Y42: 257.1428571 | Z42: 257.1428571 | AA42: 257.1428571
B44: Средняя ставка временного персонала | C44: тысяч рублей в месяц на человека | D44: =C6 -> R 93 Деятельность в области спорта, отдыха и развлечений | H44: 25 | I44: 25 | J44: 25 | K44: 25 | L44: 25 | M44: 25 | N44: 25 | O44: 25 | P44: 25 | Q44: 25 | R44: 25 | S44: 25 | T44: 25 | U44: 25 | V44: 25 | W44: 25 | X44: 25 | Y44: 25 | Z44: 25 | AA44: 25
B45: Полная занятость | F45: =IFERROR(F35/(F44*11),0) -> 0 | G45: =IFERROR(G35/(G44*11),0) -> 0 | H45: 229.0909091 | I45: 229.0909091 | J45: 392.7272727 | K45: 392.7272727 | L45: 392.7272727 | M45: 392.7272727 | N45: 392.7272727 | O45: 392.7272727 | P45: 392.7272727 | Q45: 392.7272727 | R45: 392.7272727 | S45: 392.7272727 | T45: 392.7272727 | U45: 392.7272727 | V45: 392.7272727 | W45: 392.7272727 | X45: 392.7272727 | Y45: 392.7272727 | Z45: 392.7272727 | AA45: 392.7272727
B46: Уплаченные налоги и обязательные платежи | E46: Итого за весь период | F46: 2019 | G46: 2020 | H46: 2021 | I46: 2022 | J46: 2023 | K46: 2024 | L46: 2025 | M46: 2026 | N46: 2027 | O46: 2028 | P46: 2029 | Q46: 2030 | R46: 2031 | S46: 2032 | T46: 2033 | U46: 2034 | V46: 2035 | W46: 2036 | X46: 2037 | Y46: 2038 | Z46: 2039 | AA46: 2040
B47: Налог на прибыль (если проект на ОСНО) | C47: тысяч рублей | D47: =C6 -> R 93 Деятельность в области спорта, отдыха и развлечений | E47: =SUM(F47:AA47) -> 138000 | H47: =H29*0.01 -> 4200 | I47: =I29*0.01 -> 4200 | J47: 7200 | K47: 7200 | L47: 7200 | M47: 7200 | N47: 7200 | O47: 7200 | P47: 7200 | Q47: 7200 | R47: 7200 | S47: 7200 | T47: 7200 | U47: 7200 | V47: 7200 | W47: 7200 | X47: 7200 | Y47: 7200 | Z47: 7200 | AA47: 7200
B49: Единый налог (если проект на УСН, ЕНВД, Патент) | C49: тысяч рублей | D49: =C6 -> R 93 Деятельность в области спорта, отдыха и развлечений | E49: =SUM(F49:AA49) -> 0
B51: Отчисления на обязательное социальное страхование | C51: тысяч рублей | D51: =C6 -> R 93 Деятельность в области спорта, отдыха и развлечений | E51: =SUM(F51:AA51) -> 2058887.462 | H51: =SUM(H35,H33)/0.87/0.698*0.302 -> 62661.79231 | I51: =SUM(I35,I33)/0.87/0.698*0.302 -> 62661.79231 | J51: 107420.2154 | K51: 107420.2154 | L51: 107420.2154 | M51: 107420.2154 | N51: 107420.2154 | O51: 107420.2154 | P51: 107420.2154 | Q51: 107420.2154 | R51: 107420.2154 | S51: 107420.2154 | T51: 107420.2154 | U51: 107420.2154 | V51: 107420.2154 | W51: 107420.2154 | X51: 107420.2154 | Y51: 107420.2154 | Z51: 107420.2154 | AA51: 107420.2154
B53: Отчисления налога на самозанятых | C53: тысяч рублей | D53: =C6 -> R 93 Деятельность в области спорта, отдыха и развлечений | E53: =SUM(F53:AA53) -> 0
B55: Уплата налога на доходы физических лиц | C55: тысяч рублей | D55: =C6 -> R 93 Деятельность в области спорта, отдыха и развлечений | E55: =SUM(F55:AA55) -> 618620.6897 | H55: =SUM(H35,H33)/0.87*0.13 -> 18827.58621 | I55: =SUM(I35,I33)/0.87*0.13 -> 18827.58621 | J55: 32275.86207 | K55: 32275.86207 | L55: 32275.86207 | M55: 32275.86207 | N55: 32275.86207 | O55: 32275.86207 | P55: 32275.86207 | Q55: 32275.86207 | R55: 32275.86207 | S55: 32275.86207 | T55: 32275.86207 | U55: 32275.86207 | V55: 32275.86207 | W55: 32275.86207 | X55: 32275.86207 | Y55: 32275.86207 | Z55: 32275.86207 | AA55: 32275.86207
B57: Налог на имущество | C57: тысяч рублей | D57: =C6 -> R 93 Деятельность в области спорта, отдыха и развлечений | E57: =SUM(F57:AA57) -> 224400 | H57: =$E$9*0.022 -> 11220 | I57: 11220 | J57: 11220 | K57: 11220 | L57: 11220 | M57: 11220 | N57: 11220 | O57: 11220 | P57: 11220 | Q57: 11220 | R57: 11220 | S57: 11220 | T57: 11220 | U57: 11220 | V57: 11220 | W57: 11220 | X57: 11220 | Y57: 11220 | Z57: 11220 | AA57: 11220
B59: Налог на землю | C59: тысяч рублей | D59: =C6 -> R 93 Деятельность в области спорта, отдыха и развлечений | E59: =SUM(F59:AA59) -> 0
B61: НДС и акцизы уплаченные в бюджет (если проект на ОСНО) | C61: тысяч рублей | D61: =C6 -> R 93 Деятельность в области спорта, отдыха и развлечений | E61: =SUM(F61:AA61) -> 1573200 | H61: =H29*0.2-((H29-H37+H39-H33-H35)*0.2) -> 47880 | I61: =I29*0.2-((I29-I37+I39-I33-I35)*0.2) -> 47880 | J61: 82080 | K61: 82080 | L61: 82080 | M61: 82080 | N61: 82080 | O61: 82080 | P61: 82080 | Q61: 82080 | R61: 82080 | S61: 82080 | T61: 82080 | U61: 82080 | V61: 82080 | W61: 82080 | X61: 82080 | Y61: 82080 | Z61: 82080 | AA61: 82080
A64: =IF(OR(A4+1>'Шаг 0 - Мастер-лист'!$E$9,A4=0),0,A4+1) -> 2
A65: =IF(A64>0,"","x") ->  | B65: Название коммерческого проекта | C65: ОКВЭД 2 (XX.XX) | D65: Период начала (год начала инвестиционной фазы) | E65: Период окончания (год завершения проекта или прогноза) | F65: Предусматривает ли проект объекты капитального строительства? (Да/Нет)
A66: =A65 -> 
A67: =A66 -> 
B68: Инвестиции | E68: Итого за весь период | F68: 2019 | G68: 2020 | H68: 2021 | I68: 2022 | J68: 2023 | K68: 2024 | L68: 2025 | M68: 2026 | N68: 2027 | O68: 2028 | P68: 2029 | Q68: 2030 | R68: 2031 | S68: 2032 | T68: 2033 | U68: 2034 | V68: 2035 | W68: 2036 | X68: 2037 | Y68: 2038 | Z68: 2039 | AA68: 2040
B69: Государственные инвестиции в проект | C69: тысяч рублей | D69: =C66 -> 0 | E69: =SUM(F69:AA69) -> 0
B71: Частные инвестиции в проект | C71: тысяч рублей | D71: =C66 -> 0 | E71: =SUM(F71:AA71) -> 0
B73: Структура инвестиций в проект | E73: Итого за весь период
B74: Здания и сооружения | C74: % от инвестиционного бюджета проекта | D74: =C66 -> 0 | F74: =E74*SUM(F69:F71) -> 0 | G74: =E74*SUM(G69:G71) -> 0 | H74: =E74*SUM(H69:H71) -> 0 | I74: =E74*SUM(I69:I71) -> 0 | J74: =E74*SUM(J69:J71) -> 0 | K74: =E74*SUM(K69:K71) -> 0 | L74: =E74*SUM(L69:L71) -> 0 | M74: =E74*SUM(M69:M71) -> 0 | N74: =E74*SUM(N69:N71) -> 0 | O74: =E74*SUM(O69:O71) -> 0 | P74: =E74*SUM(P69:P71) -> 0 | Q74: =E74*SUM(Q69:Q71) -> 0 | R74: =E74*SUM(R69:R71) -> 0 | S74: =E74*SUM(S69:S71) -> 0 | T74: =E74*SUM(T69:T71) -> 0 | U74: =E74*SUM(U69:U71) -> 0 | V74: =E74*SUM(V69:V71) -> 0 | W74: =E74*SUM(W69:W71) -> 0 | X74: =E74*SUM(X69:X71) -> 0 | Y74: =E74*SUM(Y69:Y71) -> 0 | Z74: =E74*SUM(Z69:Z71) -> 0 | AA74: =E74*SUM(AA69:AA71) -> 0
B76: Машины и оборудование | C76: % от инвестиционного бюджета проекта | D76: =C66 -> 0 | F76: =E76*SUM(F69:F71) -> 0 | G76: =E76*SUM(G69:G71) -> 0 | H76: =E76*SUM(H69:H71) -> 0 | I76: =E76*SUM(I69:I71) -> 0 | J76: =E76*SUM(J69:J71) -> 0 | K76: =E76*SUM(K69:K71) -> 0 | L76: =E76*SUM(L69:L71) -> 0 | M76: =E76*SUM(M69:M71) -> 0 | N76: =E76*SUM(N69:N71) -> 0 | O76: =E76*SUM(O69:O71) -> 0 | P76: =E76*SUM(P69:P71) -> 0 | Q76: =E76*SUM(Q69:Q71) -> 0 | R76: =E76*SUM(R69:R71) -> 0 | S76: =E76*SUM(S69:S71) -> 0 | T76: =E76*SUM(T69:T71) -> 0 | U76: =E76*SUM(U69:U71) -> 0 | V76: =E76*SUM(V69:V71) -> 0 | W76: =E76*SUM(W69:W71) -> 0 | X76: =E76*SUM(X69:X71) -> 0 | Y76: =E76*SUM(Y69:Y71) -> 0 | Z76: =E76*SUM(Z69:Z71) -> 0 | AA76: =E76*SUM(AA69:AA71) -> 0
B78: Инженерные и прочие професcиональные услуги | C78: % от инвестиционного бюджета проекта | D78: =C66 -> 0 | F78: =E78*SUM(F69:F71) -> 0 | G78: =E78*SUM(G69:G71) -> 0 | H78: =E78*SUM(H69:H71) -> 0 | I78: =E78*SUM(I69:I71) -> 0 | J78: =E78*SUM(J69:J71) -> 0 | K78: =E78*SUM(K69:K71) -> 0 | L78: =E78*SUM(L69:L71) -> 0 | M78: =E78*SUM(M69:M71) -> 0 | N78: =E78*SUM(N69:N71) -> 0 | O78: =E78*SUM(O69:O71) -> 0 | P78: =E78*SUM(P69:P71) -> 0 | Q78: =E78*SUM(Q69:Q71) -> 0 | R78: =E78*SUM(R69:R71) -> 0 | S78: =E78*SUM(S69:S71) -> 0 | T78: =E78*SUM(T69:T71) -> 0 | U78: =E78*SUM(U69:U71) -> 0 | V78: =E78*SUM(V69:V71) -> 0 | W78: =E78*SUM(W69:W71) -> 0 | X78: =E78*SUM(X69:X71) -> 0 | Y78: =E78*SUM(Y69:Y71) -> 0 | Z78: =E78*SUM(Z69:Z71) -> 0 | AA78: =E78*SUM(AA69:AA71) -> 0
B80: Мебель и инвентарь | C80: % от инвестиционного бюджета проекта | D80: =C66 -> 0 | F80: =E80*SUM(F69:F71) -> 0 | G80: =E80*SUM(G69:G71) -> 0 | H80: =E80*SUM(H69:H71) -> 0 | I80: =E80*SUM(I69:I71) -> 0 | J80: =E80*SUM(J69:J71) -> 0 | K80: =E80*SUM(K69:K71) -> 0 | L80: =E80*SUM(L69:L71) -> 0 | M80: =E80*SUM(M69:M71) -> 0 | N80: =E80*SUM(N69:N71) -> 0 | O80: =E80*SUM(O69:O71) -> 0 | P80: =E80*SUM(P69:P71) -> 0 | Q80: =E80*SUM(Q69:Q71) -> 0 | R80: =E80*SUM(R69:R71) -> 0 | S80: =E80*SUM(S69:S71) -> 0 | T80: =E80*SUM(T69:T71) -> 0 | U80: =E80*SUM(U69:U71) -> 0 | V80: =E80*SUM(V69:V71) -> 0 | W80: =E80*SUM(W69:W71) -> 0 | X80: =E80*SUM(X69:X71) -> 0 | Y80: =E80*SUM(Y69:Y71) -> 0 | Z80: =E80*SUM(Z69:Z71) -> 0 | AA80: =E80*SUM(AA69:AA71) -> 0
B82: Транспортные средства | C82: % от инвестиционного бюджета проекта | D82: =C66 -> 0 | F82: =E82*SUM(F69:F71) -> 0 | G82: =E82*SUM(G69:G71) -> 0 | H82: =E82*SUM(H69:H71) -> 0 | I82: =E82*SUM(I69:I71) -> 0 | J82: =E82*SUM(J69:J71) -> 0 | K82: =E82*SUM(K69:K71) -> 0 | L82: =E82*SUM(L69:L71) -> 0 | M82: =E82*SUM(M69:M71) -> 0 | N82: =E82*SUM(N69:N71) -> 0 | O82: =E82*SUM(O69:O71) -> 0 | P82: =E82*SUM(P69:P71) -> 0 | Q82: =E82*SUM(Q69:Q71) -> 0 | R82: =E82*SUM(R69:R71) -> 0 | S82: =E82*SUM(S69:S71) -> 0 | T82: =E82*SUM(T69:T71) -> 0 | U82: =E82*SUM(U69:U71) -> 0 | V82: =E82*SUM(V69:V71) -> 0 | W82: =E82*SUM(W69:W71) -> 0 | X82: =E82*SUM(X69:X71) -> 0 | Y82: =E82*SUM(Y69:Y71) -> 0 | Z82: =E82*SUM(Z69:Z71) -> 0 | AA82: =E82*SUM(AA69:AA71) -> 0
B84: Прочие услуги | C84: % от инвестиционного бюджета проекта | D84: =C66 -> 0 | F84: =E84*SUM(F69:F71) -> 0 | G84: =E84*SUM(G69:G71) -> 0 | H84: =E84*SUM(H69:H71) -> 0 | I84: =E84*SUM(I69:I71) -> 0 | J84: =E84*SUM(J69:J71) -> 0 | K84: =E84*SUM(K69:K71) -> 0 | L84: =E84*SUM(L69:L71) -> 0 | M84: =E84*SUM(M69:M71) -> 0 | N84: =E84*SUM(N69:N71) -> 0 | O84: =E84*SUM(O69:O71) -> 0 | P84: =E84*SUM(P69:P71) -> 0 | Q84: =E84*SUM(Q69:Q71) -> 0 | R84: =E84*SUM(R69:R71) -> 0 | S84: =E84*SUM(S69:S71) -> 0 | T84: =E84*SUM(T69:T71) -> 0 | U84: =E84*SUM(U69:U71) -> 0 | V84: =E84*SUM(V69:V71) -> 0 | W84: =E84*SUM(W69:W71) -> 0 | X84: =E84*SUM(X69:X71) -> 0 | Y84: =E84*SUM(Y69:Y71) -> 0 | Z84: =E84*SUM(Z69:Z71) -> 0 | AA84: =E84*SUM(AA69:AA71) -> 0
B86: Прочие товары | C86: % от инвестиционного бюджета проекта | D86: =C66 -> 0 | F86: =E86*SUM(F69:F71) -> 0 | G86: =E86*SUM(G69:G71) -> 0 | H86: =E86*SUM(H69:H71) -> 0 | I86: =E86*SUM(I69:I71) -> 0 | J86: =E86*SUM(J69:J71) -> 0 | K86: =E86*SUM(K69:K71) -> 0 | L86: =E86*SUM(L69:L71) -> 0 | M86: =E86*SUM(M69:M71) -> 0 | N86: =E86*SUM(N69:N71) -> 0 | O86: =E86*SUM(O69:O71) -> 0 | P86: =E86*SUM(P69:P71) -> 0 | Q86: =E86*SUM(Q69:Q71) -> 0 | R86: =E86*SUM(R69:R71) -> 0 | S86: =E86*SUM(S69:S71) -> 0 | T86: =E86*SUM(T69:T71) -> 0 | U86: =E86*SUM(U69:U71) -> 0 | V86: =E86*SUM(V69:V71) -> 0 | W86: =E86*SUM(W69:W71) -> 0 | X86: =E86*SUM(X69:X71) -> 0 | Y86: =E86*SUM(Y69:Y71) -> 0 | Z86: =E86*SUM(Z69:Z71) -> 0 | AA86: =E86*SUM(AA69:AA71) -> 0
B88: Операционные показатели проекта | E88: Итого за весь период | F88: 2019 | G88: 2020 | H88: 2021 | I88: 2022 | J88: 2023 | K88: 2024 | L88: 2025 | M88: 2026 | N88: 2027 | O88: 2028 | P88: 2029 | Q88: 2030 | R88: 2031 | S88: 2032 | T88: 2033 | U88: 2034 | V88: 2035 | W88: 2036 | X88: 2037 | Y88: 2038 | Z88: 2039 | AA88: 2040
B89: Выручка проекта без НДС и акцизов с учетом субсидий на текущую деятельность | C89: тысяч рублей | D89: =C66 -> 0 | E89: =SUM(F89:AA89) -> 0
B91: Субсидии на текущую деятельность | C91: тысяч рублей | D91: =C66 -> 0 | E91: =SUM(F91:AA91) -> 0
B93: Оплата труда постоянного персонала за вычетом налогов и обязательных отчислений | C93: тысяч рублей | D93: =C66 -> 0 | E93: =SUM(F93:AA93) -> 0
B95: Оплата труда временного персонала за вычетом налогов и обязательных отчислений | C95: тысяч рублей | D95: =C66 -> 0 | E95: =SUM(F95:AA95) -> 0
B97: Операционная прибыль проекта | C97: тысяч рублей | D97: =C66 -> 0 | E97: =SUM(F97:AA97) -> 0
B99: Расходы на ремонт основных средств | C99: тысяч рублей | D99: =C66 -> 0 | E99: =SUM(F99:AA99) -> 0
B101: Показатели занятости | F101: 2019 | G101: 2020 | H101: 2021 | I101: 2022 | J101: 2023 | K101: 2024 | L101: 2025 | M101: 2026 | N101: 2027 | O101: 2028 | P101: 2029 | Q101: 2030 | R101: 2031 | S101: 2032 | T101: 2033 | U101: 2034 | V101: 2035 | W101: 2036 | X101: 2037 | Y101: 2038 | Z101: 2039 | AA101: 2040
B102: Количество постоянного персонала | C102: человек | D102: =C66 -> 0
B104: Средняя ставка временного персонала | C104: тысяч рублей в месяц на человека | D104: =C66 -> 0
B105: Полная занятость | F105: =IFERROR(F95/(F104*11),0) -> 0 | G105: =IFERROR(G95/(G104*11),0) -> 0 | H105: =IFERROR(H95/(H104*11),0) -> 0 | I105: =IFERROR(I95/(I104*11),0) -> 0 | J105: =IFERROR(J95/(J104*11),0) -> 0 | K105: =IFERROR(K95/(K104*11),0) -> 0 | L105: =IFERROR(L95/(L104*11),0) -> 0 | M105: =IFERROR(M95/(M104*11),0) -> 0 | N105: =IFERROR(N95/(N104*11),0) -> 0 | O105: =IFERROR(O95/(O104*11),0) -> 0 | P105: =IFERROR(P95/(P104*11),0) -> 0 | Q105: =IFERROR(Q95/(Q104*11),0) -> 0 | R105: =IFERROR(R95/(R104*11),0) -> 0 | S105: =IFERROR(S95/(S104*11),0) -> 0 | T105: =IFERROR(T95/(T104*11),0) -> 0 | U105: =IFERROR(U95/(U104*11),0) -> 0 | V105: =IFERROR(V95/(V104*11),0) -> 0 | W105: =IFERROR(W95/(W104*11),0) -> 0 | X105: =IFERROR(X95/(X104*11),0) -> 0 | Y105: =IFERROR(Y95/(Y104*11),0) -> 0 | Z105: =IFERROR(Z95/(Z104*11),0) -> 0 | AA105: =IFERROR(AA95/(AA104*11),0) -> 0
B106: Уплаченные налоги и обязательные платежи | E106: Итого за весь период | F106: 2019 | G106: 2020 | H106: 2021 | I106: 2022 | J106: 2023 | K106: 2024 | L106: 2025 | M106: 2026 | N106: 2027 | O106: 2028 | P106: 2029 | Q106: 2030 | R106: 2031 | S106: 2032 | T106: 2033 | U106: 2034 | V106: 2035 | W106: 2036 | X106: 2037 | Y106: 2038 | Z106: 2039 | AA106: 2040
B107: Налог на прибыль (если проект на ОСНО) | C107: тысяч рублей | D107: =C66 -> 0 | E107: =SUM(F107:AA107) -> 0
B109: Единый налог (если проект на УСН, ЕНВД, Патент) | C109: тысяч рублей | D109: =C66 -> 0 | E109: =SUM(F109:AA109) -> 0
B111: Отчисления на обязательное социальное страхование | C111: тысяч рублей | D111: =C66 -> 0 | E111: =SUM(F111:AA111) -> 0
B113: Отчисления налога на самозанятых | C113: тысяч рублей | D113: =C66 -> 0 | E113: =SUM(F113:AA113) -> 0
B115: Уплата налога на доходы физических лиц | C115: тысяч рублей | D115: =C66 -> 0 | E115: =SUM(F115:AA115) -> 0
B117: Налог на имущество | C117: тысяч рублей | D117: =C66 -> 0 | E117: =SUM(F117:AA117) -> 0
B119: Налог на землю | C119: тысяч рублей | D119: =C66 -> 0 | E119: =SUM(F119:AA119) -> 0
B121: НДС и акцизы уплаченные в бюджет (если проект на ОСНО) | C121: тысяч рублей | D121: =C66 -> 0 | E121: =SUM(F121:AA121) -> 0
A124: =IF(OR(A64+1>'Шаг 0 - Мастер-лист'!$E$9,A64=0),0,A64+1) -> 3
A125: =IF(A124>0,"","x") ->  | B125: Название коммерческого проекта | C125: ОКВЭД 2 (XX.XX) | D125: Период начала (год начала инвестиционной фазы) | E125: Период окончания (год завершения проекта или прогноза) | F125: Предусматривает ли проект объекты капитального строительства? (Да/Нет)
... 110 more rows

Sheet Шаг 2 - базовая и обесп. инфр.
B1: Шаг 2 - Впишите в ячейки необходимые показатели по объектам базовой и обеспечивающей инфраструктуры (в том числе объекты транспортной, инженерной инфраструктуры)
A4: 1
B5: Название объекта базовой или обеспечивающей инфраструктуры | C5: Период начала инвестиционной фазы (год) | D5: Период окончания инвестиционного периода (год) | E5: Предусматривает ли проект объекты капитального строительства? (Да/Нет)
B6: пример: эко-тропа
A8: -2 | B8: Инвестиции | E8: Итого за весь период | F8: 2019 | G8: 2020 | H8: 2021 | I8: 2022 | J8: 2023 | K8: 2024 | L8: 2025 | M8: 2026 | N8: 2027 | O8: 2028 | P8: 2029 | Q8: 2030 | R8: 2031 | S8: 2032 | T8: 2033 | U8: 2034 | V8: 2035 | W8: 2036 | X8: 2037 | Y8: 2038 | Z8: 2039 | AA8: 2040
A9: -3 | B9: Государственные инвестиции в проект | C9: тысяч рублей | E9: =SUM(F9:AA9) -> 50000 | F9: 25000 | G9: 25000
A10: -4
A11: -5 | B11: Частные инвестиции в проект | C11: тысяч рублей | E11: =SUM(F11:AA11) -> 0
A12: -6
A13: -7 | B13: Структура инвестиций в проект | E13: Итого за весь период
A14: -8 | B14: Здания и сооружения | C14: % от инвестиционного бюджета проекта | E14: 0.75 | F14: =E14*SUM(F9:F11) -> 18750 | G14: =E14*SUM(G9:G11) -> 18750 | H14: =E14*SUM(H9:H11) -> 0 | I14: =E14*SUM(I9:I11) -> 0 | J14: =E14*SUM(J9:J11) -> 0 | K14: =E14*SUM(K9:K11) -> 0 | L14: =E14*SUM(L9:L11) -> 0 | M14: =E14*SUM(M9:M11) -> 0 | N14: =E14*SUM(N9:N11) -> 0 | O14: =E14*SUM(O9:O11) -> 0 | P14: =E14*SUM(P9:P11) -> 0 | Q14: =E14*SUM(Q9:Q11) -> 0 | R14: =E14*SUM(R9:R11) -> 0 | S14: =E14*SUM(S9:S11) -> 0 | T14: =E14*SUM(T9:T11) -> 0 | U14: =E14*SUM(U9:U11) -> 0 | V14: =E14*SUM(V9:V11) -> 0 | W14: =E14*SUM(W9:W11) -> 0 | X14: =E14*SUM(X9:X11) -> 0 | Y14: =E14*SUM(Y9:Y11) -> 0 | Z14: =E14*SUM(Z9:Z11) -> 0 | AA14: =E14*SUM(AA9:AA11) -> 0
A15: -9
A16: -10 | B16: Машины и оборудование | C16: % от инвестиционного бюджета проекта | E16: 0.15 | F16: =E16*SUM(F9:F11) -> 3750 | G16: =E16*SUM(G9:G11) -> 3750 | H16: =E16*SUM(H9:H11) -> 0 | I16: =E16*SUM(I9:I11) -> 0 | J16: =E16*SUM(J9:J11) -> 0 | K16: =E16*SUM(K9:K11) -> 0 | L16: =E16*SUM(L9:L11) -> 0 | M16: =E16*SUM(M9:M11) -> 0 | N16: =E16*SUM(N9:N11) -> 0 | O16: =E16*SUM(O9:O11) -> 0 | P16: =E16*SUM(P9:P11) -> 0 | Q16: =E16*SUM(Q9:Q11) -> 0 | R16: =E16*SUM(R9:R11) -> 0 | S16: =E16*SUM(S9:S11) -> 0 | T16: =E16*SUM(T9:T11) -> 0 | U16: =E16*SUM(U9:U11) -> 0 | V16: =E16*SUM(V9:V11) -> 0 | W16: =E16*SUM(W9:W11) -> 0 | X16: =E16*SUM(X9:X11) -> 0 | Y16: =E16*SUM(Y9:Y11) -> 0 | Z16: =E16*SUM(Z9:Z11) -> 0 | AA16: =E16*SUM(AA9:AA11) -> 0
A17: -11
A18: -12 | B18: Транспортные средства | C18: % от инвестиционного бюджета проекта | E18: 0.1 | F18: =E18*SUM(F9:F11) -> 2500 | G18: =E18*SUM(G9:G11) -> 2500 | H18: =E18*SUM(H9:H11) -> 0 | I18: =E18*SUM(I9:I11) -> 0 | J18: =E18*SUM(J9:J11) -> 0 | K18: =E18*SUM(K9:K11) -> 0 | L18: =E18*SUM(L9:L11) -> 0 | M18: =E18*SUM(M9:M11) -> 0 | N18: =E18*SUM(N9:N11) -> 0 | O18: =E18*SUM(O9:O11) -> 0 | P18: =E18*SUM(P9:P11) -> 0 | Q18: =E18*SUM(Q9:Q11) -> 0 | R18: =E18*SUM(R9:R11) -> 0 | S18: =E18*SUM(S9:S11) -> 0 | T18: =E18*SUM(T9:T11) -> 0 | U18: =E18*SUM(U9:U11) -> 0 | V18: =E18*SUM(V9:V11) -> 0 | W18: =E18*SUM(W9:W11) -> 0 | X18: =E18*SUM(X9:X11) -> 0 | Y18: =E18*SUM(Y9:Y11) -> 0 | Z18: =E18*SUM(Z9:Z11) -> 0 | AA18: =E18*SUM(AA9:AA11) -> 0
A19: -13
A20: -14 | B20: Мебель и инвентарь | C20: % от инвестиционного бюджета проекта | F20: =E20*SUM(F9:F11) -> 0 | G20: =E20*SUM(G9:G11) -> 0 | H20: =E20*SUM(H9:H11) -> 0 | I20: =E20*SUM(I9:I11) -> 0 | J20: =E20*SUM(J9:J11) -> 0 | K20: =E20*SUM(K9:K11) -> 0 | L20: =E20*SUM(L9:L11) -> 0 | M20: =E20*SUM(M9:M11) -> 0 | N20: =E20*SUM(N9:N11) -> 0 | O20: =E20*SUM(O9:O11) -> 0 | P20: =E20*SUM(P9:P11) -> 0 | Q20: =E20*SUM(Q9:Q11) -> 0 | R20: =E20*SUM(R9:R11) -> 0 | S20: =E20*SUM(S9:S11) -> 0 | T20: =E20*SUM(T9:T11) -> 0 | U20: =E20*SUM(U9:U11) -> 0 | V20: =E20*SUM(V9:V11) -> 0 | W20: =E20*SUM(W9:W11) -> 0 | X20: =E20*SUM(X9:X11) -> 0 | Y20: =E20*SUM(Y9:Y11) -> 0 | Z20: =E20*SUM(Z9:Z11) -> 0 | AA20: =E20*SUM(AA9:AA11) -> 0
A21: -15
A22: -16 | B22: Инженерные и прочие професcиональные услуги | C22: % от инвестиционного бюджета проекта | F22: =E22*SUM(F9:F11) -> 0 | G22: =E22*SUM(G9:G11) -> 0 | H22: =E22*SUM(H9:H11) -> 0 | I22: =E22*SUM(I9:I11) -> 0 | J22: =E22*SUM(J9:J11) -> 0 | K22: =E22*SUM(K9:K11) -> 0 | L22: =E22*SUM(L9:L11) -> 0 | M22: =E22*SUM(M9:M11) -> 0 | N22: =E22*SUM(N9:N11) -> 0 | O22: =E22*SUM(O9:O11) -> 0 | P22: =E22*SUM(P9:P11) -> 0 | Q22: =E22*SUM(Q9:Q11) -> 0 | R22: =E22*SUM(R9:R11) -> 0 | S22: =E22*SUM(S9:S11) -> 0 | T22: =E22*SUM(T9:T11) -> 0 | U22: =E22*SUM(U9:U11) -> 0 | V22: =E22*SUM(V9:V11) -> 0 | W22: =E22*SUM(W9:W11) -> 0 | X22: =E22*SUM(X9:X11) -> 0 | Y22: =E22*SUM(Y9:Y11) -> 0 | Z22: =E22*SUM(Z9:Z11) -> 0 | AA22: =E22*SUM(AA9:AA11) -> 0
A23: -17
A24: -18 | B24: Прочие услуги | C24: % от инвестиционного бюджета проекта | F24: =E24*SUM(F9:F11) -> 0 | G24: =E24*SUM(G9:G11) -> 0 | H24: =E24*SUM(H9:H11) -> 0 | I24: =E24*SUM(I9:I11) -> 0 | J24: =E24*SUM(J9:J11) -> 0 | K24: =E24*SUM(K9:K11) -> 0 | L24: =E24*SUM(L9:L11) -> 0 | M24: =E24*SUM(M9:M11) -> 0 | N24: =E24*SUM(N9:N11) -> 0 | O24: =E24*SUM(O9:O11) -> 0 | P24: =E24*SUM(P9:P11) -> 0 | Q24: =E24*SUM(Q9:Q11) -> 0 | R24: =E24*SUM(R9:R11) -> 0 | S24: =E24*SUM(S9:S11) -> 0 | T24: =E24*SUM(T9:T11) -> 0 | U24: =E24*SUM(U9:U11) -> 0 | V24: =E24*SUM(V9:V11) -> 0 | W24: =E24*SUM(W9:W11) -> 0 | X24: =E24*SUM(X9:X11) -> 0 | Y24: =E24*SUM(Y9:Y11) -> 0 | Z24: =E24*SUM(Z9:Z11) -> 0 | AA24: =E24*SUM(AA9:AA11) -> 0
B26: Прочие товары | C26: % от инвестиционного бюджета проекта | F26: =E26*SUM(F9:F11) -> 0 | G26: =E26*SUM(G9:G11) -> 0 | H26: =E26*SUM(H9:H11) -> 0 | I26: =E26*SUM(I9:I11) -> 0 | J26: =E26*SUM(J9:J11) -> 0 | K26: =E26*SUM(K9:K11) -> 0 | L26: =E26*SUM(L9:L11) -> 0 | M26: =E26*SUM(M9:M11) -> 0 | N26: =E26*SUM(N9:N11) -> 0 | O26: =E26*SUM(O9:O11) -> 0 | P26: =E26*SUM(P9:P11) -> 0 | Q26: =E26*SUM(Q9:Q11) -> 0 | R26: =E26*SUM(R9:R11) -> 0 | S26: =E26*SUM(S9:S11) -> 0 | T26: =E26*SUM(T9:T11) -> 0 | U26: =E26*SUM(U9:U11) -> 0 | V26: =E26*SUM(V9:V11) -> 0 | W26: =E26*SUM(W9:W11) -> 0 | X26: =E26*SUM(X9:X11) -> 0 | Y26: =E26*SUM(Y9:Y11) -> 0 | Z26: =E26*SUM(Z9:Z11) -> 0 | AA26: =E26*SUM(AA9:AA11) -> 0
A29: =IF(OR(A4+1>'Шаг 0 - Мастер-лист'!$E$11,A4=0),0,A4+1) -> 2
A30: =IF(A29>0,"","x") ->  | B30: Название объекта базовой или обеспечивающей инфраструктуры | C30: Период начала инвестиционной фазы (год) | D30: Период окончания инвестиционного периода (год) | E30: Предусматривает ли проект объекты капитального строительства? (Да/Нет)
A31: =A30 -> 
A32: =A31 -> 
B33: Инвестиции | E33: Итого за весь период | F33: 2019 | G33: 2020 | H33: 2021 | I33: 2022 | J33: 2023 | K33: 2024 | L33: 2025 | M33: 2026 | N33: 2027 | O33: 2028 | P33: 2029 | Q33: 2030 | R33: 2031 | S33: 2032 | T33: 2033 | U33: 2034 | V33: 2035 | W33: 2036 | X33: 2037 | Y33: 2038 | Z33: 2039 | AA33: 2040
B34: Государственные инвестиции в проект | C34: тысяч рублей | E34: =SUM(F34:AA34) -> 0
B36: Частные инвестиции в проект | C36: тысяч рублей | E36: =SUM(F36:AA36) -> 0
B38: Структура инвестиций в проект | E38: Итого за весь период
B39: Здания и сооружения | C39: % от инвестиционного бюджета проекта | F39: =E39*SUM(F34:F36) -> 0 | G39: =E39*SUM(G34:G36) -> 0 | H39: =E39*SUM(H34:H36) -> 0 | I39: =E39*SUM(I34:I36) -> 0 | J39: =E39*SUM(J34:J36) -> 0 | K39: =E39*SUM(K34:K36) -> 0 | L39: =E39*SUM(L34:L36) -> 0 | M39: =E39*SUM(M34:M36) -> 0 | N39: =E39*SUM(N34:N36) -> 0 | O39: =E39*SUM(O34:O36) -> 0 | P39: =E39*SUM(P34:P36) -> 0 | Q39: =E39*SUM(Q34:Q36) -> 0 | R39: =E39*SUM(R34:R36) -> 0 | S39: =E39*SUM(S34:S36) -> 0 | T39: =E39*SUM(T34:T36) -> 0 | U39: =E39*SUM(U34:U36) -> 0 | V39: =E39*SUM(V34:V36) -> 0 | W39: =E39*SUM(W34:W36) -> 0 | X39: =E39*SUM(X34:X36) -> 0 | Y39: =E39*SUM(Y34:Y36) -> 0 | Z39: =E39*SUM(Z34:Z36) -> 0 | AA39: =E39*SUM(AA34:AA36) -> 0
B41: Машины и оборудование | C41: % от инвестиционного бюджета проекта | F41: =E41*SUM(F34:F36) -> 0 | G41: =E41*SUM(G34:G36) -> 0 | H41: =E41*SUM(H34:H36) -> 0 | I41: =E41*SUM(I34:I36) -> 0 | J41: =E41*SUM(J34:J36) -> 0 | K41: =E41*SUM(K34:K36) -> 0 | L41: =E41*SUM(L34:L36) -> 0 | M41: =E41*SUM(M34:M36) -> 0 | N41: =E41*SUM(N34:N36) -> 0 | O41: =E41*SUM(O34:O36) -> 0 | P41: =E41*SUM(P34:P36) -> 0 | Q41: =E41*SUM(Q34:Q36) -> 0 | R41: =E41*SUM(R34:R36) -> 0 | S41: =E41*SUM(S34:S36) -> 0 | T41: =E41*SUM(T34:T36) -> 0 | U41: =E41*SUM(U34:U36) -> 0 | V41: =E41*SUM(V34:V36) -> 0 | W41: =E41*SUM(W34:W36) -> 0 | X41: =E41*SUM(X34:X36) -> 0 | Y41: =E41*SUM(Y34:Y36) -> 0 | Z41: =E41*SUM(Z34:Z36) -> 0 | AA41: =E41*SUM(AA34:AA36) -> 0
B43: Транспортные средства | C43: % от инвестиционного бюджета проекта | F43: =E43*SUM(F34:F36) -> 0 | G43: =E43*SUM(G34:G36) -> 0 | H43: =E43*SUM(H34:H36) -> 0 | I43: =E43*SUM(I34:I36) -> 0 | J43: =E43*SUM(J34:J36) -> 0 | K43: =E43*SUM(K34:K36) -> 0 | L43: =E43*SUM(L34:L36) -> 0 | M43: =E43*SUM(M34:M36) -> 0 | N43: =E43*SUM(N34:N36) -> 0 | O43: =E43*SUM(O34:O36) -> 0 | P43: =E43*SUM(P34:P36) -> 0 | Q43: =E43*SUM(Q34:Q36) -> 0 | R43: =E43*SUM(R34:R36) -> 0 | S43: =E43*SUM(S34:S36) -> 0 | T43: =E43*SUM(T34:T36) -> 0 | U43: =E43*SUM(U34:U36) -> 0 | V43: =E43*SUM(V34:V36) -> 0 | W43: =E43*SUM(W34:W36) -> 0 | X43: =E43*SUM(X34:X36) -> 0 | Y43: =E43*SUM(Y34:Y36) -> 0 | Z43: =E43*SUM(Z34:Z36) -> 0 | AA43: =E43*SUM(AA34:AA36) -> 0
B45: Мебель и инвентарь | C45: % от инвестиционного бюджета проекта | F45: =E45*SUM(F34:F36) -> 0 | G45: =E45*SUM(G34:G36) -> 0 | H45: =E45*SUM(H34:H36) -> 0 | I45: =E45*SUM(I34:I36) -> 0 | J45: =E45*SUM(J34:J36) -> 0 | K45: =E45*SUM(K34:K36) -> 0 | L45: =E45*SUM(L34:L36) -> 0 | M45: =E45*SUM(M34:M36) -> 0 | N45: =E45*SUM(N34:N36) -> 0 | O45: =E45*SUM(O34:O36) -> 0 | P45: =E45*SUM(P34:P36) -> 0 | Q45: =E45*SUM(Q34:Q36) -> 0 | R45: =E45*SUM(R34:R36) -> 0 | S45: =E45*SUM(S34:S36) -> 0 | T45: =E45*SUM(T34:T36) -> 0 | U45: =E45*SUM(U34:U36) -> 0 | V45: =E45*SUM(V34:V36) -> 0 | W45: =E45*SUM(W34:W36) -> 0 | X45: =E45*SUM(X34:X36) -> 0 | Y45: =E45*SUM(Y34:Y36) -> 0 | Z45: =E45*SUM(Z34:Z36) -> 0 | AA45: =E45*SUM(AA34:AA36) -> 0
B47: Инженерные и прочие професcиональные услуги | C47: % от инвестиционного бюджета проекта | F47: =E47*SUM(F34:F36) -> 0 | G47: =E47*SUM(G34:G36) -> 0 | H47: =E47*SUM(H34:H36) -> 0 | I47: =E47*SUM(I34:I36) -> 0 | J47: =E47*SUM(J34:J36) -> 0 | K47: =E47*SUM(K34:K36) -> 0 | L47: =E47*SUM(L34:L36) -> 0 | M47: =E47*SUM(M34:M36) -> 0 | N47: =E47*SUM(N34:N36) -> 0 | O47: =E47*SUM(O34:O36) -> 0 | P47: =E47*SUM(P34:P36) -> 0 | Q47: =E47*SUM(Q34:Q36) -> 0 | R47: =E47*SUM(R34:R36) -> 0 | S47: =E47*SUM(S34:S36) -> 0 | T47: =E47*SUM(T34:T36) -> 0 | U47: =E47*SUM(U34:U36) -> 0 | V47: =E47*SUM(V34:V36) -> 0 | W47: =E47*SUM(W34:W36) -> 0 | X47: =E47*SUM(X34:X36) -> 0 | Y47: =E47*SUM(Y34:Y36) -> 0 | Z47: =E47*SUM(Z34:Z36) -> 0 | AA47: =E47*SUM(AA34:AA36) -> 0
B49: Прочие услуги | C49: % от инвестиционного бюджета проекта | F49: =E49*SUM(F34:F36) -> 0 | G49: =E49*SUM(G34:G36) -> 0 | H49: =E49*SUM(H34:H36) -> 0 | I49: =E49*SUM(I34:I36) -> 0 | J49: =E49*SUM(J34:J36) -> 0 | K49: =E49*SUM(K34:K36) -> 0 | L49: =E49*SUM(L34:L36) -> 0 | M49: =E49*SUM(M34:M36) -> 0 | N49: =E49*SUM(N34:N36) -> 0 | O49: =E49*SUM(O34:O36) -> 0 | P49: =E49*SUM(P34:P36) -> 0 | Q49: =E49*SUM(Q34:Q36) -> 0 | R49: =E49*SUM(R34:R36) -> 0 | S49: =E49*SUM(S34:S36) -> 0 | T49: =E49*SUM(T34:T36) -> 0 | U49: =E49*SUM(U34:U36) -> 0 | V49: =E49*SUM(V34:V36) -> 0 | W49: =E49*SUM(W34:W36) -> 0 | X49: =E49*SUM(X34:X36) -> 0 | Y49: =E49*SUM(Y34:Y36) -> 0 | Z49: =E49*SUM(Z34:Z36) -> 0 | AA49: =E49*SUM(AA34:AA36) -> 0
B51: Прочие товары | C51: % от инвестиционного бюджета проекта | F51: =E51*SUM(F34:F36) -> 0 | G51: =E51*SUM(G34:G36) -> 0 | H51: =E51*SUM(H34:H36) -> 0 | I51: =E51*SUM(I34:I36) -> 0 | J51: =E51*SUM(J34:J36) -> 0 | K51: =E51*SUM(K34:K36) -> 0 | L51: =E51*SUM(L34:L36) -> 0 | M51: =E51*SUM(M34:M36) -> 0 | N51: =E51*SUM(N34:N36) -> 0 | O51: =E51*SUM(O34:O36) -> 0 | P51: =E51*SUM(P34:P36) -> 0 | Q51: =E51*SUM(Q34:Q36) -> 0 | R51: =E51*SUM(R34:R36) -> 0 | S51: =E51*SUM(S34:S36) -> 0 | T51: =E51*SUM(T34:T36) -> 0 | U51: =E51*SUM(U34:U36) -> 0 | V51: =E51*SUM(V34:V36) -> 0 | W51: =E51*SUM(W34:W36) -> 0 | X51: =E51*SUM(X34:X36) -> 0 | Y51: =E51*SUM(Y34:Y36) -> 0 | Z51: =E51*SUM(Z34:Z36) -> 0 | AA51: =E51*SUM(AA34:AA36) -> 0
A54: =IF(OR(A29+1>'Шаг 0 - Мастер-лист'!$E$11,A29=0),0,A29+1) -> 3
A55: =IF(A54>0,"","x") ->  | B55: Название объекта базовой или обеспечивающей инфраструктуры | C55: Период начала инвестиционной фазы (год) | D55: Период окончания инвестиционного периода (год) | E55: Предусматривает ли проект объекты капитального строительства? (Да/Нет)
A56: =A55 -> 
A57: =A56 -> 
B58: Инвестиции | E58: Итого за весь период | F58: 2019 | G58: 2020 | H58: 2021 | I58: 2022 | J58: 2023 | K58: 2024 | L58: 2025 | M58: 2026 | N58: 2027 | O58: 2028 | P58: 2029 | Q58: 2030 | R58: 2031 | S58: 2032 | T58: 2033 | U58: 2034 | V58: 2035 | W58: 2036 | X58: 2037 | Y58: 2038 | Z58: 2039 | AA58: 2040
B59: Государственные инвестиции в проект | C59: тысяч рублей | E59: =SUM(F59:AA59) -> 0
B61: Частные инвестиции в проект | C61: тысяч рублей | E61: =SUM(F61:AA61) -> 0
B63: Структура инвестиций в проект | E63: Итого за весь период
B64: Здания и сооружения | C64: % от инвестиционного бюджета проекта | F64: =E64*SUM(F59:F61) -> 0 | G64: =E64*SUM(G59:G61) -> 0 | H64: =E64*SUM(H59:H61) -> 0 | I64: =E64*SUM(I59:I61) -> 0 | J64: =E64*SUM(J59:J61) -> 0 | K64: =E64*SUM(K59:K61) -> 0 | L64: =E64*SUM(L59:L61) -> 0 | M64: =E64*SUM(M59:M61) -> 0 | N64: =E64*SUM(N59:N61) -> 0 | O64: =E64*SUM(O59:O61) -> 0 | P64: =E64*SUM(P59:P61) -> 0 | Q64: =E64*SUM(Q59:Q61) -> 0 | R64: =E64*SUM(R59:R61) -> 0 | S64: =E64*SUM(S59:S61) -> 0 | T64: =E64*SUM(T59:T61) -> 0 | U64: =E64*SUM(U59:U61) -> 0 | V64: =E64*SUM(V59:V61) -> 0 | W64: =E64*SUM(W59:W61) -> 0 | X64: =E64*SUM(X59:X61) -> 0 | Y64: =E64*SUM(Y59:Y61) -> 0 | Z64: =E64*SUM(Z59:Z61) -> 0 | AA64: =E64*SUM(AA59:AA61) -> 0
B66: Машины и оборудование | C66: % от инвестиционного бюджета проекта | F66: =E66*SUM(F59:F61) -> 0 | G66: =E66*SUM(G59:G61) -> 0 | H66: =E66*SUM(H59:H61) -> 0 | I66: =E66*SUM(I59:I61) -> 0 | J66: =E66*SUM(J59:J61) -> 0 | K66: =E66*SUM(K59:K61) -> 0 | L66: =E66*SUM(L59:L61) -> 0 | M66: =E66*SUM(M59:M61) -> 0 | N66: =E66*SUM(N59:N61) -> 0 | O66: =E66*SUM(O59:O61) -> 0 | P66: =E66*SUM(P59:P61) -> 0 | Q66: =E66*SUM(Q59:Q61) -> 0 | R66: =E66*SUM(R59:R61) -> 0 | S66: =E66*SUM(S59:S61) -> 0 | T66: =E66*SUM(T59:T61) -> 0 | U66: =E66*SUM(U59:U61) -> 0 | V66: =E66*SUM(V59:V61) -> 0 | W66: =E66*SUM(W59:W61) -> 0 | X66: =E66*SUM(X59:X61) -> 0 | Y66: =E66*SUM(Y59:Y61) -> 0 | Z66: =E66*SUM(Z59:Z61) -> 0 | AA66: =E66*SUM(AA59:AA61) -> 0
B68: Транспортные средства | C68: % от инвестиционного бюджета проекта | F68: =E68*SUM(F59:F61) -> 0 | G68: =E68*SUM(G59:G61) -> 0 | H68: =E68*SUM(H59:H61) -> 0 | I68: =E68*SUM(I59:I61) -> 0 | J68: =E68*SUM(J59:J61) -> 0 | K68: =E68*SUM(K59:K61) -> 0 | L68: =E68*SUM(L59:L61) -> 0 | M68: =E68*SUM(M59:M61) -> 0 | N68: =E68*SUM(N59:N61) -> 0 | O68: =E68*SUM(O59:O61) -> 0 | P68: =E68*SUM(P59:P61) -> 0 | Q68: =E68*SUM(Q59:Q61) -> 0 | R68: =E68*SUM(R59:R61) -> 0 | S68: =E68*SUM(S59:S61) -> 0 | T68: =E68*SUM(T59:T61) -> 0 | U68: =E68*SUM(U59:U61) -> 0 | V68: =E68*SUM(V59:V61) -> 0 | W68: =E68*SUM(W59:W61) -> 0 | X68: =E68*SUM(X59:X61) -> 0 | Y68: =E68*SUM(Y59:Y61) -> 0 | Z68: =E68*SUM(Z59:Z61) -> 0 | AA68: =E68*SUM(AA59:AA61) -> 0
B70: Мебель и инвентарь | C70: % от инвестиционного бюджета проекта | F70: =E70*SUM(F59:F61) -> 0 | G70: =E70*SUM(G59:G61) -> 0 | H70: =E70*SUM(H59:H61) -> 0 | I70: =E70*SUM(I59:I61) -> 0 | J70: =E70*SUM(J59:J61) -> 0 | K70: =E70*SUM(K59:K61) -> 0 | L70: =E70*SUM(L59:L61) -> 0 | M70: =E70*SUM(M59:M61) -> 0 | N70: =E70*SUM(N59:N61) -> 0 | O70: =E70*SUM(O59:O61) -> 0 | P70: =E70*SUM(P59:P61) -> 0 | Q70: =E70*SUM(Q59:Q61) -> 0 | R70: =E70*SUM(R59:R61) -> 0 | S70: =E70*SUM(S59:S61) -> 0 | T70: =E70*SUM(T59:T61) -> 0 | U70: =E70*SUM(U59:U61) -> 0 | V70: =E70*SUM(V59:V61) -> 0 | W70: =E70*SUM(W59:W61) -> 0 | X70: =E70*SUM(X59:X61) -> 0 | Y70: =E70*SUM(Y59:Y61) -> 0 | Z70: =E70*SUM(Z59:Z61) -> 0 | AA70: =E70*SUM(AA59:AA61) -> 0
B72: Инженерные и прочие професcиональные услуги | C72: % от инвестиционного бюджета проекта | F72: =E72*SUM(F59:F61) -> 0 | G72: =E72*SUM(G59:G61) -> 0 | H72: =E72*SUM(H59:H61) -> 0 | I72: =E72*SUM(I59:I61) -> 0 | J72: =E72*SUM(J59:J61) -> 0 | K72: =E72*SUM(K59:K61) -> 0 | L72: =E72*SUM(L59:L61) -> 0 | M72: =E72*SUM(M59:M61) -> 0 | N72: =E72*SUM(N59:N61) -> 0 | O72: =E72*SUM(O59:O61) -> 0 | P72: =E72*SUM(P59:P61) -> 0 | Q72: =E72*SUM(Q59:Q61) -> 0 | R72: =E72*SUM(R59:R61) -> 0 | S72: =E72*SUM(S59:S61) -> 0 | T72: =E72*SUM(T59:T61) -> 0 | U72: =E72*SUM(U59:U61) -> 0 | V72: =E72*SUM(V59:V61) -> 0 | W72: =E72*SUM(W59:W61) -> 0 | X72: =E72*SUM(X59:X61) -> 0 | Y72: =E72*SUM(Y59:Y61) -> 0 | Z72: =E72*SUM(Z59:Z61) -> 0 | AA72: =E72*SUM(AA59:AA61) -> 0
B74: Прочие услуги | C74: % от инвестиционного бюджета проекта | F74: =E74*SUM(F59:F61) -> 0 | G74: =E74*SUM(G59:G61) -> 0 | H74: =E74*SUM(H59:H61) -> 0 | I74: =E74*SUM(I59:I61) -> 0 | J74: =E74*SUM(J59:J61) -> 0 | K74: =E74*SUM(K59:K61) -> 0 | L74: =E74*SUM(L59:L61) -> 0 | M74: =E74*SUM(M59:M61) -> 0 | N74: =E74*SUM(N59:N61) -> 0 | O74: =E74*SUM(O59:O61) -> 0 | P74: =E74*SUM(P59:P61) -> 0 | Q74: =E74*SUM(Q59:Q61) -> 0 | R74: =E74*SUM(R59:R61) -> 0 | S74: =E74*SUM(S59:S61) -> 0 | T74: =E74*SUM(T59:T61) -> 0 | U74: =E74*SUM(U59:U61) -> 0 | V74: =E74*SUM(V59:V61) -> 0 | W74: =E74*SUM(W59:W61) -> 0 | X74: =E74*SUM(X59:X61) -> 0 | Y74: =E74*SUM(Y59:Y61) -> 0 | Z74: =E74*SUM(Z59:Z61) -> 0 | AA74: =E74*SUM(AA59:AA61) -> 0
B76: Прочие товары | C76: % от инвестиционного бюджета проекта | F76: =E76*SUM(F59:F61) -> 0 | G76: =E76*SUM(G59:G61) -> 0 | H76: =E76*SUM(H59:H61) -> 0 | I76: =E76*SUM(I59:I61) -> 0 | J76: =E76*SUM(J59:J61) -> 0 | K76: =E76*SUM(K59:K61) -> 0 | L76: =E76*SUM(L59:L61) -> 0 | M76: =E76*SUM(M59:M61) -> 0 | N76: =E76*SUM(N59:N61) -> 0 | O76: =E76*SUM(O59:O61) -> 0 | P76: =E76*SUM(P59:P61) -> 0 | Q76: =E76*SUM(Q59:Q61) -> 0 | R76: =E76*SUM(R59:R61) -> 0 | S76: =E76*SUM(S59:S61) -> 0 | T76: =E76*SUM(T59:T61) -> 0 | U76: =E76*SUM(U59:U61) -> 0 | V76: =E76*SUM(V59:V61) -> 0 | W76: =E76*SUM(W59:W61) -> 0 | X76: =E76*SUM(X59:X61) -> 0 | Y76: =E76*SUM(Y59:Y61) -> 0 | Z76: =E76*SUM(Z59:Z61) -> 0 | AA76: =E76*SUM(AA59:AA61) -> 0
A79: =IF(OR(A54+1>'Шаг 0 - Мастер-лист'!$E$11,A54=0),0,A54+1) -> 4
A80: =IF(A79>0,"","x") ->  | B80: Название объекта базовой или обеспечивающей инфраструктуры | C80: Период начала инвестиционной фазы (год) | D80: Период окончания инвестиционного периода (год) | E80: Предусматривает ли проект объекты капитального строительства? (Да/Нет)
A81: =A80 -> 
A82: =A81 -> 
B83: Инвестиции | E83: Итого за весь период | F83: 2019 | G83: 2020 | H83: 2021 | I83: 2022 | J83: 2023 | K83: 2024 | L83: 2025 | M83: 2026 | N83: 2027 | O83: 2028 | P83: 2029 | Q83: 2030 | R83: 2031 | S83: 2032 | T83: 2033 | U83: 2034 | V83: 2035 | W83: 2036 | X83: 2037 | Y83: 2038 | Z83: 2039 | AA83: 2040
B84: Государственные инвестиции в проект | C84: тысяч рублей | E84: =SUM(F84:AA84) -> 0
B86: Частные инвестиции в проект | C86: тысяч рублей | E86: =SUM(F86:AA86) -> 0
B88: Структура инвестиций в проект | E88: Итого за весь период
B89: Здания и сооружения | C89: % от инвестиционного бюджета проекта | F89: =E89*SUM(F84:F86) -> 0 | G89: =E89*SUM(G84:G86) -> 0 | H89: =E89*SUM(H84:H86) -> 0 | I89: =E89*SUM(I84:I86) -> 0 | J89: =E89*SUM(J84:J86) -> 0 | K89: =E89*SUM(K84:K86) -> 0 | L89: =E89*SUM(L84:L86) -> 0 | M89: =E89*SUM(M84:M86) -> 0 | N89: =E89*SUM(N84:N86) -> 0 | O89: =E89*SUM(O84:O86) -> 0 | P89: =E89*SUM(P84:P86) -> 0 | Q89: =E89*SUM(Q84:Q86) -> 0 | R89: =E89*SUM(R84:R86) -> 0 | S89: =E89*SUM(S84:S86) -> 0 | T89: =E89*SUM(T84:T86) -> 0 | U89: =E89*SUM(U84:U86) -> 0 | V89: =E89*SUM(V84:V86) -> 0 | W89: =E89*SUM(W84:W86) -> 0 | X89: =E89*SUM(X84:X86) -> 0 | Y89: =E89*SUM(Y84:Y86) -> 0 | Z89: =E89*SUM(Z84:Z86) -> 0 | AA89: =E89*SUM(AA84:AA86) -> 0
B91: Машины и оборудование | C91: % от инвестиционного бюджета проекта | F91: =E91*SUM(F84:F86) -> 0 | G91: =E91*SUM(G84:G86) -> 0 | H91: =E91*SUM(H84:H86) -> 0 | I91: =E91*SUM(I84:I86) -> 0 | J91: =E91*SUM(J84:J86) -> 0 | K91: =E91*SUM(K84:K86) -> 0 | L91: =E91*SUM(L84:L86) -> 0 | M91: =E91*SUM(M84:M86) -> 0 | N91: =E91*SUM(N84:N86) -> 0 | O91: =E91*SUM(O84:O86) -> 0 | P91: =E91*SUM(P84:P86) -> 0 | Q91: =E91*SUM(Q84:Q86) -> 0 | R91: =E91*SUM(R84:R86) -> 0 | S91: =E91*SUM(S84:S86) -> 0 | T91: =E91*SUM(T84:T86) -> 0 | U91: =E91*SUM(U84:U86) -> 0 | V91: =E91*SUM(V84:V86) -> 0 | W91: =E91*SUM(W84:W86) -> 0 | X91: =E91*SUM(X84:X86) -> 0 | Y91: =E91*SUM(Y84:Y86) -> 0 | Z91: =E91*SUM(Z84:Z86) -> 0 | AA91: =E91*SUM(AA84:AA86) -> 0
B93: Транспортные средства | C93: % от инвестиционного бюджета проекта | F93: =E93*SUM(F84:F86) -> 0 | G93: =E93*SUM(G84:G86) -> 0 | H93: =E93*SUM(H84:H86) -> 0 | I93: =E93*SUM(I84:I86) -> 0 | J93: =E93*SUM(J84:J86) -> 0 | K93: =E93*SUM(K84:K86) -> 0 | L93: =E93*SUM(L84:L86) -> 0 | M93: =E93*SUM(M84:M86) -> 0 | N93: =E93*SUM(N84:N86) -> 0 | O93: =E93*SUM(O84:O86) -> 0 | P93: =E93*SUM(P84:P86) -> 0 | Q93: =E93*SUM(Q84:Q86) -> 0 | R93: =E93*SUM(R84:R86) -> 0 | S93: =E93*SUM(S84:S86) -> 0 | T93: =E93*SUM(T84:T86) -> 0 | U93: =E93*SUM(U84:U86) -> 0 | V93: =E93*SUM(V84:V86) -> 0 | W93: =E93*SUM(W84:W86) -> 0 | X93: =E93*SUM(X84:X86) -> 0 | Y93: =E93*SUM(Y84:Y86) -> 0 | Z93: =E93*SUM(Z84:Z86) -> 0 | AA93: =E93*SUM(AA84:AA86) -> 0
B95: Мебель и инвентарь | C95: % от инвестиционного бюджета проекта | F95: =E95*SUM(F84:F86) -> 0 | G95: =E95*SUM(G84:G86) -> 0 | H95: =E95*SUM(H84:H86) -> 0 | I95: =E95*SUM(I84:I86) -> 0 | J95: =E95*SUM(J84:J86) -> 0 | K95: =E95*SUM(K84:K86) -> 0 | L95: =E95*SUM(L84:L86) -> 0 | M95: =E95*SUM(M84:M86) -> 0 | N95: =E95*SUM(N84:N86) -> 0 | O95: =E95*SUM(O84:O86) -> 0 | P95: =E95*SUM(P84:P86) -> 0 | Q95: =E95*SUM(Q84:Q86) -> 0 | R95: =E95*SUM(R84:R86) -> 0 | S95: =E95*SUM(S84:S86) -> 0 | T95: =E95*SUM(T84:T86) -> 0 | U95: =E95*SUM(U84:U86) -> 0 | V95: =E95*SUM(V84:V86) -> 0 | W95: =E95*SUM(W84:W86) -> 0 | X95: =E95*SUM(X84:X86) -> 0 | Y95: =E95*SUM(Y84:Y86) -> 0 | Z95: =E95*SUM(Z84:Z86) -> 0 | AA95: =E95*SUM(AA84:AA86) -> 0
B97: Инженерные и прочие професcиональные услуги | C97: % от инвестиционного бюджета проекта | F97: =E97*SUM(F84:F86) -> 0 | G97: =E97*SUM(G84:G86) -> 0 | H97: =E97*SUM(H84:H86) -> 0 | I97: =E97*SUM(I84:I86) -> 0 | J97: =E97*SUM(J84:J86) -> 0 | K97: =E97*SUM(K84:K86) -> 0 | L97: =E97*SUM(L84:L86) -> 0 | M97: =E97*SUM(M84:M86) -> 0 | N97: =E97*SUM(N84:N86) -> 0 | O97: =E97*SUM(O84:O86) -> 0 | P97: =E97*SUM(P84:P86) -> 0 | Q97: =E97*SUM(Q84:Q86) -> 0 | R97: =E97*SUM(R84:R86) -> 0 | S97: =E97*SUM(S84:S86) -> 0 | T97: =E97*SUM(T84:T86) -> 0 | U97: =E97*SUM(U84:U86) -> 0 | V97: =E97*SUM(V84:V86) -> 0 | W97: =E97*SUM(W84:W86) -> 0 | X97: =E97*SUM(X84:X86) -> 0 | Y97: =E97*SUM(Y84:Y86) -> 0 | Z97: =E97*SUM(Z84:Z86) -> 0 | AA97: =E97*SUM(AA84:AA86) -> 0
B99: Прочие услуги | C99: % от инвестиционного бюджета проекта | F99: =E99*SUM(F84:F86) -> 0 | G99: =E99*SUM(G84:G86) -> 0 | H99: =E99*SUM(H84:H86) -> 0 | I99: =E99*SUM(I84:I86) -> 0 | J99: =E99*SUM(J84:J86) -> 0 | K99: =E99*SUM(K84:K86) -> 0 | L99: =E99*SUM(L84:L86) -> 0 | M99: =E99*SUM(M84:M86) -> 0 | N99: =E99*SUM(N84:N86) -> 0 | O99: =E99*SUM(O84:O86) -> 0 | P99: =E99*SUM(P84:P86) -> 0 | Q99: =E99*SUM(Q84:Q86) -> 0 | R99: =E99*SUM(R84:R86) -> 0 | S99: =E99*SUM(S84:S86) -> 0 | T99: =E99*SUM(T84:T86) -> 0 | U99: =E99*SUM(U84:U86) -> 0 | V99: =E99*SUM(V84:V86) -> 0 | W99: =E99*SUM(W84:W86) -> 0 | X99: =E99*SUM(X84:X86) -> 0 | Y99: =E99*SUM(Y84:Y86) -> 0 | Z99: =E99*SUM(Z84:Z86) -> 0 | AA99: =E99*SUM(AA84:AA86) -> 0
B101: Прочие товары | C101: % от инвестиционного бюджета проекта | F101: =E101*SUM(F84:F86) -> 0 | G101: =E101*SUM(G84:G86) -> 0 | H101: =E101*SUM(H84:H86) -> 0 | I101: =E101*SUM(I84:I86) -> 0 | J101: =E101*SUM(J84:J86) -> 0 | K101: =E101*SUM(K84:K86) -> 0 | L101: =E101*SUM(L84:L86) -> 0 | M101: =E101*SUM(M84:M86) -> 0 | N101: =E101*SUM(N84:N86) -> 0 | O101: =E101*SUM(O84:O86) -> 0 | P101: =E101*SUM(P84:P86) -> 0 | Q101: =E101*SUM(Q84:Q86) -> 0 | R101: =E101*SUM(R84:R86) -> 0 | S101: =E101*SUM(S84:S86) -> 0 | T101: =E101*SUM(T84:T86) -> 0 | U101: =E101*SUM(U84:U86) -> 0 | V101: =E101*SUM(V84:V86) -> 0 | W101: =E101*SUM(W84:W86) -> 0 | X101: =E101*SUM(X84:X86) -> 0 | Y101: =E101*SUM(Y84:Y86) -> 0 | Z101: =E101*SUM(Z84:Z86) -> 0 | AA101: =E101*SUM(AA84:AA86) -> 0
A104: =IF(OR(A79+1>'Шаг 0 - Мастер-лист'!$E$11,A79=0),0,A79+1) -> 5
A105: =IF(A104>0,"","x") ->  | B105: Название объекта базовой или обеспечивающей инфраструктуры | C105: Период начала инвестиционной фазы (год) | D105: Период окончания инвестиционного периода (год) | E105: Предусматривает ли проект объекты капитального строительства? (Да/Нет)
A106: =A105 -> 
A107: =A106 -> 
B108: Инвестиции | E108: Итого за весь период | F108: 2019 | G108: 2020 | H108: 2021 | I108: 2022 | J108: 2023 | K108: 2024 | L108: 2025 | M108: 2026 | N108: 2027 | O108: 2028 | P108: 2029 | Q108: 2030 | R108: 2031 | S108: 2032 | T108: 2033 | U108: 2034 | V108: 2035 | W108: 2036 | X108: 2037 | Y108: 2038 | Z108: 2039 | AA108: 2040
B109: Государственные инвестиции в проект | C109: тысяч рублей | E109: =SUM(F109:AA109) -> 0
B111: Частные инвестиции в проект | C111: тысяч рублей | E111: =SUM(F111:AA111) -> 0
B113: Структура инвестиций в проект | E113: Итого за весь период
B114: Здания и сооружения | C114: % от инвестиционного бюджета проекта | F114: =E114*SUM(F109:F111) -> 0 | G114: =E114*SUM(G109:G111) -> 0 | H114: =E114*SUM(H109:H111) -> 0 | I114: =E114*SUM(I109:I111) -> 0 | J114: =E114*SUM(J109:J111) -> 0 | K114: =E114*SUM(K109:K111) -> 0 | L114: =E114*SUM(L109:L111) -> 0 | M114: =E114*SUM(M109:M111) -> 0 | N114: =E114*SUM(N109:N111) -> 0 | O114: =E114*SUM(O109:O111) -> 0 | P114: =E114*SUM(P109:P111) -> 0 | Q114: =E114*SUM(Q109:Q111) -> 0 | R114: =E114*SUM(R109:R111) -> 0 | S114: =E114*SUM(S109:S111) -> 0 | T114: =E114*SUM(T109:T111) -> 0 | U114: =E114*SUM(U109:U111) -> 0 | V114: =E114*SUM(V109:V111) -> 0 | W114: =E114*SUM(W109:W111) -> 0 | X114: =E114*SUM(X109:X111) -> 0 | Y114: =E114*SUM(Y109:Y111) -> 0 | Z114: =E114*SUM(Z109:Z111) -> 0 | AA114: =E114*SUM(AA109:AA111) -> 0
B116: Машины и оборудование | C116: % от инвестиционного бюджета проекта | F116: =E116*SUM(F109:F111) -> 0 | G116: =E116*SUM(G109:G111) -> 0 | H116: =E116*SUM(H109:H111) -> 0 | I116: =E116*SUM(I109:I111) -> 0 | J116: =E116*SUM(J109:J111) -> 0 | K116: =E116*SUM(K109:K111) -> 0 | L116: =E116*SUM(L109:L111) -> 0 | M116: =E116*SUM(M109:M111) -> 0 | N116: =E116*SUM(N109:N111) -> 0 | O116: =E116*SUM(O109:O111) -> 0 | P116: =E116*SUM(P109:P111) -> 0 | Q116: =E116*SUM(Q109:Q111) -> 0 | R116: =E116*SUM(R109:R111) -> 0 | S116: =E116*SUM(S109:S111) -> 0 | T116: =E116*SUM(T109:T111) -> 0 | U116: =E116*SUM(U109:U111) -> 0 | V116: =E116*SUM(V109:V111) -> 0 | W116: =E116*SUM(W109:W111) -> 0 | X116: =E116*SUM(X109:X111) -> 0 | Y116: =E116*SUM(Y109:Y111) -> 0 | Z116: =E116*SUM(Z109:Z111) -> 0 | AA116: =E116*SUM(AA109:AA111) -> 0
B118: Транспортные средства | C118: % от инвестиционного бюджета проекта | F118: =E118*SUM(F109:F111) -> 0 | G118: =E118*SUM(G109:G111) -> 0 | H118: =E118*SUM(H109:H111) -> 0 | I118: =E118*SUM(I109:I111) -> 0 | J118: =E118*SUM(J109:J111) -> 0 | K118: =E118*SUM(K109:K111) -> 0 | L118: =E118*SUM(L109:L111) -> 0 | M118: =E118*SUM(M109:M111) -> 0 | N118: =E118*SUM(N109:N111) -> 0 | O118: =E118*SUM(O109:O111) -> 0 | P118: =E118*SUM(P109:P111) -> 0 | Q118: =E118*SUM(Q109:Q111) -> 0 | R118: =E118*SUM(R109:R111) -> 0 | S118: =E118*SUM(S109:S111) -> 0 | T118: =E118*SUM(T109:T111) -> 0 | U118: =E118*SUM(U109:U111) -> 0 | V118: =E118*SUM(V109:V111) -> 0 | W118: =E118*SUM(W109:W111) -> 0 | X118: =E118*SUM(X109:X111) -> 0 | Y118: =E118*SUM(Y109:Y111) -> 0 | Z118: =E118*SUM(Z109:Z111) -> 0 | AA118: =E118*SUM(AA109:AA111) -> 0
B120: Мебель и инвентарь | C120: % от инвестиционного бюджета проекта | F120: =E120*SUM(F109:F111) -> 0 | G120: =E120*SUM(G109:G111) -> 0 | H120: =E120*SUM(H109:H111) -> 0 | I120: =E120*SUM(I109:I111) -> 0 | J120: =E120*SUM(J109:J111) -> 0 | K120: =E120*SUM(K109:K111) -> 0 | L120: =E120*SUM(L109:L111) -> 0 | M120: =E120*SUM(M109:M111) -> 0 | N120: =E120*SUM(N109:N111) -> 0 | O120: =E120*SUM(O109:O111) -> 0 | P120: =E120*SUM(P109:P111) -> 0 | Q120: =E120*SUM(Q109:Q111) -> 0 | R120: =E120*SUM(R109:R111) -> 0 | S120: =E120*SUM(S109:S111) -> 0 | T120: =E120*SUM(T109:T111) -> 0 | U120: =E120*SUM(U109:U111) -> 0 | V120: =E120*SUM(V109:V111) -> 0 | W120: =E120*SUM(W109:W111) -> 0 | X120: =E120*SUM(X109:X111) -> 0 | Y120: =E120*SUM(Y109:Y111) -> 0 | Z120: =E120*SUM(Z109:Z111) -> 0 | AA120: =E120*SUM(AA109:AA111) -> 0
B122: Инженерные и прочие професcиональные услуги | C122: % от инвестиционного бюджета проекта | F122: =E122*SUM(F109:F111) -> 0 | G122: =E122*SUM(G109:G111) -> 0 | H122: =E122*SUM(H109:H111) -> 0 | I122: =E122*SUM(I109:I111) -> 0 | J122: =E122*SUM(J109:J111) -> 0 | K122: =E122*SUM(K109:K111) -> 0 | L122: =E122*SUM(L109:L111) -> 0 | M122: =E122*SUM(M109:M111) -> 0 | N122: =E122*SUM(N109:N111) -> 0 | O122: =E122*SUM(O109:O111) -> 0 | P122: =E122*SUM(P109:P111) -> 0 | Q122: =E122*SUM(Q109:Q111) -> 0 | R122: =E122*SUM(R109:R111) -> 0 | S122: =E122*SUM(S109:S111) -> 0 | T122: =E122*SUM(T109:T111) -> 0 | U122: =E122*SUM(U109:U111) -> 0 | V122: =E122*SUM(V109:V111) -> 0 | W122: =E122*SUM(W109:W111) -> 0 | X122: =E122*SUM(X109:X111) -> 0 | Y122: =E122*SUM(Y109:Y111) -> 0 | Z122: =E122*SUM(Z109:Z111) -> 0 | AA122: =E122*SUM(AA109:AA111) -> 0
B124: Прочие услуги | C124: % от инвестиционного бюджета проекта | F124: =E124*SUM(F109:F111) -> 0 | G124: =E124*SUM(G109:G111) -> 0 | H124: =E124*SUM(H109:H111) -> 0 | I124: =E124*SUM(I109:I111) -> 0 | J124: =E124*SUM(J109:J111) -> 0 | K124: =E124*SUM(K109:K111) -> 0 | L124: =E124*SUM(L109:L111) -> 0 | M124: =E124*SUM(M109:M111) -> 0 | N124: =E124*SUM(N109:N111) -> 0 | O124: =E124*SUM(O109:O111) -> 0 | P124: =E124*SUM(P109:P111) -> 0 | Q124: =E124*SUM(Q109:Q111) -> 0 | R124: =E124*SUM(R109:R111) -> 0 | S124: =E124*SUM(S109:S111) -> 0 | T124: =E124*SUM(T109:T111) -> 0 | U124: =E124*SUM(U109:U111) -> 0 | V124: =E124*SUM(V109:V111) -> 0 | W124: =E124*SUM(W109:W111) -> 0 | X124: =E124*SUM(X109:X111) -> 0 | Y124: =E124*SUM(Y109:Y111) -> 0 | Z124: =E124*SUM(Z109:Z111) -> 0 | AA124: =E124*SUM(AA109:AA111) -> 0
... 137 more rows

Sheet Шаг 3 - кач. показатели ЦТ
B1: Шаг 3 - Впишите в ячейки показатели качественного развития целевой территории
B4: Результаты привлечения потока посетителей целевой территории | C4: Единицы измерения показателя | F4: 2019 | G4: 2020 | H4: 2021 | I4: 2022 | J4: 2023 | K4: 2024 | L4: 2025 | M4: 2026 | N4: 2027 | O4: 2028 | P4: 2029 | Q4: 2030
B5: Количество посещений территории | C5: посещений
B7: Количество дней пребывания/посещения территорий | C7: человекодней
B9: Количество ночевок на территории | C9: ночевок
B11: Количество ночующих на целевой территории посетителей – туристы | C11: человек
B13: Количество иностранных туристов от общего объема туристов | C13: человек
B15: Количество туристов из прочих субъектов РФ от общего объема туристов | C15: человек
B17: Количество однодневных посетителей – экскурсантов | C17: человек
B19: Нематериальные индикаторы развития целевой территории
B20: Количество образовательных программ и курсов для работников туристического бизнеса на целевой территории | C20: штук
B22: Доля занятого населения в туристских проектах на целевой территории, прошедшего курсы/программы приобретения и повышения компетенций | C22: доля от занятого насления на целевой территории
B24: Количество упоминаний ТРК в федеральных СМИ | C24: штук
B26: Количество подписчиков в социальных сетях | C26: человек
B28: Наличие единого сайта целевой территории | C28: Да/Нет
B30: Количество туристских услуг доступных для бронирования онлайн | C30: штук
B32: Программы лояльности и скидочные программы (электронная карта постоянного клиента) | C32: Да/Нет
B34: Мобильное приложение и настраиваемая интерактивная карта целевой территории | C34: Да/Нет
B36: Наличие промо-роликов территории на русском и английском языках | C36: штук
B38: Разработанно и интегрированно экскурсионных программ для посетителей | C38: штук
B40: Результаты работ по улучшению условий ведения бизнеса на территории
A41: 1. | B41: Площадь объектов коммерческой недвижимости | C41: кв. м
B43: Количество вновь созданных предприятий МСП | C43: штук
B45: Количество действующих соглашений о сотрудничестве с резидентами в рамках деятельности ТРК | C45: штук
B47: Обеспеченность земельных участков предусмотренных для размещения коммерческой инфраструктуры | C47: (показатели представлены ниже)
B49: Электричеством | C49: % от участков
B51: Газом | C51: % от участков
B53: Системой водоснабжения и канализацией | C53: % от участков
B55: Стимулы социального развития территории
B56: Введено/отремонтировано дорог регионального значения | C56: км
B58: Введено/отремонтировано дорог местного значения | C58: км
B60: Процент покрытия территории сотовой связью | C60: % от целевой территории
B62: Наличие решений для вызова службы спасения в зонах без покрытия сотовой связи | C62: Да/Нет
B64: Наличие широкополосного доступа в интернет в местах созданной инфраструктуры на территории ТРК | C64: количество объектов
B66: Доля домохозяйств на целевой территории, имеющих возможность широкополосного доступа к сети "Интернет" | C66: % от количества домохозяйств на территории
B68: Доля туристских объектов с доступной средой | C68: % от общего количества туристских объектов
B70: Доля местного населения, занятого в туристском бизнесе на целевой территории | C70: % от дееспособного местного населения
B72: Объем эмиссий CO2 на территории | C72: Мт CO2
B74: Количество объектов на ЦТ, получивших экосертификацию | C74: штук
B76: Доля отходов на территории, отправляемых на переработку | C76: % от производимых отходов
B78: Число фельдшерских пунктов, соответствующих санитарным требованиям | C78: штук

Sheet Список проектов
E5: 2019 | F5: 2020 | G5: 2021 | H5: 2022 | I5: 2023 | J5: 2024 | K5: 2025 | L5: 2026 | M5: 2027 | N5: 2028 | O5: 2029 | P5: 2030 | Q5: 2031 | R5: 2032 | S5: 2033 | T5: 2034 | U5: 2035 | V5: 2036 | W5: 2037 | X5: 2038 | Y5: 2039 | Z5: 2040
D6: Коммерческая инфраструктура
A7: =IF(B7>'Шаг 0 - Мастер-лист'!$E$9,"x","") ->  | B7: 0 | C7: 1 | D7: ='Шаг 1 - коммерч. инфр.'!B6 -> Пример: Шоу-парк | E7: =IF(OR('Шаг 1 - коммерч. инфр.'!F9>0,'Шаг 1 - коммерч. инфр.'!F11>0,'Шаг 1 - коммерч. инфр.'!F11>0,'Шаг 1 - коммерч. инфр.'!F29>0),1,0) -> 1 | F7: =IF(OR('Шаг 1 - коммерч. инфр.'!G9>0,'Шаг 1 - коммерч. инфр.'!G11>0,'Шаг 1 - коммерч. инфр.'!G11>0,'Шаг 1 - коммерч. инфр.'!G29>0),1,0) -> 1 | G7: =IF(OR('Шаг 1 - коммерч. инфр.'!H9>0,'Шаг 1 - коммерч. инфр.'!H11>0,'Шаг 1 - коммерч. инфр.'!H11>0,'Шаг 1 - коммерч. инфр.'!H29>0),1,0) -> 1 | H7: =IF(OR('Шаг 1 - коммерч. инфр.'!I9>0,'Шаг 1 - коммерч. инфр.'!I11>0,'Шаг 1 - коммерч. инфр.'!I11>0,'Шаг 1 - коммерч. инфр.'!I29>0),1,0) -> 1 | I7: =IF(OR('Шаг 1 - коммерч. инфр.'!J9>0,'Шаг 1 - коммерч. инфр.'!J11>0,'Шаг 1 - коммерч. инфр.'!J11>0,'Шаг 1 - коммерч. инфр.'!J29>0),1,0) -> 1 | J7: =IF(OR('Шаг 1 - коммерч. инфр.'!K9>0,'Шаг 1 - коммерч. инфр.'!K11>0,'Шаг 1 - коммерч. инфр.'!K11>0,'Шаг 1 - коммерч. инфр.'!K29>0),1,0) -> 1 | K7: =IF(OR('Шаг 1 - коммерч. инфр.'!L9>0,'Шаг 1 - коммерч. инфр.'!L11>0,'Шаг 1 - коммерч. инфр.'!L11>0,'Шаг 1 - коммерч. инфр.'!L29>0),1,0) -> 1 | L7: =IF(OR('Шаг 1 - коммерч. инфр.'!M9>0,'Шаг 1 - коммерч. инфр.'!M11>0,'Шаг 1 - коммерч. инфр.'!M11>0,'Шаг 1 - коммерч. инфр.'!M29>0),1,0) -> 1 | M7: =IF(OR('Шаг 1 - коммерч. инфр.'!N9>0,'Шаг 1 - коммерч. инфр.'!N11>0,'Шаг 1 - коммерч. инфр.'!N11>0,'Шаг 1 - коммерч. инфр.'!N29>0),1,0) -> 1 | N7: =IF(OR('Шаг 1 - коммерч. инфр.'!O9>0,'Шаг 1 - коммерч. инфр.'!O11>0,'Шаг 1 - коммерч. инфр.'!O11>0,'Шаг 1 - коммерч. инфр.'!O29>0),1,0) -> 1 | O7: =IF(OR('Шаг 1 - коммерч. инфр.'!P9>0,'Шаг 1 - коммерч. инфр.'!P11>0,'Шаг 1 - коммерч. инфр.'!P11>0,'Шаг 1 - коммерч. инфр.'!P29>0),1,0) -> 1 | P7: =IF(OR('Шаг 1 - коммерч. инфр.'!Q9>0,'Шаг 1 - коммерч. инфр.'!Q11>0,'Шаг 1 - коммерч. инфр.'!Q11>0,'Шаг 1 - коммерч. инфр.'!Q29>0),1,0) -> 1 | Q7: =IF(OR('Шаг 1 - коммерч. инфр.'!R9>0,'Шаг 1 - коммерч. инфр.'!R11>0,'Шаг 1 - коммерч. инфр.'!R11>0,'Шаг 1 - коммерч. инфр.'!R29>0),1,0) -> 1 | R7: =IF(OR('Шаг 1 - коммерч. инфр.'!S9>0,'Шаг 1 - коммерч. инфр.'!S11>0,'Шаг 1 - коммерч. инфр.'!S11>0,'Шаг 1 - коммерч. инфр.'!S29>0),1,0) -> 1 | S7: =IF(OR('Шаг 1 - коммерч. инфр.'!T9>0,'Шаг 1 - коммерч. инфр.'!T11>0,'Шаг 1 - коммерч. инфр.'!T11>0,'Шаг 1 - коммерч. инфр.'!T29>0),1,0) -> 1 | T7: =IF(OR('Шаг 1 - коммерч. инфр.'!U9>0,'Шаг 1 - коммерч. инфр.'!U11>0,'Шаг 1 - коммерч. инфр.'!U11>0,'Шаг 1 - коммерч. инфр.'!U29>0),1,0) -> 1 | U7: =IF(OR('Шаг 1 - коммерч. инфр.'!V9>0,'Шаг 1 - коммерч. инфр.'!V11>0,'Шаг 1 - коммерч. инфр.'!V11>0,'Шаг 1 - коммерч. инфр.'!V29>0),1,0) -> 1 | V7: =IF(OR('Шаг 1 - коммерч. инфр.'!W9>0,'Шаг 1 - коммерч. инфр.'!W11>0,'Шаг 1 - коммерч. инфр.'!W11>0,'Шаг 1 - коммерч. инфр.'!W29>0),1,0) -> 1 | W7: =IF(OR('Шаг 1 - коммерч. инфр.'!X9>0,'Шаг 1 - коммерч. инфр.'!X11>0,'Шаг 1 - коммерч. инфр.'!X11>0,'Шаг 1 - коммерч. инфр.'!X29>0),1,0) -> 1 | X7: =IF(OR('Шаг 1 - коммерч. инфр.'!Y9>0,'Шаг 1 - коммерч. инфр.'!Y11>0,'Шаг 1 - коммерч. инфр.'!Y11>0,'Шаг 1 - коммерч. инфр.'!Y29>0),1,0) -> 1 | Y7: =IF(OR('Шаг 1 - коммерч. инфр.'!Z9>0,'Шаг 1 - коммерч. инфр.'!Z11>0,'Шаг 1 - коммерч. инфр.'!Z11>0,'Шаг 1 - коммерч. инфр.'!Z29>0),1,0) -> 1 | Z7: =IF(OR('Шаг 1 - коммерч. инфр.'!AA9>0,'Шаг 1 - коммерч. инфр.'!AA11>0,'Шаг 1 - коммерч. инфр.'!AA11>0,'Шаг 1 - коммерч. инфр.'!AA29>0),1,0) -> 1
A8: =IF(B8>'Шаг 0 - Мастер-лист'!$E$9,"x","") ->  | B8: 1 | C8: 2 | D8: =IF(OFFSET('Шаг 1 - коммерч. инфр.'!B6,60*B8,0)=0,"",OFFSET('Шаг 1 - коммерч. инфр.'!B6,60*B8,0)) ->  | E8: =IF(OR(OFFSET('Шаг 1 - коммерч. инфр.'!F9,60*$B8,0)>0,OFFSET('Шаг 1 - коммерч. инфр.'!F11,60*$B8,0)>0,OFFSET('Шаг 1 - коммерч. инфр.'!F11,60*$B8,0)>0,OFFSET('Шаг 1 - коммерч. инфр.'!F29,60*$B8,0)>0),1,0) -> 0 | F8: =IF(OR(OFFSET('Шаг 1 - коммерч. инфр.'!G9,60*$B8,0)>0,OFFSET('Шаг 1 - коммерч. инфр.'!G11,60*$B8,0)>0,OFFSET('Шаг 1 - коммерч. инфр.'!G11,60*$B8,0)>0,OFFSET('Шаг 1 - коммерч. инфр.'!G29,60*$B8,0)>0),1,0) -> 0 | G8: =IF(OR(OFFSET('Шаг 1 - коммерч. инфр.'!H9,60*$B8,0)>0,OFFSET('Шаг 1 - коммерч. инфр.'!H11,60*$B8,0)>0,OFFSET('Шаг 1 - коммерч. инфр.'!H11,60*$B8,0)>0,OFFSET('Шаг 1 - коммерч. инфр.'!H29,60*$B8,0)>0),1,0) -> 0 | H8: =IF(OR(OFFSET('Шаг 1 - коммерч. инфр.'!I9,60*$B8,0)>0,OFFSET('Шаг 1 - коммерч. инфр.'!I11,60*$B8,0)>0,OFFSET('Шаг 1 - коммерч. инфр.'!I11,60*$B8,0)>0,OFFSET('Шаг 1 - коммерч. инфр.'!I29,60*$B8,0)>0),1,0) -> 0 | I8: =IF(OR(OFFSET('Шаг 1 - коммерч. инфр.'!J9,60*$B8,0)>0,OFFSET('Шаг 1 - коммерч. инфр.'!J11,60*$B8,0)>0,OFFSET('Шаг 1 - коммерч. инфр.'!J11,60*$B8,0)>0,OFFSET('Шаг 1 - коммерч. инфр.'!J29,60*$B8,0)>0),1,0) -> 0 | J8: =IF(OR(OFFSET('Шаг 1 - коммерч. инфр.'!K9,60*$B8,0)>0,OFFSET('Шаг 1 - коммерч. инфр.'!K11,60*$B8,0)>0,OFFSET('Шаг 1 - коммерч. инфр.'!K11,60*$B8,0)>0,OFFSET('Шаг 1 - коммерч. инфр.'!K29,60*$B8,0)>0),1,0) -> 0 | K8: =IF(OR(OFFSET('Шаг 1 - коммерч. инфр.'!L9,60*$B8,0)>0,OFFSET('Шаг 1 - коммерч. инфр.'!L11,60*$B8,0)>0,OFFSET('Шаг 1 - коммерч. инфр.'!L11,60*$B8,0)>0,OFFSET('Шаг 1 - коммерч. инфр.'!L29,60*$B8,0)>0),1,0) -> 0 | L8: =IF(OR(OFFSET('Шаг 1 - коммерч. инфр.'!M9,60*$B8,0)>0,OFFSET('Шаг 1 - коммерч. инфр.'!M11,60*$B8,0)>0,OFFSET('Шаг 1 - коммерч. инфр.'!M11,60*$B8,0)>0,OFFSET('Шаг 1 - коммерч. инфр.'!M29,60*$B8,0)>0),1,0) -> 0 | M8: =IF(OR(OFFSET('Шаг 1 - коммерч. инфр.'!N9,60*$B8,0)>0,OFFSET('Шаг 1 - коммерч. инфр.'!N11,60*$B8,0)>0,OFFSET('Шаг 1 - коммерч. инфр.'!N11,60*$B8,0)>0,OFFSET('Шаг 1 - коммерч. инфр.'!N29,60*$B8,0)>0),1,0) -> 0 | N8: =IF(OR(OFFSET('Шаг 1 - коммерч. инфр.'!O9,60*$B8,0)>0,OFFSET('Шаг 1 - коммерч. инфр.'!O11,60*$B8,0)>0,OFFSET('Шаг 1 - коммерч. инфр.'!O11,60*$B8,0)>0,OFFSET('Шаг 1 - коммерч. инфр.'!O29,60*$B8,0)>0),1,0) -> 0 | O8: =IF(OR(OFFSET('Шаг 1 - коммерч. инфр.'!P9,60*$B8,0)>0,OFFSET('Шаг 1 - коммерч. инфр.'!P11,60*$B8,0)>0,OFFSET('Шаг 1 - коммерч. инфр.'!P11,60*$B8,0)>0,OFFSET('Шаг 1 - коммерч. инфр.'!P29,60*$B8,0)>0),1,0) -> 0 | P8: =IF(OR(OFFSET('Шаг 1 - коммерч. инфр.'!Q9,60*$B8,0)>0,OFFSET('Шаг 1 - коммерч. инфр.'!Q11,60*$B8,0)>0,OFFSET('Шаг 1 - коммерч. инфр.'!Q11,60*$B8,0)>0,OFFSET('Шаг 1 - коммерч. инфр.'!Q29,60*$B8,0)>0),1,0) -> 0 | Q8: =IF(OR(OFFSET('Шаг 1 - коммерч. инфр.'!R9,60*$B8,0)>0,OFFSET('Шаг 1 - коммерч. инфр.'!R11,60*$B8,0)>0,OFFSET('Шаг 1 - коммерч. инфр.'!R11,60*$B8,0)>0,OFFSET('Шаг 1 - коммерч. инфр.'!R29,60*$B8,0)>0),1,0) -> 0 | R8: =IF(OR(OFFSET('Шаг 1 - коммерч. инфр.'!S9,60*$B8,0)>0,OFFSET('Шаг 1 - коммерч. инфр.'!S11,60*$B8,0)>0,OFFSET('Шаг 1 - коммерч. инфр.'!S11,60*$B8,0)>0,OFFSET('Шаг 1 - коммерч. инфр.'!S29,60*$B8,0)>0),1,0) -> 0 | S8: =IF(OR(OFFSET('Шаг 1 - коммерч. инфр.'!T9,60*$B8,0)>0,OFFSET('Шаг 1 - коммерч. инфр.'!T11,60*$B8,0)>0,OFFSET('Шаг 1 - коммерч. инфр.'!T11,60*$B8,0)>0,OFFSET('Шаг 1 - коммерч. инфр.'!T29,60*$B8,0)>0),1,0) -> 0 | T8: =IF(OR(OFFSET('Шаг 1 - коммерч. инфр.'!U9,60*$B8,0)>0,OFFSET('Шаг 1 - коммерч. инфр.'!U11,60*$B8,0)>0,OFFSET('Шаг 1 - коммерч. инфр.'!U11,60*$B8,0)>0,OFFSET('Шаг 1 - коммерч. инфр.'!U29,60*$B8,0)>0),1,0) -> 0 | U8: =IF(OR(OFFSET('Шаг 1 - коммерч. инфр.'!V9,60*$B8,0)>0,OFFSET('Шаг 1 - коммерч. инфр.'!V11,60*$B8,0)>0,OFFSET('Шаг 1 - коммерч. инфр.'!V11,60*$B8,0)>0,OFFSET('Шаг 1 - коммерч. инфр.'!V29,60*$B8,0)>0),1,0) -> 0 | V8: =IF(OR(OFFSET('Шаг 1 - коммерч. инфр.'!W9,60*$B8,0)>0,OFFSET('Шаг 1 - коммерч. инфр.'!W11,60*$B8,0)>0,OFFSET('Шаг 1 - коммерч. инфр.'!W11,60*$B8,0)>0,OFFSET('Шаг 1 - коммерч. инфр.'!W29,60*$B8,0)>0),1,0) -> 0 | W8: =IF(OR(OFFSET('Шаг 1 - коммерч. инфр.'!X9,60*$B8,0)>0,OFFSET('Шаг 1 - коммерч. инфр.'!X11,60*$B8,0)>0,OFFSET('Шаг 1 - коммерч. инфр.'!X11,60*$B8,0)>0,OFFSET('Шаг 1 - коммерч. инфр.'!X29,60*$B8,0)>0),1,0) -> 0 | X8: =IF(OR(OFFSET('Шаг 1 - коммерч. инфр.'!Y9,60*$B8,0)>0,OFFSET('Шаг 1 - коммерч. инфр.'!Y11,60*$B8,0)>0,OFFSET('Шаг 1 - коммерч. инфр.'!Y11,60*$B8,0)>0,OFFSET('Шаг 1 - коммерч. инфр.'!Y29,60*$B8,0)>0),1,0) -> 0 | Y8: =IF(OR(OFFSET('Шаг 1 - коммерч. инфр.'!Z9,60*$B8,0)>0,OFFSET('Шаг 1 - коммерч. инфр.'!Z11,60*$B8,0)>0,OFFSET('Шаг 1 - коммерч. инфр.'!Z11,60*$B8,0)>0,OFFSET('Шаг 1 - коммерч. инфр.'!Z29,60*$B8,0)>0),1,0) -> 0 | Z8: =IF(OR(OFFSET('Шаг 1 - коммерч. инфр.'!AA9,60*$B8,0)>0,OFFSET('Шаг 1 - коммерч. инфр.'!AA11,60*$B8,0)>0,OFFSET('Шаг 1 - коммерч. инфр.'!AA11,60*$B8,0)>0,OFFSET('Шаг 1 - коммерч. инфр.'!AA29,60*$B8,0)>0),1,0) -> 0
A9: =IF(B9>'Шаг 0 - Мастер-лист'!$E$9,"x","") ->  | B9: 2 | C9: 3 | D9: =IF(OFFSET('Шаг 1 - коммерч. инфр.'!B7,60*B9-1*B8,0)=0,"",OFFSET('Шаг 1 - коммерч. инфр.'!B7,60*B9-1*B8,0)) ->  | E9: =IF(OR(OFFSET('Шаг 1 - коммерч. инфр.'!F10,60*$B9-1*$B8,0)>0,OFFSET('Шаг 1 - коммерч. инфр.'!F12,60*$B9-1*$B8,0)>0,OFFSET('Шаг 1 - коммерч. инфр.'!F12,60*$B9-1*$B8,0)>0,OFFSET('Шаг 1 - коммерч. инфр.'!F30,60*$B9-1*$B8,0)>0),1,0) -> 0 | F9: =IF(OR(OFFSET('Шаг 1 - коммерч. инфр.'!G10,60*$B9-1*$B8,0)>0,OFFSET('Шаг 1 - коммерч. инфр.'!G12,60*$B9-1*$B8,0)>0,OFFSET('Шаг 1 - коммерч. инфр.'!G12,60*$B9-1*$B8,0)>0,OFFSET('Шаг 1 - коммерч. инфр.'!G30,60*$B9-1*$B8,0)>0),1,0) -> 0 | G9: =IF(OR(OFFSET('Шаг 1 - коммерч. инфр.'!H10,60*$B9-1*$B8,0)>0,OFFSET('Шаг 1 - коммерч. инфр.'!H12,60*$B9-1*$B8,0)>0,OFFSET('Шаг 1 - коммерч. инфр.'!H12,60*$B9-1*$B8,0)>0,OFFSET('Шаг 1 - коммерч. инфр.'!H30,60*$B9-1*$B8,0)>0),1,0) -> 0 | H9: =IF(OR(OFFSET('Шаг 1 - коммерч. инфр.'!I10,60*$B9-1*$B8,0)>0,OFFSET('Шаг 1 - коммерч. инфр.'!I12,60*$B9-1*$B8,0)>0,OFFSET('Шаг 1 - коммерч. инфр.'!I12,60*$B9-1*$B8,0)>0,OFFSET('Шаг 1 - коммерч. инфр.'!I30,60*$B9-1*$B8,0)>0),1,0) -> 0 | I9: =IF(OR(OFFSET('Шаг 1 - коммерч. инфр.'!J10,60*$B9-1*$B8,0)>0,OFFSET('Шаг 1 - коммерч. инфр.'!J12,60*$B9-1*$B8,0)>0,OFFSET('Шаг 1 - коммерч. инфр.'!J12,60*$B9-1*$B8,0)>0,OFFSET('Шаг 1 - коммерч. инфр.'!J30,60*$B9-1*$B8,0)>0),1,0) -> 0 | J9: =IF(OR(OFFSET('Шаг 1 - коммерч. инфр.'!K10,60*$B9-1*$B8,0)>0,OFFSET('Шаг 1 - коммерч. инфр.'!K12,60*$B9-1*$B8,0)>0,OFFSET('Шаг 1 - коммерч. инфр.'!K12,60*$B9-1*$B8,0)>0,OFFSET('Шаг 1 - коммерч. инфр.'!K30,60*$B9-1*$B8,0)>0),1,0) -> 0 | K9: =IF(OR(OFFSET('Шаг 1 - коммерч. инфр.'!L10,60*$B9-1*$B8,0)>0,OFFSET('Шаг 1 - коммерч. инфр.'!L12,60*$B9-1*$B8,0)>0,OFFSET('Шаг 1 - коммерч. инфр.'!L12,60*$B9-1*$B8,0)>0,OFFSET('Шаг 1 - коммерч. инфр.'!L30,60*$B9-1*$B8,0)>0),1,0) -> 0 | L9: =IF(OR(OFFSET('Шаг 1 - коммерч. инфр.'!M10,60*$B9-1*$B8,0)>0,OFFSET('Шаг 1 - коммерч. инфр.'!M12,60*$B9-1*$B8,0)>0,OFFSET('Шаг 1 - коммерч. инфр.'!M12,60*$B9-1*$B8,0)>0,OFFSET('Шаг 1 - коммерч. инфр.'!M30,60*$B9-1*$B8,0)>0),1,0) -> 0 | M9: =IF(OR(OFFSET('Шаг 1 - коммерч. инфр.'!N10,60*$B9-1*$B8,0)>0,OFFSET('Шаг 1 - коммерч. инфр.'!N12,60*$B9-1*$B8,0)>0,OFFSET('Шаг 1 - коммерч. инфр.'!N12,60*$B9-1*$B8,0)>0,OFFSET('Шаг 1 - коммерч. инфр.'!N30,60*$B9-1*$B8,0)>0),1,0) -> 0 | N9: =IF(OR(OFFSET('Шаг 1 - коммерч. инфр.'!O10,60*$B9-1*$B8,0)>0,OFFSET('Шаг 1 - коммерч. инфр.'!O12,60*$B9-1*$B8,0)>0,OFFSET('Шаг 1 - коммерч. инфр.'!O12,60*$B9-1*$B8,0)>0,OFFSET('Шаг 1 - коммерч. инфр.'!O30,60*$B9-1*$B8,0)>0),1,0) -> 0 | O9: =IF(OR(OFFSET('Шаг 1 - коммерч. инфр.'!P10,60*$B9-1*$B8,0)>0,OFFSET('Шаг 1 - коммерч. инфр.'!P12,60*$B9-1*$B8,0)>0,OFFSET('Шаг 1 - коммерч. инфр.'!P12,60*$B9-1*$B8,0)>0,OFFSET('Шаг 1 - коммерч. инфр.'!P30,60*$B9-1*$B8,0)>0),1,0) -> 0 | P9: =IF(OR(OFFSET('Шаг 1 - коммерч. инфр.'!Q10,60*$B9-1*$B8,0)>0,OFFSET('Шаг 1 - коммерч. инфр.'!Q12,60*$B9-1*$B8,0)>0,OFFSET('Шаг 1 - коммерч. инфр.'!Q12,60*$B9-1*$B8,0)>0,OFFSET('Шаг 1 - коммерч. инфр.'!Q30,60*$B9-1*$B8,0)>0),1,0) -> 0 | Q9: =IF(OR(OFFSET('Шаг 1 - коммерч. инфр.'!R10,60*$B9-1*$B8,0)>0,OFFSET('Шаг 1 - коммерч. инфр.'!R12,60*$B9-1*$B8,0)>0,OFFSET('Шаг 1 - коммерч. инфр.'!R12,60*$B9-1*$B8,0)>0,OFFSET('Шаг 1 - коммерч. инфр.'!R30,60*$B9-1*$B8,0)>0),1,0) -> 0 | R9: =IF(OR(OFFSET('Шаг 1 - коммерч. инфр.'!S10,60*$B9-1*$B8,0)>0,OFFSET('Шаг 1 - коммерч. инфр.'!S12,60*$B9-1*$B8,0)>0,OFFSET('Шаг 1 - коммерч. инфр.'!S12,60*$B9-1*$B8,0)>0,OFFSET('Шаг 1 - коммерч. инфр.'!S30,60*$B9-1*$B8,0)>0),1,0) -> 0 | S9: =IF(OR(OFFSET('Шаг 1 - коммерч. инфр.'!T10,60*$B9-1*$B8,0)>0,OFFSET('Шаг 1 - коммерч. инфр.'!T12,60*$B9-1*$B8,0)>0,OFFSET('Шаг 1 - коммерч. инфр.'!T12,60*$B9-1*$B8,0)>0,OFFSET('Шаг 1 - коммерч. инфр.'!T30,60*$B9-1*$B8,0)>0),1,0) -> 0 | T9: =IF(OR(OFFSET('Шаг 1 - коммерч. инфр.'!U10,60*$B9-1*$B8,0)>0,OFFSET('Шаг 1 - коммерч. инфр.'!U12,60*$B9-1*$B8,0)>0,OFFSET('Шаг 1 - коммерч. инфр.'!U12,60*$B9-1*$B8,0)>0,OFFSET('Шаг 1 - коммерч. инфр.'!U30,60*$B9-1*$B8,0)>0),1,0) -> 0 | U9: =IF(OR(OFFSET('Шаг 1 - коммерч. инфр.'!V10,60*$B9-1*$B8,0)>0,OFFSET('Шаг 1 - коммерч. инфр.'!V12,60*$B9-1*$B8,0)>0,OFFSET('Шаг 1 - коммерч. инфр.'!V12,60*$B9-1*$B8,0)>0,OFFSET('Шаг 1 - коммерч. инфр.'!V30,60*$B9-1*$B8,0)>0),1,0) -> 0 | V9: =IF(OR(OFFSET('Шаг 1 - коммерч. инфр.'!W10,60*$B9-1*$B8,0)>0,OFFSET('Шаг 1 - коммерч. инфр.'!W12,60*$B9-1*$B8,0)>0,OFFSET('Шаг 1 - коммерч. инфр.'!W12,60*$B9-1*$B8,0)>0,OFFSET('Шаг 1 - коммерч. инфр.'!W30,60*$B9-1*$B8,0)>0),1,0) -> 0 | W9: =IF(OR(OFFSET('Шаг 1 - коммерч. инфр.'!X10,60*$B9-1*$B8,0)>0,OFFSET('Шаг 1 - коммерч. инфр.'!X12,60*$B9-1*$B8,0)>0,OFFSET('Шаг 1 - коммерч. инфр.'!X12,60*$B9-1*$B8,0)>0,OFFSET('Шаг 1 - коммерч. инфр.'!X30,60*$B9-1*$B8,0)>0),1,0) -> 0 | X9: =IF(OR(OFFSET('Шаг 1 - коммерч. инфр.'!Y10,60*$B9-1*$B8,0)>0,OFFSET('Шаг 1 - коммерч. инфр.'!Y12,60*$B9-1*$B8,0)>0,OFFSET('Шаг 1 - коммерч. инфр.'!Y12,60*$B9-1*$B8,0)>0,OFFSET('Шаг 1 - коммерч. инфр.'!Y30,60*$B9-1*$B8,0)>0),1,0) -> 0 | Y9: =IF(OR(OFFSET('Шаг 1 - коммерч. инфр.'!Z10,60*$B9-1*$B8,0)>0,OFFSET('Шаг 1 - коммерч. инфр.'!Z12,60*$B9-1*$B8,0)>0,OFFSET('Шаг 1 - коммерч. инфр.'!Z12,60*$B9-1*$B8,0)>0,OFFSET('Шаг 1 - коммерч. инфр.'!Z30,60*$B9-1*$B8,0)>0),1,0) -> 0 | Z9: =IF(OR(OFFSET('Шаг 1 - коммерч. инфр.'!AA10,60*$B9-1*$B8,0)>0,OFFSET('Шаг 1 - коммерч. инфр.'!AA12,60*$B9-1*$B8,0)>0,OFFSET('Шаг 1 - коммерч. инфр.'!AA12,60*$B9-1*$B8,0)>0,OFFSET('Шаг 1 - коммерч. инфр.'!AA30,60*$B9-1*$B8,0)>0),1,0) -> 0
A10: =IF(B10>'Шаг 0 - Мастер-лист'!$E$9,"x","") ->  | B10: 3 | C10: 4 | D10: =IF(OFFSET('Шаг 1 - коммерч. инфр.'!B8,60*B10-1*B9,0)=0,"",OFFSET('Шаг 1 - коммерч. инфр.'!B8,60*B10-1*B9,0)) ->  | E10: =IF(OR(OFFSET('Шаг 1 - коммерч. инфр.'!F11,60*$B10-1*$B9,0)>0,OFFSET('Шаг 1 - коммерч. инфр.'!F13,60*$B10-1*$B9,0)>0,OFFSET('Шаг 1 - коммерч. инфр.'!F13,60*$B10-1*$B9,0)>0,OFFSET('Шаг 1 - коммерч. инфр.'!F31,60*$B10-1*$B9,0)>0),1,0) -> 0 | F10: =IF(OR(OFFSET('Шаг 1 - коммерч. инфр.'!G11,60*$B10-1*$B9,0)>0,OFFSET('Шаг 1 - коммерч. инфр.'!G13,60*$B10-1*$B9,0)>0,OFFSET('Шаг 1 - коммерч. инфр.'!G13,60*$B10-1*$B9,0)>0,OFFSET('Шаг 1 - коммерч. инфр.'!G31,60*$B10-1*$B9,0)>0),1,0) -> 0 | G10: =IF(OR(OFFSET('Шаг 1 - коммерч. инфр.'!H11,60*$B10-1*$B9,0)>0,OFFSET('Шаг 1 - коммерч. инфр.'!H13,60*$B10-1*$B9,0)>0,OFFSET('Шаг 1 - коммерч. инфр.'!H13,60*$B10-1*$B9,0)>0,OFFSET('Шаг 1 - коммерч. инфр.'!H31,60*$B10-1*$B9,0)>0),1,0) -> 0 | H10: =IF(OR(OFFSET('Шаг 1 - коммерч. инфр.'!I11,60*$B10-1*$B9,0)>0,OFFSET('Шаг 1 - коммерч. инфр.'!I13,60*$B10-1*$B9,0)>0,OFFSET('Шаг 1 - коммерч. инфр.'!I13,60*$B10-1*$B9,0)>0,OFFSET('Шаг 1 - коммерч. инфр.'!I31,60*$B10-1*$B9,0)>0),1,0) -> 0 | I10: =IF(OR(OFFSET('Шаг 1 - коммерч. инфр.'!J11,60*$B10-1*$B9,0)>0,OFFSET('Шаг 1 - коммерч. инфр.'!J13,60*$B10-1*$B9,0)>0,OFFSET('Шаг 1 - коммерч. инфр.'!J13,60*$B10-1*$B9,0)>0,OFFSET('Шаг 1 - коммерч. инфр.'!J31,60*$B10-1*$B9,0)>0),1,0) -> 0 | J10: =IF(OR(OFFSET('Шаг 1 - коммерч. инфр.'!K11,60*$B10-1*$B9,0)>0,OFFSET('Шаг 1 - коммерч. инфр.'!K13,60*$B10-1*$B9,0)>0,OFFSET('Шаг 1 - коммерч. инфр.'!K13,60*$B10-1*$B9,0)>0,OFFSET('Шаг 1 - коммерч. инфр.'!K31,60*$B10-1*$B9,0)>0),1,0) -> 0 | K10: =IF(OR(OFFSET('Шаг 1 - коммерч. инфр.'!L11,60*$B10-1*$B9,0)>0,OFFSET('Шаг 1 - коммерч. инфр.'!L13,60*$B10-1*$B9,0)>0,OFFSET('Шаг 1 - коммерч. инфр.'!L13,60*$B10-1*$B9,0)>0,OFFSET('Шаг 1 - коммерч. инфр.'!L31,60*$B10-1*$B9,0)>0),1,0) -> 0 | L10: =IF(OR(OFFSET('Шаг 1 - коммерч. инфр.'!M11,60*$B10-1*$B9,0)>0,OFFSET('Шаг 1 - коммерч. инфр.'!M13,60*$B10-1*$B9,0)>0,OFFSET('Шаг 1 - коммерч. инфр.'!M13,60*$B10-1*$B9,0)>0,OFFSET('Шаг 1 - коммерч. инфр.'!M31,60*$B10-1*$B9,0)>0),1,0) -> 0 | M10: =IF(OR(OFFSET('Шаг 1 - коммерч. инфр.'!N11,60*$B10-1*$B9,0)>0,OFFSET('Шаг 1 - коммерч. инфр.'!N13,60*$B10-1*$B9,0)>0,OFFSET('Шаг 1 - коммерч. инфр.'!N13,60*$B10-1*$B9,0)>0,OFFSET('Шаг 1 - коммерч. инфр.'!N31,60*$B10-1*$B9,0)>0),1,0) -> 0 | N10: =IF(OR(OFFSET('Шаг 1 - коммерч. инфр.'!O11,60*$B10-1*$B9,0)>0,OFFSET('Шаг 1 - коммерч. инфр.'!O13,60*$B10-1*$B9,0)>0,OFFSET('Шаг 1 - коммерч. инфр.'!O13,60*$B10-1*$B9,0)>0,OFFSET('Шаг 1 - коммерч. инфр.'!O31,60*$B10-1*$B9,0)>0),1,0) -> 0 | O10: =IF(OR(OFFSET('Шаг 1 - коммерч. инфр.'!P11,60*$B10-1*$B9,0)>0,OFFSET('Шаг 1 - коммерч. инфр.'!P13,60*$B10-1*$B9,0)>0,OFFSET('Шаг 1 - коммерч. инфр.'!P13,60*$B10-1*$B9,0)>0,OFFSET('Шаг 1 - коммерч. инфр.'!P31,60*$B10-1*$B9,0)>0),1,0) -> 0 | P10: =IF(OR(OFFSET('Шаг 1 - коммерч. инфр.'!Q11,60*$B10-1*$B9,0)>0,OFFSET('Шаг 1 - коммерч. инфр.'!Q13,60*$B10-1*$B9,0)>0,OFFSET('Шаг 1 - коммерч. инфр.'!Q13,60*$B10-1*$B9,0)>0,OFFSET('Шаг 1 - коммерч. инфр.'!Q31,60*$B10-1*$B9,0)>0),1,0) -> 0 | Q10: =IF(OR(OFFSET('Шаг 1 - коммерч. инфр.'!R11,60*$B10-1*$B9,0)>0,OFFSET('Шаг 1 - коммерч. инфр.'!R13,60*$B10-1*$B9,0)>0,OFFSET('Шаг 1 - коммерч. инфр.'!R13,60*$B10-1*$B9,0)>0,OFFSET('Шаг 1 - коммерч. инфр.'!R31,60*$B10-1*$B9,0)>0),1,0) -> 0 | R10: =IF(OR(OFFSET('Шаг 1 - коммерч. инфр.'!S11,60*$B10-1*$B9,0)>0,OFFSET('Шаг 1 - коммерч. инфр.'!S13,60*$B10-1*$B9,0)>0,OFFSET('Шаг 1 - коммерч. инфр.'!S13,60*$B10-1*$B9,0)>0,OFFSET('Шаг 1 - коммерч. инфр.'!S31,60*$B10-1*$B9,0)>0),1,0) -> 0 | S10: =IF(OR(OFFSET('Шаг 1 - коммерч. инфр.'!T11,60*$B10-1*$B9,0)>0,OFFSET('Шаг 1 - коммерч. инфр.'!T13,60*$B10-1*$B9,0)>0,OFFSET('Шаг 1 - коммерч. инфр.'!T13,60*$B10-1*$B9,0)>0,OFFSET('Шаг 1 - коммерч. инфр.'!T31,60*$B10-1*$B9,0)>0),1,0) -> 0 | T10: =IF(OR(OFFSET('Шаг 1 - коммерч. инфр.'!U11,60*$B10-1*$B9,0)>0,OFFSET('Шаг 1 - коммерч. инфр.'!U13,60*$B10-1*$B9,0)>0,OFFSET('Шаг 1 - коммерч. инфр.'!U13,60*$B10-1*$B9,0)>0,OFFSET('Шаг 1 - коммерч. инфр.'!U31,60*$B10-1*$B9,0)>0),1,0) -> 0 | U10: =IF(OR(OFFSET('Шаг 1 - коммерч. инфр.'!V11,60*$B10-1*$B9,0)>0,OFFSET('Шаг 1 - коммерч. инфр.'!V13,60*$B10-1*$B9,0)>0,OFFSET('Шаг 1 - коммерч. инфр.'!V13,60*$B10-1*$B9,0)>0,OFFSET('Шаг 1 - коммерч. инфр.'!V31,60*$B10-1*$B9,0)>0),1,0) -> 0 | V10: =IF(OR(OFFSET('Шаг 1 - коммерч. инфр.'!W11,60*$B10-1*$B9,0)>0,OFFSET('Шаг 1 - коммерч. инфр.'!W13,60*$B10-1*$B9,0)>0,OFFSET('Шаг 1 - коммерч. инфр.'!W13,60*$B10-1*$B9,0)>0,OFFSET('Шаг 1 - коммерч. инфр.'!W31,60*$B10-1*$B9,0)>0),1,0) -> 0 | W10: =IF(OR(OFFSET('Шаг 1 - коммерч. инфр.'!X11,60*$B10-1*$B9,0)>0,OFFSET('Шаг 1 - коммерч. инфр.'!X13,60*$B10-1*$B9,0)>0,OFFSET('Шаг 1 - коммерч. инфр.'!X13,60*$B10-1*$B9,0)>0,OFFSET('Шаг 1 - коммерч. инфр.'!X31,60*$B10-1*$B9,0)>0),1,0) -> 0 | X10: =IF(OR(OFFSET('Шаг 1 - коммерч. инфр.'!Y11,60*$B10-1*$B9,0)>0,OFFSET('Шаг 1 - коммерч. инфр.'!Y13,60*$B10-1*$B9,0)>0,OFFSET('Шаг 1 - коммерч. инфр.'!Y13,60*$B10-1*$B9,0)>0,OFFSET('Шаг 1 - коммерч. инфр.'!Y31,60*$B10-1*$B9,0)>0),1,0) -> 0 | Y10: =IF(OR(OFFSET('Шаг 1 - коммерч. инфр.'!Z11,60*$B10-1*$B9,0)>0,OFFSET('Шаг 1 - коммерч. инфр.'!Z13,60*$B10-1*$B9,0)>0,OFFSET('Шаг 1 - коммерч. инфр.'!Z13,60*$B10-1*$B9,0)>0,OFFSET('Шаг 1 - коммерч. инфр.'!Z31,60*$B10-1*$B9,0)>0),1,0) -> 0 | Z10: =IF(OR(OFFSET('Шаг 1 - коммерч. инфр.'!AA11,60*$B10-1*$B9,0)>0,OFFSET('Шаг 1 - коммерч. инфр.'!AA13,60*$B10-1*$B9,0)>0,OFFSET('Шаг 1 - коммерч. инфр.'!AA13,60*$B10-1*$B9,0)>0,OFFSET('Шаг 1 - коммерч. инфр.'!AA31,60*$B10-1*$B9,0)>0),1,0) -> 0
A11: =IF(B11>'Шаг 0 - Мастер-лист'!$E$9,"x","") ->  | B11: 4 | C11: 5 | D11: =IF(OFFSET('Шаг 1 - коммерч. инфр.'!B9,60*B11-1*B10,0)=0,"",OFFSET('Шаг 1 - коммерч. инфр.'!B9,60*B11-1*B10,0)) ->  | E11: =IF(OR(OFFSET('Шаг 1 - коммерч. инфр.'!F12,60*$B11-1*$B10,0)>0,OFFSET('Шаг 1 - коммерч. инфр.'!F14,60*$B11-1*$B10,0)>0,OFFSET('Шаг 1 - коммерч. инфр.'!F14,60*$B11-1*$B10,0)>0,OFFSET('Шаг 1 - коммерч. инфр.'!F32,60*$B11-1*$B10,0)>0),1,0) -> 0 | F11: =IF(OR(OFFSET('Шаг 1 - коммерч. инфр.'!G12,60*$B11-1*$B10,0)>0,OFFSET('Шаг 1 - коммерч. инфр.'!G14,60*$B11-1*$B10,0)>0,OFFSET('Шаг 1 - коммерч. инфр.'!G14,60*$B11-1*$B10,0)>0,OFFSET('Шаг 1 - коммерч. инфр.'!G32,60*$B11-1*$B10,0)>0),1,0) -> 0 | G11: =IF(OR(OFFSET('Шаг 1 - коммерч. инфр.'!H12,60*$B11-1*$B10,0)>0,OFFSET('Шаг 1 - коммерч. инфр.'!H14,60*$B11-1*$B10,0)>0,OFFSET('Шаг 1 - коммерч. инфр.'!H14,60*$B11-1*$B10,0)>0,OFFSET('Шаг 1 - коммерч. инфр.'!H32,60*$B11-1*$B10,0)>0),1,0) -> 0 | H11: =IF(OR(OFFSET('Шаг 1 - коммерч. инфр.'!I12,60*$B11-1*$B10,0)>0,OFFSET('Шаг 1 - коммерч. инфр.'!I14,60*$B11-1*$B10,0)>0,OFFSET('Шаг 1 - коммерч. инфр.'!I14,60*$B11-1*$B10,0)>0,OFFSET('Шаг 1 - коммерч. инфр.'!I32,60*$B11-1*$B10,0)>0),1,0) -> 0 | I11: =IF(OR(OFFSET('Шаг 1 - коммерч. инфр.'!J12,60*$B11-1*$B10,0)>0,OFFSET('Шаг 1 - коммерч. инфр.'!J14,60*$B11-1*$B10,0)>0,OFFSET('Шаг 1 - коммерч. инфр.'!J14,60*$B11-1*$B10,0)>0,OFFSET('Шаг 1 - коммерч. инфр.'!J32,60*$B11-1*$B10,0)>0),1,0) -> 0 | J11: =IF(OR(OFFSET('Шаг 1 - коммерч. инфр.'!K12,60*$B11-1*$B10,0)>0,OFFSET('Шаг 1 - коммерч. инфр.'!K14,60*$B11-1*$B10,0)>0,OFFSET('Шаг 1 - коммерч. инфр.'!K14,60*$B11-1*$B10,0)>0,OFFSET('Шаг 1 - коммерч. инфр.'!K32,60*$B11-1*$B10,0)>0),1,0) -> 0 | K11: =IF(OR(OFFSET('Шаг 1 - коммерч. инфр.'!L12,60*$B11-1*$B10,0)>0,OFFSET('Шаг 1 - коммерч. инфр.'!L14,60*$B11-1*$B10,0)>0,OFFSET('Шаг 1 - коммерч. инфр.'!L14,60*$B11-1*$B10,0)>0,OFFSET('Шаг 1 - коммерч. инфр.'!L32,60*$B11-1*$B10,0)>0),1,0) -> 0 | L11: =IF(OR(OFFSET('Шаг 1 - коммерч. инфр.'!M12,60*$B11-1*$B10,0)>0,OFFSET('Шаг 1 - коммерч. инфр.'!M14,60*$B11-1*$B10,0)>0,OFFSET('Шаг 1 - коммерч. инфр.'!M14,60*$B11-1*$B10,0)>0,OFFSET('Шаг 1 - коммерч. инфр.'!M32,60*$B11-1*$B10,0)>0),1,0) -> 0 | M11: =IF(OR(OFFSET('Шаг 1 - коммерч. инфр.'!N12,60*$B11-1*$B10,0)>0,OFFSET('Шаг 1 - коммерч. инфр.'!N14,60*$B11-1*$B10,0)>0,OFFSET('Шаг 1 - коммерч. инфр.'!N14,60*$B11-1*$B10,0)>0,OFFSET('Шаг 1 - коммерч. инфр.'!N32,60*$B11-1*$B10,0)>0),1,0) -> 0 | N11: =IF(OR(OFFSET('Шаг 1 - коммерч. инфр.'!O12,60*$B11-1*$B10,0)>0,OFFSET('Шаг 1 - коммерч. инфр.'!O14,60*$B11-1*$B10,0)>0,OFFSET('Шаг 1 - коммерч. инфр.'!O14,60*$B11-1*$B10,0)>0,OFFSET('Шаг 1 - коммерч. инфр.'!O32,60*$B11-1*$B10,0)>0),1,0) -> 0 | O11: =IF(OR(OFFSET('Шаг 1 - коммерч. инфр.'!P12,60*$B11-1*$B10,0)>0,OFFSET('Шаг 1 - коммерч. инфр.'!P14,60*$B11-1*$B10,0)>0,OFFSET('Шаг 1 - коммерч. инфр.'!P14,60*$B11-1*$B10,0)>0,OFFSET('Шаг 1 - коммерч. инфр.'!P32,60*$B11-1*$B10,0)>0),1,0) -> 0 | P11: =IF(OR(OFFSET('Шаг 1 - коммерч. инфр.'!Q12,60*$B11-1*$B10,0)>0,OFFSET('Шаг 1 - коммерч. инфр.'!Q14,60*$B11-1*$B10,0)>0,OFFSET('Шаг 1 - коммерч. инфр.'!Q14,60*$B11-1*$B10,0)>0,OFFSET('Шаг 1 - коммерч. инфр.'!Q32,60*$B11-1*$B10,0)>0),1,0) -> 0 | Q11: =IF(OR(OFFSET('Шаг 1 - коммерч. инфр.'!R12,60*$B11-1*$B10,0)>0,OFFSET('Шаг 1 - коммерч. инфр.'!R14,60*$B11-1*$B10,0)>0,OFFSET('Шаг 1 - коммерч. инфр.'!R14,60*$B11-1*$B10,0)>0,OFFSET('Шаг 1 - коммерч. инфр.'!R32,60*$B11-1*$B10,0)>0),1,0) -> 0 | R11: =IF(OR(OFFSET('Шаг 1 - коммерч. инфр.'!S12,60*$B11-1*$B10,0)>0,OFFSET('Шаг 1 - коммерч. инфр.'!S14,60*$B11-1*$B10,0)>0,OFFSET('Шаг 1 - коммерч. инфр.'!S14,60*$B11-1*$B10,0)>0,OFFSET('Шаг 1 - коммерч. инфр.'!S32,60*$B11-1*$B10,0)>0),1,0) -> 0 | S11: =IF(OR(OFFSET('Шаг 1 - коммерч. инфр.'!T12,60*$B11-1*$B10,0)>0,OFFSET('Шаг 1 - коммерч. инфр.'!T14,60*$B11-1*$B10,0)>0,OFFSET('Шаг 1 - коммерч. инфр.'!T14,60*$B11-1*$B10,0)>0,OFFSET('Шаг 1 - коммерч. инфр.'!T32,60*$B11-1*$B10,0)>0),1,0) -> 0 | T11: =IF(OR(OFFSET('Шаг 1 - коммерч. инфр.'!U12,60*$B11-1*$B10,0)>0,OFFSET('Шаг 1 - коммерч. инфр.'!U14,60*$B11-1*$B10,0)>0,OFFSET('Шаг 1 - коммерч. инфр.'!U14,60*$B11-1*$B10,0)>0,OFFSET('Шаг 1 - коммерч. инфр.'!U32,60*$B11-1*$B10,0)>0),1,0) -> 0 | U11: =IF(OR(OFFSET('Шаг 1 - коммерч. инфр.'!V12,60*$B11-1*$B10,0)>0,OFFSET('Шаг 1 - коммерч. инфр.'!V14,60*$B11-1*$B10,0)>0,OFFSET('Шаг 1 - коммерч. инфр.'!V14,60*$B11-1*$B10,0)>0,OFFSET('Шаг 1 - коммерч. инфр.'!V32,60*$B11-1*$B10,0)>0),1,0) -> 0 | V11: =IF(OR(OFFSET('Шаг 1 - коммерч. инфр.'!W12,60*$B11-1*$B10,0)>0,OFFSET('Шаг 1 - коммерч. инфр.'!W14,60*$B11-1*$B10,0)>0,OFFSET('Шаг 1 - коммерч. инфр.'!W14,60*$B11-1*$B10,0)>0,OFFSET('Шаг 1 - коммерч. инфр.'!W32,60*$B11-1*$B10,0)>0),1,0) -> 0 | W11: =IF(OR(OFFSET('Шаг 1 - коммерч. инфр.'!X12,60*$B11-1*$B10,0)>0,OFFSET('Шаг 1 - коммерч. инфр.'!X14,60*$B11-1*$B10,0)>0,OFFSET('Шаг 1 - коммерч. инфр.'!X14,60*$B11-1*$B10,0)>0,OFFSET('Шаг 1 - коммерч. инфр.'!X32,60*$B11-1*$B10,0)>0),1,0) -> 0 | X11: =IF(OR(OFFSET('Шаг 1 - коммерч. инфр.'!Y12,60*$B11-1*$B10,0)>0,OFFSET('Шаг 1 - коммерч. инфр.'!Y14,60*$B11-1*$B10,0)>0,OFFSET('Шаг 1 - коммерч. инфр.'!Y14,60*$B11-1*$B10,0)>0,OFFSET('Шаг 1 - коммерч. инфр.'!Y32,60*$B11-1*$B10,0)>0),1,0) -> 0 | Y11: =IF(OR(OFFSET('Шаг 1 - коммерч. инфр.'!Z12,60*$B11-1*$B10,0)>0,OFFSET('Шаг 1 - коммерч. инфр.'!Z14,60*$B11-1*$B10,0)>0,OFFSET('Шаг 1 - коммерч. инфр.'!Z14,60*$B11-1*$B10,0)>0,OFFSET('Шаг 1 - коммерч. инфр.'!Z32,60*$B11-1*$B10,0)>0),1,0) -> 0 | Z11: =IF(OR(OFFSET('Шаг 1 - коммерч. инфр.'!AA12,60*$B11-1*$B10,0)>0,OFFSET('Шаг 1 - коммерч. инфр.'!AA14,60*$B11-1*$B10,0)>0,OFFSET('Шаг 1 - коммерч. инфр.'!AA14,60*$B11-1*$B10,0)>0,OFFSET('Шаг 1 - коммерч. инфр.'!AA32,60*$B11-1*$B10,0)>0),1,0) -> 0
A12: =IF(B12>'Шаг 0 - Мастер-лист'!$E$9,"x","") ->  | B12: 5 | C12: 6 | D12: =IF(OFFSET('Шаг 1 - коммерч. инфр.'!B10,60*B12-1*B11,0)=0,"",OFFSET('Шаг 1 - коммерч. инфр.'!B10,60*B12-1*B11,0)) ->  | E12: =IF(OR(OFFSET('Шаг 1 - коммерч. инфр.'!F13,60*$B12-1*$B11,0)>0,OFFSET('Шаг 1 - коммерч. инфр.'!F15,60*$B12-1*$B11,0)>0,OFFSET('Шаг 1 - коммерч. инфр.'!F15,60*$B12-1*$B11,0)>0,OFFSET('Шаг 1 - коммерч. инфр.'!F33,60*$B12-1*$B11,0)>0),1,0) -> 0 | F12: =IF(OR(OFFSET('Шаг 1 - коммерч. инфр.'!G13,60*$B12-1*$B11,0)>0,OFFSET('Шаг 1 - коммерч. инфр.'!G15,60*$B12-1*$B11,0)>0,OFFSET('Шаг 1 - коммерч. инфр.'!G15,60*$B12-1*$B11,0)>0,OFFSET('Шаг 1 - коммерч. инфр.'!G33,60*$B12-1*$B11,0)>0),1,0) -> 0 | G12: =IF(OR(OFFSET('Шаг 1 - коммерч. инфр.'!H13,60*$B12-1*$B11,0)>0,OFFSET('Шаг 1 - коммерч. инфр.'!H15,60*$B12-1*$B11,0)>0,OFFSET('Шаг 1 - коммерч. инфр.'!H15,60*$B12-1*$B11,0)>0,OFFSET('Шаг 1 - коммерч. инфр.'!H33,60*$B12-1*$B11,0)>0),1,0) -> 0 | H12: =IF(OR(OFFSET('Шаг 1 - коммерч. инфр.'!I13,60*$B12-1*$B11,0)>0,OFFSET('Шаг 1 - коммерч. инфр.'!I15,60*$B12-1*$B11,0)>0,OFFSET('Шаг 1 - коммерч. инфр.'!I15,60*$B12-1*$B11,0)>0,OFFSET('Шаг 1 - коммерч. инфр.'!I33,60*$B12-1*$B11,0)>0),1,0) -> 0 | I12: =IF(OR(OFFSET('Шаг 1 - коммерч. инфр.'!J13,60*$B12-1*$B11,0)>0,OFFSET('Шаг 1 - коммерч. инфр.'!J15,60*$B12-1*$B11,0)>0,OFFSET('Шаг 1 - коммерч. инфр.'!J15,60*$B12-1*$B11,0)>0,OFFSET('Шаг 1 - коммерч. инфр.'!J33,60*$B12-1*$B11,0)>0),1,0) -> 0 | J12: =IF(OR(OFFSET('Шаг 1 - коммерч. инфр.'!K13,60*$B12-1*$B11,0)>0,OFFSET('Шаг 1 - коммерч. инфр.'!K15,60*$B12-1*$B11,0)>0,OFFSET('Шаг 1 - коммерч. инфр.'!K15,60*$B12-1*$B11,0)>0,OFFSET('Шаг 1 - коммерч. инфр.'!K33,60*$B12-1*$B11,0)>0),1,0) -> 0 | K12: =IF(OR(OFFSET('Шаг 1 - коммерч. инфр.'!L13,60*$B12-1*$B11,0)>0,OFFSET('Шаг 1 - коммерч. инфр.'!L15,60*$B12-1*$B11,0)>0,OFFSET('Шаг 1 - коммерч. инфр.'!L15,60*$B12-1*$B11,0)>0,OFFSET('Шаг 1 - коммерч. инфр.'!L33,60*$B12-1*$B11,0)>0),1,0) -> 0 | L12: =IF(OR(OFFSET('Шаг 1 - коммерч. инфр.'!M13,60*$B12-1*$B11,0)>0,OFFSET('Шаг 1 - коммерч. инфр.'!M15,60*$B12-1*$B11,0)>0,OFFSET('Шаг 1 - коммерч. инфр.'!M15,60*$B12-1*$B11,0)>0,OFFSET('Шаг 1 - коммерч. инфр.'!M33,60*$B12-1*$B11,0)>0),1,0) -> 0 | M12: =IF(OR(OFFSET('Шаг 1 - коммерч. инфр.'!N13,60*$B12-1*$B11,0)>0,OFFSET('Шаг 1 - коммерч. инфр.'!N15,60*$B12-1*$B11,0)>0,OFFSET('Шаг 1 - коммерч. инфр.'!N15,60*$B12-1*$B11,0)>0,OFFSET('Шаг 1 - коммерч. инфр.'!N33,60*$B12-1*$B11,0)>0),1,0) -> 0 | N12: =IF(OR(OFFSET('Шаг 1 - коммерч. инфр.'!O13,60*$B12-1*$B11,0)>0,OFFSET('Шаг 1 - коммерч. инфр.'!O15,60*$B12-1*$B11,0)>0,OFFSET('Шаг 1 - коммерч. инфр.'!O15,60*$B12-1*$B11,0)>0,OFFSET('Шаг 1 - коммерч. инфр.'!O33,60*$B12-1*$B11,0)>0),1,0) -> 0 | O12: =IF(OR(OFFSET('Шаг 1 - коммерч. инфр.'!P13,60*$B12-1*$B11,0)>0,OFFSET('Шаг 1 - коммерч. инфр.'!P15,60*$B12-1*$B11,0)>0,OFFSET('Шаг 1 - коммерч. инфр.'!P15,60*$B12-1*$B11,0)>0,OFFSET('Шаг 1 - коммерч. инфр.'!P33,60*$B12-1*$B11,0)>0),1,0) -> 0 | P12: =IF(OR(OFFSET('Шаг 1 - коммерч. инфр.'!Q13,60*$B12-1*$B11,0)>0,OFFSET('Шаг 1 - коммерч. инфр.'!Q15,60*$B12-1*$B11,0)>0,OFFSET('Шаг 1 - коммерч. инфр.'!Q15,60*$B12-1*$B11,0)>0,OFFSET('Шаг 1 - коммерч. инфр.'!Q33,60*$B12-1*$B11,0)>0),1,0) -> 0 | Q12: =IF(OR(OFFSET('Шаг 1 - коммерч. инфр.'!R13,60*$B12-1*$B11,0)>0,OFFSET('Шаг 1 - коммерч. инфр.'!R15,60*$B12-1*$B11,0)>0,OFFSET('Шаг 1 - коммерч. инфр.'!R15,60*$B12-1*$B11,0)>0,OFFSET('Шаг 1 - коммерч. инфр.'!R33,60*$B12-1*$B11,0)>0),1,0) -> 0 | R12: =IF(OR(OFFSET('Шаг 1 - коммерч. инфр.'!S13,60*$B12-1*$B11,0)>0,OFFSET('Шаг 1 - коммерч. инфр.'!S15,60*$B12-1*$B11,0)>0,OFFSET('Шаг 1 - коммерч. инфр.'!S15,60*$B12-1*$B11,0)>0,OFFSET('Шаг 1 - коммерч. инфр.'!S33,60*$B12-1*$B11,0)>0),1,0) -> 0 | S12: =IF(OR(OFFSET('Шаг 1 - коммерч. инфр.'!T13,60*$B12-1*$B11,0)>0,OFFSET('Шаг 1 - коммерч. инфр.'!T15,60*$B12-1*$B11,0)>0,OFFSET('Шаг 1 - коммерч. инфр.'!T15,60*$B12-1*$B11,0)>0,OFFSET('Шаг 1 - коммерч. инфр.'!T33,60*$B12-1*$B11,0)>0),1,0) -> 0 | T12: =IF(OR(OFFSET('Шаг 1 - коммерч. инфр.'!U13,60*$B12-1*$B11,0)>0,OFFSET('Шаг 1 - коммерч. инфр.'!U15,60*$B12-1*$B11,0)>0,OFFSET('Шаг 1 - коммерч. инфр.'!U15,60*$B12-1*$B11,0)>0,OFFSET('Шаг 1 - коммерч. инфр.'!U33,60*$B12-1*$B11,0)>0),1,0) -> 0 | U12: =IF(OR(OFFSET('Шаг 1 - коммерч. инфр.'!V13,60*$B12-1*$B11,0)>0,OFFSET('Шаг 1 - коммерч. инфр.'!V15,60*$B12-1*$B11,0)>0,OFFSET('Шаг 1 - коммерч. инфр.'!V15,60*$B12-1*$B11,0)>0,OFFSET('Шаг 1 - коммерч. инфр.'!V33,60*$B12-1*$B11,0)>0),1,0) -> 0 | V12: =IF(OR(OFFSET('Шаг 1 - коммерч. инфр.'!W13,60*$B12-1*$B11,0)>0,OFFSET('Шаг 1 - коммерч. инфр.'!W15,60*$B12-1*$B11,0)>0,OFFSET('Шаг 1 - коммерч. инфр.'!W15,60*$B12-1*$B11,0)>0,OFFSET('Шаг 1 - коммерч. инфр.'!W33,60*$B12-1*$B11,0)>0),1,0) -> 0 | W12: =IF(OR(OFFSET('Шаг 1 - коммерч. инфр.'!X13,60*$B12-1*$B11,0)>0,OFFSET('Шаг 1 - коммерч. инфр.'!X15,60*$B12-1*$B11,0)>0,OFFSET('Шаг 1 - коммерч. инфр.'!X15,60*$B12-1*$B11,0)>0,OFFSET('Шаг 1 - коммерч. инфр.'!X33,60*$B12-1*$B11,0)>0),1,0) -> 0 | X12: =IF(OR(OFFSET('Шаг 1 - коммерч. инфр.'!Y13,60*$B12-1*$B11,0)>0,OFFSET('Шаг 1 - коммерч. инфр.'!Y15,60*$B12-1*$B11,0)>0,OFFSET('Шаг 1 - коммерч. инфр.'!Y15,60*$B12-1*$B11,0)>0,OFFSET('Шаг 1 - коммерч. инфр.'!Y33,60*$B12-1*$B11,0)>0),1,0) -> 0 | Y12: =IF(OR(OFFSET('Шаг 1 - коммерч. инфр.'!Z13,60*$B12-1*$B11,0)>0,OFFSET('Шаг 1 - коммерч. инфр.'!Z15,60*$B12-1*$B11,0)>0,OFFSET('Шаг 1 - коммерч. инфр.'!Z15,60*$B12-1*$B11,0)>0,OFFSET('Шаг 1 - коммерч. инфр.'!Z33,60*$B12-1*$B11,0)>0),1,0) -> 0 | Z12: =IF(OR(OFFSET('Шаг 1 - коммерч. инфр.'!AA13,60*$B12-1*$B11,0)>0,OFFSET('Шаг 1 - коммерч. инфр.'!AA15,60*$B12-1*$B11,0)>0,OFFSET('Шаг 1 - коммерч. инфр.'!AA15,60*$B12-1*$B11,0)>0,OFFSET('Шаг 1 - коммерч. инфр.'!AA33,60*$B12-1*$B11,0)>0),1,0) -> 0
A13: =IF(B13>'Шаг 0 - Мастер-лист'!$E$9,"x","") ->  | B13: 6 | C13: 7 | D13: =IF(OFFSET('Шаг 1 - коммерч. инфр.'!B11,60*B13-1*B12,0)=0,"",OFFSET('Шаг 1 - коммерч. инфр.'!B11,60*B13-1*B12,0)) ->  | E13: =IF(OR(OFFSET('Шаг 1 - коммерч. инфр.'!F14,60*$B13-1*$B12,0)>0,OFFSET('Шаг 1 - коммерч. инфр.'!F16,60*$B13-1*$B12,0)>0,OFFSET('Шаг 1 - коммерч. инфр.'!F16,60*$B13-1*$B12,0)>0,OFFSET('Шаг 1 - коммерч. инфр.'!F34,60*$B13-1*$B12,0)>0),1,0) -> 0 | F13: =IF(OR(OFFSET('Шаг 1 - коммерч. инфр.'!G14,60*$B13-1*$B12,0)>0,OFFSET('Шаг 1 - коммерч. инфр.'!G16,60*$B13-1*$B12,0)>0,OFFSET('Шаг 1 - коммерч. инфр.'!G16,60*$B13-1*$B12,0)>0,OFFSET('Шаг 1 - коммерч. инфр.'!G34,60*$B13-1*$B12,0)>0),1,0) -> 0 | G13: =IF(OR(OFFSET('Шаг 1 - коммерч. инфр.'!H14,60*$B13-1*$B12,0)>0,OFFSET('Шаг 1 - коммерч. инфр.'!H16,60*$B13-1*$B12,0)>0,OFFSET('Шаг 1 - коммерч. инфр.'!H16,60*$B13-1*$B12,0)>0,OFFSET('Шаг 1 - коммерч. инфр.'!H34,60*$B13-1*$B12,0)>0),1,0) -> 0 | H13: =IF(OR(OFFSET('Шаг 1 - коммерч. инфр.'!I14,60*$B13-1*$B12,0)>0,OFFSET('Шаг 1 - коммерч. инфр.'!I16,60*$B13-1*$B12,0)>0,OFFSET('Шаг 1 - коммерч. инфр.'!I16,60*$B13-1*$B12,0)>0,OFFSET('Шаг 1 - коммерч. инфр.'!I34,60*$B13-1*$B12,0)>0),1,0) -> 0 | I13: =IF(OR(OFFSET('Шаг 1 - коммерч. инфр.'!J14,60*$B13-1*$B12,0)>0,OFFSET('Шаг 1 - коммерч. инфр.'!J16,60*$B13-1*$B12,0)>0,OFFSET('Шаг 1 - коммерч. инфр.'!J16,60*$B13-1*$B12,0)>0,OFFSET('Шаг 1 - коммерч. инфр.'!J34,60*$B13-1*$B12,0)>0),1,0) -> 0 | J13: =IF(OR(OFFSET('Шаг 1 - коммерч. инфр.'!K14,60*$B13-1*$B12,0)>0,OFFSET('Шаг 1 - коммерч. инфр.'!K16,60*$B13-1*$B12,0)>0,OFFSET('Шаг 1 - коммерч. инфр.'!K16,60*$B13-1*$B12,0)>0,OFFSET('Шаг 1 - коммерч. инфр.'!K34,60*$B13-1*$B12,0)>0),1,0) -> 0 | K13: =IF(OR(OFFSET('Шаг 1 - коммерч. инфр.'!L14,60*$B13-1*$B12,0)>0,OFFSET('Шаг 1 - коммерч. инфр.'!L16,60*$B13-1*$B12,0)>0,OFFSET('Шаг 1 - коммерч. инфр.'!L16,60*$B13-1*$B12,0)>0,OFFSET('Шаг 1 - коммерч. инфр.'!L34,60*$B13-1*$B12,0)>0),1,0) -> 0 | L13: =IF(OR(OFFSET('Шаг 1 - коммерч. инфр.'!M14,60*$B13-1*$B12,0)>0,OFFSET('Шаг 1 - коммерч. инфр.'!M16,60*$B13-1*$B12,0)>0,OFFSET('Шаг 1 - коммерч. инфр.'!M16,60*$B13-1*$B12,0)>0,OFFSET('Шаг 1 - коммерч. инфр.'!M34,60*$B13-1*$B12,0)>0),1,0) -> 0 | M13: =IF(OR(OFFSET('Шаг 1 - коммерч. инфр.'!N14,60*$B13-1*$B12,0)>0,OFFSET('Шаг 1 - коммерч. инфр.'!N16,60*$B13-1*$B12,0)>0,OFFSET('Шаг 1 - коммерч. инфр.'!N16,60*$B13-1*$B12,0)>0,OFFSET('Шаг 1 - коммерч. инфр.'!N34,60*$B13-1*$B12,0)>0),1,0) -> 0 | N13: =IF(OR(OFFSET('Шаг 1 - коммерч. инфр.'!O14,60*$B13-1*$B12,0)>0,OFFSET('Шаг 1 - коммерч. инфр.'!O16,60*$B13-1*$B12,0)>0,OFFSET('Шаг 1 - коммерч. инфр.'!O16,60*$B13-1*$B12,0)>0,OFFSET('Шаг 1 - коммерч. инфр.'!O34,60*$B13-1*$B12,0)>0),1,0) -> 0 | O13: =IF(OR(OFFSET('Шаг 1 - коммерч. инфр.'!P14,60*$B13-1*$B12,0)>0,OFFSET('Шаг 1 - коммерч. инфр.'!P16,60*$B13-1*$B12,0)>0,OFFSET('Шаг 1 - коммерч. инфр.'!P16,60*$B13-1*$B12,0)>0,OFFSET('Шаг 1 - коммерч. инфр.'!P34,60*$B13-1*$B12,0)>0),1,0) -> 0 | P13: =IF(OR(OFFSET('Шаг 1 - коммерч. инфр.'!Q14,60*$B13-1*$B12,0)>0,OFFSET('Шаг 1 - коммерч. инфр.'!Q16,60*$B13-1*$B12,0)>0,OFFSET('Шаг 1 - коммерч. инфр.'!Q16,60*$B13-1*$B12,0)>0,OFFSET('Шаг 1 - коммерч. инфр.'!Q34,60*$B13-1*$B12,0)>0),1,0) -> 0 | Q13: =IF(OR(OFFSET('Шаг 1 - коммерч. инфр.'!R14,60*$B13-1*$B12,0)>0,OFFSET('Шаг 1 - коммерч. инфр.'!R16,60*$B13-1*$B12,0)>0,OFFSET('Шаг 1 - коммерч. инфр.'!R16,60*$B13-1*$B12,0)>0,OFFSET('Шаг 1 - коммерч. инфр.'!R34,60*$B13-1*$B12,0)>0),1,0) -> 0 | R13: =IF(OR(OFFSET('Шаг 1 - коммерч. инфр.'!S14,60*$B13-1*$B12,0)>0,OFFSET('Шаг 1 - коммерч. инфр.'!S16,60*$B13-1*$B12,0)>0,OFFSET('Шаг 1 - коммерч. инфр.'!S16,60*$B13-1*$B12,0)>0,OFFSET('Шаг 1 - коммерч. инфр.'!S34,60*$B13-1*$B12,0)>0),1,0) -> 0 | S13: =IF(OR(OFFSET('Шаг 1 - коммерч. инфр.'!T14,60*$B13-1*$B12,0)>0,OFFSET('Шаг 1 - коммерч. инфр.'!T16,60*$B13-1*$B12,0)>0,OFFSET('Шаг 1 - коммерч. инфр.'!T16,60*$B13-1*$B12,0)>0,OFFSET('Шаг 1 - коммерч. инфр.'!T34,60*$B13-1*$B12,0)>0),1,0) -> 0 | T13: =IF(OR(OFFSET('Шаг 1 - коммерч. инфр.'!U14,60*$B13-1*$B12,0)>0,OFFSET('Шаг 1 - коммерч. инфр.'!U16,60*$B13-1*$B12,0)>0,OFFSET('Шаг 1 - коммерч. инфр.'!U16,60*$B13-1*$B12,0)>0,OFFSET('Шаг 1 - коммерч. инфр.'!U34,60*$B13-1*$B12,0)>0),1,0) -> 0 | U13: =IF(OR(OFFSET('Шаг 1 - коммерч. инфр.'!V14,60*$B13-1*$B12,0)>0,OFFSET('Шаг 1 - коммерч. инфр.'!V16,60*$B13-1*$B12,0)>0,OFFSET('Шаг 1 - коммерч. инфр.'!V16,60*$B13-1*$B12,0)>0,OFFSET('Шаг 1 - коммерч. инфр.'!V34,60*$B13-1*$B12,0)>0),1,0) -> 0 | V13: =IF(OR(OFFSET('Шаг 1 - коммерч. инфр.'!W14,60*$B13-1*$B12,0)>0,OFFSET('Шаг 1 - коммерч. инфр.'!W16,60*$B13-1*$B12,0)>0,OFFSET('Шаг 1 - коммерч. инфр.'!W16,60*$B13-1*$B12,0)>0,OFFSET('Шаг 1 - коммерч. инфр.'!W34,60*$B13-1*$B12,0)>0),1,0) -> 0 | W13: =IF(OR(OFFSET('Шаг 1 - коммерч. инфр.'!X14,60*$B13-1*$B12,0)>0,OFFSET('Шаг 1 - коммерч. инфр.'!X16,60*$B13-1*$B12,0)>0,OFFSET('Шаг 1 - коммерч. инфр.'!X16,60*$B13-1*$B12,0)>0,OFFSET('Шаг 1 - коммерч. инфр.'!X34,60*$B13-1*$B12,0)>0),1,0) -> 0 | X13: =IF(OR(OFFSET('Шаг 1 - коммерч. инфр.'!Y14,60*$B13-1*$B12,0)>0,OFFSET('Шаг 1 - коммерч. инфр.'!Y16,60*$B13-1*$B12,0)>0,OFFSET('Шаг 1 - коммерч. инфр.'!Y16,60*$B13-1*$B12,0)>0,OFFSET('Шаг 1 - коммерч. инфр.'!Y34,60*$B13-1*$B12,0)>0),1,0) -> 0 | Y13: =IF(OR(OFFSET('Шаг 1 - коммерч. инфр.'!Z14,60*$B13-1*$B12,0)>0,OFFSET('Шаг 1 - коммерч. инфр.'!Z16,60*$B13-1*$B12,0)>0,OFFSET('Шаг 1 - коммерч. инфр.'!Z16,60*$B13-1*$B12,0)>0,OFFSET('Шаг 1 - коммерч. инфр.'!Z34,60*$B13-1*$B12,0)>0),1,0) -> 0 | Z13: =IF(OR(OFFSET('Шаг 1 - коммерч. инфр.'!AA14,60*$B13-1*$B12,0)>0,OFFSET('Шаг 1 - коммерч. инфр.'!AA16,60*$B13-1*$B12,0)>0,OFFSET('Шаг 1 - коммерч. инфр.'!AA16,60*$B13-1*$B12,0)>0,OFFSET('Шаг 1 - коммерч. инфр.'!AA34,60*$B13-1*$B12,0)>0),1,0) -> 0
A14: =IF(B14>'Шаг 0 - Мастер-лист'!$E$9,"x","") ->  | B14: 7 | C14: 8 | D14: =IF(OFFSET('Шаг 1 - коммерч. инфр.'!B12,60*B14-1*B13,0)=0,"",OFFSET('Шаг 1 - коммерч. инфр.'!B12,60*B14-1*B13,0)) ->  | E14: =IF(OR(OFFSET('Шаг 1 - коммерч. инфр.'!F15,60*$B14-1*$B13,0)>0,OFFSET('Шаг 1 - коммерч. инфр.'!F17,60*$B14-1*$B13,0)>0,OFFSET('Шаг 1 - коммерч. инфр.'!F17,60*$B14-1*$B13,0)>0,OFFSET('Шаг 1 - коммерч. инфр.'!F35,60*$B14-1*$B13,0)>0),1,0) -> 0 | F14: =IF(OR(OFFSET('Шаг 1 - коммерч. инфр.'!G15,60*$B14-1*$B13,0)>0,OFFSET('Шаг 1 - коммерч. инфр.'!G17,60*$B14-1*$B13,0)>0,OFFSET('Шаг 1 - коммерч. инфр.'!G17,60*$B14-1*$B13,0)>0,OFFSET('Шаг 1 - коммерч. инфр.'!G35,60*$B14-1*$B13,0)>0),1,0) -> 0 | G14: =IF(OR(OFFSET('Шаг 1 - коммерч. инфр.'!H15,60*$B14-1*$B13,0)>0,OFFSET('Шаг 1 - коммерч. инфр.'!H17,60*$B14-1*$B13,0)>0,OFFSET('Шаг 1 - коммерч. инфр.'!H17,60*$B14-1*$B13,0)>0,OFFSET('Шаг 1 - коммерч. инфр.'!H35,60*$B14-1*$B13,0)>0),1,0) -> 0 | H14: =IF(OR(OFFSET('Шаг 1 - коммерч. инфр.'!I15,60*$B14-1*$B13,0)>0,OFFSET('Шаг 1 - коммерч. инфр.'!I17,60*$B14-1*$B13,0)>0,OFFSET('Шаг 1 - коммерч. инфр.'!I17,60*$B14-1*$B13,0)>0,OFFSET('Шаг 1 - коммерч. инфр.'!I35,60*$B14-1*$B13,0)>0),1,0) -> 0 | I14: =IF(OR(OFFSET('Шаг 1 - коммерч. инфр.'!J15,60*$B14-1*$B13,0)>0,OFFSET('Шаг 1 - коммерч. инфр.'!J17,60*$B14-1*$B13,0)>0,OFFSET('Шаг 1 - коммерч. инфр.'!J17,60*$B14-1*$B13,0)>0,OFFSET('Шаг 1 - коммерч. инфр.'!J35,60*$B14-1*$B13,0)>0),1,0) -> 0 | J14: =IF(OR(OFFSET('Шаг 1 - коммерч. инфр.'!K15,60*$B14-1*$B13,0)>0,OFFSET('Шаг 1 - коммерч. инфр.'!K17,60*$B14-1*$B13,0)>0,OFFSET('Шаг 1 - коммерч. инфр.'!K17,60*$B14-1*$B13,0)>0,OFFSET('Шаг 1 - коммерч. инфр.'!K35,60*$B14-1*$B13,0)>0),1,0) -> 0 | K14: =IF(OR(OFFSET('Шаг 1 - коммерч. инфр.'!L15,60*$B14-1*$B13,0)>0,OFFSET('Шаг 1 - коммерч. инфр.'!L17,60*$B14-1*$B13,0)>0,OFFSET('Шаг 1 - коммерч. инфр.'!L17,60*$B14-1*$B13,0)>0,OFFSET('Шаг 1 - коммерч. инфр.'!L35,60*$B14-1*$B13,0)>0),1,0) -> 0 | L14: =IF(OR(OFFSET('Шаг 1 - коммерч. инфр.'!M15,60*$B14-1*$B13,0)>0,OFFSET('Шаг 1 - коммерч. инфр.'!M17,60*$B14-1*$B13,0)>0,OFFSET('Шаг 1 - коммерч. инфр.'!M17,60*$B14-1*$B13,0)>0,OFFSET('Шаг 1 - коммерч. инфр.'!M35,60*$B14-1*$B13,0)>0),1,0) -> 0 | M14: =IF(OR(OFFSET('Шаг 1 - коммерч. инфр.'!N15,60*$B14-1*$B13,0)>0,OFFSET('Шаг 1 - коммерч. инфр.'!N17,60*$B14-1*$B13,0)>0,OFFSET('Шаг 1 - коммерч. инфр.'!N17,60*$B14-1*$B13,0)>0,OFFSET('Шаг 1 - коммерч. инфр.'!N35,60*$B14-1*$B13,0)>0),1,0) -> 0 | N14: =IF(OR(OFFSET('Шаг 1 - коммерч. инфр.'!O15,60*$B14-1*$B13,0)>0,OFFSET('Шаг 1 - коммерч. инфр.'!O17,60*$B14-1*$B13,0)>0,OFFSET('Шаг 1 - коммерч. инфр.'!O17,60*$B14-1*$B13,0)>0,OFFSET('Шаг 1 - коммерч. инфр.'!O35,60*$B14-1*$B13,0)>0),1,0) -> 0 | O14: =IF(OR(OFFSET('Шаг 1 - коммерч. инфр.'!P15,60*$B14-1*$B13,0)>0,OFFSET('Шаг 1 - коммерч. инфр.'!P17,60*$B14-1*$B13,0)>0,OFFSET('Шаг 1 - коммерч. инфр.'!P17,60*$B14-1*$B13,0)>0,OFFSET('Шаг 1 - коммерч. инфр.'!P35,60*$B14-1*$B13,0)>0),1,0) -> 0 | P14: =IF(OR(OFFSET('Шаг 1 - коммерч. инфр.'!Q15,60*$B14-1*$B13,0)>0,OFFSET('Шаг 1 - коммерч. инфр.'!Q17,60*$B14-1*$B13,0)>0,OFFSET('Шаг 1 - коммерч. инфр.'!Q17,60*$B14-1*$B13,0)>0,OFFSET('Шаг 1 - коммерч. инфр.'!Q35,60*$B14-1*$B13,0)>0),1,0) -> 0 | Q14: =IF(OR(OFFSET('Шаг 1 - коммерч. инфр.'!R15,60*$B14-1*$B13,0)>0,OFFSET('Шаг 1 - коммерч. инфр.'!R17,60*$B14-1*$B13,0)>0,OFFSET('Шаг 1 - коммерч. инфр.'!R17,60*$B14-1*$B13,0)>0,OFFSET('Шаг 1 - коммерч. инфр.'!R35,60*$B14-1*$B13,0)>0),1,0) -> 0 | R14: =IF(OR(OFFSET('Шаг 1 - коммерч. инфр.'!S15,60*$B14-1*$B13,0)>0,OFFSET('Шаг 1 - коммерч. инфр.'!S17,60*$B14-1*$B13,0)>0,OFFSET('Шаг 1 - коммерч. инфр.'!S17,60*$B14-1*$B13,0)>0,OFFSET('Шаг 1 - коммерч. инфр.'!S35,60*$B14-1*$B13,0)>0),1,0) -> 0 | S14: =IF(OR(OFFSET('Шаг 1 - коммерч. инфр.'!T15,60*$B14-1*$B13,0)>0,OFFSET('Шаг 1 - коммерч. инфр.'!T17,60*$B14-1*$B13,0)>0,OFFSET('Шаг 1 - коммерч. инфр.'!T17,60*$B14-1*$B13,0)>0,OFFSET('Шаг 1 - коммерч. инфр.'!T35,60*$B14-1*$B13,0)>0),1,0) -> 0 | T14: =IF(OR(OFFSET('Шаг 1 - коммерч. инфр.'!U15,60*$B14-1*$B13,0)>0,OFFSET('Шаг 1 - коммерч. инфр.'!U17,60*$B14-1*$B13,0)>0,OFFSET('Шаг 1 - коммерч. инфр.'!U17,60*$B14-1*$B13,0)>0,OFFSET('Шаг 1 - коммерч. инфр.'!U35,60*$B14-1*$B13,0)>0),1,0) -> 0 | U14: =IF(OR(OFFSET('Шаг 1 - коммерч. инфр.'!V15,60*$B14-1*$B13,0)>0,OFFSET('Шаг 1 - коммерч. инфр.'!V17,60*$B14-1*$B13,0)>0,OFFSET('Шаг 1 - коммерч. инфр.'!V17,60*$B14-1*$B13,0)>0,OFFSET('Шаг 1 - коммерч. инфр.'!V35,60*$B14-1*$B13,0)>0),1,0) -> 0 | V14: =IF(OR(OFFSET('Шаг 1 - коммерч. инфр.'!W15,60*$B14-1*$B13,0)>0,OFFSET('Шаг 1 - коммерч. инфр.'!W17,60*$B14-1*$B13,0)>0,OFFSET('Шаг 1 - коммерч. инфр.'!W17,60*$B14-1*$B13,0)>0,OFFSET('Шаг 1 - коммерч. инфр.'!W35,60*$B14-1*$B13,0)>0),1,0) -> 0 | W14: =IF(OR(OFFSET('Шаг 1 - коммерч. инфр.'!X15,60*$B14-1*$B13,0)>0,OFFSET('Шаг 1 - коммерч. инфр.'!X17,60*$B14-1*$B13,0)>0,OFFSET('Шаг 1 - коммерч. инфр.'!X17,60*$B14-1*$B13,0)>0,OFFSET('Шаг 1 - коммерч. инфр.'!X35,60*$B14-1*$B13,0)>0),1,0) -> 0 | X14: =IF(OR(OFFSET('Шаг 1 - коммерч. инфр.'!Y15,60*$B14-1*$B13,0)>0,OFFSET('Шаг 1 - коммерч. инфр.'!Y17,60*$B14-1*$B13,0)>0,OFFSET('Шаг 1 - коммерч. инфр.'!Y17,60*$B14-1*$B13,0)>0,OFFSET('Шаг 1 - коммерч. инфр.'!Y35,60*$B14-1*$B13,0)>0),1,0) -> 0 | Y14: =IF(OR(OFFSET('Шаг 1 - коммерч. инфр.'!Z15,60*$B14-1*$B13,0)>0,OFFSET('Шаг 1 - коммерч. инфр.'!Z17,60*$B14-1*$B13,0)>0,OFFSET('Шаг 1 - коммерч. инфр.'!Z17,60*$B14-1*$B13,0)>0,OFFSET('Шаг 1 - коммерч. инфр.'!Z35,60*$B14-1*$B13,0)>0),1,0) -> 0 | Z14: =IF(OR(OFFSET('Шаг 1 - коммерч. инфр.'!AA15,60*$B14-1*$B13,0)>0,OFFSET('Шаг 1 - коммерч. инфр.'!AA17,60*$B14-1*$B13,0)>0,OFFSET('Шаг 1 - коммерч. инфр.'!AA17,60*$B14-1*$B13,0)>0,OFFSET('Шаг 1 - коммерч. инфр.'!AA35,60*$B14-1*$B13,0)>0),1,0) -> 0
A15: =IF(B15>'Шаг 0 - Мастер-лист'!$E$9,"x","") ->  | B15: 8 | C15: 9 | D15: =IF(OFFSET('Шаг 1 - коммерч. инфр.'!B13,60*B15-1*B14,0)=0,"",OFFSET('Шаг 1 - коммерч. инфр.'!B13,60*B15-1*B14,0)) ->  | E15: =IF(OR(OFFSET('Шаг 1 - коммерч. инфр.'!F16,60*$B15-1*$B14,0)>0,OFFSET('Шаг 1 - коммерч. инфр.'!F18,60*$B15-1*$B14,0)>0,OFFSET('Шаг 1 - коммерч. инфр.'!F18,60*$B15-1*$B14,0)>0,OFFSET('Шаг 1 - коммерч. инфр.'!F36,60*$B15-1*$B14,0)>0),1,0) -> 0 | F15: =IF(OR(OFFSET('Шаг 1 - коммерч. инфр.'!G16,60*$B15-1*$B14,0)>0,OFFSET('Шаг 1 - коммерч. инфр.'!G18,60*$B15-1*$B14,0)>0,OFFSET('Шаг 1 - коммерч. инфр.'!G18,60*$B15-1*$B14,0)>0,OFFSET('Шаг 1 - коммерч. инфр.'!G36,60*$B15-1*$B14,0)>0),1,0) -> 0 | G15: =IF(OR(OFFSET('Шаг 1 - коммерч. инфр.'!H16,60*$B15-1*$B14,0)>0,OFFSET('Шаг 1 - коммерч. инфр.'!H18,60*$B15-1*$B14,0)>0,OFFSET('Шаг 1 - коммерч. инфр.'!H18,60*$B15-1*$B14,0)>0,OFFSET('Шаг 1 - коммерч. инфр.'!H36,60*$B15-1*$B14,0)>0),1,0) -> 0 | H15: =IF(OR(OFFSET('Шаг 1 - коммерч. инфр.'!I16,60*$B15-1*$B14,0)>0,OFFSET('Шаг 1 - коммерч. инфр.'!I18,60*$B15-1*$B14,0)>0,OFFSET('Шаг 1 - коммерч. инфр.'!I18,60*$B15-1*$B14,0)>0,OFFSET('Шаг 1 - коммерч. инфр.'!I36,60*$B15-1*$B14,0)>0),1,0) -> 0 | I15: =IF(OR(OFFSET('Шаг 1 - коммерч. инфр.'!J16,60*$B15-1*$B14,0)>0,OFFSET('Шаг 1 - коммерч. инфр.'!J18,60*$B15-1*$B14,0)>0,OFFSET('Шаг 1 - коммерч. инфр.'!J18,60*$B15-1*$B14,0)>0,OFFSET('Шаг 1 - коммерч. инфр.'!J36,60*$B15-1*$B14,0)>0),1,0) -> 0 | J15: =IF(OR(OFFSET('Шаг 1 - коммерч. инфр.'!K16,60*$B15-1*$B14,0)>0,OFFSET('Шаг 1 - коммерч. инфр.'!K18,60*$B15-1*$B14,0)>0,OFFSET('Шаг 1 - коммерч. инфр.'!K18,60*$B15-1*$B14,0)>0,OFFSET('Шаг 1 - коммерч. инфр.'!K36,60*$B15-1*$B14,0)>0),1,0) -> 0 | K15: =IF(OR(OFFSET('Шаг 1 - коммерч. инфр.'!L16,60*$B15-1*$B14,0)>0,OFFSET('Шаг 1 - коммерч. инфр.'!L18,60*$B15-1*$B14,0)>0,OFFSET('Шаг 1 - коммерч. инфр.'!L18,60*$B15-1*$B14,0)>0,OFFSET('Шаг 1 - коммерч. инфр.'!L36,60*$B15-1*$B14,0)>0),1,0) -> 0 | L15: =IF(OR(OFFSET('Шаг 1 - коммерч. инфр.'!M16,60*$B15-1*$B14,0)>0,OFFSET('Шаг 1 - коммерч. инфр.'!M18,60*$B15-1*$B14,0)>0,OFFSET('Шаг 1 - коммерч. инфр.'!M18,60*$B15-1*$B14,0)>0,OFFSET('Шаг 1 - коммерч. инфр.'!M36,60*$B15-1*$B14,0)>0),1,0) -> 0 | M15: =IF(OR(OFFSET('Шаг 1 - коммерч. инфр.'!N16,60*$B15-1*$B14,0)>0,OFFSET('Шаг 1 - коммерч. инфр.'!N18,60*$B15-1*$B14,0)>0,OFFSET('Шаг 1 - коммерч. инфр.'!N18,60*$B15-1*$B14,0)>0,OFFSET('Шаг 1 - коммерч. инфр.'!N36,60*$B15-1*$B14,0)>0),1,0) -> 0 | N15: =IF(OR(OFFSET('Шаг 1 - коммерч. инфр.'!O16,60*$B15-1*$B14,0)>0,OFFSET('Шаг 1 - коммерч. инфр.'!O18,60*$B15-1*$B14,0)>0,OFFSET('Шаг 1 - коммерч. инфр.'!O18,60*$B15-1*$B14,0)>0,OFFSET('Шаг 1 - коммерч. инфр.'!O36,60*$B15-1*$B14,0)>0),1,0) -> 0 | O15: =IF(OR(OFFSET('Шаг 1 - коммерч. инфр.'!P16,60*$B15-1*$B14,0)>0,OFFSET('Шаг 1 - коммерч. инфр.'!P18,60*$B15-1*$B14,0)>0,OFFSET('Шаг 1 - коммерч. инфр.'!P18,60*$B15-1*$B14,0)>0,OFFSET('Шаг 1 - коммерч. инфр.'!P36,60*$B15-1*$B14,0)>0),1,0) -> 0 | P15: =IF(OR(OFFSET('Шаг 1 - коммерч. инфр.'!Q16,60*$B15-1*$B14,0)>0,OFFSET('Шаг 1 - коммерч. инфр.'!Q18,60*$B15-1*$B14,0)>0,OFFSET('Шаг 1 - коммерч. инфр.'!Q18,60*$B15-1*$B14,0)>0,OFFSET('Шаг 1 - коммерч. инфр.'!Q36,60*$B15-1*$B14,0)>0),1,0) -> 0 | Q15: =IF(OR(OFFSET('Шаг 1 - коммерч. инфр.'!R16,60*$B15-1*$B14,0)>0,OFFSET('Шаг 1 - коммерч. инфр.'!R18,60*$B15-1*$B14,0)>0,OFFSET('Шаг 1 - коммерч. инфр.'!R18,60*$B15-1*$B14,0)>0,OFFSET('Шаг 1 - коммерч. инфр.'!R36,60*$B15-1*$B14,0)>0),1,0) -> 0 | R15: =IF(OR(OFFSET('Шаг 1 - коммерч. инфр.'!S16,60*$B15-1*$B14,0)>0,OFFSET('Шаг 1 - коммерч. инфр.'!S18,60*$B15-1*$B14,0)>0,OFFSET('Шаг 1 - коммерч. инфр.'!S18,60*$B15-1*$B14,0)>0,OFFSET('Шаг 1 - коммерч. инфр.'!S36,60*$B15-1*$B14,0)>0),1,0) -> 0 | S15: =IF(OR(OFFSET('Шаг 1 - коммерч. инфр.'!T16,60*$B15-1*$B14,0)>0,OFFSET('Шаг 1 - коммерч. инфр.'!T18,60*$B15-1*$B14,0)>0,OFFSET('Шаг 1 - коммерч. инфр.'!T18,60*$B15-1*$B14,0)>0,OFFSET('Шаг 1 - коммерч. инфр.'!T36,60*$B15-1*$B14,0)>0),1,0) -> 0 | T15: =IF(OR(OFFSET('Шаг 1 - коммерч. инфр.'!U16,60*$B15-1*$B14,0)>0,OFFSET('Шаг 1 - коммерч. инфр.'!U18,60*$B15-1*$B14,0)>0,OFFSET('Шаг 1 - коммерч. инфр.'!U18,60*$B15-1*$B14,0)>0,OFFSET('Шаг 1 - коммерч. инфр.'!U36,60*$B15-1*$B14,0)>0),1,0) -> 0 | U15: =IF(OR(OFFSET('Шаг 1 - коммерч. инфр.'!V16,60*$B15-1*$B14,0)>0,OFFSET('Шаг 1 - коммерч. инфр.'!V18,60*$B15-1*$B14,0)>0,OFFSET('Шаг 1 - коммерч. инфр.'!V18,60*$B15-1*$B14,0)>0,OFFSET('Шаг 1 - коммерч. инфр.'!V36,60*$B15-1*$B14,0)>0),1,0) -> 0 | V15: =IF(OR(OFFSET('Шаг 1 - коммерч. инфр.'!W16,60*$B15-1*$B14,0)>0,OFFSET('Шаг 1 - коммерч. инфр.'!W18,60*$B15-1*$B14,0)>0,OFFSET('Шаг 1 - коммерч. инфр.'!W18,60*$B15-1*$B14,0)>0,OFFSET('Шаг 1 - коммерч. инфр.'!W36,60*$B15-1*$B14,0)>0),1,0) -> 0 | W15: =IF(OR(OFFSET('Шаг 1 - коммерч. инфр.'!X16,60*$B15-1*$B14,0)>0,OFFSET('Шаг 1 - коммерч. инфр.'!X18,60*$B15-1*$B14,0)>0,OFFSET('Шаг 1 - коммерч. инфр.'!X18,60*$B15-1*$B14,0)>0,OFFSET('Шаг 1 - коммерч. инфр.'!X36,60*$B15-1*$B14,0)>0),1,0) -> 0 | X15: =IF(OR(OFFSET('Шаг 1 - коммерч. инфр.'!Y16,60*$B15-1*$B14,0)>0,OFFSET('Шаг 1 - коммерч. инфр.'!Y18,60*$B15-1*$B14,0)>0,OFFSET('Шаг 1 - коммерч. инфр.'!Y18,60*$B15-1*$B14,0)>0,OFFSET('Шаг 1 - коммерч. инфр.'!Y36,60*$B15-1*$B14,0)>0),1,0) -> 0 | Y15: =IF(OR(OFFSET('Шаг 1 - коммерч. инфр.'!Z16,60*$B15-1*$B14,0)>0,OFFSET('Шаг 1 - коммерч. инфр.'!Z18,60*$B15-1*$B14,0)>0,OFFSET('Шаг 1 - коммерч. инфр.'!Z18,60*$B15-1*$B14,0)>0,OFFSET('Шаг 1 - коммерч. инфр.'!Z36,60*$B15-1*$B14,0)>0),1,0) -> 0 | Z15: =IF(OR(OFFSET('Шаг 1 - коммерч. инфр.'!AA16,60*$B15-1*$B14,0)>0,OFFSET('Шаг 1 - коммерч. инфр.'!AA18,60*$B15-1*$B14,0)>0,OFFSET('Шаг 1 - коммерч. инфр.'!AA18,60*$B15-1*$B14,0)>0,OFFSET('Шаг 1 - коммерч. инфр.'!AA36,60*$B15-1*$B14,0)>0),1,0) -> 0
A16: =IF(B16>'Шаг 0 - Мастер-лист'!$E$9,"x","") ->  | B16: 9 | C16: 10 | D16: =IF(OFFSET('Шаг 1 - коммерч. инфр.'!B14,60*B16-1*B15,0)=0,"",OFFSET('Шаг 1 - коммерч. инфр.'!B14,60*B16-1*B15,0)) ->  | E16: =IF(OR(OFFSET('Шаг 1 - коммерч. инфр.'!F17,60*$B16-1*$B15,0)>0,OFFSET('Шаг 1 - коммерч. инфр.'!F19,60*$B16-1*$B15,0)>0,OFFSET('Шаг 1 - коммерч. инфр.'!F19,60*$B16-1*$B15,0)>0,OFFSET('Шаг 1 - коммерч. инфр.'!F37,60*$B16-1*$B15,0)>0),1,0) -> 0 | F16: =IF(OR(OFFSET('Шаг 1 - коммерч. инфр.'!G17,60*$B16-1*$B15,0)>0,OFFSET('Шаг 1 - коммерч. инфр.'!G19,60*$B16-1*$B15,0)>0,OFFSET('Шаг 1 - коммерч. инфр.'!G19,60*$B16-1*$B15,0)>0,OFFSET('Шаг 1 - коммерч. инфр.'!G37,60*$B16-1*$B15,0)>0),1,0) -> 0 | G16: =IF(OR(OFFSET('Шаг 1 - коммерч. инфр.'!H17,60*$B16-1*$B15,0)>0,OFFSET('Шаг 1 - коммерч. инфр.'!H19,60*$B16-1*$B15,0)>0,OFFSET('Шаг 1 - коммерч. инфр.'!H19,60*$B16-1*$B15,0)>0,OFFSET('Шаг 1 - коммерч. инфр.'!H37,60*$B16-1*$B15,0)>0),1,0) -> 0 | H16: =IF(OR(OFFSET('Шаг 1 - коммерч. инфр.'!I17,60*$B16-1*$B15,0)>0,OFFSET('Шаг 1 - коммерч. инфр.'!I19,60*$B16-1*$B15,0)>0,OFFSET('Шаг 1 - коммерч. инфр.'!I19,60*$B16-1*$B15,0)>0,OFFSET('Шаг 1 - коммерч. инфр.'!I37,60*$B16-1*$B15,0)>0),1,0) -> 0 | I16: =IF(OR(OFFSET('Шаг 1 - коммерч. инфр.'!J17,60*$B16-1*$B15,0)>0,OFFSET('Шаг 1 - коммерч. инфр.'!J19,60*$B16-1*$B15,0)>0,OFFSET('Шаг 1 - коммерч. инфр.'!J19,60*$B16-1*$B15,0)>0,OFFSET('Шаг 1 - коммерч. инфр.'!J37,60*$B16-1*$B15,0)>0),1,0) -> 0 | J16: =IF(OR(OFFSET('Шаг 1 - коммерч. инфр.'!K17,60*$B16-1*$B15,0)>0,OFFSET('Шаг 1 - коммерч. инфр.'!K19,60*$B16-1*$B15,0)>0,OFFSET('Шаг 1 - коммерч. инфр.'!K19,60*$B16-1*$B15,0)>0,OFFSET('Шаг 1 - коммерч. инфр.'!K37,60*$B16-1*$B15,0)>0),1,0) -> 0 | K16: =IF(OR(OFFSET('Шаг 1 - коммерч. инфр.'!L17,60*$B16-1*$B15,0)>0,OFFSET('Шаг 1 - коммерч. инфр.'!L19,60*$B16-1*$B15,0)>0,OFFSET('Шаг 1 - коммерч. инфр.'!L19,60*$B16-1*$B15,0)>0,OFFSET('Шаг 1 - коммерч. инфр.'!L37,60*$B16-1*$B15,0)>0),1,0) -> 0 | L16: =IF(OR(OFFSET('Шаг 1 - коммерч. инфр.'!M17,60*$B16-1*$B15,0)>0,OFFSET('Шаг 1 - коммерч. инфр.'!M19,60*$B16-1*$B15,0)>0,OFFSET('Шаг 1 - коммерч. инфр.'!M19,60*$B16-1*$B15,0)>0,OFFSET('Шаг 1 - коммерч. инфр.'!M37,60*$B16-1*$B15,0)>0),1,0) -> 0 | M16: =IF(OR(OFFSET('Шаг 1 - коммерч. инфр.'!N17,60*$B16-1*$B15,0)>0,OFFSET('Шаг 1 - коммерч. инфр.'!N19,60*$B16-1*$B15,0)>0,OFFSET('Шаг 1 - коммерч. инфр.'!N19,60*$B16-1*$B15,0)>0,OFFSET('Шаг 1 - коммерч. инфр.'!N37,60*$B16-1*$B15,0)>0),1,0) -> 0 | N16: =IF(OR(OFFSET('Шаг 1 - коммерч. инфр.'!O17,60*$B16-1*$B15,0)>0,OFFSET('Шаг 1 - коммерч. инфр.'!O19,60*$B16-1*$B15,0)>0,OFFSET('Шаг 1 - коммерч. инфр.'!O19,60*$B16-1*$B15,0)>0,OFFSET('Шаг 1 - коммерч. инфр.'!O37,60*$B16-1*$B15,0)>0),1,0) -> 0 | O16: =IF(OR(OFFSET('Шаг 1 - коммерч. инфр.'!P17,60*$B16-1*$B15,0)>0,OFFSET('Шаг 1 - коммерч. инфр.'!P19,60*$B16-1*$B15,0)>0,OFFSET('Шаг 1 - коммерч. инфр.'!P19,60*$B16-1*$B15,0)>0,OFFSET('Шаг 1 - коммерч. инфр.'!P37,60*$B16-1*$B15,0)>0),1,0) -> 0 | P16: =IF(OR(OFFSET('Шаг 1 - коммерч. инфр.'!Q17,60*$B16-1*$B15,0)>0,OFFSET('Шаг 1 - коммерч. инфр.'!Q19,60*$B16-1*$B15,0)>0,OFFSET('Шаг 1 - коммерч. инфр.'!Q19,60*$B16-1*$B15,0)>0,OFFSET('Шаг 1 - коммерч. инфр.'!Q37,60*$B16-1*$B15,0)>0),1,0) -> 0 | Q16: =IF(OR(OFFSET('Шаг 1 - коммерч. инфр.'!R17,60*$B16-1*$B15,0)>0,OFFSET('Шаг 1 - коммерч. инфр.'!R19,60*$B16-1*$B15,0)>0,OFFSET('Шаг 1 - коммерч. инфр.'!R19,60*$B16-1*$B15,0)>0,OFFSET('Шаг 1 - коммерч. инфр.'!R37,60*$B16-1*$B15,0)>0),1,0) -> 0 | R16: =IF(OR(OFFSET('Шаг 1 - коммерч. инфр.'!S17,60*$B16-1*$B15,0)>0,OFFSET('Шаг 1 - коммерч. инфр.'!S19,60*$B16-1*$B15,0)>0,OFFSET('Шаг 1 - коммерч. инфр.'!S19,60*$B16-1*$B15,0)>0,OFFSET('Шаг 1 - коммерч. инфр.'!S37,60*$B16-1*$B15,0)>0),1,0) -> 0 | S16: =IF(OR(OFFSET('Шаг 1 - коммерч. инфр.'!T17,60*$B16-1*$B15,0)>0,OFFSET('Шаг 1 - коммерч. инфр.'!T19,60*$B16-1*$B15,0)>0,OFFSET('Шаг 1 - коммерч. инфр.'!T19,60*$B16-1*$B15,0)>0,OFFSET('Шаг 1 - коммерч. инфр.'!T37,60*$B16-1*$B15,0)>0),1,0) -> 0 | T16: =IF(OR(OFFSET('Шаг 1 - коммерч. инфр.'!U17,60*$B16-1*$B15,0)>0,OFFSET('Шаг 1 - коммерч. инфр.'!U19,60*$B16-1*$B15,0)>0,OFFSET('Шаг 1 - коммерч. инфр.'!U19,60*$B16-1*$B15,0)>0,OFFSET('Шаг 1 - коммерч. инфр.'!U37,60*$B16-1*$B15,0)>0),1,0) -> 0 | U16: =IF(OR(OFFSET('Шаг 1 - коммерч. инфр.'!V17,60*$B16-1*$B15,0)>0,OFFSET('Шаг 1 - коммерч. инфр.'!V19,60*$B16-1*$B15,0)>0,OFFSET('Шаг 1 - коммерч. инфр.'!V19,60*$B16-1*$B15,0)>0,OFFSET('Шаг 1 - коммерч. инфр.'!V37,60*$B16-1*$B15,0)>0),1,0) -> 0 | V16: =IF(OR(OFFSET('Шаг 1 - коммерч. инфр.'!W17,60*$B16-1*$B15,0)>0,OFFSET('Шаг 1 - коммерч. инфр.'!W19,60*$B16-1*$B15,0)>0,OFFSET('Шаг 1 - коммерч. инфр.'!W19,60*$B16-1*$B15,0)>0,OFFSET('Шаг 1 - коммерч. инфр.'!W37,60*$B16-1*$B15,0)>0),1,0) -> 0 | W16: =IF(OR(OFFSET('Шаг 1 - коммерч. инфр.'!X17,60*$B16-1*$B15,0)>0,OFFSET('Шаг 1 - коммерч. инфр.'!X19,60*$B16-1*$B15,0)>0,OFFSET('Шаг 1 - коммерч. инфр.'!X19,60*$B16-1*$B15,0)>0,OFFSET('Шаг 1 - коммерч. инфр.'!X37,60*$B16-1*$B15,0)>0),1,0) -> 0 | X16: =IF(OR(OFFSET('Шаг 1 - коммерч. инфр.'!Y17,60*$B16-1*$B15,0)>0,OFFSET('Шаг 1 - коммерч. инфр.'!Y19,60*$B16-1*$B15,0)>0,OFFSET('Шаг 1 - коммерч. инфр.'!Y19,60*$B16-1*$B15,0)>0,OFFSET('Шаг 1 - коммерч. инфр.'!Y37,60*$B16-1*$B15,0)>0),1,0) -> 0 | Y16: =IF(OR(OFFSET('Шаг 1 - коммерч. инфр.'!Z17,60*$B16-1*$B15,0)>0,OFFSET('Шаг 1 - коммерч. инфр.'!Z19,60*$B16-1*$B15,0)>0,OFFSET('Шаг 1 - коммерч. инфр.'!Z19,60*$B16-1*$B15,0)>0,OFFSET('Шаг 1 - коммерч. инфр.'!Z37,60*$B16-1*$B15,0)>0),1,0) -> 0 | Z16: =IF(OR(OFFSET('Шаг 1 - коммерч. инфр.'!AA17,60*$B16-1*$B15,0)>0,OFFSET('Шаг 1 - коммерч. инфр.'!AA19,60*$B16-1*$B15,0)>0,OFFSET('Шаг 1 - коммерч. инфр.'!AA19,60*$B16-1*$B15,0)>0,OFFSET('Шаг 1 - коммерч. инфр.'!AA37,60*$B16-1*$B15,0)>0),1,0) -> 0
A17: =IF(B17>'Шаг 0 - Мастер-лист'!$E$9,"x","") ->  | B17: 10 | C17: 11 | D17: =IF(OFFSET('Шаг 1 - коммерч. инфр.'!B15,60*B17-1*B16,0)=0,"",OFFSET('Шаг 1 - коммерч. инфр.'!B15,60*B17-1*B16,0)) ->  | E17: =IF(OR(OFFSET('Шаг 1 - коммерч. инфр.'!F18,60*$B17-1*$B16,0)>0,OFFSET('Шаг 1 - коммерч. инфр.'!F20,60*$B17-1*$B16,0)>0,OFFSET('Шаг 1 - коммерч. инфр.'!F20,60*$B17-1*$B16,0)>0,OFFSET('Шаг 1 - коммерч. инфр.'!F38,60*$B17-1*$B16,0)>0),1,0) -> 0 | F17: =IF(OR(OFFSET('Шаг 1 - коммерч. инфр.'!G18,60*$B17-1*$B16,0)>0,OFFSET('Шаг 1 - коммерч. инфр.'!G20,60*$B17-1*$B16,0)>0,OFFSET('Шаг 1 - коммерч. инфр.'!G20,60*$B17-1*$B16,0)>0,OFFSET('Шаг 1 - коммерч. инфр.'!G38,60*$B17-1*$B16,0)>0),1,0) -> 0 | G17: =IF(OR(OFFSET('Шаг 1 - коммерч. инфр.'!H18,60*$B17-1*$B16,0)>0,OFFSET('Шаг 1 - коммерч. инфр.'!H20,60*$B17-1*$B16,0)>0,OFFSET('Шаг 1 - коммерч. инфр.'!H20,60*$B17-1*$B16,0)>0,OFFSET('Шаг 1 - коммерч. инфр.'!H38,60*$B17-1*$B16,0)>0),1,0) -> 0 | H17: =IF(OR(OFFSET('Шаг 1 - коммерч. инфр.'!I18,60*$B17-1*$B16,0)>0,OFFSET('Шаг 1 - коммерч. инфр.'!I20,60*$B17-1*$B16,0)>0,OFFSET('Шаг 1 - коммерч. инфр.'!I20,60*$B17-1*$B16,0)>0,OFFSET('Шаг 1 - коммерч. инфр.'!I38,60*$B17-1*$B16,0)>0),1,0) -> 0 | I17: =IF(OR(OFFSET('Шаг 1 - коммерч. инфр.'!J18,60*$B17-1*$B16,0)>0,OFFSET('Шаг 1 - коммерч. инфр.'!J20,60*$B17-1*$B16,0)>0,OFFSET('Шаг 1 - коммерч. инфр.'!J20,60*$B17-1*$B16,0)>0,OFFSET('Шаг 1 - коммерч. инфр.'!J38,60*$B17-1*$B16,0)>0),1,0) -> 0 | J17: =IF(OR(OFFSET('Шаг 1 - коммерч. инфр.'!K18,60*$B17-1*$B16,0)>0,OFFSET('Шаг 1 - коммерч. инфр.'!K20,60*$B17-1*$B16,0)>0,OFFSET('Шаг 1 - коммерч. инфр.'!K20,60*$B17-1*$B16,0)>0,OFFSET('Шаг 1 - коммерч. инфр.'!K38,60*$B17-1*$B16,0)>0),1,0) -> 0 | K17: =IF(OR(OFFSET('Шаг 1 - коммерч. инфр.'!L18,60*$B17-1*$B16,0)>0,OFFSET('Шаг 1 - коммерч. инфр.'!L20,60*$B17-1*$B16,0)>0,OFFSET('Шаг 1 - коммерч. инфр.'!L20,60*$B17-1*$B16,0)>0,OFFSET('Шаг 1 - коммерч. инфр.'!L38,60*$B17-1*$B16,0)>0),1,0) -> 0 | L17: =IF(OR(OFFSET('Шаг 1 - коммерч. инфр.'!M18,60*$B17-1*$B16,0)>0,OFFSET('Шаг 1 - коммерч. инфр.'!M20,60*$B17-1*$B16,0)>0,OFFSET('Шаг 1 - коммерч. инфр.'!M20,60*$B17-1*$B16,0)>0,OFFSET('Шаг 1 - коммерч. инфр.'!M38,60*$B17-1*$B16,0)>0),1,0) -> 0 | M17: =IF(OR(OFFSET('Шаг 1 - коммерч. инфр.'!N18,60*$B17-1*$B16,0)>0,OFFSET('Шаг 1 - коммерч. инфр.'!N20,60*$B17-1*$B16,0)>0,OFFSET('Шаг 1 - коммерч. инфр.'!N20,60*$B17-1*$B16,0)>0,OFFSET('Шаг 1 - коммерч. инфр.'!N38,60*$B17-1*$B16,0)>0),1,0) -> 0 | N17: =IF(OR(OFFSET('Шаг 1 - коммерч. инфр.'!O18,60*$B17-1*$B16,0)>0,OFFSET('Шаг 1 - коммерч. инфр.'!O20,60*$B17-1*$B16,0)>0,OFFSET('Шаг 1 - коммерч. инфр.'!O20,60*$B17-1*$B16,0)>0,OFFSET('Шаг 1 - коммерч. инфр.'!O38,60*$B17-1*$B16,0)>0),1,0) -> 0 | O17: =IF(OR(OFFSET('Шаг 1 - коммерч. инфр.'!P18,60*$B17-1*$B16,0)>0,OFFSET('Шаг 1 - коммерч. инфр.'!P20,60*$B17-1*$B16,0)>0,OFFSET('Шаг 1 - коммерч. инфр.'!P20,60*$B17-1*$B16,0)>0,OFFSET('Шаг 1 - коммерч. инфр.'!P38,60*$B17-1*$B16,0)>0),1,0) -> 0 | P17: =IF(OR(OFFSET('Шаг 1 - коммерч. инфр.'!Q18,60*$B17-1*$B16,0)>0,OFFSET('Шаг 1 - коммерч. инфр.'!Q20,60*$B17-1*$B16,0)>0,OFFSET('Шаг 1 - коммерч. инфр.'!Q20,60*$B17-1*$B16,0)>0,OFFSET('Шаг 1 - коммерч. инфр.'!Q38,60*$B17-1*$B16,0)>0),1,0) -> 0 | Q17: =IF(OR(OFFSET('Шаг 1 - коммерч. инфр.'!R18,60*$B17-1*$B16,0)>0,OFFSET('Шаг 1 - коммерч. инфр.'!R20,60*$B17-1*$B16,0)>0,OFFSET('Шаг 1 - коммерч. инфр.'!R20,60*$B17-1*$B16,0)>0,OFFSET('Шаг 1 - коммерч. инфр.'!R38,60*$B17-1*$B16,0)>0),1,0) -> 0 | R17: =IF(OR(OFFSET('Шаг 1 - коммерч. инфр.'!S18,60*$B17-1*$B16,0)>0,OFFSET('Шаг 1 - коммерч. инфр.'!S20,60*$B17-1*$B16,0)>0,OFFSET('Шаг 1 - коммерч. инфр.'!S20,60*$B17-1*$B16,0)>0,OFFSET('Шаг 1 - коммерч. инфр.'!S38,60*$B17-1*$B16,0)>0),1,0) -> 0 | S17: =IF(OR(OFFSET('Шаг 1 - коммерч. инфр.'!T18,60*$B17-1*$B16,0)>0,OFFSET('Шаг 1 - коммерч. инфр.'!T20,60*$B17-1*$B16,0)>0,OFFSET('Шаг 1 - коммерч. инфр.'!T20,60*$B17-1*$B16,0)>0,OFFSET('Шаг 1 - коммерч. инфр.'!T38,60*$B17-1*$B16,0)>0),1,0) -> 0 | T17: =IF(OR(OFFSET('Шаг 1 - коммерч. инфр.'!U18,60*$B17-1*$B16,0)>0,OFFSET('Шаг 1 - коммерч. инфр.'!U20,60*$B17-1*$B16,0)>0,OFFSET('Шаг 1 - коммерч. инфр.'!U20,60*$B17-1*$B16,0)>0,OFFSET('Шаг 1 - коммерч. инфр.'!U38,60*$B17-1*$B16,0)>0),1,0) -> 0 | U17: =IF(OR(OFFSET('Шаг 1 - коммерч. инфр.'!V18,60*$B17-1*$B16,0)>0,OFFSET('Шаг 1 - коммерч. инфр.'!V20,60*$B17-1*$B16,0)>0,OFFSET('Шаг 1 - коммерч. инфр.'!V20,60*$B17-1*$B16,0)>0,OFFSET('Шаг 1 - коммерч. инфр.'!V38,60*$B17-1*$B16,0)>0),1,0) -> 0 | V17: =IF(OR(OFFSET('Шаг 1 - коммерч. инфр.'!W18,60*$B17-1*$B16,0)>0,OFFSET('Шаг 1 - коммерч. инфр.'!W20,60*$B17-1*$B16,0)>0,OFFSET('Шаг 1 - коммерч. инфр.'!W20,60*$B17-1*$B16,0)>0,OFFSET('Шаг 1 - коммерч. инфр.'!W38,60*$B17-1*$B16,0)>0),1,0) -> 0 | W17: =IF(OR(OFFSET('Шаг 1 - коммерч. инфр.'!X18,60*$B17-1*$B16,0)>0,OFFSET('Шаг 1 - коммерч. инфр.'!X20,60*$B17-1*$B16,0)>0,OFFSET('Шаг 1 - коммерч. инфр.'!X20,60*$B17-1*$B16,0)>0,OFFSET('Шаг 1 - коммерч. инфр.'!X38,60*$B17-1*$B16,0)>0),1,0) -> 0 | X17: =IF(OR(OFFSET('Шаг 1 - коммерч. инфр.'!Y18,60*$B17-1*$B16,0)>0,OFFSET('Шаг 1 - коммерч. инфр.'!Y20,60*$B17-1*$B16,0)>0,OFFSET('Шаг 1 - коммерч. инфр.'!Y20,60*$B17-1*$B16,0)>0,OFFSET('Шаг 1 - коммерч. инфр.'!Y38,60*$B17-1*$B16,0)>0),1,0) -> 0 | Y17: =IF(OR(OFFSET('Шаг 1 - коммерч. инфр.'!Z18,60*$B17-1*$B16,0)>0,OFFSET('Шаг 1 - коммерч. инфр.'!Z20,60*$B17-1*$B16,0)>0,OFFSET('Шаг 1 - коммерч. инфр.'!Z20,60*$B17-1*$B16,0)>0,OFFSET('Шаг 1 - коммерч. инфр.'!Z38,60*$B17-1*$B16,0)>0),1,0) -> 0 | Z17: =IF(OR(OFFSET('Шаг 1 - коммерч. инфр.'!AA18,60*$B17-1*$B16,0)>0,OFFSET('Шаг 1 - коммерч. инфр.'!AA20,60*$B17-1*$B16,0)>0,OFFSET('Шаг 1 - коммерч. инфр.'!AA20,60*$B17-1*$B16,0)>0,OFFSET('Шаг 1 - коммерч. инфр.'!AA38,60*$B17-1*$B16,0)>0),1,0) -> 0
A18: =IF(B18>'Шаг 0 - Мастер-лист'!$E$9,"x","") ->  | B18: 11 | C18: 12 | D18: =IF(OFFSET('Шаг 1 - коммерч. инфр.'!B16,60*B18-1*B17,0)=0,"",OFFSET('Шаг 1 - коммерч. инфр.'!B16,60*B18-1*B17,0)) ->  | E18: =IF(OR(OFFSET('Шаг 1 - коммерч. инфр.'!F19,60*$B18-1*$B17,0)>0,OFFSET('Шаг 1 - коммерч. инфр.'!F21,60*$B18-1*$B17,0)>0,OFFSET('Шаг 1 - коммерч. инфр.'!F21,60*$B18-1*$B17,0)>0,OFFSET('Шаг 1 - коммерч. инфр.'!F39,60*$B18-1*$B17,0)>0),1,0) -> 0 | F18: =IF(OR(OFFSET('Шаг 1 - коммерч. инфр.'!G19,60*$B18-1*$B17,0)>0,OFFSET('Шаг 1 - коммерч. инфр.'!G21,60*$B18-1*$B17,0)>0,OFFSET('Шаг 1 - коммерч. инфр.'!G21,60*$B18-1*$B17,0)>0,OFFSET('Шаг 1 - коммерч. инфр.'!G39,60*$B18-1*$B17,0)>0),1,0) -> 0 | G18: =IF(OR(OFFSET('Шаг 1 - коммерч. инфр.'!H19,60*$B18-1*$B17,0)>0,OFFSET('Шаг 1 - коммерч. инфр.'!H21,60*$B18-1*$B17,0)>0,OFFSET('Шаг 1 - коммерч. инфр.'!H21,60*$B18-1*$B17,0)>0,OFFSET('Шаг 1 - коммерч. инфр.'!H39,60*$B18-1*$B17,0)>0),1,0) -> 0 | H18: =IF(OR(OFFSET('Шаг 1 - коммерч. инфр.'!I19,60*$B18-1*$B17,0)>0,OFFSET('Шаг 1 - коммерч. инфр.'!I21,60*$B18-1*$B17,0)>0,OFFSET('Шаг 1 - коммерч. инфр.'!I21,60*$B18-1*$B17,0)>0,OFFSET('Шаг 1 - коммерч. инфр.'!I39,60*$B18-1*$B17,0)>0),1,0) -> 0 | I18: =IF(OR(OFFSET('Шаг 1 - коммерч. инфр.'!J19,60*$B18-1*$B17,0)>0,OFFSET('Шаг 1 - коммерч. инфр.'!J21,60*$B18-1*$B17,0)>0,OFFSET('Шаг 1 - коммерч. инфр.'!J21,60*$B18-1*$B17,0)>0,OFFSET('Шаг 1 - коммерч. инфр.'!J39,60*$B18-1*$B17,0)>0),1,0) -> 0 | J18: =IF(OR(OFFSET('Шаг 1 - коммерч. инфр.'!K19,60*$B18-1*$B17,0)>0,OFFSET('Шаг 1 - коммерч. инфр.'!K21,60*$B18-1*$B17,0)>0,OFFSET('Шаг 1 - коммерч. инфр.'!K21,60*$B18-1*$B17,0)>0,OFFSET('Шаг 1 - коммерч. инфр.'!K39,60*$B18-1*$B17,0)>0),1,0) -> 0 | K18: =IF(OR(OFFSET('Шаг 1 - коммерч. инфр.'!L19,60*$B18-1*$B17,0)>0,OFFSET('Шаг 1 - коммерч. инфр.'!L21,60*$B18-1*$B17,0)>0,OFFSET('Шаг 1 - коммерч. инфр.'!L21,60*$B18-1*$B17,0)>0,OFFSET('Шаг 1 - коммерч. инфр.'!L39,60*$B18-1*$B17,0)>0),1,0) -> 0 | L18: =IF(OR(OFFSET('Шаг 1 - коммерч. инфр.'!M19,60*$B18-1*$B17,0)>0,OFFSET('Шаг 1 - коммерч. инфр.'!M21,60*$B18-1*$B17,0)>0,OFFSET('Шаг 1 - коммерч. инфр.'!M21,60*$B18-1*$B17,0)>0,OFFSET('Шаг 1 - коммерч. инфр.'!M39,60*$B18-1*$B17,0)>0),1,0) -> 0 | M18: =IF(OR(OFFSET('Шаг 1 - коммерч. инфр.'!N19,60*$B18-1*$B17,0)>0,OFFSET('Шаг 1 - коммерч. инфр.'!N21,60*$B18-1*$B17,0)>0,OFFSET('Шаг 1 - коммерч. инфр.'!N21,60*$B18-1*$B17,0)>0,OFFSET('Шаг 1 - коммерч. инфр.'!N39,60*$B18-1*$B17,0)>0),1,0) -> 0 | N18: =IF(OR(OFFSET('Шаг 1 - коммерч. инфр.'!O19,60*$B18-1*$B17,0)>0,OFFSET('Шаг 1 - коммерч. инфр.'!O21,60*$B18-1*$B17,0)>0,OFFSET('Шаг 1 - коммерч. инфр.'!O21,60*$B18-1*$B17,0)>0,OFFSET('Шаг 1 - коммерч. инфр.'!O39,60*$B18-1*$B17,0)>0),1,0) -> 0 | O18: =IF(OR(OFFSET('Шаг 1 - коммерч. инфр.'!P19,60*$B18-1*$B17,0)>0,OFFSET('Шаг 1 - коммерч. инфр.'!P21,60*$B18-1*$B17,0)>0,OFFSET('Шаг 1 - коммерч. инфр.'!P21,60*$B18-1*$B17,0)>0,OFFSET('Шаг 1 - коммерч. инфр.'!P39,60*$B18-1*$B17,0)>0),1,0) -> 0 | P18: =IF(OR(OFFSET('Шаг 1 - коммерч. инфр.'!Q19,60*$B18-1*$B17,0)>0,OFFSET('Шаг 1 - коммерч. инфр.'!Q21,60*$B18-1*$B17,0)>0,OFFSET('Шаг 1 - коммерч. инфр.'!Q21,60*$B18-1*$B17,0)>0,OFFSET('Шаг 1 - коммерч. инфр.'!Q39,60*$B18-1*$B17,0)>0),1,0) -> 0 | Q18: =IF(OR(OFFSET('Шаг 1 - коммерч. инфр.'!R19,60*$B18-1*$B17,0)>0,OFFSET('Шаг 1 - коммерч. инфр.'!R21,60*$B18-1*$B17,0)>0,OFFSET('Шаг 1 - коммерч. инфр.'!R21,60*$B18-1*$B17,0)>0,OFFSET('Шаг 1 - коммерч. инфр.'!R39,60*$B18-1*$B17,0)>0),1,0) -> 0 | R18: =IF(OR(OFFSET('Шаг 1 - коммерч. инфр.'!S19,60*$B18-1*$B17,0)>0,OFFSET('Шаг 1 - коммерч. инфр.'!S21,60*$B18-1*$B17,0)>0,OFFSET('Шаг 1 - коммерч. инфр.'!S21,60*$B18-1*$B17,0)>0,OFFSET('Шаг 1 - коммерч. инфр.'!S39,60*$B18-1*$B17,0)>0),1,0) -> 0 | S18: =IF(OR(OFFSET('Шаг 1 - коммерч. инфр.'!T19,60*$B18-1*$B17,0)>0,OFFSET('Шаг 1 - коммерч. инфр.'!T21,60*$B18-1*$B17,0)>0,OFFSET('Шаг 1 - коммерч. инфр.'!T21,60*$B18-1*$B17,0)>0,OFFSET('Шаг 1 - коммерч. инфр.'!T39,60*$B18-1*$B17,0)>0),1,0) -> 0 | T18: =IF(OR(OFFSET('Шаг 1 - коммерч. инфр.'!U19,60*$B18-1*$B17,0)>0,OFFSET('Шаг 1 - коммерч. инфр.'!U21,60*$B18-1*$B17,0)>0,OFFSET('Шаг 1 - коммерч. инфр.'!U21,60*$B18-1*$B17,0)>0,OFFSET('Шаг 1 - коммерч. инфр.'!U39,60*$B18-1*$B17,0)>0),1,0) -> 0 | U18: =IF(OR(OFFSET('Шаг 1 - коммерч. инфр.'!V19,60*$B18-1*$B17,0)>0,OFFSET('Шаг 1 - коммерч. инфр.'!V21,60*$B18-1*$B17,0)>0,OFFSET('Шаг 1 - коммерч. инфр.'!V21,60*$B18-1*$B17,0)>0,OFFSET('Шаг 1 - коммерч. инфр.'!V39,60*$B18-1*$B17,0)>0),1,0) -> 0 | V18: =IF(OR(OFFSET('Шаг 1 - коммерч. инфр.'!W19,60*$B18-1*$B17,0)>0,OFFSET('Шаг 1 - коммерч. инфр.'!W21,60*$B18-1*$B17,0)>0,OFFSET('Шаг 1 - коммерч. инфр.'!W21,60*$B18-1*$B17,0)>0,OFFSET('Шаг 1 - коммерч. инфр.'!W39,60*$B18-1*$B17,0)>0),1,0) -> 0 | W18: =IF(OR(OFFSET('Шаг 1 - коммерч. инфр.'!X19,60*$B18-1*$B17,0)>0,OFFSET('Шаг 1 - коммерч. инфр.'!X21,60*$B18-1*$B17,0)>0,OFFSET('Шаг 1 - коммерч. инфр.'!X21,60*$B18-1*$B17,0)>0,OFFSET('Шаг 1 - коммерч. инфр.'!X39,60*$B18-1*$B17,0)>0),1,0) -> 0 | X18: =IF(OR(OFFSET('Шаг 1 - коммерч. инфр.'!Y19,60*$B18-1*$B17,0)>0,OFFSET('Шаг 1 - коммерч. инфр.'!Y21,60*$B18-1*$B17,0)>0,OFFSET('Шаг 1 - коммерч. инфр.'!Y21,60*$B18-1*$B17,0)>0,OFFSET('Шаг 1 - коммерч. инфр.'!Y39,60*$B18-1*$B17,0)>0),1,0) -> 0 | Y18: =IF(OR(OFFSET('Шаг 1 - коммерч. инфр.'!Z19,60*$B18-1*$B17,0)>0,OFFSET('Шаг 1 - коммерч. инфр.'!Z21,60*$B18-1*$B17,0)>0,OFFSET('Шаг 1 - коммерч. инфр.'!Z21,60*$B18-1*$B17,0)>0,OFFSET('Шаг 1 - коммерч. инфр.'!Z39,60*$B18-1*$B17,0)>0),1,0) -> 0 | Z18: =IF(OR(OFFSET('Шаг 1 - коммерч. инфр.'!AA19,60*$B18-1*$B17,0)>0,OFFSET('Шаг 1 - коммерч. инфр.'!AA21,60*$B18-1*$B17,0)>0,OFFSET('Шаг 1 - коммерч. инфр.'!AA21,60*$B18-1*$B17,0)>0,OFFSET('Шаг 1 - коммерч. инфр.'!AA39,60*$B18-1*$B17,0)>0),1,0) -> 0
A19: =IF(B19>'Шаг 0 - Мастер-лист'!$E$9,"x","") ->  | B19: 12 | C19: 13 | D19: =IF(OFFSET('Шаг 1 - коммерч. инфр.'!B17,60*B19-1*B18,0)=0,"",OFFSET('Шаг 1 - коммерч. инфр.'!B17,60*B19-1*B18,0)) ->  | E19: =IF(OR(OFFSET('Шаг 1 - коммерч. инфр.'!F20,60*$B19-1*$B18,0)>0,OFFSET('Шаг 1 - коммерч. инфр.'!F22,60*$B19-1*$B18,0)>0,OFFSET('Шаг 1 - коммерч. инфр.'!F22,60*$B19-1*$B18,0)>0,OFFSET('Шаг 1 - коммерч. инфр.'!F40,60*$B19-1*$B18,0)>0),1,0) -> 0 | F19: =IF(OR(OFFSET('Шаг 1 - коммерч. инфр.'!G20,60*$B19-1*$B18,0)>0,OFFSET('Шаг 1 - коммерч. инфр.'!G22,60*$B19-1*$B18,0)>0,OFFSET('Шаг 1 - коммерч. инфр.'!G22,60*$B19-1*$B18,0)>0,OFFSET('Шаг 1 - коммерч. инфр.'!G40,60*$B19-1*$B18,0)>0),1,0) -> 0 | G19: =IF(OR(OFFSET('Шаг 1 - коммерч. инфр.'!H20,60*$B19-1*$B18,0)>0,OFFSET('Шаг 1 - коммерч. инфр.'!H22,60*$B19-1*$B18,0)>0,OFFSET('Шаг 1 - коммерч. инфр.'!H22,60*$B19-1*$B18,0)>0,OFFSET('Шаг 1 - коммерч. инфр.'!H40,60*$B19-1*$B18,0)>0),1,0) -> 0 | H19: =IF(OR(OFFSET('Шаг 1 - коммерч. инфр.'!I20,60*$B19-1*$B18,0)>0,OFFSET('Шаг 1 - коммерч. инфр.'!I22,60*$B19-1*$B18,0)>0,OFFSET('Шаг 1 - коммерч. инфр.'!I22,60*$B19-1*$B18,0)>0,OFFSET('Шаг 1 - коммерч. инфр.'!I40,60*$B19-1*$B18,0)>0),1,0) -> 0 | I19: =IF(OR(OFFSET('Шаг 1 - коммерч. инфр.'!J20,60*$B19-1*$B18,0)>0,OFFSET('Шаг 1 - коммерч. инфр.'!J22,60*$B19-1*$B18,0)>0,OFFSET('Шаг 1 - коммерч. инфр.'!J22,60*$B19-1*$B18,0)>0,OFFSET('Шаг 1 - коммерч. инфр.'!J40,60*$B19-1*$B18,0)>0),1,0) -> 0 | J19: =IF(OR(OFFSET('Шаг 1 - коммерч. инфр.'!K20,60*$B19-1*$B18,0)>0,OFFSET('Шаг 1 - коммерч. инфр.'!K22,60*$B19-1*$B18,0)>0,OFFSET('Шаг 1 - коммерч. инфр.'!K22,60*$B19-1*$B18,0)>0,OFFSET('Шаг 1 - коммерч. инфр.'!K40,60*$B19-1*$B18,0)>0),1,0) -> 0 | K19: =IF(OR(OFFSET('Шаг 1 - коммерч. инфр.'!L20,60*$B19-1*$B18,0)>0,OFFSET('Шаг 1 - коммерч. инфр.'!L22,60*$B19-1*$B18,0)>0,OFFSET('Шаг 1 - коммерч. инфр.'!L22,60*$B19-1*$B18,0)>0,OFFSET('Шаг 1 - коммерч. инфр.'!L40,60*$B19-1*$B18,0)>0),1,0) -> 0 | L19: =IF(OR(OFFSET('Шаг 1 - коммерч. инфр.'!M20,60*$B19-1*$B18,0)>0,OFFSET('Шаг 1 - коммерч. инфр.'!M22,60*$B19-1*$B18,0)>0,OFFSET('Шаг 1 - коммерч. инфр.'!M22,60*$B19-1*$B18,0)>0,OFFSET('Шаг 1 - коммерч. инфр.'!M40,60*$B19-1*$B18,0)>0),1,0) -> 0 | M19: =IF(OR(OFFSET('Шаг 1 - коммерч. инфр.'!N20,60*$B19-1*$B18,0)>0,OFFSET('Шаг 1 - коммерч. инфр.'!N22,60*$B19-1*$B18,0)>0,OFFSET('Шаг 1 - коммерч. инфр.'!N22,60*$B19-1*$B18,0)>0,OFFSET('Шаг 1 - коммерч. инфр.'!N40,60*$B19-1*$B18,0)>0),1,0) -> 0 | N19: =IF(OR(OFFSET('Шаг 1 - коммерч. инфр.'!O20,60*$B19-1*$B18,0)>0,OFFSET('Шаг 1 - коммерч. инфр.'!O22,60*$B19-1*$B18,0)>0,OFFSET('Шаг 1 - коммерч. инфр.'!O22,60*$B19-1*$B18,0)>0,OFFSET('Шаг 1 - коммерч. инфр.'!O40,60*$B19-1*$B18,0)>0),1,0) -> 0 | O19: =IF(OR(OFFSET('Шаг 1 - коммерч. инфр.'!P20,60*$B19-1*$B18,0)>0,OFFSET('Шаг 1 - коммерч. инфр.'!P22,60*$B19-1*$B18,0)>0,OFFSET('Шаг 1 - коммерч. инфр.'!P22,60*$B19-1*$B18,0)>0,OFFSET('Шаг 1 - коммерч. инфр.'!P40,60*$B19-1*$B18,0)>0),1,0) -> 0 | P19: =IF(OR(OFFSET('Шаг 1 - коммерч. инфр.'!Q20,60*$B19-1*$B18,0)>0,OFFSET('Шаг 1 - коммерч. инфр.'!Q22,60*$B19-1*$B18,0)>0,OFFSET('Шаг 1 - коммерч. инфр.'!Q22,60*$B19-1*$B18,0)>0,OFFSET('Шаг 1 - коммерч. инфр.'!Q40,60*$B19-1*$B18,0)>0),1,0) -> 0 | Q19: =IF(OR(OFFSET('Шаг 1 - коммерч. инфр.'!R20,60*$B19-1*$B18,0)>0,OFFSET('Шаг 1 - коммерч. инфр.'!R22,60*$B19-1*$B18,0)>0,OFFSET('Шаг 1 - коммерч. инфр.'!R22,60*$B19-1*$B18,0)>0,OFFSET('Шаг 1 - коммерч. инфр.'!R40,60*$B19-1*$B18,0)>0),1,0) -> 0 | R19: =IF(OR(OFFSET('Шаг 1 - коммерч. инфр.'!S20,60*$B19-1*$B18,0)>0,OFFSET('Шаг 1 - коммерч. инфр.'!S22,60*$B19-1*$B18,0)>0,OFFSET('Шаг 1 - коммерч. инфр.'!S22,60*$B19-1*$B18,0)>0,OFFSET('Шаг 1 - коммерч. инфр.'!S40,60*$B19-1*$B18,0)>0),1,0) -> 0 | S19: =IF(OR(OFFSET('Шаг 1 - коммерч. инфр.'!T20,60*$B19-1*$B18,0)>0,OFFSET('Шаг 1 - коммерч. инфр.'!T22,60*$B19-1*$B18,0)>0,OFFSET('Шаг 1 - коммерч. инфр.'!T22,60*$B19-1*$B18,0)>0,OFFSET('Шаг 1 - коммерч. инфр.'!T40,60*$B19-1*$B18,0)>0),1,0) -> 0 | T19: =IF(OR(OFFSET('Шаг 1 - коммерч. инфр.'!U20,60*$B19-1*$B18,0)>0,OFFSET('Шаг 1 - коммерч. инфр.'!U22,60*$B19-1*$B18,0)>0,OFFSET('Шаг 1 - коммерч. инфр.'!U22,60*$B19-1*$B18,0)>0,OFFSET('Шаг 1 - коммерч. инфр.'!U40,60*$B19-1*$B18,0)>0),1,0) -> 0 | U19: =IF(OR(OFFSET('Шаг 1 - коммерч. инфр.'!V20,60*$B19-1*$B18,0)>0,OFFSET('Шаг 1 - коммерч. инфр.'!V22,60*$B19-1*$B18,0)>0,OFFSET('Шаг 1 - коммерч. инфр.'!V22,60*$B19-1*$B18,0)>0,OFFSET('Шаг 1 - коммерч. инфр.'!V40,60*$B19-1*$B18,0)>0),1,0) -> 0 | V19: =IF(OR(OFFSET('Шаг 1 - коммерч. инфр.'!W20,60*$B19-1*$B18,0)>0,OFFSET('Шаг 1 - коммерч. инфр.'!W22,60*$B19-1*$B18,0)>0,OFFSET('Шаг 1 - коммерч. инфр.'!W22,60*$B19-1*$B18,0)>0,OFFSET('Шаг 1 - коммерч. инфр.'!W40,60*$B19-1*$B18,0)>0),1,0) -> 0 | W19: =IF(OR(OFFSET('Шаг 1 - коммерч. инфр.'!X20,60*$B19-1*$B18,0)>0,OFFSET('Шаг 1 - коммерч. инфр.'!X22,60*$B19-1*$B18,0)>0,OFFSET('Шаг 1 - коммерч. инфр.'!X22,60*$B19-1*$B18,0)>0,OFFSET('Шаг 1 - коммерч. инфр.'!X40,60*$B19-1*$B18,0)>0),1,0) -> 0 | X19: =IF(OR(OFFSET('Шаг 1 - коммерч. инфр.'!Y20,60*$B19-1*$B18,0)>0,OFFSET('Шаг 1 - коммерч. инфр.'!Y22,60*$B19-1*$B18,0)>0,OFFSET('Шаг 1 - коммерч. инфр.'!Y22,60*$B19-1*$B18,0)>0,OFFSET('Шаг 1 - коммерч. инфр.'!Y40,60*$B19-1*$B18,0)>0),1,0) -> 0 | Y19: =IF(OR(OFFSET('Шаг 1 - коммерч. инфр.'!Z20,60*$B19-1*$B18,0)>0,OFFSET('Шаг 1 - коммерч. инфр.'!Z22,60*$B19-1*$B18,0)>0,OFFSET('Шаг 1 - коммерч. инфр.'!Z22,60*$B19-1*$B18,0)>0,OFFSET('Шаг 1 - коммерч. инфр.'!Z40,60*$B19-1*$B18,0)>0),1,0) -> 0 | Z19: =IF(OR(OFFSET('Шаг 1 - коммерч. инфр.'!AA20,60*$B19-1*$B18,0)>0,OFFSET('Шаг 1 - коммерч. инфр.'!AA22,60*$B19-1*$B18,0)>0,OFFSET('Шаг 1 - коммерч. инфр.'!AA22,60*$B19-1*$B18,0)>0,OFFSET('Шаг 1 - коммерч. инфр.'!AA40,60*$B19-1*$B18,0)>0),1,0) -> 0
A20: =IF(B20>'Шаг 0 - Мастер-лист'!$E$9,"x","") ->  | B20: 13 | C20: 14 | D20: =IF(OFFSET('Шаг 1 - коммерч. инфр.'!B18,60*B20-1*B19,0)=0,"",OFFSET('Шаг 1 - коммерч. инфр.'!B18,60*B20-1*B19,0)) ->  | E20: =IF(OR(OFFSET('Шаг 1 - коммерч. инфр.'!F21,60*$B20-1*$B19,0)>0,OFFSET('Шаг 1 - коммерч. инфр.'!F23,60*$B20-1*$B19,0)>0,OFFSET('Шаг 1 - коммерч. инфр.'!F23,60*$B20-1*$B19,0)>0,OFFSET('Шаг 1 - коммерч. инфр.'!F41,60*$B20-1*$B19,0)>0),1,0) -> 0 | F20: =IF(OR(OFFSET('Шаг 1 - коммерч. инфр.'!G21,60*$B20-1*$B19,0)>0,OFFSET('Шаг 1 - коммерч. инфр.'!G23,60*$B20-1*$B19,0)>0,OFFSET('Шаг 1 - коммерч. инфр.'!G23,60*$B20-1*$B19,0)>0,OFFSET('Шаг 1 - коммерч. инфр.'!G41,60*$B20-1*$B19,0)>0),1,0) -> 0 | G20: =IF(OR(OFFSET('Шаг 1 - коммерч. инфр.'!H21,60*$B20-1*$B19,0)>0,OFFSET('Шаг 1 - коммерч. инфр.'!H23,60*$B20-1*$B19,0)>0,OFFSET('Шаг 1 - коммерч. инфр.'!H23,60*$B20-1*$B19,0)>0,OFFSET('Шаг 1 - коммерч. инфр.'!H41,60*$B20-1*$B19,0)>0),1,0) -> 0 | H20: =IF(OR(OFFSET('Шаг 1 - коммерч. инфр.'!I21,60*$B20-1*$B19,0)>0,OFFSET('Шаг 1 - коммерч. инфр.'!I23,60*$B20-1*$B19,0)>0,OFFSET('Шаг 1 - коммерч. инфр.'!I23,60*$B20-1*$B19,0)>0,OFFSET('Шаг 1 - коммерч. инфр.'!I41,60*$B20-1*$B19,0)>0),1,0) -> 0 | I20: =IF(OR(OFFSET('Шаг 1 - коммерч. инфр.'!J21,60*$B20-1*$B19,0)>0,OFFSET('Шаг 1 - коммерч. инфр.'!J23,60*$B20-1*$B19,0)>0,OFFSET('Шаг 1 - коммерч. инфр.'!J23,60*$B20-1*$B19,0)>0,OFFSET('Шаг 1 - коммерч. инфр.'!J41,60*$B20-1*$B19,0)>0),1,0) -> 0 | J20: =IF(OR(OFFSET('Шаг 1 - коммерч. инфр.'!K21,60*$B20-1*$B19,0)>0,OFFSET('Шаг 1 - коммерч. инфр.'!K23,60*$B20-1*$B19,0)>0,OFFSET('Шаг 1 - коммерч. инфр.'!K23,60*$B20-1*$B19,0)>0,OFFSET('Шаг 1 - коммерч. инфр.'!K41,60*$B20-1*$B19,0)>0),1,0) -> 0 | K20: =IF(OR(OFFSET('Шаг 1 - коммерч. инфр.'!L21,60*$B20-1*$B19,0)>0,OFFSET('Шаг 1 - коммерч. инфр.'!L23,60*$B20-1*$B19,0)>0,OFFSET('Шаг 1 - коммерч. инфр.'!L23,60*$B20-1*$B19,0)>0,OFFSET('Шаг 1 - коммерч. инфр.'!L41,60*$B20-1*$B19,0)>0),1,0) -> 0 | L20: =IF(OR(OFFSET('Шаг 1 - коммерч. инфр.'!M21,60*$B20-1*$B19,0)>0,OFFSET('Шаг 1 - коммерч. инфр.'!M23,60*$B20-1*$B19,0)>0,OFFSET('Шаг 1 - коммерч. инфр.'!M23,60*$B20-1*$B19,0)>0,OFFSET('Шаг 1 - коммерч. инфр.'!M41,60*$B20-1*$B19,0)>0),1,0) -> 0 | M20: =IF(OR(OFFSET('Шаг 1 - коммерч. инфр.'!N21,60*$B20-1*$B19,0)>0,OFFSET('Шаг 1 - коммерч. инфр.'!N23,60*$B20-1*$B19,0)>0,OFFSET('Шаг 1 - коммерч. инфр.'!N23,60*$B20-1*$B19,0)>0,OFFSET('Шаг 1 - коммерч. инфр.'!N41,60*$B20-1*$B19,0)>0),1,0) -> 0 | N20: =IF(OR(OFFSET('Шаг 1 - коммерч. инфр.'!O21,60*$B20-1*$B19,0)>0,OFFSET('Шаг 1 - коммерч. инфр.'!O23,60*$B20-1*$B19,0)>0,OFFSET('Шаг 1 - коммерч. инфр.'!O23,60*$B20-1*$B19,0)>0,OFFSET('Шаг 1 - коммерч. инфр.'!O41,60*$B20-1*$B19,0)>0),1,0) -> 0 | O20: =IF(OR(OFFSET('Шаг 1 - коммерч. инфр.'!P21,60*$B20-1*$B19,0)>0,OFFSET('Шаг 1 - коммерч. инфр.'!P23,60*$B20-1*$B19,0)>0,OFFSET('Шаг 1 - коммерч. инфр.'!P23,60*$B20-1*$B19,0)>0,OFFSET('Шаг 1 - коммерч. инфр.'!P41,60*$B20-1*$B19,0)>0),1,0) -> 0 | P20: =IF(OR(OFFSET('Шаг 1 - коммерч. инфр.'!Q21,60*$B20-1*$B19,0)>0,OFFSET('Шаг 1 - коммерч. инфр.'!Q23,60*$B20-1*$B19,0)>0,OFFSET('Шаг 1 - коммерч. инфр.'!Q23,60*$B20-1*$B19,0)>0,OFFSET('Шаг 1 - коммерч. инфр.'!Q41,60*$B20-1*$B19,0)>0),1,0) -> 0 | Q20: =IF(OR(OFFSET('Шаг 1 - коммерч. инфр.'!R21,60*$B20-1*$B19,0)>0,OFFSET('Шаг 1 - коммерч. инфр.'!R23,60*$B20-1*$B19,0)>0,OFFSET('Шаг 1 - коммерч. инфр.'!R23,60*$B20-1*$B19,0)>0,OFFSET('Шаг 1 - коммерч. инфр.'!R41,60*$B20-1*$B19,0)>0),1,0) -> 0 | R20: =IF(OR(OFFSET('Шаг 1 - коммерч. инфр.'!S21,60*$B20-1*$B19,0)>0,OFFSET('Шаг 1 - коммерч. инфр.'!S23,60*$B20-1*$B19,0)>0,OFFSET('Шаг 1 - коммерч. инфр.'!S23,60*$B20-1*$B19,0)>0,OFFSET('Шаг 1 - коммерч. инфр.'!S41,60*$B20-1*$B19,0)>0),1,0) -> 0 | S20: =IF(OR(OFFSET('Шаг 1 - коммерч. инфр.'!T21,60*$B20-1*$B19,0)>0,OFFSET('Шаг 1 - коммерч. инфр.'!T23,60*$B20-1*$B19,0)>0,OFFSET('Шаг 1 - коммерч. инфр.'!T23,60*$B20-1*$B19,0)>0,OFFSET('Шаг 1 - коммерч. инфр.'!T41,60*$B20-1*$B19,0)>0),1,0) -> 0 | T20: =IF(OR(OFFSET('Шаг 1 - коммерч. инфр.'!U21,60*$B20-1*$B19,0)>0,OFFSET('Шаг 1 - коммерч. инфр.'!U23,60*$B20-1*$B19,0)>0,OFFSET('Шаг 1 - коммерч. инфр.'!U23,60*$B20-1*$B19,0)>0,OFFSET('Шаг 1 - коммерч. инфр.'!U41,60*$B20-1*$B19,0)>0),1,0) -> 0 | U20: =IF(OR(OFFSET('Шаг 1 - коммерч. инфр.'!V21,60*$B20-1*$B19,0)>0,OFFSET('Шаг 1 - коммерч. инфр.'!V23,60*$B20-1*$B19,0)>0,OFFSET('Шаг 1 - коммерч. инфр.'!V23,60*$B20-1*$B19,0)>0,OFFSET('Шаг 1 - коммерч. инфр.'!V41,60*$B20-1*$B19,0)>0),1,0) -> 0 | V20: =IF(OR(OFFSET('Шаг 1 - коммерч. инфр.'!W21,60*$B20-1*$B19,0)>0,OFFSET('Шаг 1 - коммерч. инфр.'!W23,60*$B20-1*$B19,0)>0,OFFSET('Шаг 1 - коммерч. инфр.'!W23,60*$B20-1*$B19,0)>0,OFFSET('Шаг 1 - коммерч. инфр.'!W41,60*$B20-1*$B19,0)>0),1,0) -> 0 | W20: =IF(OR(OFFSET('Шаг 1 - коммерч. инфр.'!X21,60*$B20-1*$B19,0)>0,OFFSET('Шаг 1 - коммерч. инфр.'!X23,60*$B20-1*$B19,0)>0,OFFSET('Шаг 1 - коммерч. инфр.'!X23,60*$B20-1*$B19,0)>0,OFFSET('Шаг 1 - коммерч. инфр.'!X41,60*$B20-1*$B19,0)>0),1,0) -> 0 | X20: =IF(OR(OFFSET('Шаг 1 - коммерч. инфр.'!Y21,60*$B20-1*$B19,0)>0,OFFSET('Шаг 1 - коммерч. инфр.'!Y23,60*$B20-1*$B19,0)>0,OFFSET('Шаг 1 - коммерч. инфр.'!Y23,60*$B20-1*$B19,0)>0,OFFSET('Шаг 1 - коммерч. инфр.'!Y41,60*$B20-1*$B19,0)>0),1,0) -> 0 | Y20: =IF(OR(OFFSET('Шаг 1 - коммерч. инфр.'!Z21,60*$B20-1*$B19,0)>0,OFFSET('Шаг 1 - коммерч. инфр.'!Z23,60*$B20-1*$B19,0)>0,OFFSET('Шаг 1 - коммерч. инфр.'!Z23,60*$B20-1*$B19,0)>0,OFFSET('Шаг 1 - коммерч. инфр.'!Z41,60*$B20-1*$B19,0)>0),1,0) -> 0 | Z20: =IF(OR(OFFSET('Шаг 1 - коммерч. инфр.'!AA21,60*$B20-1*$B19,0)>0,OFFSET('Шаг 1 - коммерч. инфр.'!AA23,60*$B20-1*$B19,0)>0,OFFSET('Шаг 1 - коммерч. инфр.'!AA23,60*$B20-1*$B19,0)>0,OFFSET('Шаг 1 - коммерч. инфр.'!AA41,60*$B20-1*$B19,0)>0),1,0) -> 0
A21: =IF(B21>'Шаг 0 - Мастер-лист'!$E$9,"x","") ->  | B21: 14 | C21: 15 | D21: =IF(OFFSET('Шаг 1 - коммерч. инфр.'!B19,60*B21-1*B20,0)=0,"",OFFSET('Шаг 1 - коммерч. инфр.'!B19,60*B21-1*B20,0)) ->  | E21: =IF(OR(OFFSET('Шаг 1 - коммерч. инфр.'!F22,60*$B21-1*$B20,0)>0,OFFSET('Шаг 1 - коммерч. инфр.'!F24,60*$B21-1*$B20,0)>0,OFFSET('Шаг 1 - коммерч. инфр.'!F24,60*$B21-1*$B20,0)>0,OFFSET('Шаг 1 - коммерч. инфр.'!F42,60*$B21-1*$B20,0)>0),1,0) -> 0 | F21: =IF(OR(OFFSET('Шаг 1 - коммерч. инфр.'!G22,60*$B21-1*$B20,0)>0,OFFSET('Шаг 1 - коммерч. инфр.'!G24,60*$B21-1*$B20,0)>0,OFFSET('Шаг 1 - коммерч. инфр.'!G24,60*$B21-1*$B20,0)>0,OFFSET('Шаг 1 - коммерч. инфр.'!G42,60*$B21-1*$B20,0)>0),1,0) -> 0 | G21: =IF(OR(OFFSET('Шаг 1 - коммерч. инфр.'!H22,60*$B21-1*$B20,0)>0,OFFSET('Шаг 1 - коммерч. инфр.'!H24,60*$B21-1*$B20,0)>0,OFFSET('Шаг 1 - коммерч. инфр.'!H24,60*$B21-1*$B20,0)>0,OFFSET('Шаг 1 - коммерч. инфр.'!H42,60*$B21-1*$B20,0)>0),1,0) -> 0 | H21: =IF(OR(OFFSET('Шаг 1 - коммерч. инфр.'!I22,60*$B21-1*$B20,0)>0,OFFSET('Шаг 1 - коммерч. инфр.'!I24,60*$B21-1*$B20,0)>0,OFFSET('Шаг 1 - коммерч. инфр.'!I24,60*$B21-1*$B20,0)>0,OFFSET('Шаг 1 - коммерч. инфр.'!I42,60*$B21-1*$B20,0)>0),1,0) -> 0 | I21: =IF(OR(OFFSET('Шаг 1 - коммерч. инфр.'!J22,60*$B21-1*$B20,0)>0,OFFSET('Шаг 1 - коммерч. инфр.'!J24,60*$B21-1*$B20,0)>0,OFFSET('Шаг 1 - коммерч. инфр.'!J24,60*$B21-1*$B20,0)>0,OFFSET('Шаг 1 - коммерч. инфр.'!J42,60*$B21-1*$B20,0)>0),1,0) -> 0 | J21: =IF(OR(OFFSET('Шаг 1 - коммерч. инфр.'!K22,60*$B21-1*$B20,0)>0,OFFSET('Шаг 1 - коммерч. инфр.'!K24,60*$B21-1*$B20,0)>0,OFFSET('Шаг 1 - коммерч. инфр.'!K24,60*$B21-1*$B20,0)>0,OFFSET('Шаг 1 - коммерч. инфр.'!K42,60*$B21-1*$B20,0)>0),1,0) -> 0 | K21: =IF(OR(OFFSET('Шаг 1 - коммерч. инфр.'!L22,60*$B21-1*$B20,0)>0,OFFSET('Шаг 1 - коммерч. инфр.'!L24,60*$B21-1*$B20,0)>0,OFFSET('Шаг 1 - коммерч. инфр.'!L24,60*$B21-1*$B20,0)>0,OFFSET('Шаг 1 - коммерч. инфр.'!L42,60*$B21-1*$B20,0)>0),1,0) -> 0 | L21: =IF(OR(OFFSET('Шаг 1 - коммерч. инфр.'!M22,60*$B21-1*$B20,0)>0,OFFSET('Шаг 1 - коммерч. инфр.'!M24,60*$B21-1*$B20,0)>0,OFFSET('Шаг 1 - коммерч. инфр.'!M24,60*$B21-1*$B20,0)>0,OFFSET('Шаг 1 - коммерч. инфр.'!M42,60*$B21-1*$B20,0)>0),1,0) -> 0 | M21: =IF(OR(OFFSET('Шаг 1 - коммерч. инфр.'!N22,60*$B21-1*$B20,0)>0,OFFSET('Шаг 1 - коммерч. инфр.'!N24,60*$B21-1*$B20,0)>0,OFFSET('Шаг 1 - коммерч. инфр.'!N24,60*$B21-1*$B20,0)>0,OFFSET('Шаг 1 - коммерч. инфр.'!N42,60*$B21-1*$B20,0)>0),1,0) -> 0 | N21: =IF(OR(OFFSET('Шаг 1 - коммерч. инфр.'!O22,60*$B21-1*$B20,0)>0,OFFSET('Шаг 1 - коммерч. инфр.'!O24,60*$B21-1*$B20,0)>0,OFFSET('Шаг 1 - коммерч. инфр.'!O24,60*$B21-1*$B20,0)>0,OFFSET('Шаг 1 - коммерч. инфр.'!O42,60*$B21-1*$B20,0)>0),1,0) -> 0 | O21: =IF(OR(OFFSET('Шаг 1 - коммерч. инфр.'!P22,60*$B21-1*$B20,0)>0,OFFSET('Шаг 1 - коммерч. инфр.'!P24,60*$B21-1*$B20,0)>0,OFFSET('Шаг 1 - коммерч. инфр.'!P24,60*$B21-1*$B20,0)>0,OFFSET('Шаг 1 - коммерч. инфр.'!P42,60*$B21-1*$B20,0)>0),1,0) -> 0 | P21: =IF(OR(OFFSET('Шаг 1 - коммерч. инфр.'!Q22,60*$B21-1*$B20,0)>0,OFFSET('Шаг 1 - коммерч. инфр.'!Q24,60*$B21-1*$B20,0)>0,OFFSET('Шаг 1 - коммерч. инфр.'!Q24,60*$B21-1*$B20,0)>0,OFFSET('Шаг 1 - коммерч. инфр.'!Q42,60*$B21-1*$B20,0)>0),1,0) -> 0 | Q21: =IF(OR(OFFSET('Шаг 1 - коммерч. инфр.'!R22,60*$B21-1*$B20,0)>0,OFFSET('Шаг 1 - коммерч. инфр.'!R24,60*$B21-1*$B20,0)>0,OFFSET('Шаг 1 - коммерч. инфр.'!R24,60*$B21-1*$B20,0)>0,OFFSET('Шаг 1 - коммерч. инфр.'!R42,60*$B21-1*$B20,0)>0),1,0) -> 0 | R21: =IF(OR(OFFSET('Шаг 1 - коммерч. инфр.'!S22,60*$B21-1*$B20,0)>0,OFFSET('Шаг 1 - коммерч. инфр.'!S24,60*$B21-1*$B20,0)>0,OFFSET('Шаг 1 - коммерч. инфр.'!S24,60*$B21-1*$B20,0)>0,OFFSET('Шаг 1 - коммерч. инфр.'!S42,60*$B21-1*$B20,0)>0),1,0) -> 0 | S21: =IF(OR(OFFSET('Шаг 1 - коммерч. инфр.'!T22,60*$B21-1*$B20,0)>0,OFFSET('Шаг 1 - коммерч. инфр.'!T24,60*$B21-1*$B20,0)>0,OFFSET('Шаг 1 - коммерч. инфр.'!T24,60*$B21-1*$B20,0)>0,OFFSET('Шаг 1 - коммерч. инфр.'!T42,60*$B21-1*$B20,0)>0),1,0) -> 0 | T21: =IF(OR(OFFSET('Шаг 1 - коммерч. инфр.'!U22,60*$B21-1*$B20,0)>0,OFFSET('Шаг 1 - коммерч. инфр.'!U24,60*$B21-1*$B20,0)>0,OFFSET('Шаг 1 - коммерч. инфр.'!U24,60*$B21-1*$B20,0)>0,OFFSET('Шаг 1 - коммерч. инфр.'!U42,60*$B21-1*$B20,0)>0),1,0) -> 0 | U21: =IF(OR(OFFSET('Шаг 1 - коммерч. инфр.'!V22,60*$B21-1*$B20,0)>0,OFFSET('Шаг 1 - коммерч. инфр.'!V24,60*$B21-1*$B20,0)>0,OFFSET('Шаг 1 - коммерч. инфр.'!V24,60*$B21-1*$B20,0)>0,OFFSET('Шаг 1 - коммерч. инфр.'!V42,60*$B21-1*$B20,0)>0),1,0) -> 0 | V21: =IF(OR(OFFSET('Шаг 1 - коммерч. инфр.'!W22,60*$B21-1*$B20,0)>0,OFFSET('Шаг 1 - коммерч. инфр.'!W24,60*$B21-1*$B20,0)>0,OFFSET('Шаг 1 - коммерч. инфр.'!W24,60*$B21-1*$B20,0)>0,OFFSET('Шаг 1 - коммерч. инфр.'!W42,60*$B21-1*$B20,0)>0),1,0) -> 0 | W21: =IF(OR(OFFSET('Шаг 1 - коммерч. инфр.'!X22,60*$B21-1*$B20,0)>0,OFFSET('Шаг 1 - коммерч. инфр.'!X24,60*$B21-1*$B20,0)>0,OFFSET('Шаг 1 - коммерч. инфр.'!X24,60*$B21-1*$B20,0)>0,OFFSET('Шаг 1 - коммерч. инфр.'!X42,60*$B21-1*$B20,0)>0),1,0) -> 0 | X21: =IF(OR(OFFSET('Шаг 1 - коммерч. инфр.'!Y22,60*$B21-1*$B20,0)>0,OFFSET('Шаг 1 - коммерч. инфр.'!Y24,60*$B21-1*$B20,0)>0,OFFSET('Шаг 1 - коммерч. инфр.'!Y24,60*$B21-1*$B20,0)>0,OFFSET('Шаг 1 - коммерч. инфр.'!Y42,60*$B21-1*$B20,0)>0),1,0) -> 0 | Y21: =IF(OR(OFFSET('Шаг 1 - коммерч. инфр.'!Z22,60*$B21-1*$B20,0)>0,OFFSET('Шаг 1 - коммерч. инфр.'!Z24,60*$B21-1*$B20,0)>0,OFFSET('Шаг 1 - коммерч. инфр.'!Z24,60*$B21-1*$B20,0)>0,OFFSET('Шаг 1 - коммерч. инфр.'!Z42,60*$B21-1*$B20,0)>0),1,0) -> 0 | Z21: =IF(OR(OFFSET('Шаг 1 - коммерч. инфр.'!AA22,60*$B21-1*$B20,0)>0,OFFSET('Шаг 1 - коммерч. инфр.'!AA24,60*$B21-1*$B20,0)>0,OFFSET('Шаг 1 - коммерч. инфр.'!AA24,60*$B21-1*$B20,0)>0,OFFSET('Шаг 1 - коммерч. инфр.'!AA42,60*$B21-1*$B20,0)>0),1,0) -> 0
A22: =IF(B22>'Шаг 0 - Мастер-лист'!$E$9,"x","") ->  | B22: 15 | C22: 16 | D22: =IF(OFFSET('Шаг 1 - коммерч. инфр.'!B20,60*B22-1*B21,0)=0,"",OFFSET('Шаг 1 - коммерч. инфр.'!B20,60*B22-1*B21,0)) ->  | E22: =IF(OR(OFFSET('Шаг 1 - коммерч. инфр.'!F23,60*$B22-1*$B21,0)>0,OFFSET('Шаг 1 - коммерч. инфр.'!F25,60*$B22-1*$B21,0)>0,OFFSET('Шаг 1 - коммерч. инфр.'!F25,60*$B22-1*$B21,0)>0,OFFSET('Шаг 1 - коммерч. инфр.'!F43,60*$B22-1*$B21,0)>0),1,0) -> 0 | F22: =IF(OR(OFFSET('Шаг 1 - коммерч. инфр.'!G23,60*$B22-1*$B21,0)>0,OFFSET('Шаг 1 - коммерч. инфр.'!G25,60*$B22-1*$B21,0)>0,OFFSET('Шаг 1 - коммерч. инфр.'!G25,60*$B22-1*$B21,0)>0,OFFSET('Шаг 1 - коммерч. инфр.'!G43,60*$B22-1*$B21,0)>0),1,0) -> 0 | G22: =IF(OR(OFFSET('Шаг 1 - коммерч. инфр.'!H23,60*$B22-1*$B21,0)>0,OFFSET('Шаг 1 - коммерч. инфр.'!H25,60*$B22-1*$B21,0)>0,OFFSET('Шаг 1 - коммерч. инфр.'!H25,60*$B22-1*$B21,0)>0,OFFSET('Шаг 1 - коммерч. инфр.'!H43,60*$B22-1*$B21,0)>0),1,0) -> 0 | H22: =IF(OR(OFFSET('Шаг 1 - коммерч. инфр.'!I23,60*$B22-1*$B21,0)>0,OFFSET('Шаг 1 - коммерч. инфр.'!I25,60*$B22-1*$B21,0)>0,OFFSET('Шаг 1 - коммерч. инфр.'!I25,60*$B22-1*$B21,0)>0,OFFSET('Шаг 1 - коммерч. инфр.'!I43,60*$B22-1*$B21,0)>0),1,0) -> 0 | I22: =IF(OR(OFFSET('Шаг 1 - коммерч. инфр.'!J23,60*$B22-1*$B21,0)>0,OFFSET('Шаг 1 - коммерч. инфр.'!J25,60*$B22-1*$B21,0)>0,OFFSET('Шаг 1 - коммерч. инфр.'!J25,60*$B22-1*$B21,0)>0,OFFSET('Шаг 1 - коммерч. инфр.'!J43,60*$B22-1*$B21,0)>0),1,0) -> 0 | J22: =IF(OR(OFFSET('Шаг 1 - коммерч. инфр.'!K23,60*$B22-1*$B21,0)>0,OFFSET('Шаг 1 - коммерч. инфр.'!K25,60*$B22-1*$B21,0)>0,OFFSET('Шаг 1 - коммерч. инфр.'!K25,60*$B22-1*$B21,0)>0,OFFSET('Шаг 1 - коммерч. инфр.'!K43,60*$B22-1*$B21,0)>0),1,0) -> 0 | K22: =IF(OR(OFFSET('Шаг 1 - коммерч. инфр.'!L23,60*$B22-1*$B21,0)>0,OFFSET('Шаг 1 - коммерч. инфр.'!L25,60*$B22-1*$B21,0)>0,OFFSET('Шаг 1 - коммерч. инфр.'!L25,60*$B22-1*$B21,0)>0,OFFSET('Шаг 1 - коммерч. инфр.'!L43,60*$B22-1*$B21,0)>0),1,0) -> 0 | L22: =IF(OR(OFFSET('Шаг 1 - коммерч. инфр.'!M23,60*$B22-1*$B21,0)>0,OFFSET('Шаг 1 - коммерч. инфр.'!M25,60*$B22-1*$B21,0)>0,OFFSET('Шаг 1 - коммерч. инфр.'!M25,60*$B22-1*$B21,0)>0,OFFSET('Шаг 1 - коммерч. инфр.'!M43,60*$B22-1*$B21,0)>0),1,0) -> 0 | M22: =IF(OR(OFFSET('Шаг 1 - коммерч. инфр.'!N23,60*$B22-1*$B21,0)>0,OFFSET('Шаг 1 - коммерч. инфр.'!N25,60*$B22-1*$B21,0)>0,OFFSET('Шаг 1 - коммерч. инфр.'!N25,60*$B22-1*$B21,0)>0,OFFSET('Шаг 1 - коммерч. инфр.'!N43,60*$B22-1*$B21,0)>0),1,0) -> 0 | N22: =IF(OR(OFFSET('Шаг 1 - коммерч. инфр.'!O23,60*$B22-1*$B21,0)>0,OFFSET('Шаг 1 - коммерч. инфр.'!O25,60*$B22-1*$B21,0)>0,OFFSET('Шаг 1 - коммерч. инфр.'!O25,60*$B22-1*$B21,0)>0,OFFSET('Шаг 1 - коммерч. инфр.'!O43,60*$B22-1*$B21,0)>0),1,0) -> 0 | O22: =IF(OR(OFFSET('Шаг 1 - коммерч. инфр.'!P23,60*$B22-1*$B21,0)>0,OFFSET('Шаг 1 - коммерч. инфр.'!P25,60*$B22-1*$B21,0)>0,OFFSET('Шаг 1 - коммерч. инфр.'!P25,60*$B22-1*$B21,0)>0,OFFSET('Шаг 1 - коммерч. инфр.'!P43,60*$B22-1*$B21,0)>0),1,0) -> 0 | P22: =IF(OR(OFFSET('Шаг 1 - коммерч. инфр.'!Q23,60*$B22-1*$B21,0)>0,OFFSET('Шаг 1 - коммерч. инфр.'!Q25,60*$B22-1*$B21,0)>0,OFFSET('Шаг 1 - коммерч. инфр.'!Q25,60*$B22-1*$B21,0)>0,OFFSET('Шаг 1 - коммерч. инфр.'!Q43,60*$B22-1*$B21,0)>0),1,0) -> 0 | Q22: =IF(OR(OFFSET('Шаг 1 - коммерч. инфр.'!R23,60*$B22-1*$B21,0)>0,OFFSET('Шаг 1 - коммерч. инфр.'!R25,60*$B22-1*$B21,0)>0,OFFSET('Шаг 1 - коммерч. инфр.'!R25,60*$B22-1*$B21,0)>0,OFFSET('Шаг 1 - коммерч. инфр.'!R43,60*$B22-1*$B21,0)>0),1,0) -> 0 | R22: =IF(OR(OFFSET('Шаг 1 - коммерч. инфр.'!S23,60*$B22-1*$B21,0)>0,OFFSET('Шаг 1 - коммерч. инфр.'!S25,60*$B22-1*$B21,0)>0,OFFSET('Шаг 1 - коммерч. инфр.'!S25,60*$B22-1*$B21,0)>0,OFFSET('Шаг 1 - коммерч. инфр.'!S43,60*$B22-1*$B21,0)>0),1,0) -> 0 | S22: =IF(OR(OFFSET('Шаг 1 - коммерч. инфр.'!T23,60*$B22-1*$B21,0)>0,OFFSET('Шаг 1 - коммерч. инфр.'!T25,60*$B22-1*$B21,0)>0,OFFSET('Шаг 1 - коммерч. инфр.'!T25,60*$B22-1*$B21,0)>0,OFFSET('Шаг 1 - коммерч. инфр.'!T43,60*$B22-1*$B21,0)>0),1,0) -> 0 | T22: =IF(OR(OFFSET('Шаг 1 - коммерч. инфр.'!U23,60*$B22-1*$B21,0)>0,OFFSET('Шаг 1 - коммерч. инфр.'!U25,60*$B22-1*$B21,0)>0,OFFSET('Шаг 1 - коммерч. инфр.'!U25,60*$B22-1*$B21,0)>0,OFFSET('Шаг 1 - коммерч. инфр.'!U43,60*$B22-1*$B21,0)>0),1,0) -> 0 | U22: =IF(OR(OFFSET('Шаг 1 - коммерч. инфр.'!V23,60*$B22-1*$B21,0)>0,OFFSET('Шаг 1 - коммерч. инфр.'!V25,60*$B22-1*$B21,0)>0,OFFSET('Шаг 1 - коммерч. инфр.'!V25,60*$B22-1*$B21,0)>0,OFFSET('Шаг 1 - коммерч. инфр.'!V43,60*$B22-1*$B21,0)>0),1,0) -> 0 | V22: =IF(OR(OFFSET('Шаг 1 - коммерч. инфр.'!W23,60*$B22-1*$B21,0)>0,OFFSET('Шаг 1 - коммерч. инфр.'!W25,60*$B22-1*$B21,0)>0,OFFSET('Шаг 1 - коммерч. инфр.'!W25,60*$B22-1*$B21,0)>0,OFFSET('Шаг 1 - коммерч. инфр.'!W43,60*$B22-1*$B21,0)>0),1,0) -> 0 | W22: =IF(OR(OFFSET('Шаг 1 - коммерч. инфр.'!X23,60*$B22-1*$B21,0)>0,OFFSET('Шаг 1 - коммерч. инфр.'!X25,60*$B22-1*$B21,0)>0,OFFSET('Шаг 1 - коммерч. инфр.'!X25,60*$B22-1*$B21,0)>0,OFFSET('Шаг 1 - коммерч. инфр.'!X43,60*$B22-1*$B21,0)>0),1,0) -> 0 | X22: =IF(OR(OFFSET('Шаг 1 - коммерч. инфр.'!Y23,60*$B22-1*$B21,0)>0,OFFSET('Шаг 1 - коммерч. инфр.'!Y25,60*$B22-1*$B21,0)>0,OFFSET('Шаг 1 - коммерч. инфр.'!Y25,60*$B22-1*$B21,0)>0,OFFSET('Шаг 1 - коммерч. инфр.'!Y43,60*$B22-1*$B21,0)>0),1,0) -> 0 | Y22: =IF(OR(OFFSET('Шаг 1 - коммерч. инфр.'!Z23,60*$B22-1*$B21,0)>0,OFFSET('Шаг 1 - коммерч. инфр.'!Z25,60*$B22-1*$B21,0)>0,OFFSET('Шаг 1 - коммерч. инфр.'!Z25,60*$B22-1*$B21,0)>0,OFFSET('Шаг 1 - коммерч. инфр.'!Z43,60*$B22-1*$B21,0)>0),1,0) -> 0 | Z22: =IF(OR(OFFSET('Шаг 1 - коммерч. инфр.'!AA23,60*$B22-1*$B21,0)>0,OFFSET('Шаг 1 - коммерч. инфр.'!AA25,60*$B22-1*$B21,0)>0,OFFSET('Шаг 1 - коммерч. инфр.'!AA25,60*$B22-1*$B21,0)>0,OFFSET('Шаг 1 - коммерч. инфр.'!AA43,60*$B22-1*$B21,0)>0),1,0) -> 0
A23: =IF(B23>'Шаг 0 - Мастер-лист'!$E$9,"x","") ->  | B23: 16 | C23: 17 | D23: =IF(OFFSET('Шаг 1 - коммерч. инфр.'!B21,60*B23-1*B22,0)=0,"",OFFSET('Шаг 1 - коммерч. инфр.'!B21,60*B23-1*B22,0)) ->  | E23: =IF(OR(OFFSET('Шаг 1 - коммерч. инфр.'!F24,60*$B23-1*$B22,0)>0,OFFSET('Шаг 1 - коммерч. инфр.'!F26,60*$B23-1*$B22,0)>0,OFFSET('Шаг 1 - коммерч. инфр.'!F26,60*$B23-1*$B22,0)>0,OFFSET('Шаг 1 - коммерч. инфр.'!F44,60*$B23-1*$B22,0)>0),1,0) -> 0 | F23: =IF(OR(OFFSET('Шаг 1 - коммерч. инфр.'!G24,60*$B23-1*$B22,0)>0,OFFSET('Шаг 1 - коммерч. инфр.'!G26,60*$B23-1*$B22,0)>0,OFFSET('Шаг 1 - коммерч. инфр.'!G26,60*$B23-1*$B22,0)>0,OFFSET('Шаг 1 - коммерч. инфр.'!G44,60*$B23-1*$B22,0)>0),1,0) -> 0 | G23: =IF(OR(OFFSET('Шаг 1 - коммерч. инфр.'!H24,60*$B23-1*$B22,0)>0,OFFSET('Шаг 1 - коммерч. инфр.'!H26,60*$B23-1*$B22,0)>0,OFFSET('Шаг 1 - коммерч. инфр.'!H26,60*$B23-1*$B22,0)>0,OFFSET('Шаг 1 - коммерч. инфр.'!H44,60*$B23-1*$B22,0)>0),1,0) -> 0 | H23: =IF(OR(OFFSET('Шаг 1 - коммерч. инфр.'!I24,60*$B23-1*$B22,0)>0,OFFSET('Шаг 1 - коммерч. инфр.'!I26,60*$B23-1*$B22,0)>0,OFFSET('Шаг 1 - коммерч. инфр.'!I26,60*$B23-1*$B22,0)>0,OFFSET('Шаг 1 - коммерч. инфр.'!I44,60*$B23-1*$B22,0)>0),1,0) -> 0 | I23: =IF(OR(OFFSET('Шаг 1 - коммерч. инфр.'!J24,60*$B23-1*$B22,0)>0,OFFSET('Шаг 1 - коммерч. инфр.'!J26,60*$B23-1*$B22,0)>0,OFFSET('Шаг 1 - коммерч. инфр.'!J26,60*$B23-1*$B22,0)>0,OFFSET('Шаг 1 - коммерч. инфр.'!J44,60*$B23-1*$B22,0)>0),1,0) -> 0 | J23: =IF(OR(OFFSET('Шаг 1 - коммерч. инфр.'!K24,60*$B23-1*$B22,0)>0,OFFSET('Шаг 1 - коммерч. инфр.'!K26,60*$B23-1*$B22,0)>0,OFFSET('Шаг 1 - коммерч. инфр.'!K26,60*$B23-1*$B22,0)>0,OFFSET('Шаг 1 - коммерч. инфр.'!K44,60*$B23-1*$B22,0)>0),1,0) -> 0 | K23: =IF(OR(OFFSET('Шаг 1 - коммерч. инфр.'!L24,60*$B23-1*$B22,0)>0,OFFSET('Шаг 1 - коммерч. инфр.'!L26,60*$B23-1*$B22,0)>0,OFFSET('Шаг 1 - коммерч. инфр.'!L26,60*$B23-1*$B22,0)>0,OFFSET('Шаг 1 - коммерч. инфр.'!L44,60*$B23-1*$B22,0)>0),1,0) -> 0 | L23: =IF(OR(OFFSET('Шаг 1 - коммерч. инфр.'!M24,60*$B23-1*$B22,0)>0,OFFSET('Шаг 1 - коммерч. инфр.'!M26,60*$B23-1*$B22,0)>0,OFFSET('Шаг 1 - коммерч. инфр.'!M26,60*$B23-1*$B22,0)>0,OFFSET('Шаг 1 - коммерч. инфр.'!M44,60*$B23-1*$B22,0)>0),1,0) -> 0 | M23: =IF(OR(OFFSET('Шаг 1 - коммерч. инфр.'!N24,60*$B23-1*$B22,0)>0,OFFSET('Шаг 1 - коммерч. инфр.'!N26,60*$B23-1*$B22,0)>0,OFFSET('Шаг 1 - коммерч. инфр.'!N26,60*$B23-1*$B22,0)>0,OFFSET('Шаг 1 - коммерч. инфр.'!N44,60*$B23-1*$B22,0)>0),1,0) -> 0 | N23: =IF(OR(OFFSET('Шаг 1 - коммерч. инфр.'!O24,60*$B23-1*$B22,0)>0,OFFSET('Шаг 1 - коммерч. инфр.'!O26,60*$B23-1*$B22,0)>0,OFFSET('Шаг 1 - коммерч. инфр.'!O26,60*$B23-1*$B22,0)>0,OFFSET('Шаг 1 - коммерч. инфр.'!O44,60*$B23-1*$B22,0)>0),1,0) -> 0 | O23: =IF(OR(OFFSET('Шаг 1 - коммерч. инфр.'!P24,60*$B23-1*$B22,0)>0,OFFSET('Шаг 1 - коммерч. инфр.'!P26,60*$B23-1*$B22,0)>0,OFFSET('Шаг 1 - коммерч. инфр.'!P26,60*$B23-1*$B22,0)>0,OFFSET('Шаг 1 - коммерч. инфр.'!P44,60*$B23-1*$B22,0)>0),1,0) -> 0 | P23: =IF(OR(OFFSET('Шаг 1 - коммерч. инфр.'!Q24,60*$B23-1*$B22,0)>0,OFFSET('Шаг 1 - коммерч. инфр.'!Q26,60*$B23-1*$B22,0)>0,OFFSET('Шаг 1 - коммерч. инфр.'!Q26,60*$B23-1*$B22,0)>0,OFFSET('Шаг 1 - коммерч. инфр.'!Q44,60*$B23-1*$B22,0)>0),1,0) -> 0 | Q23: =IF(OR(OFFSET('Шаг 1 - коммерч. инфр.'!R24,60*$B23-1*$B22,0)>0,OFFSET('Шаг 1 - коммерч. инфр.'!R26,60*$B23-1*$B22,0)>0,OFFSET('Шаг 1 - коммерч. инфр.'!R26,60*$B23-1*$B22,0)>0,OFFSET('Шаг 1 - коммерч. инфр.'!R44,60*$B23-1*$B22,0)>0),1,0) -> 0 | R23: =IF(OR(OFFSET('Шаг 1 - коммерч. инфр.'!S24,60*$B23-1*$B22,0)>0,OFFSET('Шаг 1 - коммерч. инфр.'!S26,60*$B23-1*$B22,0)>0,OFFSET('Шаг 1 - коммерч. инфр.'!S26,60*$B23-1*$B22,0)>0,OFFSET('Шаг 1 - коммерч. инфр.'!S44,60*$B23-1*$B22,0)>0),1,0) -> 0 | S23: =IF(OR(OFFSET('Шаг 1 - коммерч. инфр.'!T24,60*$B23-1*$B22,0)>0,OFFSET('Шаг 1 - коммерч. инфр.'!T26,60*$B23-1*$B22,0)>0,OFFSET('Шаг 1 - коммерч. инфр.'!T26,60*$B23-1*$B22,0)>0,OFFSET('Шаг 1 - коммерч. инфр.'!T44,60*$B23-1*$B22,0)>0),1,0) -> 0 | T23: =IF(OR(OFFSET('Шаг 1 - коммерч. инфр.'!U24,60*$B23-1*$B22,0)>0,OFFSET('Шаг 1 - коммерч. инфр.'!U26,60*$B23-1*$B22,0)>0,OFFSET('Шаг 1 - коммерч. инфр.'!U26,60*$B23-1*$B22,0)>0,OFFSET('Шаг 1 - коммерч. инфр.'!U44,60*$B23-1*$B22,0)>0),1,0) -> 0 | U23: =IF(OR(OFFSET('Шаг 1 - коммерч. инфр.'!V24,60*$B23-1*$B22,0)>0,OFFSET('Шаг 1 - коммерч. инфр.'!V26,60*$B23-1*$B22,0)>0,OFFSET('Шаг 1 - коммерч. инфр.'!V26,60*$B23-1*$B22,0)>0,OFFSET('Шаг 1 - коммерч. инфр.'!V44,60*$B23-1*$B22,0)>0),1,0) -> 0 | V23: =IF(OR(OFFSET('Шаг 1 - коммерч. инфр.'!W24,60*$B23-1*$B22,0)>0,OFFSET('Шаг 1 - коммерч. инфр.'!W26,60*$B23-1*$B22,0)>0,OFFSET('Шаг 1 - коммерч. инфр.'!W26,60*$B23-1*$B22,0)>0,OFFSET('Шаг 1 - коммерч. инфр.'!W44,60*$B23-1*$B22,0)>0),1,0) -> 0 | W23: =IF(OR(OFFSET('Шаг 1 - коммерч. инфр.'!X24,60*$B23-1*$B22,0)>0,OFFSET('Шаг 1 - коммерч. инфр.'!X26,60*$B23-1*$B22,0)>0,OFFSET('Шаг 1 - коммерч. инфр.'!X26,60*$B23-1*$B22,0)>0,OFFSET('Шаг 1 - коммерч. инфр.'!X44,60*$B23-1*$B22,0)>0),1,0) -> 0 | X23: =IF(OR(OFFSET('Шаг 1 - коммерч. инфр.'!Y24,60*$B23-1*$B22,0)>0,OFFSET('Шаг 1 - коммерч. инфр.'!Y26,60*$B23-1*$B22,0)>0,OFFSET('Шаг 1 - коммерч. инфр.'!Y26,60*$B23-1*$B22,0)>0,OFFSET('Шаг 1 - коммерч. инфр.'!Y44,60*$B23-1*$B22,0)>0),1,0) -> 0 | Y23: =IF(OR(OFFSET('Шаг 1 - коммерч. инфр.'!Z24,60*$B23-1*$B22,0)>0,OFFSET('Шаг 1 - коммерч. инфр.'!Z26,60*$B23-1*$B22,0)>0,OFFSET('Шаг 1 - коммерч. инфр.'!Z26,60*$B23-1*$B22,0)>0,OFFSET('Шаг 1 - коммерч. инфр.'!Z44,60*$B23-1*$B22,0)>0),1,0) -> 0 | Z23: =IF(OR(OFFSET('Шаг 1 - коммерч. инфр.'!AA24,60*$B23-1*$B22,0)>0,OFFSET('Шаг 1 - коммерч. инфр.'!AA26,60*$B23-1*$B22,0)>0,OFFSET('Шаг 1 - коммерч. инфр.'!AA26,60*$B23-1*$B22,0)>0,OFFSET('Шаг 1 - коммерч. инфр.'!AA44,60*$B23-1*$B22,0)>0),1,0) -> 0
A24: =IF(B24>'Шаг 0 - Мастер-лист'!$E$9,"x","") ->  | B24: 17 | C24: 18 | D24: =IF(OFFSET('Шаг 1 - коммерч. инфр.'!B22,60*B24-1*B23,0)=0,"",OFFSET('Шаг 1 - коммерч. инфр.'!B22,60*B24-1*B23,0)) ->  | E24: =IF(OR(OFFSET('Шаг 1 - коммерч. инфр.'!F25,60*$B24-1*$B23,0)>0,OFFSET('Шаг 1 - коммерч. инфр.'!F27,60*$B24-1*$B23,0)>0,OFFSET('Шаг 1 - коммерч. инфр.'!F27,60*$B24-1*$B23,0)>0,OFFSET('Шаг 1 - коммерч. инфр.'!F45,60*$B24-1*$B23,0)>0),1,0) -> 0 | F24: =IF(OR(OFFSET('Шаг 1 - коммерч. инфр.'!G25,60*$B24-1*$B23,0)>0,OFFSET('Шаг 1 - коммерч. инфр.'!G27,60*$B24-1*$B23,0)>0,OFFSET('Шаг 1 - коммерч. инфр.'!G27,60*$B24-1*$B23,0)>0,OFFSET('Шаг 1 - коммерч. инфр.'!G45,60*$B24-1*$B23,0)>0),1,0) -> 0 | G24: =IF(OR(OFFSET('Шаг 1 - коммерч. инфр.'!H25,60*$B24-1*$B23,0)>0,OFFSET('Шаг 1 - коммерч. инфр.'!H27,60*$B24-1*$B23,0)>0,OFFSET('Шаг 1 - коммерч. инфр.'!H27,60*$B24-1*$B23,0)>0,OFFSET('Шаг 1 - коммерч. инфр.'!H45,60*$B24-1*$B23,0)>0),1,0) -> 0 | H24: =IF(OR(OFFSET('Шаг 1 - коммерч. инфр.'!I25,60*$B24-1*$B23,0)>0,OFFSET('Шаг 1 - коммерч. инфр.'!I27,60*$B24-1*$B23,0)>0,OFFSET('Шаг 1 - коммерч. инфр.'!I27,60*$B24-1*$B23,0)>0,OFFSET('Шаг 1 - коммерч. инфр.'!I45,60*$B24-1*$B23,0)>0),1,0) -> 0 | I24: =IF(OR(OFFSET('Шаг 1 - коммерч. инфр.'!J25,60*$B24-1*$B23,0)>0,OFFSET('Шаг 1 - коммерч. инфр.'!J27,60*$B24-1*$B23,0)>0,OFFSET('Шаг 1 - коммерч. инфр.'!J27,60*$B24-1*$B23,0)>0,OFFSET('Шаг 1 - коммерч. инфр.'!J45,60*$B24-1*$B23,0)>0),1,0) -> 0 | J24: =IF(OR(OFFSET('Шаг 1 - коммерч. инфр.'!K25,60*$B24-1*$B23,0)>0,OFFSET('Шаг 1 - коммерч. инфр.'!K27,60*$B24-1*$B23,0)>0,OFFSET('Шаг 1 - коммерч. инфр.'!K27,60*$B24-1*$B23,0)>0,OFFSET('Шаг 1 - коммерч. инфр.'!K45,60*$B24-1*$B23,0)>0),1,0) -> 0 | K24: =IF(OR(OFFSET('Шаг 1 - коммерч. инфр.'!L25,60*$B24-1*$B23,0)>0,OFFSET('Шаг 1 - коммерч. инфр.'!L27,60*$B24-1*$B23,0)>0,OFFSET('Шаг 1 - коммерч. инфр.'!L27,60*$B24-1*$B23,0)>0,OFFSET('Шаг 1 - коммерч. инфр.'!L45,60*$B24-1*$B23,0)>0),1,0) -> 0 | L24: =IF(OR(OFFSET('Шаг 1 - коммерч. инфр.'!M25,60*$B24-1*$B23,0)>0,OFFSET('Шаг 1 - коммерч. инфр.'!M27,60*$B24-1*$B23,0)>0,OFFSET('Шаг 1 - коммерч. инфр.'!M27,60*$B24-1*$B23,0)>0,OFFSET('Шаг 1 - коммерч. инфр.'!M45,60*$B24-1*$B23,0)>0),1,0) -> 0 | M24: =IF(OR(OFFSET('Шаг 1 - коммерч. инфр.'!N25,60*$B24-1*$B23,0)>0,OFFSET('Шаг 1 - коммерч. инфр.'!N27,60*$B24-1*$B23,0)>0,OFFSET('Шаг 1 - коммерч. инфр.'!N27,60*$B24-1*$B23,0)>0,OFFSET('Шаг 1 - коммерч. инфр.'!N45,60*$B24-1*$B23,0)>0),1,0) -> 0 | N24: =IF(OR(OFFSET('Шаг 1 - коммерч. инфр.'!O25,60*$B24-1*$B23,0)>0,OFFSET('Шаг 1 - коммерч. инфр.'!O27,60*$B24-1*$B23,0)>0,OFFSET('Шаг 1 - коммерч. инфр.'!O27,60*$B24-1*$B23,0)>0,OFFSET('Шаг 1 - коммерч. инфр.'!O45,60*$B24-1*$B23,0)>0),1,0) -> 0 | O24: =IF(OR(OFFSET('Шаг 1 - коммерч. инфр.'!P25,60*$B24-1*$B23,0)>0,OFFSET('Шаг 1 - коммерч. инфр.'!P27,60*$B24-1*$B23,0)>0,OFFSET('Шаг 1 - коммерч. инфр.'!P27,60*$B24-1*$B23,0)>0,OFFSET('Шаг 1 - коммерч. инфр.'!P45,60*$B24-1*$B23,0)>0),1,0) -> 0 | P24: =IF(OR(OFFSET('Шаг 1 - коммерч. инфр.'!Q25,60*$B24-1*$B23,0)>0,OFFSET('Шаг 1 - коммерч. инфр.'!Q27,60*$B24-1*$B23,0)>0,OFFSET('Шаг 1 - коммерч. инфр.'!Q27,60*$B24-1*$B23,0)>0,OFFSET('Шаг 1 - коммерч. инфр.'!Q45,60*$B24-1*$B23,0)>0),1,0) -> 0 | Q24: =IF(OR(OFFSET('Шаг 1 - коммерч. инфр.'!R25,60*$B24-1*$B23,0)>0,OFFSET('Шаг 1 - коммерч. инфр.'!R27,60*$B24-1*$B23,0)>0,OFFSET('Шаг 1 - коммерч. инфр.'!R27,60*$B24-1*$B23,0)>0,OFFSET('Шаг 1 - коммерч. инфр.'!R45,60*$B24-1*$B23,0)>0),1,0) -> 0 | R24: =IF(OR(OFFSET('Шаг 1 - коммерч. инфр.'!S25,60*$B24-1*$B23,0)>0,OFFSET('Шаг 1 - коммерч. инфр.'!S27,60*$B24-1*$B23,0)>0,OFFSET('Шаг 1 - коммерч. инфр.'!S27,60*$B24-1*$B23,0)>0,OFFSET('Шаг 1 - коммерч. инфр.'!S45,60*$B24-1*$B23,0)>0),1,0) -> 0 | S24: =IF(OR(OFFSET('Шаг 1 - коммерч. инфр.'!T25,60*$B24-1*$B23,0)>0,OFFSET('Шаг 1 - коммерч. инфр.'!T27,60*$B24-1*$B23,0)>0,OFFSET('Шаг 1 - коммерч. инфр.'!T27,60*$B24-1*$B23,0)>0,OFFSET('Шаг 1 - коммерч. инфр.'!T45,60*$B24-1*$B23,0)>0),1,0) -> 0 | T24: =IF(OR(OFFSET('Шаг 1 - коммерч. инфр.'!U25,60*$B24-1*$B23,0)>0,OFFSET('Шаг 1 - коммерч. инфр.'!U27,60*$B24-1*$B23,0)>0,OFFSET('Шаг 1 - коммерч. инфр.'!U27,60*$B24-1*$B23,0)>0,OFFSET('Шаг 1 - коммерч. инфр.'!U45,60*$B24-1*$B23,0)>0),1,0) -> 0 | U24: =IF(OR(OFFSET('Шаг 1 - коммерч. инфр.'!V25,60*$B24-1*$B23,0)>0,OFFSET('Шаг 1 - коммерч. инфр.'!V27,60*$B24-1*$B23,0)>0,OFFSET('Шаг 1 - коммерч. инфр.'!V27,60*$B24-1*$B23,0)>0,OFFSET('Шаг 1 - коммерч. инфр.'!V45,60*$B24-1*$B23,0)>0),1,0) -> 0 | V24: =IF(OR(OFFSET('Шаг 1 - коммерч. инфр.'!W25,60*$B24-1*$B23,0)>0,OFFSET('Шаг 1 - коммерч. инфр.'!W27,60*$B24-1*$B23,0)>0,OFFSET('Шаг 1 - коммерч. инфр.'!W27,60*$B24-1*$B23,0)>0,OFFSET('Шаг 1 - коммерч. инфр.'!W45,60*$B24-1*$B23,0)>0),1,0) -> 0 | W24: =IF(OR(OFFSET('Шаг 1 - коммерч. инфр.'!X25,60*$B24-1*$B23,0)>0,OFFSET('Шаг 1 - коммерч. инфр.'!X27,60*$B24-1*$B23,0)>0,OFFSET('Шаг 1 - коммерч. инфр.'!X27,60*$B24-1*$B23,0)>0,OFFSET('Шаг 1 - коммерч. инфр.'!X45,60*$B24-1*$B23,0)>0),1,0) -> 0 | X24: =IF(OR(OFFSET('Шаг 1 - коммерч. инфр.'!Y25,60*$B24-1*$B23,0)>0,OFFSET('Шаг 1 - коммерч. инфр.'!Y27,60*$B24-1*$B23,0)>0,OFFSET('Шаг 1 - коммерч. инфр.'!Y27,60*$B24-1*$B23,0)>0,OFFSET('Шаг 1 - коммерч. инфр.'!Y45,60*$B24-1*$B23,0)>0),1,0) -> 0 | Y24: =IF(OR(OFFSET('Шаг 1 - коммерч. инфр.'!Z25,60*$B24-1*$B23,0)>0,OFFSET('Шаг 1 - коммерч. инфр.'!Z27,60*$B24-1*$B23,0)>0,OFFSET('Шаг 1 - коммерч. инфр.'!Z27,60*$B24-1*$B23,0)>0,OFFSET('Шаг 1 - коммерч. инфр.'!Z45,60*$B24-1*$B23,0)>0),1,0) -> 0 | Z24: =IF(OR(OFFSET('Шаг 1 - коммерч. инфр.'!AA25,60*$B24-1*$B23,0)>0,OFFSET('Шаг 1 - коммерч. инфр.'!AA27,60*$B24-1*$B23,0)>0,OFFSET('Шаг 1 - коммерч. инфр.'!AA27,60*$B24-1*$B23,0)>0,OFFSET('Шаг 1 - коммерч. инфр.'!AA45,60*$B24-1*$B23,0)>0),1,0) -> 0
A25: =IF(B25>'Шаг 0 - Мастер-лист'!$E$9,"x","") ->  | B25: 18 | C25: 19 | D25: =IF(OFFSET('Шаг 1 - коммерч. инфр.'!B23,60*B25-1*B24,0)=0,"",OFFSET('Шаг 1 - коммерч. инфр.'!B23,60*B25-1*B24,0)) ->  | E25: =IF(OR(OFFSET('Шаг 1 - коммерч. инфр.'!F26,60*$B25-1*$B24,0)>0,OFFSET('Шаг 1 - коммерч. инфр.'!F28,60*$B25-1*$B24,0)>0,OFFSET('Шаг 1 - коммерч. инфр.'!F28,60*$B25-1*$B24,0)>0,OFFSET('Шаг 1 - коммерч. инфр.'!F46,60*$B25-1*$B24,0)>0),1,0) -> 0 | F25: =IF(OR(OFFSET('Шаг 1 - коммерч. инфр.'!G26,60*$B25-1*$B24,0)>0,OFFSET('Шаг 1 - коммерч. инфр.'!G28,60*$B25-1*$B24,0)>0,OFFSET('Шаг 1 - коммерч. инфр.'!G28,60*$B25-1*$B24,0)>0,OFFSET('Шаг 1 - коммерч. инфр.'!G46,60*$B25-1*$B24,0)>0),1,0) -> 0 | G25: =IF(OR(OFFSET('Шаг 1 - коммерч. инфр.'!H26,60*$B25-1*$B24,0)>0,OFFSET('Шаг 1 - коммерч. инфр.'!H28,60*$B25-1*$B24,0)>0,OFFSET('Шаг 1 - коммерч. инфр.'!H28,60*$B25-1*$B24,0)>0,OFFSET('Шаг 1 - коммерч. инфр.'!H46,60*$B25-1*$B24,0)>0),1,0) -> 0 | H25: =IF(OR(OFFSET('Шаг 1 - коммерч. инфр.'!I26,60*$B25-1*$B24,0)>0,OFFSET('Шаг 1 - коммерч. инфр.'!I28,60*$B25-1*$B24,0)>0,OFFSET('Шаг 1 - коммерч. инфр.'!I28,60*$B25-1*$B24,0)>0,OFFSET('Шаг 1 - коммерч. инфр.'!I46,60*$B25-1*$B24,0)>0),1,0) -> 0 | I25: =IF(OR(OFFSET('Шаг 1 - коммерч. инфр.'!J26,60*$B25-1*$B24,0)>0,OFFSET('Шаг 1 - коммерч. инфр.'!J28,60*$B25-1*$B24,0)>0,OFFSET('Шаг 1 - коммерч. инфр.'!J28,60*$B25-1*$B24,0)>0,OFFSET('Шаг 1 - коммерч. инфр.'!J46,60*$B25-1*$B24,0)>0),1,0) -> 0 | J25: =IF(OR(OFFSET('Шаг 1 - коммерч. инфр.'!K26,60*$B25-1*$B24,0)>0,OFFSET('Шаг 1 - коммерч. инфр.'!K28,60*$B25-1*$B24,0)>0,OFFSET('Шаг 1 - коммерч. инфр.'!K28,60*$B25-1*$B24,0)>0,OFFSET('Шаг 1 - коммерч. инфр.'!K46,60*$B25-1*$B24,0)>0),1,0) -> 0 | K25: =IF(OR(OFFSET('Шаг 1 - коммерч. инфр.'!L26,60*$B25-1*$B24,0)>0,OFFSET('Шаг 1 - коммерч. инфр.'!L28,60*$B25-1*$B24,0)>0,OFFSET('Шаг 1 - коммерч. инфр.'!L28,60*$B25-1*$B24,0)>0,OFFSET('Шаг 1 - коммерч. инфр.'!L46,60*$B25-1*$B24,0)>0),1,0) -> 0 | L25: =IF(OR(OFFSET('Шаг 1 - коммерч. инфр.'!M26,60*$B25-1*$B24,0)>0,OFFSET('Шаг 1 - коммерч. инфр.'!M28,60*$B25-1*$B24,0)>0,OFFSET('Шаг 1 - коммерч. инфр.'!M28,60*$B25-1*$B24,0)>0,OFFSET('Шаг 1 - коммерч. инфр.'!M46,60*$B25-1*$B24,0)>0),1,0) -> 0 | M25: =IF(OR(OFFSET('Шаг 1 - коммерч. инфр.'!N26,60*$B25-1*$B24,0)>0,OFFSET('Шаг 1 - коммерч. инфр.'!N28,60*$B25-1*$B24,0)>0,OFFSET('Шаг 1 - коммерч. инфр.'!N28,60*$B25-1*$B24,0)>0,OFFSET('Шаг 1 - коммерч. инфр.'!N46,60*$B25-1*$B24,0)>0),1,0) -> 0 | N25: =IF(OR(OFFSET('Шаг 1 - коммерч. инфр.'!O26,60*$B25-1*$B24,0)>0,OFFSET('Шаг 1 - коммерч. инфр.'!O28,60*$B25-1*$B24,0)>0,OFFSET('Шаг 1 - коммерч. инфр.'!O28,60*$B25-1*$B24,0)>0,OFFSET('Шаг 1 - коммерч. инфр.'!O46,60*$B25-1*$B24,0)>0),1,0) -> 0 | O25: =IF(OR(OFFSET('Шаг 1 - коммерч. инфр.'!P26,60*$B25-1*$B24,0)>0,OFFSET('Шаг 1 - коммерч. инфр.'!P28,60*$B25-1*$B24,0)>0,OFFSET('Шаг 1 - коммерч. инфр.'!P28,60*$B25-1*$B24,0)>0,OFFSET('Шаг 1 - коммерч. инфр.'!P46,60*$B25-1*$B24,0)>0),1,0) -> 0 | P25: =IF(OR(OFFSET('Шаг 1 - коммерч. инфр.'!Q26,60*$B25-1*$B24,0)>0,OFFSET('Шаг 1 - коммерч. инфр.'!Q28,60*$B25-1*$B24,0)>0,OFFSET('Шаг 1 - коммерч. инфр.'!Q28,60*$B25-1*$B24,0)>0,OFFSET('Шаг 1 - коммерч. инфр.'!Q46,60*$B25-1*$B24,0)>0),1,0) -> 0 | Q25: =IF(OR(OFFSET('Шаг 1 - коммерч. инфр.'!R26,60*$B25-1*$B24,0)>0,OFFSET('Шаг 1 - коммерч. инфр.'!R28,60*$B25-1*$B24,0)>0,OFFSET('Шаг 1 - коммерч. инфр.'!R28,60*$B25-1*$B24,0)>0,OFFSET('Шаг 1 - коммерч. инфр.'!R46,60*$B25-1*$B24,0)>0),1,0) -> 0 | R25: =IF(OR(OFFSET('Шаг 1 - коммерч. инфр.'!S26,60*$B25-1*$B24,0)>0,OFFSET('Шаг 1 - коммерч. инфр.'!S28,60*$B25-1*$B24,0)>0,OFFSET('Шаг 1 - коммерч. инфр.'!S28,60*$B25-1*$B24,0)>0,OFFSET('Шаг 1 - коммерч. инфр.'!S46,60*$B25-1*$B24,0)>0),1,0) -> 0 | S25: =IF(OR(OFFSET('Шаг 1 - коммерч. инфр.'!T26,60*$B25-1*$B24,0)>0,OFFSET('Шаг 1 - коммерч. инфр.'!T28,60*$B25-1*$B24,0)>0,OFFSET('Шаг 1 - коммерч. инфр.'!T28,60*$B25-1*$B24,0)>0,OFFSET('Шаг 1 - коммерч. инфр.'!T46,60*$B25-1*$B24,0)>0),1,0) -> 0 | T25: =IF(OR(OFFSET('Шаг 1 - коммерч. инфр.'!U26,60*$B25-1*$B24,0)>0,OFFSET('Шаг 1 - коммерч. инфр.'!U28,60*$B25-1*$B24,0)>0,OFFSET('Шаг 1 - коммерч. инфр.'!U28,60*$B25-1*$B24,0)>0,OFFSET('Шаг 1 - коммерч. инфр.'!U46,60*$B25-1*$B24,0)>0),1,0) -> 0 | U25: =IF(OR(OFFSET('Шаг 1 - коммерч. инфр.'!V26,60*$B25-1*$B24,0)>0,OFFSET('Шаг 1 - коммерч. инфр.'!V28,60*$B25-1*$B24,0)>0,OFFSET('Шаг 1 - коммерч. инфр.'!V28,60*$B25-1*$B24,0)>0,OFFSET('Шаг 1 - коммерч. инфр.'!V46,60*$B25-1*$B24,0)>0),1,0) -> 0 | V25: =IF(OR(OFFSET('Шаг 1 - коммерч. инфр.'!W26,60*$B25-1*$B24,0)>0,OFFSET('Шаг 1 - коммерч. инфр.'!W28,60*$B25-1*$B24,0)>0,OFFSET('Шаг 1 - коммерч. инфр.'!W28,60*$B25-1*$B24,0)>0,OFFSET('Шаг 1 - коммерч. инфр.'!W46,60*$B25-1*$B24,0)>0),1,0) -> 0 | W25: =IF(OR(OFFSET('Шаг 1 - коммерч. инфр.'!X26,60*$B25-1*$B24,0)>0,OFFSET('Шаг 1 - коммерч. инфр.'!X28,60*$B25-1*$B24,0)>0,OFFSET('Шаг 1 - коммерч. инфр.'!X28,60*$B25-1*$B24,0)>0,OFFSET('Шаг 1 - коммерч. инфр.'!X46,60*$B25-1*$B24,0)>0),1,0) -> 0 | X25: =IF(OR(OFFSET('Шаг 1 - коммерч. инфр.'!Y26,60*$B25-1*$B24,0)>0,OFFSET('Шаг 1 - коммерч. инфр.'!Y28,60*$B25-1*$B24,0)>0,OFFSET('Шаг 1 - коммерч. инфр.'!Y28,60*$B25-1*$B24,0)>0,OFFSET('Шаг 1 - коммерч. инфр.'!Y46,60*$B25-1*$B24,0)>0),1,0) -> 0 | Y25: =IF(OR(OFFSET('Шаг 1 - коммерч. инфр.'!Z26,60*$B25-1*$B24,0)>0,OFFSET('Шаг 1 - коммерч. инфр.'!Z28,60*$B25-1*$B24,0)>0,OFFSET('Шаг 1 - коммерч. инфр.'!Z28,60*$B25-1*$B24,0)>0,OFFSET('Шаг 1 - коммерч. инфр.'!Z46,60*$B25-1*$B24,0)>0),1,0) -> 0 | Z25: =IF(OR(OFFSET('Шаг 1 - коммерч. инфр.'!AA26,60*$B25-1*$B24,0)>0,OFFSET('Шаг 1 - коммерч. инфр.'!AA28,60*$B25-1*$B24,0)>0,OFFSET('Шаг 1 - коммерч. инфр.'!AA28,60*$B25-1*$B24,0)>0,OFFSET('Шаг 1 - коммерч. инфр.'!AA46,60*$B25-1*$B24,0)>0),1,0) -> 0
A26: =IF(B26>'Шаг 0 - Мастер-лист'!$E$9,"x","") ->  | B26: 19 | C26: 20 | D26: =IF(OFFSET('Шаг 1 - коммерч. инфр.'!B24,60*B26-1*B25,0)=0,"",OFFSET('Шаг 1 - коммерч. инфр.'!B24,60*B26-1*B25,0)) ->  | E26: =IF(OR(OFFSET('Шаг 1 - коммерч. инфр.'!F27,60*$B26-1*$B25,0)>0,OFFSET('Шаг 1 - коммерч. инфр.'!F29,60*$B26-1*$B25,0)>0,OFFSET('Шаг 1 - коммерч. инфр.'!F29,60*$B26-1*$B25,0)>0,OFFSET('Шаг 1 - коммерч. инфр.'!F47,60*$B26-1*$B25,0)>0),1,0) -> 0 | F26: =IF(OR(OFFSET('Шаг 1 - коммерч. инфр.'!G27,60*$B26-1*$B25,0)>0,OFFSET('Шаг 1 - коммерч. инфр.'!G29,60*$B26-1*$B25,0)>0,OFFSET('Шаг 1 - коммерч. инфр.'!G29,60*$B26-1*$B25,0)>0,OFFSET('Шаг 1 - коммерч. инфр.'!G47,60*$B26-1*$B25,0)>0),1,0) -> 0 | G26: =IF(OR(OFFSET('Шаг 1 - коммерч. инфр.'!H27,60*$B26-1*$B25,0)>0,OFFSET('Шаг 1 - коммерч. инфр.'!H29,60*$B26-1*$B25,0)>0,OFFSET('Шаг 1 - коммерч. инфр.'!H29,60*$B26-1*$B25,0)>0,OFFSET('Шаг 1 - коммерч. инфр.'!H47,60*$B26-1*$B25,0)>0),1,0) -> 0 | H26: =IF(OR(OFFSET('Шаг 1 - коммерч. инфр.'!I27,60*$B26-1*$B25,0)>0,OFFSET('Шаг 1 - коммерч. инфр.'!I29,60*$B26-1*$B25,0)>0,OFFSET('Шаг 1 - коммерч. инфр.'!I29,60*$B26-1*$B25,0)>0,OFFSET('Шаг 1 - коммерч. инфр.'!I47,60*$B26-1*$B25,0)>0),1,0) -> 0 | I26: =IF(OR(OFFSET('Шаг 1 - коммерч. инфр.'!J27,60*$B26-1*$B25,0)>0,OFFSET('Шаг 1 - коммерч. инфр.'!J29,60*$B26-1*$B25,0)>0,OFFSET('Шаг 1 - коммерч. инфр.'!J29,60*$B26-1*$B25,0)>0,OFFSET('Шаг 1 - коммерч. инфр.'!J47,60*$B26-1*$B25,0)>0),1,0) -> 0 | J26: =IF(OR(OFFSET('Шаг 1 - коммерч. инфр.'!K27,60*$B26-1*$B25,0)>0,OFFSET('Шаг 1 - коммерч. инфр.'!K29,60*$B26-1*$B25,0)>0,OFFSET('Шаг 1 - коммерч. инфр.'!K29,60*$B26-1*$B25,0)>0,OFFSET('Шаг 1 - коммерч. инфр.'!K47,60*$B26-1*$B25,0)>0),1,0) -> 0 | K26: =IF(OR(OFFSET('Шаг 1 - коммерч. инфр.'!L27,60*$B26-1*$B25,0)>0,OFFSET('Шаг 1 - коммерч. инфр.'!L29,60*$B26-1*$B25,0)>0,OFFSET('Шаг 1 - коммерч. инфр.'!L29,60*$B26-1*$B25,0)>0,OFFSET('Шаг 1 - коммерч. инфр.'!L47,60*$B26-1*$B25,0)>0),1,0) -> 0 | L26: =IF(OR(OFFSET('Шаг 1 - коммерч. инфр.'!M27,60*$B26-1*$B25,0)>0,OFFSET('Шаг 1 - коммерч. инфр.'!M29,60*$B26-1*$B25,0)>0,OFFSET('Шаг 1 - коммерч. инфр.'!M29,60*$B26-1*$B25,0)>0,OFFSET('Шаг 1 - коммерч. инфр.'!M47,60*$B26-1*$B25,0)>0),1,0) -> 0 | M26: =IF(OR(OFFSET('Шаг 1 - коммерч. инфр.'!N27,60*$B26-1*$B25,0)>0,OFFSET('Шаг 1 - коммерч. инфр.'!N29,60*$B26-1*$B25,0)>0,OFFSET('Шаг 1 - коммерч. инфр.'!N29,60*$B26-1*$B25,0)>0,OFFSET('Шаг 1 - коммерч. инфр.'!N47,60*$B26-1*$B25,0)>0),1,0) -> 0 | N26: =IF(OR(OFFSET('Шаг 1 - коммерч. инфр.'!O27,60*$B26-1*$B25,0)>0,OFFSET('Шаг 1 - коммерч. инфр.'!O29,60*$B26-1*$B25,0)>0,OFFSET('Шаг 1 - коммерч. инфр.'!O29,60*$B26-1*$B25,0)>0,OFFSET('Шаг 1 - коммерч. инфр.'!O47,60*$B26-1*$B25,0)>0),1,0) -> 0 | O26: =IF(OR(OFFSET('Шаг 1 - коммерч. инфр.'!P27,60*$B26-1*$B25,0)>0,OFFSET('Шаг 1 - коммерч. инфр.'!P29,60*$B26-1*$B25,0)>0,OFFSET('Шаг 1 - коммерч. инфр.'!P29,60*$B26-1*$B25,0)>0,OFFSET('Шаг 1 - коммерч. инфр.'!P47,60*$B26-1*$B25,0)>0),1,0) -> 0 | P26: =IF(OR(OFFSET('Шаг 1 - коммерч. инфр.'!Q27,60*$B26-1*$B25,0)>0,OFFSET('Шаг 1 - коммерч. инфр.'!Q29,60*$B26-1*$B25,0)>0,OFFSET('Шаг 1 - коммерч. инфр.'!Q29,60*$B26-1*$B25,0)>0,OFFSET('Шаг 1 - коммерч. инфр.'!Q47,60*$B26-1*$B25,0)>0),1,0) -> 0 | Q26: =IF(OR(OFFSET('Шаг 1 - коммерч. инфр.'!R27,60*$B26-1*$B25,0)>0,OFFSET('Шаг 1 - коммерч. инфр.'!R29,60*$B26-1*$B25,0)>0,OFFSET('Шаг 1 - коммерч. инфр.'!R29,60*$B26-1*$B25,0)>0,OFFSET('Шаг 1 - коммерч. инфр.'!R47,60*$B26-1*$B25,0)>0),1,0) -> 0 | R26: =IF(OR(OFFSET('Шаг 1 - коммерч. инфр.'!S27,60*$B26-1*$B25,0)>0,OFFSET('Шаг 1 - коммерч. инфр.'!S29,60*$B26-1*$B25,0)>0,OFFSET('Шаг 1 - коммерч. инфр.'!S29,60*$B26-1*$B25,0)>0,OFFSET('Шаг 1 - коммерч. инфр.'!S47,60*$B26-1*$B25,0)>0),1,0) -> 0 | S26: =IF(OR(OFFSET('Шаг 1 - коммерч. инфр.'!T27,60*$B26-1*$B25,0)>0,OFFSET('Шаг 1 - коммерч. инфр.'!T29,60*$B26-1*$B25,0)>0,OFFSET('Шаг 1 - коммерч. инфр.'!T29,60*$B26-1*$B25,0)>0,OFFSET('Шаг 1 - коммерч. инфр.'!T47,60*$B26-1*$B25,0)>0),1,0) -> 0 | T26: =IF(OR(OFFSET('Шаг 1 - коммерч. инфр.'!U27,60*$B26-1*$B25,0)>0,OFFSET('Шаг 1 - коммерч. инфр.'!U29,60*$B26-1*$B25,0)>0,OFFSET('Шаг 1 - коммерч. инфр.'!U29,60*$B26-1*$B25,0)>0,OFFSET('Шаг 1 - коммерч. инфр.'!U47,60*$B26-1*$B25,0)>0),1,0) -> 0 | U26: =IF(OR(OFFSET('Шаг 1 - коммерч. инфр.'!V27,60*$B26-1*$B25,0)>0,OFFSET('Шаг 1 - коммерч. инфр.'!V29,60*$B26-1*$B25,0)>0,OFFSET('Шаг 1 - коммерч. инфр.'!V29,60*$B26-1*$B25,0)>0,OFFSET('Шаг 1 - коммерч. инфр.'!V47,60*$B26-1*$B25,0)>0),1,0) -> 0 | V26: =IF(OR(OFFSET('Шаг 1 - коммерч. инфр.'!W27,60*$B26-1*$B25,0)>0,OFFSET('Шаг 1 - коммерч. инфр.'!W29,60*$B26-1*$B25,0)>0,OFFSET('Шаг 1 - коммерч. инфр.'!W29,60*$B26-1*$B25,0)>0,OFFSET('Шаг 1 - коммерч. инфр.'!W47,60*$B26-1*$B25,0)>0),1,0) -> 0 | W26: =IF(OR(OFFSET('Шаг 1 - коммерч. инфр.'!X27,60*$B26-1*$B25,0)>0,OFFSET('Шаг 1 - коммерч. инфр.'!X29,60*$B26-1*$B25,0)>0,OFFSET('Шаг 1 - коммерч. инфр.'!X29,60*$B26-1*$B25,0)>0,OFFSET('Шаг 1 - коммерч. инфр.'!X47,60*$B26-1*$B25,0)>0),1,0) -> 0 | X26: =IF(OR(OFFSET('Шаг 1 - коммерч. инфр.'!Y27,60*$B26-1*$B25,0)>0,OFFSET('Шаг 1 - коммерч. инфр.'!Y29,60*$B26-1*$B25,0)>0,OFFSET('Шаг 1 - коммерч. инфр.'!Y29,60*$B26-1*$B25,0)>0,OFFSET('Шаг 1 - коммерч. инфр.'!Y47,60*$B26-1*$B25,0)>0),1,0) -> 0 | Y26: =IF(OR(OFFSET('Шаг 1 - коммерч. инфр.'!Z27,60*$B26-1*$B25,0)>0,OFFSET('Шаг 1 - коммерч. инфр.'!Z29,60*$B26-1*$B25,0)>0,OFFSET('Шаг 1 - коммерч. инфр.'!Z29,60*$B26-1*$B25,0)>0,OFFSET('Шаг 1 - коммерч. инфр.'!Z47,60*$B26-1*$B25,0)>0),1,0) -> 0 | Z26: =IF(OR(OFFSET('Шаг 1 - коммерч. инфр.'!AA27,60*$B26-1*$B25,0)>0,OFFSET('Шаг 1 - коммерч. инфр.'!AA29,60*$B26-1*$B25,0)>0,OFFSET('Шаг 1 - коммерч. инфр.'!AA29,60*$B26-1*$B25,0)>0,OFFSET('Шаг 1 - коммерч. инфр.'!AA47,60*$B26-1*$B25,0)>0),1,0) -> 0
A27: =IF(B27>'Шаг 0 - Мастер-лист'!$E$9,"x","") ->  | B27: 20 | C27: 21 | D27: =IF(OFFSET('Шаг 1 - коммерч. инфр.'!B25,60*B27-1*B26,0)=0,"",OFFSET('Шаг 1 - коммерч. инфр.'!B25,60*B27-1*B26,0)) ->  | E27: =IF(OR(OFFSET('Шаг 1 - коммерч. инфр.'!F28,60*$B27-1*$B26,0)>0,OFFSET('Шаг 1 - коммерч. инфр.'!F30,60*$B27-1*$B26,0)>0,OFFSET('Шаг 1 - коммерч. инфр.'!F30,60*$B27-1*$B26,0)>0,OFFSET('Шаг 1 - коммерч. инфр.'!F48,60*$B27-1*$B26,0)>0),1,0) -> 0 | F27: =IF(OR(OFFSET('Шаг 1 - коммерч. инфр.'!G28,60*$B27-1*$B26,0)>0,OFFSET('Шаг 1 - коммерч. инфр.'!G30,60*$B27-1*$B26,0)>0,OFFSET('Шаг 1 - коммерч. инфр.'!G30,60*$B27-1*$B26,0)>0,OFFSET('Шаг 1 - коммерч. инфр.'!G48,60*$B27-1*$B26,0)>0),1,0) -> 0 | G27: =IF(OR(OFFSET('Шаг 1 - коммерч. инфр.'!H28,60*$B27-1*$B26,0)>0,OFFSET('Шаг 1 - коммерч. инфр.'!H30,60*$B27-1*$B26,0)>0,OFFSET('Шаг 1 - коммерч. инфр.'!H30,60*$B27-1*$B26,0)>0,OFFSET('Шаг 1 - коммерч. инфр.'!H48,60*$B27-1*$B26,0)>0),1,0) -> 0 | H27: =IF(OR(OFFSET('Шаг 1 - коммерч. инфр.'!I28,60*$B27-1*$B26,0)>0,OFFSET('Шаг 1 - коммерч. инфр.'!I30,60*$B27-1*$B26,0)>0,OFFSET('Шаг 1 - коммерч. инфр.'!I30,60*$B27-1*$B26,0)>0,OFFSET('Шаг 1 - коммерч. инфр.'!I48,60*$B27-1*$B26,0)>0),1,0) -> 0 | I27: =IF(OR(OFFSET('Шаг 1 - коммерч. инфр.'!J28,60*$B27-1*$B26,0)>0,OFFSET('Шаг 1 - коммерч. инфр.'!J30,60*$B27-1*$B26,0)>0,OFFSET('Шаг 1 - коммерч. инфр.'!J30,60*$B27-1*$B26,0)>0,OFFSET('Шаг 1 - коммерч. инфр.'!J48,60*$B27-1*$B26,0)>0),1,0) -> 0 | J27: =IF(OR(OFFSET('Шаг 1 - коммерч. инфр.'!K28,60*$B27-1*$B26,0)>0,OFFSET('Шаг 1 - коммерч. инфр.'!K30,60*$B27-1*$B26,0)>0,OFFSET('Шаг 1 - коммерч. инфр.'!K30,60*$B27-1*$B26,0)>0,OFFSET('Шаг 1 - коммерч. инфр.'!K48,60*$B27-1*$B26,0)>0),1,0) -> 0 | K27: =IF(OR(OFFSET('Шаг 1 - коммерч. инфр.'!L28,60*$B27-1*$B26,0)>0,OFFSET('Шаг 1 - коммерч. инфр.'!L30,60*$B27-1*$B26,0)>0,OFFSET('Шаг 1 - коммерч. инфр.'!L30,60*$B27-1*$B26,0)>0,OFFSET('Шаг 1 - коммерч. инфр.'!L48,60*$B27-1*$B26,0)>0),1,0) -> 0 | L27: =IF(OR(OFFSET('Шаг 1 - коммерч. инфр.'!M28,60*$B27-1*$B26,0)>0,OFFSET('Шаг 1 - коммерч. инфр.'!M30,60*$B27-1*$B26,0)>0,OFFSET('Шаг 1 - коммерч. инфр.'!M30,60*$B27-1*$B26,0)>0,OFFSET('Шаг 1 - коммерч. инфр.'!M48,60*$B27-1*$B26,0)>0),1,0) -> 0 | M27: =IF(OR(OFFSET('Шаг 1 - коммерч. инфр.'!N28,60*$B27-1*$B26,0)>0,OFFSET('Шаг 1 - коммерч. инфр.'!N30,60*$B27-1*$B26,0)>0,OFFSET('Шаг 1 - коммерч. инфр.'!N30,60*$B27-1*$B26,0)>0,OFFSET('Шаг 1 - коммерч. инфр.'!N48,60*$B27-1*$B26,0)>0),1,0) -> 0 | N27: =IF(OR(OFFSET('Шаг 1 - коммерч. инфр.'!O28,60*$B27-1*$B26,0)>0,OFFSET('Шаг 1 - коммерч. инфр.'!O30,60*$B27-1*$B26,0)>0,OFFSET('Шаг 1 - коммерч. инфр.'!O30,60*$B27-1*$B26,0)>0,OFFSET('Шаг 1 - коммерч. инфр.'!O48,60*$B27-1*$B26,0)>0),1,0) -> 0 | O27: =IF(OR(OFFSET('Шаг 1 - коммерч. инфр.'!P28,60*$B27-1*$B26,0)>0,OFFSET('Шаг 1 - коммерч. инфр.'!P30,60*$B27-1*$B26,0)>0,OFFSET('Шаг 1 - коммерч. инфр.'!P30,60*$B27-1*$B26,0)>0,OFFSET('Шаг 1 - коммерч. инфр.'!P48,60*$B27-1*$B26,0)>0),1,0) -> 0 | P27: =IF(OR(OFFSET('Шаг 1 - коммерч. инфр.'!Q28,60*$B27-1*$B26,0)>0,OFFSET('Шаг 1 - коммерч. инфр.'!Q30,60*$B27-1*$B26,0)>0,OFFSET('Шаг 1 - коммерч. инфр.'!Q30,60*$B27-1*$B26,0)>0,OFFSET('Шаг 1 - коммерч. инфр.'!Q48,60*$B27-1*$B26,0)>0),1,0) -> 0 | Q27: =IF(OR(OFFSET('Шаг 1 - коммерч. инфр.'!R28,60*$B27-1*$B26,0)>0,OFFSET('Шаг 1 - коммерч. инфр.'!R30,60*$B27-1*$B26,0)>0,OFFSET('Шаг 1 - коммерч. инфр.'!R30,60*$B27-1*$B26,0)>0,OFFSET('Шаг 1 - коммерч. инфр.'!R48,60*$B27-1*$B26,0)>0),1,0) -> 0 | R27: =IF(OR(OFFSET('Шаг 1 - коммерч. инфр.'!S28,60*$B27-1*$B26,0)>0,OFFSET('Шаг 1 - коммерч. инфр.'!S30,60*$B27-1*$B26,0)>0,OFFSET('Шаг 1 - коммерч. инфр.'!S30,60*$B27-1*$B26,0)>0,OFFSET('Шаг 1 - коммерч. инфр.'!S48,60*$B27-1*$B26,0)>0),1,0) -> 0 | S27: =IF(OR(OFFSET('Шаг 1 - коммерч. инфр.'!T28,60*$B27-1*$B26,0)>0,OFFSET('Шаг 1 - коммерч. инфр.'!T30,60*$B27-1*$B26,0)>0,OFFSET('Шаг 1 - коммерч. инфр.'!T30,60*$B27-1*$B26,0)>0,OFFSET('Шаг 1 - коммерч. инфр.'!T48,60*$B27-1*$B26,0)>0),1,0) -> 0 | T27: =IF(OR(OFFSET('Шаг 1 - коммерч. инфр.'!U28,60*$B27-1*$B26,0)>0,OFFSET('Шаг 1 - коммерч. инфр.'!U30,60*$B27-1*$B26,0)>0,OFFSET('Шаг 1 - коммерч. инфр.'!U30,60*$B27-1*$B26,0)>0,OFFSET('Шаг 1 - коммерч. инфр.'!U48,60*$B27-1*$B26,0)>0),1,0) -> 0 | U27: =IF(OR(OFFSET('Шаг 1 - коммерч. инфр.'!V28,60*$B27-1*$B26,0)>0,OFFSET('Шаг 1 - коммерч. инфр.'!V30,60*$B27-1*$B26,0)>0,OFFSET('Шаг 1 - коммерч. инфр.'!V30,60*$B27-1*$B26,0)>0,OFFSET('Шаг 1 - коммерч. инфр.'!V48,60*$B27-1*$B26,0)>0),1,0) -> 0 | V27: =IF(OR(OFFSET('Шаг 1 - коммерч. инфр.'!W28,60*$B27-1*$B26,0)>0,OFFSET('Шаг 1 - коммерч. инфр.'!W30,60*$B27-1*$B26,0)>0,OFFSET('Шаг 1 - коммерч. инфр.'!W30,60*$B27-1*$B26,0)>0,OFFSET('Шаг 1 - коммерч. инфр.'!W48,60*$B27-1*$B26,0)>0),1,0) -> 0 | W27: =IF(OR(OFFSET('Шаг 1 - коммерч. инфр.'!X28,60*$B27-1*$B26,0)>0,OFFSET('Шаг 1 - коммерч. инфр.'!X30,60*$B27-1*$B26,0)>0,OFFSET('Шаг 1 - коммерч. инфр.'!X30,60*$B27-1*$B26,0)>0,OFFSET('Шаг 1 - коммерч. инфр.'!X48,60*$B27-1*$B26,0)>0),1,0) -> 0 | X27: =IF(OR(OFFSET('Шаг 1 - коммерч. инфр.'!Y28,60*$B27-1*$B26,0)>0,OFFSET('Шаг 1 - коммерч. инфр.'!Y30,60*$B27-1*$B26,0)>0,OFFSET('Шаг 1 - коммерч. инфр.'!Y30,60*$B27-1*$B26,0)>0,OFFSET('Шаг 1 - коммерч. инфр.'!Y48,60*$B27-1*$B26,0)>0),1,0) -> 0 | Y27: =IF(OR(OFFSET('Шаг 1 - коммерч. инфр.'!Z28,60*$B27-1*$B26,0)>0,OFFSET('Шаг 1 - коммерч. инфр.'!Z30,60*$B27-1*$B26,0)>0,OFFSET('Шаг 1 - коммерч. инфр.'!Z30,60*$B27-1*$B26,0)>0,OFFSET('Шаг 1 - коммерч. инфр.'!Z48,60*$B27-1*$B26,0)>0),1,0) -> 0 | Z27: =IF(OR(OFFSET('Шаг 1 - коммерч. инфр.'!AA28,60*$B27-1*$B26,0)>0,OFFSET('Шаг 1 - коммерч. инфр.'!AA30,60*$B27-1*$B26,0)>0,OFFSET('Шаг 1 - коммерч. инфр.'!AA30,60*$B27-1*$B26,0)>0,OFFSET('Шаг 1 - коммерч. инфр.'!AA48,60*$B27-1*$B26,0)>0),1,0) -> 0
A28: =IF(B28>'Шаг 0 - Мастер-лист'!$E$9,"x","") ->  | B28: 21 | C28: 22 | D28: =IF(OFFSET('Шаг 1 - коммерч. инфр.'!B26,60*B28-1*B27,0)=0,"",OFFSET('Шаг 1 - коммерч. инфр.'!B26,60*B28-1*B27,0)) ->  | E28: =IF(OR(OFFSET('Шаг 1 - коммерч. инфр.'!F29,60*$B28-1*$B27,0)>0,OFFSET('Шаг 1 - коммерч. инфр.'!F31,60*$B28-1*$B27,0)>0,OFFSET('Шаг 1 - коммерч. инфр.'!F31,60*$B28-1*$B27,0)>0,OFFSET('Шаг 1 - коммерч. инфр.'!F49,60*$B28-1*$B27,0)>0),1,0) -> 0 | F28: =IF(OR(OFFSET('Шаг 1 - коммерч. инфр.'!G29,60*$B28-1*$B27,0)>0,OFFSET('Шаг 1 - коммерч. инфр.'!G31,60*$B28-1*$B27,0)>0,OFFSET('Шаг 1 - коммерч. инфр.'!G31,60*$B28-1*$B27,0)>0,OFFSET('Шаг 1 - коммерч. инфр.'!G49,60*$B28-1*$B27,0)>0),1,0) -> 0 | G28: =IF(OR(OFFSET('Шаг 1 - коммерч. инфр.'!H29,60*$B28-1*$B27,0)>0,OFFSET('Шаг 1 - коммерч. инфр.'!H31,60*$B28-1*$B27,0)>0,OFFSET('Шаг 1 - коммерч. инфр.'!H31,60*$B28-1*$B27,0)>0,OFFSET('Шаг 1 - коммерч. инфр.'!H49,60*$B28-1*$B27,0)>0),1,0) -> 0 | H28: =IF(OR(OFFSET('Шаг 1 - коммерч. инфр.'!I29,60*$B28-1*$B27,0)>0,OFFSET('Шаг 1 - коммерч. инфр.'!I31,60*$B28-1*$B27,0)>0,OFFSET('Шаг 1 - коммерч. инфр.'!I31,60*$B28-1*$B27,0)>0,OFFSET('Шаг 1 - коммерч. инфр.'!I49,60*$B28-1*$B27,0)>0),1,0) -> 0 | I28: =IF(OR(OFFSET('Шаг 1 - коммерч. инфр.'!J29,60*$B28-1*$B27,0)>0,OFFSET('Шаг 1 - коммерч. инфр.'!J31,60*$B28-1*$B27,0)>0,OFFSET('Шаг 1 - коммерч. инфр.'!J31,60*$B28-1*$B27,0)>0,OFFSET('Шаг 1 - коммерч. инфр.'!J49,60*$B28-1*$B27,0)>0),1,0) -> 0 | J28: =IF(OR(OFFSET('Шаг 1 - коммерч. инфр.'!K29,60*$B28-1*$B27,0)>0,OFFSET('Шаг 1 - коммерч. инфр.'!K31,60*$B28-1*$B27,0)>0,OFFSET('Шаг 1 - коммерч. инфр.'!K31,60*$B28-1*$B27,0)>0,OFFSET('Шаг 1 - коммерч. инфр.'!K49,60*$B28-1*$B27,0)>0),1,0) -> 0 | K28: =IF(OR(OFFSET('Шаг 1 - коммерч. инфр.'!L29,60*$B28-1*$B27,0)>0,OFFSET('Шаг 1 - коммерч. инфр.'!L31,60*$B28-1*$B27,0)>0,OFFSET('Шаг 1 - коммерч. инфр.'!L31,60*$B28-1*$B27,0)>0,OFFSET('Шаг 1 - коммерч. инфр.'!L49,60*$B28-1*$B27,0)>0),1,0) -> 0 | L28: =IF(OR(OFFSET('Шаг 1 - коммерч. инфр.'!M29,60*$B28-1*$B27,0)>0,OFFSET('Шаг 1 - коммерч. инфр.'!M31,60*$B28-1*$B27,0)>0,OFFSET('Шаг 1 - коммерч. инфр.'!M31,60*$B28-1*$B27,0)>0,OFFSET('Шаг 1 - коммерч. инфр.'!M49,60*$B28-1*$B27,0)>0),1,0) -> 0 | M28: =IF(OR(OFFSET('Шаг 1 - коммерч. инфр.'!N29,60*$B28-1*$B27,0)>0,OFFSET('Шаг 1 - коммерч. инфр.'!N31,60*$B28-1*$B27,0)>0,OFFSET('Шаг 1 - коммерч. инфр.'!N31,60*$B28-1*$B27,0)>0,OFFSET('Шаг 1 - коммерч. инфр.'!N49,60*$B28-1*$B27,0)>0),1,0) -> 0 | N28: =IF(OR(OFFSET('Шаг 1 - коммерч. инфр.'!O29,60*$B28-1*$B27,0)>0,OFFSET('Шаг 1 - коммерч. инфр.'!O31,60*$B28-1*$B27,0)>0,OFFSET('Шаг 1 - коммерч. инфр.'!O31,60*$B28-1*$B27,0)>0,OFFSET('Шаг 1 - коммерч. инфр.'!O49,60*$B28-1*$B27,0)>0),1,0) -> 0 | O28: =IF(OR(OFFSET('Шаг 1 - коммерч. инфр.'!P29,60*$B28-1*$B27,0)>0,OFFSET('Шаг 1 - коммерч. инфр.'!P31,60*$B28-1*$B27,0)>0,OFFSET('Шаг 1 - коммерч. инфр.'!P31,60*$B28-1*$B27,0)>0,OFFSET('Шаг 1 - коммерч. инфр.'!P49,60*$B28-1*$B27,0)>0),1,0) -> 0 | P28: =IF(OR(OFFSET('Шаг 1 - коммерч. инфр.'!Q29,60*$B28-1*$B27,0)>0,OFFSET('Шаг 1 - коммерч. инфр.'!Q31,60*$B28-1*$B27,0)>0,OFFSET('Шаг 1 - коммерч. инфр.'!Q31,60*$B28-1*$B27,0)>0,OFFSET('Шаг 1 - коммерч. инфр.'!Q49,60*$B28-1*$B27,0)>0),1,0) -> 0 | Q28: =IF(OR(OFFSET('Шаг 1 - коммерч. инфр.'!R29,60*$B28-1*$B27,0)>0,OFFSET('Шаг 1 - коммерч. инфр.'!R31,60*$B28-1*$B27,0)>0,OFFSET('Шаг 1 - коммерч. инфр.'!R31,60*$B28-1*$B27,0)>0,OFFSET('Шаг 1 - коммерч. инфр.'!R49,60*$B28-1*$B27,0)>0),1,0) -> 0 | R28: =IF(OR(OFFSET('Шаг 1 - коммерч. инфр.'!S29,60*$B28-1*$B27,0)>0,OFFSET('Шаг 1 - коммерч. инфр.'!S31,60*$B28-1*$B27,0)>0,OFFSET('Шаг 1 - коммерч. инфр.'!S31,60*$B28-1*$B27,0)>0,OFFSET('Шаг 1 - коммерч. инфр.'!S49,60*$B28-1*$B27,0)>0),1,0) -> 0 | S28: =IF(OR(OFFSET('Шаг 1 - коммерч. инфр.'!T29,60*$B28-1*$B27,0)>0,OFFSET('Шаг 1 - коммерч. инфр.'!T31,60*$B28-1*$B27,0)>0,OFFSET('Шаг 1 - коммерч. инфр.'!T31,60*$B28-1*$B27,0)>0,OFFSET('Шаг 1 - коммерч. инфр.'!T49,60*$B28-1*$B27,0)>0),1,0) -> 0 | T28: =IF(OR(OFFSET('Шаг 1 - коммерч. инфр.'!U29,60*$B28-1*$B27,0)>0,OFFSET('Шаг 1 - коммерч. инфр.'!U31,60*$B28-1*$B27,0)>0,OFFSET('Шаг 1 - коммерч. инфр.'!U31,60*$B28-1*$B27,0)>0,OFFSET('Шаг 1 - коммерч. инфр.'!U49,60*$B28-1*$B27,0)>0),1,0) -> 0 | U28: =IF(OR(OFFSET('Шаг 1 - коммерч. инфр.'!V29,60*$B28-1*$B27,0)>0,OFFSET('Шаг 1 - коммерч. инфр.'!V31,60*$B28-1*$B27,0)>0,OFFSET('Шаг 1 - коммерч. инфр.'!V31,60*$B28-1*$B27,0)>0,OFFSET('Шаг 1 - коммерч. инфр.'!V49,60*$B28-1*$B27,0)>0),1,0) -> 0 | V28: =IF(OR(OFFSET('Шаг 1 - коммерч. инфр.'!W29,60*$B28-1*$B27,0)>0,OFFSET('Шаг 1 - коммерч. инфр.'!W31,60*$B28-1*$B27,0)>0,OFFSET('Шаг 1 - коммерч. инфр.'!W31,60*$B28-1*$B27,0)>0,OFFSET('Шаг 1 - коммерч. инфр.'!W49,60*$B28-1*$B27,0)>0),1,0) -> 0 | W28: =IF(OR(OFFSET('Шаг 1 - коммерч. инфр.'!X29,60*$B28-1*$B27,0)>0,OFFSET('Шаг 1 - коммерч. инфр.'!X31,60*$B28-1*$B27,0)>0,OFFSET('Шаг 1 - коммерч. инфр.'!X31,60*$B28-1*$B27,0)>0,OFFSET('Шаг 1 - коммерч. инфр.'!X49,60*$B28-1*$B27,0)>0),1,0) -> 0 | X28: =IF(OR(OFFSET('Шаг 1 - коммерч. инфр.'!Y29,60*$B28-1*$B27,0)>0,OFFSET('Шаг 1 - коммерч. инфр.'!Y31,60*$B28-1*$B27,0)>0,OFFSET('Шаг 1 - коммерч. инфр.'!Y31,60*$B28-1*$B27,0)>0,OFFSET('Шаг 1 - коммерч. инфр.'!Y49,60*$B28-1*$B27,0)>0),1,0) -> 0 | Y28: =IF(OR(OFFSET('Шаг 1 - коммерч. инфр.'!Z29,60*$B28-1*$B27,0)>0,OFFSET('Шаг 1 - коммерч. инфр.'!Z31,60*$B28-1*$B27,0)>0,OFFSET('Шаг 1 - коммерч. инфр.'!Z31,60*$B28-1*$B27,0)>0,OFFSET('Шаг 1 - коммерч. инфр.'!Z49,60*$B28-1*$B27,0)>0),1,0) -> 0 | Z28: =IF(OR(OFFSET('Шаг 1 - коммерч. инфр.'!AA29,60*$B28-1*$B27,0)>0,OFFSET('Шаг 1 - коммерч. инфр.'!AA31,60*$B28-1*$B27,0)>0,OFFSET('Шаг 1 - коммерч. инфр.'!AA31,60*$B28-1*$B27,0)>0,OFFSET('Шаг 1 - коммерч. инфр.'!AA49,60*$B28-1*$B27,0)>0),1,0) -> 0
A29: =IF(B29>'Шаг 0 - Мастер-лист'!$E$9,"x","") ->  | B29: 22 | C29: 23 | D29: =IF(OFFSET('Шаг 1 - коммерч. инфр.'!B27,60*B29-1*B28,0)=0,"",OFFSET('Шаг 1 - коммерч. инфр.'!B27,60*B29-1*B28,0)) ->  | E29: =IF(OR(OFFSET('Шаг 1 - коммерч. инфр.'!F30,60*$B29-1*$B28,0)>0,OFFSET('Шаг 1 - коммерч. инфр.'!F32,60*$B29-1*$B28,0)>0,OFFSET('Шаг 1 - коммерч. инфр.'!F32,60*$B29-1*$B28,0)>0,OFFSET('Шаг 1 - коммерч. инфр.'!F50,60*$B29-1*$B28,0)>0),1,0) -> 0 | F29: =IF(OR(OFFSET('Шаг 1 - коммерч. инфр.'!G30,60*$B29-1*$B28,0)>0,OFFSET('Шаг 1 - коммерч. инфр.'!G32,60*$B29-1*$B28,0)>0,OFFSET('Шаг 1 - коммерч. инфр.'!G32,60*$B29-1*$B28,0)>0,OFFSET('Шаг 1 - коммерч. инфр.'!G50,60*$B29-1*$B28,0)>0),1,0) -> 0 | G29: =IF(OR(OFFSET('Шаг 1 - коммерч. инфр.'!H30,60*$B29-1*$B28,0)>0,OFFSET('Шаг 1 - коммерч. инфр.'!H32,60*$B29-1*$B28,0)>0,OFFSET('Шаг 1 - коммерч. инфр.'!H32,60*$B29-1*$B28,0)>0,OFFSET('Шаг 1 - коммерч. инфр.'!H50,60*$B29-1*$B28,0)>0),1,0) -> 0 | H29: =IF(OR(OFFSET('Шаг 1 - коммерч. инфр.'!I30,60*$B29-1*$B28,0)>0,OFFSET('Шаг 1 - коммерч. инфр.'!I32,60*$B29-1*$B28,0)>0,OFFSET('Шаг 1 - коммерч. инфр.'!I32,60*$B29-1*$B28,0)>0,OFFSET('Шаг 1 - коммерч. инфр.'!I50,60*$B29-1*$B28,0)>0),1,0) -> 0 | I29: =IF(OR(OFFSET('Шаг 1 - коммерч. инфр.'!J30,60*$B29-1*$B28,0)>0,OFFSET('Шаг 1 - коммерч. инфр.'!J32,60*$B29-1*$B28,0)>0,OFFSET('Шаг 1 - коммерч. инфр.'!J32,60*$B29-1*$B28,0)>0,OFFSET('Шаг 1 - коммерч. инфр.'!J50,60*$B29-1*$B28,0)>0),1,0) -> 0 | J29: =IF(OR(OFFSET('Шаг 1 - коммерч. инфр.'!K30,60*$B29-1*$B28,0)>0,OFFSET('Шаг 1 - коммерч. инфр.'!K32,60*$B29-1*$B28,0)>0,OFFSET('Шаг 1 - коммерч. инфр.'!K32,60*$B29-1*$B28,0)>0,OFFSET('Шаг 1 - коммерч. инфр.'!K50,60*$B29-1*$B28,0)>0),1,0) -> 0 | K29: =IF(OR(OFFSET('Шаг 1 - коммерч. инфр.'!L30,60*$B29-1*$B28,0)>0,OFFSET('Шаг 1 - коммерч. инфр.'!L32,60*$B29-1*$B28,0)>0,OFFSET('Шаг 1 - коммерч. инфр.'!L32,60*$B29-1*$B28,0)>0,OFFSET('Шаг 1 - коммерч. инфр.'!L50,60*$B29-1*$B28,0)>0),1,0) -> 0 | L29: =IF(OR(OFFSET('Шаг 1 - коммерч. инфр.'!M30,60*$B29-1*$B28,0)>0,OFFSET('Шаг 1 - коммерч. инфр.'!M32,60*$B29-1*$B28,0)>0,OFFSET('Шаг 1 - коммерч. инфр.'!M32,60*$B29-1*$B28,0)>0,OFFSET('Шаг 1 - коммерч. инфр.'!M50,60*$B29-1*$B28,0)>0),1,0) -> 0 | M29: =IF(OR(OFFSET('Шаг 1 - коммерч. инфр.'!N30,60*$B29-1*$B28,0)>0,OFFSET('Шаг 1 - коммерч. инфр.'!N32,60*$B29-1*$B28,0)>0,OFFSET('Шаг 1 - коммерч. инфр.'!N32,60*$B29-1*$B28,0)>0,OFFSET('Шаг 1 - коммерч. инфр.'!N50,60*$B29-1*$B28,0)>0),1,0) -> 0 | N29: =IF(OR(OFFSET('Шаг 1 - коммерч. инфр.'!O30,60*$B29-1*$B28,0)>0,OFFSET('Шаг 1 - коммерч. инфр.'!O32,60*$B29-1*$B28,0)>0,OFFSET('Шаг 1 - коммерч. инфр.'!O32,60*$B29-1*$B28,0)>0,OFFSET('Шаг 1 - коммерч. инфр.'!O50,60*$B29-1*$B28,0)>0),1,0) -> 0 | O29: =IF(OR(OFFSET('Шаг 1 - коммерч. инфр.'!P30,60*$B29-1*$B28,0)>0,OFFSET('Шаг 1 - коммерч. инфр.'!P32,60*$B29-1*$B28,0)>0,OFFSET('Шаг 1 - коммерч. инфр.'!P32,60*$B29-1*$B28,0)>0,OFFSET('Шаг 1 - коммерч. инфр.'!P50,60*$B29-1*$B28,0)>0),1,0) -> 0 | P29: =IF(OR(OFFSET('Шаг 1 - коммерч. инфр.'!Q30,60*$B29-1*$B28,0)>0,OFFSET('Шаг 1 - коммерч. инфр.'!Q32,60*$B29-1*$B28,0)>0,OFFSET('Шаг 1 - коммерч. инфр.'!Q32,60*$B29-1*$B28,0)>0,OFFSET('Шаг 1 - коммерч. инфр.'!Q50,60*$B29-1*$B28,0)>0),1,0) -> 0 | Q29: =IF(OR(OFFSET('Шаг 1 - коммерч. инфр.'!R30,60*$B29-1*$B28,0)>0,OFFSET('Шаг 1 - коммерч. инфр.'!R32,60*$B29-1*$B28,0)>0,OFFSET('Шаг 1 - коммерч. инфр.'!R32,60*$B29-1*$B28,0)>0,OFFSET('Шаг 1 - коммерч. инфр.'!R50,60*$B29-1*$B28,0)>0),1,0) -> 0 | R29: =IF(OR(OFFSET('Шаг 1 - коммерч. инфр.'!S30,60*$B29-1*$B28,0)>0,OFFSET('Шаг 1 - коммерч. инфр.'!S32,60*$B29-1*$B28,0)>0,OFFSET('Шаг 1 - коммерч. инфр.'!S32,60*$B29-1*$B28,0)>0,OFFSET('Шаг 1 - коммерч. инфр.'!S50,60*$B29-1*$B28,0)>0),1,0) -> 0 | S29: =IF(OR(OFFSET('Шаг 1 - коммерч. инфр.'!T30,60*$B29-1*$B28,0)>0,OFFSET('Шаг 1 - коммерч. инфр.'!T32,60*$B29-1*$B28,0)>0,OFFSET('Шаг 1 - коммерч. инфр.'!T32,60*$B29-1*$B28,0)>0,OFFSET('Шаг 1 - коммерч. инфр.'!T50,60*$B29-1*$B28,0)>0),1,0) -> 0 | T29: =IF(OR(OFFSET('Шаг 1 - коммерч. инфр.'!U30,60*$B29-1*$B28,0)>0,OFFSET('Шаг 1 - коммерч. инфр.'!U32,60*$B29-1*$B28,0)>0,OFFSET('Шаг 1 - коммерч. инфр.'!U32,60*$B29-1*$B28,0)>0,OFFSET('Шаг 1 - коммерч. инфр.'!U50,60*$B29-1*$B28,0)>0),1,0) -> 0 | U29: =IF(OR(OFFSET('Шаг 1 - коммерч. инфр.'!V30,60*$B29-1*$B28,0)>0,OFFSET('Шаг 1 - коммерч. инфр.'!V32,60*$B29-1*$B28,0)>0,OFFSET('Шаг 1 - коммерч. инфр.'!V32,60*$B29-1*$B28,0)>0,OFFSET('Шаг 1 - коммерч. инфр.'!V50,60*$B29-1*$B28,0)>0),1,0) -> 0 | V29: =IF(OR(OFFSET('Шаг 1 - коммерч. инфр.'!W30,60*$B29-1*$B28,0)>0,OFFSET('Шаг 1 - коммерч. инфр.'!W32,60*$B29-1*$B28,0)>0,OFFSET('Шаг 1 - коммерч. инфр.'!W32,60*$B29-1*$B28,0)>0,OFFSET('Шаг 1 - коммерч. инфр.'!W50,60*$B29-1*$B28,0)>0),1,0) -> 0 | W29: =IF(OR(OFFSET('Шаг 1 - коммерч. инфр.'!X30,60*$B29-1*$B28,0)>0,OFFSET('Шаг 1 - коммерч. инфр.'!X32,60*$B29-1*$B28,0)>0,OFFSET('Шаг 1 - коммерч. инфр.'!X32,60*$B29-1*$B28,0)>0,OFFSET('Шаг 1 - коммерч. инфр.'!X50,60*$B29-1*$B28,0)>0),1,0) -> 0 | X29: =IF(OR(OFFSET('Шаг 1 - коммерч. инфр.'!Y30,60*$B29-1*$B28,0)>0,OFFSET('Шаг 1 - коммерч. инфр.'!Y32,60*$B29-1*$B28,0)>0,OFFSET('Шаг 1 - коммерч. инфр.'!Y32,60*$B29-1*$B28,0)>0,OFFSET('Шаг 1 - коммерч. инфр.'!Y50,60*$B29-1*$B28,0)>0),1,0) -> 0 | Y29: =IF(OR(OFFSET('Шаг 1 - коммерч. инфр.'!Z30,60*$B29-1*$B28,0)>0,OFFSET('Шаг 1 - коммерч. инфр.'!Z32,60*$B29-1*$B28,0)>0,OFFSET('Шаг 1 - коммерч. инфр.'!Z32,60*$B29-1*$B28,0)>0,OFFSET('Шаг 1 - коммерч. инфр.'!Z50,60*$B29-1*$B28,0)>0),1,0) -> 0 | Z29: =IF(OR(OFFSET('Шаг 1 - коммерч. инфр.'!AA30,60*$B29-1*$B28,0)>0,OFFSET('Шаг 1 - коммерч. инфр.'!AA32,60*$B29-1*$B28,0)>0,OFFSET('Шаг 1 - коммерч. инфр.'!AA32,60*$B29-1*$B28,0)>0,OFFSET('Шаг 1 - коммерч. инфр.'!AA50,60*$B29-1*$B28,0)>0),1,0) -> 0
A30: =IF(B30>'Шаг 0 - Мастер-лист'!$E$9,"x","") ->  | B30: 23 | C30: 24 | D30: =IF(OFFSET('Шаг 1 - коммерч. инфр.'!B28,60*B30-1*B29,0)=0,"",OFFSET('Шаг 1 - коммерч. инфр.'!B28,60*B30-1*B29,0)) ->  | E30: =IF(OR(OFFSET('Шаг 1 - коммерч. инфр.'!F31,60*$B30-1*$B29,0)>0,OFFSET('Шаг 1 - коммерч. инфр.'!F33,60*$B30-1*$B29,0)>0,OFFSET('Шаг 1 - коммерч. инфр.'!F33,60*$B30-1*$B29,0)>0,OFFSET('Шаг 1 - коммерч. инфр.'!F51,60*$B30-1*$B29,0)>0),1,0) -> 0 | F30: =IF(OR(OFFSET('Шаг 1 - коммерч. инфр.'!G31,60*$B30-1*$B29,0)>0,OFFSET('Шаг 1 - коммерч. инфр.'!G33,60*$B30-1*$B29,0)>0,OFFSET('Шаг 1 - коммерч. инфр.'!G33,60*$B30-1*$B29,0)>0,OFFSET('Шаг 1 - коммерч. инфр.'!G51,60*$B30-1*$B29,0)>0),1,0) -> 0 | G30: =IF(OR(OFFSET('Шаг 1 - коммерч. инфр.'!H31,60*$B30-1*$B29,0)>0,OFFSET('Шаг 1 - коммерч. инфр.'!H33,60*$B30-1*$B29,0)>0,OFFSET('Шаг 1 - коммерч. инфр.'!H33,60*$B30-1*$B29,0)>0,OFFSET('Шаг 1 - коммерч. инфр.'!H51,60*$B30-1*$B29,0)>0),1,0) -> 0 | H30: =IF(OR(OFFSET('Шаг 1 - коммерч. инфр.'!I31,60*$B30-1*$B29,0)>0,OFFSET('Шаг 1 - коммерч. инфр.'!I33,60*$B30-1*$B29,0)>0,OFFSET('Шаг 1 - коммерч. инфр.'!I33,60*$B30-1*$B29,0)>0,OFFSET('Шаг 1 - коммерч. инфр.'!I51,60*$B30-1*$B29,0)>0),1,0) -> 0 | I30: =IF(OR(OFFSET('Шаг 1 - коммерч. инфр.'!J31,60*$B30-1*$B29,0)>0,OFFSET('Шаг 1 - коммерч. инфр.'!J33,60*$B30-1*$B29,0)>0,OFFSET('Шаг 1 - коммерч. инфр.'!J33,60*$B30-1*$B29,0)>0,OFFSET('Шаг 1 - коммерч. инфр.'!J51,60*$B30-1*$B29,0)>0),1,0) -> 0 | J30: =IF(OR(OFFSET('Шаг 1 - коммерч. инфр.'!K31,60*$B30-1*$B29,0)>0,OFFSET('Шаг 1 - коммерч. инфр.'!K33,60*$B30-1*$B29,0)>0,OFFSET('Шаг 1 - коммерч. инфр.'!K33,60*$B30-1*$B29,0)>0,OFFSET('Шаг 1 - коммерч. инфр.'!K51,60*$B30-1*$B29,0)>0),1,0) -> 0 | K30: =IF(OR(OFFSET('Шаг 1 - коммерч. инфр.'!L31,60*$B30-1*$B29,0)>0,OFFSET('Шаг 1 - коммерч. инфр.'!L33,60*$B30-1*$B29,0)>0,OFFSET('Шаг 1 - коммерч. инфр.'!L33,60*$B30-1*$B29,0)>0,OFFSET('Шаг 1 - коммерч. инфр.'!L51,60*$B30-1*$B29,0)>0),1,0) -> 0 | L30: =IF(OR(OFFSET('Шаг 1 - коммерч. инфр.'!M31,60*$B30-1*$B29,0)>0,OFFSET('Шаг 1 - коммерч. инфр.'!M33,60*$B30-1*$B29,0)>0,OFFSET('Шаг 1 - коммерч. инфр.'!M33,60*$B30-1*$B29,0)>0,OFFSET('Шаг 1 - коммерч. инфр.'!M51,60*$B30-1*$B29,0)>0),1,0) -> 0 | M30: =IF(OR(OFFSET('Шаг 1 - коммерч. инфр.'!N31,60*$B30-1*$B29,0)>0,OFFSET('Шаг 1 - коммерч. инфр.'!N33,60*$B30-1*$B29,0)>0,OFFSET('Шаг 1 - коммерч. инфр.'!N33,60*$B30-1*$B29,0)>0,OFFSET('Шаг 1 - коммерч. инфр.'!N51,60*$B30-1*$B29,0)>0),1,0) -> 0 | N30: =IF(OR(OFFSET('Шаг 1 - коммерч. инфр.'!O31,60*$B30-1*$B29,0)>0,OFFSET('Шаг 1 - коммерч. инфр.'!O33,60*$B30-1*$B29,0)>0,OFFSET('Шаг 1 - коммерч. инфр.'!O33,60*$B30-1*$B29,0)>0,OFFSET('Шаг 1 - коммерч. инфр.'!O51,60*$B30-1*$B29,0)>0),1,0) -> 0 | O30: =IF(OR(OFFSET('Шаг 1 - коммерч. инфр.'!P31,60*$B30-1*$B29,0)>0,OFFSET('Шаг 1 - коммерч. инфр.'!P33,60*$B30-1*$B29,0)>0,OFFSET('Шаг 1 - коммерч. инфр.'!P33,60*$B30-1*$B29,0)>0,OFFSET('Шаг 1 - коммерч. инфр.'!P51,60*$B30-1*$B29,0)>0),1,0) -> 0 | P30: =IF(OR(OFFSET('Шаг 1 - коммерч. инфр.'!Q31,60*$B30-1*$B29,0)>0,OFFSET('Шаг 1 - коммерч. инфр.'!Q33,60*$B30-1*$B29,0)>0,OFFSET('Шаг 1 - коммерч. инфр.'!Q33,60*$B30-1*$B29,0)>0,OFFSET('Шаг 1 - коммерч. инфр.'!Q51,60*$B30-1*$B29,0)>0),1,0) -> 0 | Q30: =IF(OR(OFFSET('Шаг 1 - коммерч. инфр.'!R31,60*$B30-1*$B29,0)>0,OFFSET('Шаг 1 - коммерч. инфр.'!R33,60*$B30-1*$B29,0)>0,OFFSET('Шаг 1 - коммерч. инфр.'!R33,60*$B30-1*$B29,0)>0,OFFSET('Шаг 1 - коммерч. инфр.'!R51,60*$B30-1*$B29,0)>0),1,0) -> 0 | R30: =IF(OR(OFFSET('Шаг 1 - коммерч. инфр.'!S31,60*$B30-1*$B29,0)>0,OFFSET('Шаг 1 - коммерч. инфр.'!S33,60*$B30-1*$B29,0)>0,OFFSET('Шаг 1 - коммерч. инфр.'!S33,60*$B30-1*$B29,0)>0,OFFSET('Шаг 1 - коммерч. инфр.'!S51,60*$B30-1*$B29,0)>0),1,0) -> 0 | S30: =IF(OR(OFFSET('Шаг 1 - коммерч. инфр.'!T31,60*$B30-1*$B29,0)>0,OFFSET('Шаг 1 - коммерч. инфр.'!T33,60*$B30-1*$B29,0)>0,OFFSET('Шаг 1 - коммерч. инфр.'!T33,60*$B30-1*$B29,0)>0,OFFSET('Шаг 1 - коммерч. инфр.'!T51,60*$B30-1*$B29,0)>0),1,0) -> 0 | T30: =IF(OR(OFFSET('Шаг 1 - коммерч. инфр.'!U31,60*$B30-1*$B29,0)>0,OFFSET('Шаг 1 - коммерч. инфр.'!U33,60*$B30-1*$B29,0)>0,OFFSET('Шаг 1 - коммерч. инфр.'!U33,60*$B30-1*$B29,0)>0,OFFSET('Шаг 1 - коммерч. инфр.'!U51,60*$B30-1*$B29,0)>0),1,0) -> 0 | U30: =IF(OR(OFFSET('Шаг 1 - коммерч. инфр.'!V31,60*$B30-1*$B29,0)>0,OFFSET('Шаг 1 - коммерч. инфр.'!V33,60*$B30-1*$B29,0)>0,OFFSET('Шаг 1 - коммерч. инфр.'!V33,60*$B30-1*$B29,0)>0,OFFSET('Шаг 1 - коммерч. инфр.'!V51,60*$B30-1*$B29,0)>0),1,0) -> 0 | V30: =IF(OR(OFFSET('Шаг 1 - коммерч. инфр.'!W31,60*$B30-1*$B29,0)>0,OFFSET('Шаг 1 - коммерч. инфр.'!W33,60*$B30-1*$B29,0)>0,OFFSET('Шаг 1 - коммерч. инфр.'!W33,60*$B30-1*$B29,0)>0,OFFSET('Шаг 1 - коммерч. инфр.'!W51,60*$B30-1*$B29,0)>0),1,0) -> 0 | W30: =IF(OR(OFFSET('Шаг 1 - коммерч. инфр.'!X31,60*$B30-1*$B29,0)>0,OFFSET('Шаг 1 - коммерч. инфр.'!X33,60*$B30-1*$B29,0)>0,OFFSET('Шаг 1 - коммерч. инфр.'!X33,60*$B30-1*$B29,0)>0,OFFSET('Шаг 1 - коммерч. инфр.'!X51,60*$B30-1*$B29,0)>0),1,0) -> 0 | X30: =IF(OR(OFFSET('Шаг 1 - коммерч. инфр.'!Y31,60*$B30-1*$B29,0)>0,OFFSET('Шаг 1 - коммерч. инфр.'!Y33,60*$B30-1*$B29,0)>0,OFFSET('Шаг 1 - коммерч. инфр.'!Y33,60*$B30-1*$B29,0)>0,OFFSET('Шаг 1 - коммерч. инфр.'!Y51,60*$B30-1*$B29,0)>0),1,0) -> 0 | Y30: =IF(OR(OFFSET('Шаг 1 - коммерч. инфр.'!Z31,60*$B30-1*$B29,0)>0,OFFSET('Шаг 1 - коммерч. инфр.'!Z33,60*$B30-1*$B29,0)>0,OFFSET('Шаг 1 - коммерч. инфр.'!Z33,60*$B30-1*$B29,0)>0,OFFSET('Шаг 1 - коммерч. инфр.'!Z51,60*$B30-1*$B29,0)>0),1,0) -> 0 | Z30: =IF(OR(OFFSET('Шаг 1 - коммерч. инфр.'!AA31,60*$B30-1*$B29,0)>0,OFFSET('Шаг 1 - коммерч. инфр.'!AA33,60*$B30-1*$B29,0)>0,OFFSET('Шаг 1 - коммерч. инфр.'!AA33,60*$B30-1*$B29,0)>0,OFFSET('Шаг 1 - коммерч. инфр.'!AA51,60*$B30-1*$B29,0)>0),1,0) -> 0
A31: =IF(B31>'Шаг 0 - Мастер-лист'!$E$9,"x","") ->  | B31: 24 | C31: 25 | D31: =IF(OFFSET('Шаг 1 - коммерч. инфр.'!B29,60*B31-1*B30,0)=0,"",OFFSET('Шаг 1 - коммерч. инфр.'!B29,60*B31-1*B30,0)) ->  | E31: =IF(OR(OFFSET('Шаг 1 - коммерч. инфр.'!F32,60*$B31-1*$B30,0)>0,OFFSET('Шаг 1 - коммерч. инфр.'!F34,60*$B31-1*$B30,0)>0,OFFSET('Шаг 1 - коммерч. инфр.'!F34,60*$B31-1*$B30,0)>0,OFFSET('Шаг 1 - коммерч. инфр.'!F52,60*$B31-1*$B30,0)>0),1,0) -> 0 | F31: =IF(OR(OFFSET('Шаг 1 - коммерч. инфр.'!G32,60*$B31-1*$B30,0)>0,OFFSET('Шаг 1 - коммерч. инфр.'!G34,60*$B31-1*$B30,0)>0,OFFSET('Шаг 1 - коммерч. инфр.'!G34,60*$B31-1*$B30,0)>0,OFFSET('Шаг 1 - коммерч. инфр.'!G52,60*$B31-1*$B30,0)>0),1,0) -> 0 | G31: =IF(OR(OFFSET('Шаг 1 - коммерч. инфр.'!H32,60*$B31-1*$B30,0)>0,OFFSET('Шаг 1 - коммерч. инфр.'!H34,60*$B31-1*$B30,0)>0,OFFSET('Шаг 1 - коммерч. инфр.'!H34,60*$B31-1*$B30,0)>0,OFFSET('Шаг 1 - коммерч. инфр.'!H52,60*$B31-1*$B30,0)>0),1,0) -> 0 | H31: =IF(OR(OFFSET('Шаг 1 - коммерч. инфр.'!I32,60*$B31-1*$B30,0)>0,OFFSET('Шаг 1 - коммерч. инфр.'!I34,60*$B31-1*$B30,0)>0,OFFSET('Шаг 1 - коммерч. инфр.'!I34,60*$B31-1*$B30,0)>0,OFFSET('Шаг 1 - коммерч. инфр.'!I52,60*$B31-1*$B30,0)>0),1,0) -> 0 | I31: =IF(OR(OFFSET('Шаг 1 - коммерч. инфр.'!J32,60*$B31-1*$B30,0)>0,OFFSET('Шаг 1 - коммерч. инфр.'!J34,60*$B31-1*$B30,0)>0,OFFSET('Шаг 1 - коммерч. инфр.'!J34,60*$B31-1*$B30,0)>0,OFFSET('Шаг 1 - коммерч. инфр.'!J52,60*$B31-1*$B30,0)>0),1,0) -> 0 | J31: =IF(OR(OFFSET('Шаг 1 - коммерч. инфр.'!K32,60*$B31-1*$B30,0)>0,OFFSET('Шаг 1 - коммерч. инфр.'!K34,60*$B31-1*$B30,0)>0,OFFSET('Шаг 1 - коммерч. инфр.'!K34,60*$B31-1*$B30,0)>0,OFFSET('Шаг 1 - коммерч. инфр.'!K52,60*$B31-1*$B30,0)>0),1,0) -> 0 | K31: =IF(OR(OFFSET('Шаг 1 - коммерч. инфр.'!L32,60*$B31-1*$B30,0)>0,OFFSET('Шаг 1 - коммерч. инфр.'!L34,60*$B31-1*$B30,0)>0,OFFSET('Шаг 1 - коммерч. инфр.'!L34,60*$B31-1*$B30,0)>0,OFFSET('Шаг 1 - коммерч. инфр.'!L52,60*$B31-1*$B30,0)>0),1,0) -> 0 | L31: =IF(OR(OFFSET('Шаг 1 - коммерч. инфр.'!M32,60*$B31-1*$B30,0)>0,OFFSET('Шаг 1 - коммерч. инфр.'!M34,60*$B31-1*$B30,0)>0,OFFSET('Шаг 1 - коммерч. инфр.'!M34,60*$B31-1*$B30,0)>0,OFFSET('Шаг 1 - коммерч. инфр.'!M52,60*$B31-1*$B30,0)>0),1,0) -> 0 | M31: =IF(OR(OFFSET('Шаг 1 - коммерч. инфр.'!N32,60*$B31-1*$B30,0)>0,OFFSET('Шаг 1 - коммерч. инфр.'!N34,60*$B31-1*$B30,0)>0,OFFSET('Шаг 1 - коммерч. инфр.'!N34,60*$B31-1*$B30,0)>0,OFFSET('Шаг 1 - коммерч. инфр.'!N52,60*$B31-1*$B30,0)>0),1,0) -> 0 | N31: =IF(OR(OFFSET('Шаг 1 - коммерч. инфр.'!O32,60*$B31-1*$B30,0)>0,OFFSET('Шаг 1 - коммерч. инфр.'!O34,60*$B31-1*$B30,0)>0,OFFSET('Шаг 1 - коммерч. инфр.'!O34,60*$B31-1*$B30,0)>0,OFFSET('Шаг 1 - коммерч. инфр.'!O52,60*$B31-1*$B30,0)>0),1,0) -> 0 | O31: =IF(OR(OFFSET('Шаг 1 - коммерч. инфр.'!P32,60*$B31-1*$B30,0)>0,OFFSET('Шаг 1 - коммерч. инфр.'!P34,60*$B31-1*$B30,0)>0,OFFSET('Шаг 1 - коммерч. инфр.'!P34,60*$B31-1*$B30,0)>0,OFFSET('Шаг 1 - коммерч. инфр.'!P52,60*$B31-1*$B30,0)>0),1,0) -> 0 | P31: =IF(OR(OFFSET('Шаг 1 - коммерч. инфр.'!Q32,60*$B31-1*$B30,0)>0,OFFSET('Шаг 1 - коммерч. инфр.'!Q34,60*$B31-1*$B30,0)>0,OFFSET('Шаг 1 - коммерч. инфр.'!Q34,60*$B31-1*$B30,0)>0,OFFSET('Шаг 1 - коммерч. инфр.'!Q52,60*$B31-1*$B30,0)>0),1,0) -> 0 | Q31: =IF(OR(OFFSET('Шаг 1 - коммерч. инфр.'!R32,60*$B31-1*$B30,0)>0,OFFSET('Шаг 1 - коммерч. инфр.'!R34,60*$B31-1*$B30,0)>0,OFFSET('Шаг 1 - коммерч. инфр.'!R34,60*$B31-1*$B30,0)>0,OFFSET('Шаг 1 - коммерч. инфр.'!R52,60*$B31-1*$B30,0)>0),1,0) -> 0 | R31: =IF(OR(OFFSET('Шаг 1 - коммерч. инфр.'!S32,60*$B31-1*$B30,0)>0,OFFSET('Шаг 1 - коммерч. инфр.'!S34,60*$B31-1*$B30,0)>0,OFFSET('Шаг 1 - коммерч. инфр.'!S34,60*$B31-1*$B30,0)>0,OFFSET('Шаг 1 - коммерч. инфр.'!S52,60*$B31-1*$B30,0)>0),1,0) -> 0 | S31: =IF(OR(OFFSET('Шаг 1 - коммерч. инфр.'!T32,60*$B31-1*$B30,0)>0,OFFSET('Шаг 1 - коммерч. инфр.'!T34,60*$B31-1*$B30,0)>0,OFFSET('Шаг 1 - коммерч. инфр.'!T34,60*$B31-1*$B30,0)>0,OFFSET('Шаг 1 - коммерч. инфр.'!T52,60*$B31-1*$B30,0)>0),1,0) -> 0 | T31: =IF(OR(OFFSET('Шаг 1 - коммерч. инфр.'!U32,60*$B31-1*$B30,0)>0,OFFSET('Шаг 1 - коммерч. инфр.'!U34,60*$B31-1*$B30,0)>0,OFFSET('Шаг 1 - коммерч. инфр.'!U34,60*$B31-1*$B30,0)>0,OFFSET('Шаг 1 - коммерч. инфр.'!U52,60*$B31-1*$B30,0)>0),1,0) -> 0 | U31: =IF(OR(OFFSET('Шаг 1 - коммерч. инфр.'!V32,60*$B31-1*$B30,0)>0,OFFSET('Шаг 1 - коммерч. инфр.'!V34,60*$B31-1*$B30,0)>0,OFFSET('Шаг 1 - коммерч. инфр.'!V34,60*$B31-1*$B30,0)>0,OFFSET('Шаг 1 - коммерч. инфр.'!V52,60*$B31-1*$B30,0)>0),1,0) -> 0 | V31: =IF(OR(OFFSET('Шаг 1 - коммерч. инфр.'!W32,60*$B31-1*$B30,0)>0,OFFSET('Шаг 1 - коммерч. инфр.'!W34,60*$B31-1*$B30,0)>0,OFFSET('Шаг 1 - коммерч. инфр.'!W34,60*$B31-1*$B30,0)>0,OFFSET('Шаг 1 - коммерч. инфр.'!W52,60*$B31-1*$B30,0)>0),1,0) -> 0 | W31: =IF(OR(OFFSET('Шаг 1 - коммерч. инфр.'!X32,60*$B31-1*$B30,0)>0,OFFSET('Шаг 1 - коммерч. инфр.'!X34,60*$B31-1*$B30,0)>0,OFFSET('Шаг 1 - коммерч. инфр.'!X34,60*$B31-1*$B30,0)>0,OFFSET('Шаг 1 - коммерч. инфр.'!X52,60*$B31-1*$B30,0)>0),1,0) -> 0 | X31: =IF(OR(OFFSET('Шаг 1 - коммерч. инфр.'!Y32,60*$B31-1*$B30,0)>0,OFFSET('Шаг 1 - коммерч. инфр.'!Y34,60*$B31-1*$B30,0)>0,OFFSET('Шаг 1 - коммерч. инфр.'!Y34,60*$B31-1*$B30,0)>0,OFFSET('Шаг 1 - коммерч. инфр.'!Y52,60*$B31-1*$B30,0)>0),1,0) -> 0 | Y31: =IF(OR(OFFSET('Шаг 1 - коммерч. инфр.'!Z32,60*$B31-1*$B30,0)>0,OFFSET('Шаг 1 - коммерч. инфр.'!Z34,60*$B31-1*$B30,0)>0,OFFSET('Шаг 1 - коммерч. инфр.'!Z34,60*$B31-1*$B30,0)>0,OFFSET('Шаг 1 - коммерч. инфр.'!Z52,60*$B31-1*$B30,0)>0),1,0) -> 0 | Z31: =IF(OR(OFFSET('Шаг 1 - коммерч. инфр.'!AA32,60*$B31-1*$B30,0)>0,OFFSET('Шаг 1 - коммерч. инфр.'!AA34,60*$B31-1*$B30,0)>0,OFFSET('Шаг 1 - коммерч. инфр.'!AA34,60*$B31-1*$B30,0)>0,OFFSET('Шаг 1 - коммерч. инфр.'!AA52,60*$B31-1*$B30,0)>0),1,0) -> 0
A32: =IF(B32>'Шаг 0 - Мастер-лист'!$E$9,"x","") ->  | B32: 25 | C32: 26 | D32: =IF(OFFSET('Шаг 1 - коммерч. инфр.'!B30,60*B32-1*B31,0)=0,"",OFFSET('Шаг 1 - коммерч. инфр.'!B30,60*B32-1*B31,0)) ->  | E32: =IF(OR(OFFSET('Шаг 1 - коммерч. инфр.'!F33,60*$B32-1*$B31,0)>0,OFFSET('Шаг 1 - коммерч. инфр.'!F35,60*$B32-1*$B31,0)>0,OFFSET('Шаг 1 - коммерч. инфр.'!F35,60*$B32-1*$B31,0)>0,OFFSET('Шаг 1 - коммерч. инфр.'!F53,60*$B32-1*$B31,0)>0),1,0) -> 0 | F32: =IF(OR(OFFSET('Шаг 1 - коммерч. инфр.'!G33,60*$B32-1*$B31,0)>0,OFFSET('Шаг 1 - коммерч. инфр.'!G35,60*$B32-1*$B31,0)>0,OFFSET('Шаг 1 - коммерч. инфр.'!G35,60*$B32-1*$B31,0)>0,OFFSET('Шаг 1 - коммерч. инфр.'!G53,60*$B32-1*$B31,0)>0),1,0) -> 0 | G32: =IF(OR(OFFSET('Шаг 1 - коммерч. инфр.'!H33,60*$B32-1*$B31,0)>0,OFFSET('Шаг 1 - коммерч. инфр.'!H35,60*$B32-1*$B31,0)>0,OFFSET('Шаг 1 - коммерч. инфр.'!H35,60*$B32-1*$B31,0)>0,OFFSET('Шаг 1 - коммерч. инфр.'!H53,60*$B32-1*$B31,0)>0),1,0) -> 0 | H32: =IF(OR(OFFSET('Шаг 1 - коммерч. инфр.'!I33,60*$B32-1*$B31,0)>0,OFFSET('Шаг 1 - коммерч. инфр.'!I35,60*$B32-1*$B31,0)>0,OFFSET('Шаг 1 - коммерч. инфр.'!I35,60*$B32-1*$B31,0)>0,OFFSET('Шаг 1 - коммерч. инфр.'!I53,60*$B32-1*$B31,0)>0),1,0) -> 0 | I32: =IF(OR(OFFSET('Шаг 1 - коммерч. инфр.'!J33,60*$B32-1*$B31,0)>0,OFFSET('Шаг 1 - коммерч. инфр.'!J35,60*$B32-1*$B31,0)>0,OFFSET('Шаг 1 - коммерч. инфр.'!J35,60*$B32-1*$B31,0)>0,OFFSET('Шаг 1 - коммерч. инфр.'!J53,60*$B32-1*$B31,0)>0),1,0) -> 0 | J32: =IF(OR(OFFSET('Шаг 1 - коммерч. инфр.'!K33,60*$B32-1*$B31,0)>0,OFFSET('Шаг 1 - коммерч. инфр.'!K35,60*$B32-1*$B31,0)>0,OFFSET('Шаг 1 - коммерч. инфр.'!K35,60*$B32-1*$B31,0)>0,OFFSET('Шаг 1 - коммерч. инфр.'!K53,60*$B32-1*$B31,0)>0),1,0) -> 0 | K32: =IF(OR(OFFSET('Шаг 1 - коммерч. инфр.'!L33,60*$B32-1*$B31,0)>0,OFFSET('Шаг 1 - коммерч. инфр.'!L35,60*$B32-1*$B31,0)>0,OFFSET('Шаг 1 - коммерч. инфр.'!L35,60*$B32-1*$B31,0)>0,OFFSET('Шаг 1 - коммерч. инфр.'!L53,60*$B32-1*$B31,0)>0),1,0) -> 0 | L32: =IF(OR(OFFSET('Шаг 1 - коммерч. инфр.'!M33,60*$B32-1*$B31,0)>0,OFFSET('Шаг 1 - коммерч. инфр.'!M35,60*$B32-1*$B31,0)>0,OFFSET('Шаг 1 - коммерч. инфр.'!M35,60*$B32-1*$B31,0)>0,OFFSET('Шаг 1 - коммерч. инфр.'!M53,60*$B32-1*$B31,0)>0),1,0) -> 0 | M32: =IF(OR(OFFSET('Шаг 1 - коммерч. инфр.'!N33,60*$B32-1*$B31,0)>0,OFFSET('Шаг 1 - коммерч. инфр.'!N35,60*$B32-1*$B31,0)>0,OFFSET('Шаг 1 - коммерч. инфр.'!N35,60*$B32-1*$B31,0)>0,OFFSET('Шаг 1 - коммерч. инфр.'!N53,60*$B32-1*$B31,0)>0),1,0) -> 0 | N32: =IF(OR(OFFSET('Шаг 1 - коммерч. инфр.'!O33,60*$B32-1*$B31,0)>0,OFFSET('Шаг 1 - коммерч. инфр.'!O35,60*$B32-1*$B31,0)>0,OFFSET('Шаг 1 - коммерч. инфр.'!O35,60*$B32-1*$B31,0)>0,OFFSET('Шаг 1 - коммерч. инфр.'!O53,60*$B32-1*$B31,0)>0),1,0) -> 0 | O32: =IF(OR(OFFSET('Шаг 1 - коммерч. инфр.'!P33,60*$B32-1*$B31,0)>0,OFFSET('Шаг 1 - коммерч. инфр.'!P35,60*$B32-1*$B31,0)>0,OFFSET('Шаг 1 - коммерч. инфр.'!P35,60*$B32-1*$B31,0)>0,OFFSET('Шаг 1 - коммерч. инфр.'!P53,60*$B32-1*$B31,0)>0),1,0) -> 0 | P32: =IF(OR(OFFSET('Шаг 1 - коммерч. инфр.'!Q33,60*$B32-1*$B31,0)>0,OFFSET('Шаг 1 - коммерч. инфр.'!Q35,60*$B32-1*$B31,0)>0,OFFSET('Шаг 1 - коммерч. инфр.'!Q35,60*$B32-1*$B31,0)>0,OFFSET('Шаг 1 - коммерч. инфр.'!Q53,60*$B32-1*$B31,0)>0),1,0) -> 0 | Q32: =IF(OR(OFFSET('Шаг 1 - коммерч. инфр.'!R33,60*$B32-1*$B31,0)>0,OFFSET('Шаг 1 - коммерч. инфр.'!R35,60*$B32-1*$B31,0)>0,OFFSET('Шаг 1 - коммерч. инфр.'!R35,60*$B32-1*$B31,0)>0,OFFSET('Шаг 1 - коммерч. инфр.'!R53,60*$B32-1*$B31,0)>0),1,0) -> 0 | R32: =IF(OR(OFFSET('Шаг 1 - коммерч. инфр.'!S33,60*$B32-1*$B31,0)>0,OFFSET('Шаг 1 - коммерч. инфр.'!S35,60*$B32-1*$B31,0)>0,OFFSET('Шаг 1 - коммерч. инфр.'!S35,60*$B32-1*$B31,0)>0,OFFSET('Шаг 1 - коммерч. инфр.'!S53,60*$B32-1*$B31,0)>0),1,0) -> 0 | S32: =IF(OR(OFFSET('Шаг 1 - коммерч. инфр.'!T33,60*$B32-1*$B31,0)>0,OFFSET('Шаг 1 - коммерч. инфр.'!T35,60*$B32-1*$B31,0)>0,OFFSET('Шаг 1 - коммерч. инфр.'!T35,60*$B32-1*$B31,0)>0,OFFSET('Шаг 1 - коммерч. инфр.'!T53,60*$B32-1*$B31,0)>0),1,0) -> 0 | T32: =IF(OR(OFFSET('Шаг 1 - коммерч. инфр.'!U33,60*$B32-1*$B31,0)>0,OFFSET('Шаг 1 - коммерч. инфр.'!U35,60*$B32-1*$B31,0)>0,OFFSET('Шаг 1 - коммерч. инфр.'!U35,60*$B32-1*$B31,0)>0,OFFSET('Шаг 1 - коммерч. инфр.'!U53,60*$B32-1*$B31,0)>0),1,0) -> 0 | U32: =IF(OR(OFFSET('Шаг 1 - коммерч. инфр.'!V33,60*$B32-1*$B31,0)>0,OFFSET('Шаг 1 - коммерч. инфр.'!V35,60*$B32-1*$B31,0)>0,OFFSET('Шаг 1 - коммерч. инфр.'!V35,60*$B32-1*$B31,0)>0,OFFSET('Шаг 1 - коммерч. инфр.'!V53,60*$B32-1*$B31,0)>0),1,0) -> 0 | V32: =IF(OR(OFFSET('Шаг 1 - коммерч. инфр.'!W33,60*$B32-1*$B31,0)>0,OFFSET('Шаг 1 - коммерч. инфр.'!W35,60*$B32-1*$B31,0)>0,OFFSET('Шаг 1 - коммерч. инфр.'!W35,60*$B32-1*$B31,0)>0,OFFSET('Шаг 1 - коммерч. инфр.'!W53,60*$B32-1*$B31,0)>0),1,0) -> 0 | W32: =IF(OR(OFFSET('Шаг 1 - коммерч. инфр.'!X33,60*$B32-1*$B31,0)>0,OFFSET('Шаг 1 - коммерч. инфр.'!X35,60*$B32-1*$B31,0)>0,OFFSET('Шаг 1 - коммерч. инфр.'!X35,60*$B32-1*$B31,0)>0,OFFSET('Шаг 1 - коммерч. инфр.'!X53,60*$B32-1*$B31,0)>0),1,0) -> 0 | X32: =IF(OR(OFFSET('Шаг 1 - коммерч. инфр.'!Y33,60*$B32-1*$B31,0)>0,OFFSET('Шаг 1 - коммерч. инфр.'!Y35,60*$B32-1*$B31,0)>0,OFFSET('Шаг 1 - коммерч. инфр.'!Y35,60*$B32-1*$B31,0)>0,OFFSET('Шаг 1 - коммерч. инфр.'!Y53,60*$B32-1*$B31,0)>0),1,0) -> 0 | Y32: =IF(OR(OFFSET('Шаг 1 - коммерч. инфр.'!Z33,60*$B32-1*$B31,0)>0,OFFSET('Шаг 1 - коммерч. инфр.'!Z35,60*$B32-1*$B31,0)>0,OFFSET('Шаг 1 - коммерч. инфр.'!Z35,60*$B32-1*$B31,0)>0,OFFSET('Шаг 1 - коммерч. инфр.'!Z53,60*$B32-1*$B31,0)>0),1,0) -> 0 | Z32: =IF(OR(OFFSET('Шаг 1 - коммерч. инфр.'!AA33,60*$B32-1*$B31,0)>0,OFFSET('Шаг 1 - коммерч. инфр.'!AA35,60*$B32-1*$B31,0)>0,OFFSET('Шаг 1 - коммерч. инфр.'!AA35,60*$B32-1*$B31,0)>0,OFFSET('Шаг 1 - коммерч. инфр.'!AA53,60*$B32-1*$B31,0)>0),1,0) -> 0
A33: =IF(B33>'Шаг 0 - Мастер-лист'!$E$9,"x","") ->  | B33: 26 | C33: 27 | D33: =IF(OFFSET('Шаг 1 - коммерч. инфр.'!B31,60*B33-1*B32,0)=0,"",OFFSET('Шаг 1 - коммерч. инфр.'!B31,60*B33-1*B32,0)) ->  | E33: =IF(OR(OFFSET('Шаг 1 - коммерч. инфр.'!F34,60*$B33-1*$B32,0)>0,OFFSET('Шаг 1 - коммерч. инфр.'!F36,60*$B33-1*$B32,0)>0,OFFSET('Шаг 1 - коммерч. инфр.'!F36,60*$B33-1*$B32,0)>0,OFFSET('Шаг 1 - коммерч. инфр.'!F54,60*$B33-1*$B32,0)>0),1,0) -> 0 | F33: =IF(OR(OFFSET('Шаг 1 - коммерч. инфр.'!G34,60*$B33-1*$B32,0)>0,OFFSET('Шаг 1 - коммерч. инфр.'!G36,60*$B33-1*$B32,0)>0,OFFSET('Шаг 1 - коммерч. инфр.'!G36,60*$B33-1*$B32,0)>0,OFFSET('Шаг 1 - коммерч. инфр.'!G54,60*$B33-1*$B32,0)>0),1,0) -> 0 | G33: =IF(OR(OFFSET('Шаг 1 - коммерч. инфр.'!H34,60*$B33-1*$B32,0)>0,OFFSET('Шаг 1 - коммерч. инфр.'!H36,60*$B33-1*$B32,0)>0,OFFSET('Шаг 1 - коммерч. инфр.'!H36,60*$B33-1*$B32,0)>0,OFFSET('Шаг 1 - коммерч. инфр.'!H54,60*$B33-1*$B32,0)>0),1,0) -> 0 | H33: =IF(OR(OFFSET('Шаг 1 - коммерч. инфр.'!I34,60*$B33-1*$B32,0)>0,OFFSET('Шаг 1 - коммерч. инфр.'!I36,60*$B33-1*$B32,0)>0,OFFSET('Шаг 1 - коммерч. инфр.'!I36,60*$B33-1*$B32,0)>0,OFFSET('Шаг 1 - коммерч. инфр.'!I54,60*$B33-1*$B32,0)>0),1,0) -> 0 | I33: =IF(OR(OFFSET('Шаг 1 - коммерч. инфр.'!J34,60*$B33-1*$B32,0)>0,OFFSET('Шаг 1 - коммерч. инфр.'!J36,60*$B33-1*$B32,0)>0,OFFSET('Шаг 1 - коммерч. инфр.'!J36,60*$B33-1*$B32,0)>0,OFFSET('Шаг 1 - коммерч. инфр.'!J54,60*$B33-1*$B32,0)>0),1,0) -> 0 | J33: =IF(OR(OFFSET('Шаг 1 - коммерч. инфр.'!K34,60*$B33-1*$B32,0)>0,OFFSET('Шаг 1 - коммерч. инфр.'!K36,60*$B33-1*$B32,0)>0,OFFSET('Шаг 1 - коммерч. инфр.'!K36,60*$B33-1*$B32,0)>0,OFFSET('Шаг 1 - коммерч. инфр.'!K54,60*$B33-1*$B32,0)>0),1,0) -> 0 | K33: =IF(OR(OFFSET('Шаг 1 - коммерч. инфр.'!L34,60*$B33-1*$B32,0)>0,OFFSET('Шаг 1 - коммерч. инфр.'!L36,60*$B33-1*$B32,0)>0,OFFSET('Шаг 1 - коммерч. инфр.'!L36,60*$B33-1*$B32,0)>0,OFFSET('Шаг 1 - коммерч. инфр.'!L54,60*$B33-1*$B32,0)>0),1,0) -> 0 | L33: =IF(OR(OFFSET('Шаг 1 - коммерч. инфр.'!M34,60*$B33-1*$B32,0)>0,OFFSET('Шаг 1 - коммерч. инфр.'!M36,60*$B33-1*$B32,0)>0,OFFSET('Шаг 1 - коммерч. инфр.'!M36,60*$B33-1*$B32,0)>0,OFFSET('Шаг 1 - коммерч. инфр.'!M54,60*$B33-1*$B32,0)>0),1,0) -> 0 | M33: =IF(OR(OFFSET('Шаг 1 - коммерч. инфр.'!N34,60*$B33-1*$B32,0)>0,OFFSET('Шаг 1 - коммерч. инфр.'!N36,60*$B33-1*$B32,0)>0,OFFSET('Шаг 1 - коммерч. инфр.'!N36,60*$B33-1*$B32,0)>0,OFFSET('Шаг 1 - коммерч. инфр.'!N54,60*$B33-1*$B32,0)>0),1,0) -> 0 | N33: =IF(OR(OFFSET('Шаг 1 - коммерч. инфр.'!O34,60*$B33-1*$B32,0)>0,OFFSET('Шаг 1 - коммерч. инфр.'!O36,60*$B33-1*$B32,0)>0,OFFSET('Шаг 1 - коммерч. инфр.'!O36,60*$B33-1*$B32,0)>0,OFFSET('Шаг 1 - коммерч. инфр.'!O54,60*$B33-1*$B32,0)>0),1,0) -> 0 | O33: =IF(OR(OFFSET('Шаг 1 - коммерч. инфр.'!P34,60*$B33-1*$B32,0)>0,OFFSET('Шаг 1 - коммерч. инфр.'!P36,60*$B33-1*$B32,0)>0,OFFSET('Шаг 1 - коммерч. инфр.'!P36,60*$B33-1*$B32,0)>0,OFFSET('Шаг 1 - коммерч. инфр.'!P54,60*$B33-1*$B32,0)>0),1,0) -> 0 | P33: =IF(OR(OFFSET('Шаг 1 - коммерч. инфр.'!Q34,60*$B33-1*$B32,0)>0,OFFSET('Шаг 1 - коммерч. инфр.'!Q36,60*$B33-1*$B32,0)>0,OFFSET('Шаг 1 - коммерч. инфр.'!Q36,60*$B33-1*$B32,0)>0,OFFSET('Шаг 1 - коммерч. инфр.'!Q54,60*$B33-1*$B32,0)>0),1,0) -> 0 | Q33: =IF(OR(OFFSET('Шаг 1 - коммерч. инфр.'!R34,60*$B33-1*$B32,0)>0,OFFSET('Шаг 1 - коммерч. инфр.'!R36,60*$B33-1*$B32,0)>0,OFFSET('Шаг 1 - коммерч. инфр.'!R36,60*$B33-1*$B32,0)>0,OFFSET('Шаг 1 - коммерч. инфр.'!R54,60*$B33-1*$B32,0)>0),1,0) -> 0 | R33: =IF(OR(OFFSET('Шаг 1 - коммерч. инфр.'!S34,60*$B33-1*$B32,0)>0,OFFSET('Шаг 1 - коммерч. инфр.'!S36,60*$B33-1*$B32,0)>0,OFFSET('Шаг 1 - коммерч. инфр.'!S36,60*$B33-1*$B32,0)>0,OFFSET('Шаг 1 - коммерч. инфр.'!S54,60*$B33-1*$B32,0)>0),1,0) -> 0 | S33: =IF(OR(OFFSET('Шаг 1 - коммерч. инфр.'!T34,60*$B33-1*$B32,0)>0,OFFSET('Шаг 1 - коммерч. инфр.'!T36,60*$B33-1*$B32,0)>0,OFFSET('Шаг 1 - коммерч. инфр.'!T36,60*$B33-1*$B32,0)>0,OFFSET('Шаг 1 - коммерч. инфр.'!T54,60*$B33-1*$B32,0)>0),1,0) -> 0 | T33: =IF(OR(OFFSET('Шаг 1 - коммерч. инфр.'!U34,60*$B33-1*$B32,0)>0,OFFSET('Шаг 1 - коммерч. инфр.'!U36,60*$B33-1*$B32,0)>0,OFFSET('Шаг 1 - коммерч. инфр.'!U36,60*$B33-1*$B32,0)>0,OFFSET('Шаг 1 - коммерч. инфр.'!U54,60*$B33-1*$B32,0)>0),1,0) -> 0 | U33: =IF(OR(OFFSET('Шаг 1 - коммерч. инфр.'!V34,60*$B33-1*$B32,0)>0,OFFSET('Шаг 1 - коммерч. инфр.'!V36,60*$B33-1*$B32,0)>0,OFFSET('Шаг 1 - коммерч. инфр.'!V36,60*$B33-1*$B32,0)>0,OFFSET('Шаг 1 - коммерч. инфр.'!V54,60*$B33-1*$B32,0)>0),1,0) -> 0 | V33: =IF(OR(OFFSET('Шаг 1 - коммерч. инфр.'!W34,60*$B33-1*$B32,0)>0,OFFSET('Шаг 1 - коммерч. инфр.'!W36,60*$B33-1*$B32,0)>0,OFFSET('Шаг 1 - коммерч. инфр.'!W36,60*$B33-1*$B32,0)>0,OFFSET('Шаг 1 - коммерч. инфр.'!W54,60*$B33-1*$B32,0)>0),1,0) -> 0 | W33: =IF(OR(OFFSET('Шаг 1 - коммерч. инфр.'!X34,60*$B33-1*$B32,0)>0,OFFSET('Шаг 1 - коммерч. инфр.'!X36,60*$B33-1*$B32,0)>0,OFFSET('Шаг 1 - коммерч. инфр.'!X36,60*$B33-1*$B32,0)>0,OFFSET('Шаг 1 - коммерч. инфр.'!X54,60*$B33-1*$B32,0)>0),1,0) -> 0 | X33: =IF(OR(OFFSET('Шаг 1 - коммерч. инфр.'!Y34,60*$B33-1*$B32,0)>0,OFFSET('Шаг 1 - коммерч. инфр.'!Y36,60*$B33-1*$B32,0)>0,OFFSET('Шаг 1 - коммерч. инфр.'!Y36,60*$B33-1*$B32,0)>0,OFFSET('Шаг 1 - коммерч. инфр.'!Y54,60*$B33-1*$B32,0)>0),1,0) -> 0 | Y33: =IF(OR(OFFSET('Шаг 1 - коммерч. инфр.'!Z34,60*$B33-1*$B32,0)>0,OFFSET('Шаг 1 - коммерч. инфр.'!Z36,60*$B33-1*$B32,0)>0,OFFSET('Шаг 1 - коммерч. инфр.'!Z36,60*$B33-1*$B32,0)>0,OFFSET('Шаг 1 - коммерч. инфр.'!Z54,60*$B33-1*$B32,0)>0),1,0) -> 0 | Z33: =IF(OR(OFFSET('Шаг 1 - коммерч. инфр.'!AA34,60*$B33-1*$B32,0)>0,OFFSET('Шаг 1 - коммерч. инфр.'!AA36,60*$B33-1*$B32,0)>0,OFFSET('Шаг 1 - коммерч. инфр.'!AA36,60*$B33-1*$B32,0)>0,OFFSET('Шаг 1 - коммерч. инфр.'!AA54,60*$B33-1*$B32,0)>0),1,0) -> 0
A34: =IF(B34>'Шаг 0 - Мастер-лист'!$E$9,"x","") ->  | B34: 27 | C34: 28 | D34: =IF(OFFSET('Шаг 1 - коммерч. инфр.'!B32,60*B34-1*B33,0)=0,"",OFFSET('Шаг 1 - коммерч. инфр.'!B32,60*B34-1*B33,0)) ->  | E34: =IF(OR(OFFSET('Шаг 1 - коммерч. инфр.'!F35,60*$B34-1*$B33,0)>0,OFFSET('Шаг 1 - коммерч. инфр.'!F37,60*$B34-1*$B33,0)>0,OFFSET('Шаг 1 - коммерч. инфр.'!F37,60*$B34-1*$B33,0)>0,OFFSET('Шаг 1 - коммерч. инфр.'!F55,60*$B34-1*$B33,0)>0),1,0) -> 0 | F34: =IF(OR(OFFSET('Шаг 1 - коммерч. инфр.'!G35,60*$B34-1*$B33,0)>0,OFFSET('Шаг 1 - коммерч. инфр.'!G37,60*$B34-1*$B33,0)>0,OFFSET('Шаг 1 - коммерч. инфр.'!G37,60*$B34-1*$B33,0)>0,OFFSET('Шаг 1 - коммерч. инфр.'!G55,60*$B34-1*$B33,0)>0),1,0) -> 0 | G34: =IF(OR(OFFSET('Шаг 1 - коммерч. инфр.'!H35,60*$B34-1*$B33,0)>0,OFFSET('Шаг 1 - коммерч. инфр.'!H37,60*$B34-1*$B33,0)>0,OFFSET('Шаг 1 - коммерч. инфр.'!H37,60*$B34-1*$B33,0)>0,OFFSET('Шаг 1 - коммерч. инфр.'!H55,60*$B34-1*$B33,0)>0),1,0) -> 0 | H34: =IF(OR(OFFSET('Шаг 1 - коммерч. инфр.'!I35,60*$B34-1*$B33,0)>0,OFFSET('Шаг 1 - коммерч. инфр.'!I37,60*$B34-1*$B33,0)>0,OFFSET('Шаг 1 - коммерч. инфр.'!I37,60*$B34-1*$B33,0)>0,OFFSET('Шаг 1 - коммерч. инфр.'!I55,60*$B34-1*$B33,0)>0),1,0) -> 0 | I34: =IF(OR(OFFSET('Шаг 1 - коммерч. инфр.'!J35,60*$B34-1*$B33,0)>0,OFFSET('Шаг 1 - коммерч. инфр.'!J37,60*$B34-1*$B33,0)>0,OFFSET('Шаг 1 - коммерч. инфр.'!J37,60*$B34-1*$B33,0)>0,OFFSET('Шаг 1 - коммерч. инфр.'!J55,60*$B34-1*$B33,0)>0),1,0) -> 0 | J34: =IF(OR(OFFSET('Шаг 1 - коммерч. инфр.'!K35,60*$B34-1*$B33,0)>0,OFFSET('Шаг 1 - коммерч. инфр.'!K37,60*$B34-1*$B33,0)>0,OFFSET('Шаг 1 - коммерч. инфр.'!K37,60*$B34-1*$B33,0)>0,OFFSET('Шаг 1 - коммерч. инфр.'!K55,60*$B34-1*$B33,0)>0),1,0) -> 0 | K34: =IF(OR(OFFSET('Шаг 1 - коммерч. инфр.'!L35,60*$B34-1*$B33,0)>0,OFFSET('Шаг 1 - коммерч. инфр.'!L37,60*$B34-1*$B33,0)>0,OFFSET('Шаг 1 - коммерч. инфр.'!L37,60*$B34-1*$B33,0)>0,OFFSET('Шаг 1 - коммерч. инфр.'!L55,60*$B34-1*$B33,0)>0),1,0) -> 0 | L34: =IF(OR(OFFSET('Шаг 1 - коммерч. инфр.'!M35,60*$B34-1*$B33,0)>0,OFFSET('Шаг 1 - коммерч. инфр.'!M37,60*$B34-1*$B33,0)>0,OFFSET('Шаг 1 - коммерч. инфр.'!M37,60*$B34-1*$B33,0)>0,OFFSET('Шаг 1 - коммерч. инфр.'!M55,60*$B34-1*$B33,0)>0),1,0) -> 0 | M34: =IF(OR(OFFSET('Шаг 1 - коммерч. инфр.'!N35,60*$B34-1*$B33,0)>0,OFFSET('Шаг 1 - коммерч. инфр.'!N37,60*$B34-1*$B33,0)>0,OFFSET('Шаг 1 - коммерч. инфр.'!N37,60*$B34-1*$B33,0)>0,OFFSET('Шаг 1 - коммерч. инфр.'!N55,60*$B34-1*$B33,0)>0),1,0) -> 0 | N34: =IF(OR(OFFSET('Шаг 1 - коммерч. инфр.'!O35,60*$B34-1*$B33,0)>0,OFFSET('Шаг 1 - коммерч. инфр.'!O37,60*$B34-1*$B33,0)>0,OFFSET('Шаг 1 - коммерч. инфр.'!O37,60*$B34-1*$B33,0)>0,OFFSET('Шаг 1 - коммерч. инфр.'!O55,60*$B34-1*$B33,0)>0),1,0) -> 0 | O34: =IF(OR(OFFSET('Шаг 1 - коммерч. инфр.'!P35,60*$B34-1*$B33,0)>0,OFFSET('Шаг 1 - коммерч. инфр.'!P37,60*$B34-1*$B33,0)>0,OFFSET('Шаг 1 - коммерч. инфр.'!P37,60*$B34-1*$B33,0)>0,OFFSET('Шаг 1 - коммерч. инфр.'!P55,60*$B34-1*$B33,0)>0),1,0) -> 0 | P34: =IF(OR(OFFSET('Шаг 1 - коммерч. инфр.'!Q35,60*$B34-1*$B33,0)>0,OFFSET('Шаг 1 - коммерч. инфр.'!Q37,60*$B34-1*$B33,0)>0,OFFSET('Шаг 1 - коммерч. инфр.'!Q37,60*$B34-1*$B33,0)>0,OFFSET('Шаг 1 - коммерч. инфр.'!Q55,60*$B34-1*$B33,0)>0),1,0) -> 0 | Q34: =IF(OR(OFFSET('Шаг 1 - коммерч. инфр.'!R35,60*$B34-1*$B33,0)>0,OFFSET('Шаг 1 - коммерч. инфр.'!R37,60*$B34-1*$B33,0)>0,OFFSET('Шаг 1 - коммерч. инфр.'!R37,60*$B34-1*$B33,0)>0,OFFSET('Шаг 1 - коммерч. инфр.'!R55,60*$B34-1*$B33,0)>0),1,0) -> 0 | R34: =IF(OR(OFFSET('Шаг 1 - коммерч. инфр.'!S35,60*$B34-1*$B33,0)>0,OFFSET('Шаг 1 - коммерч. инфр.'!S37,60*$B34-1*$B33,0)>0,OFFSET('Шаг 1 - коммерч. инфр.'!S37,60*$B34-1*$B33,0)>0,OFFSET('Шаг 1 - коммерч. инфр.'!S55,60*$B34-1*$B33,0)>0),1,0) -> 0 | S34: =IF(OR(OFFSET('Шаг 1 - коммерч. инфр.'!T35,60*$B34-1*$B33,0)>0,OFFSET('Шаг 1 - коммерч. инфр.'!T37,60*$B34-1*$B33,0)>0,OFFSET('Шаг 1 - коммерч. инфр.'!T37,60*$B34-1*$B33,0)>0,OFFSET('Шаг 1 - коммерч. инфр.'!T55,60*$B34-1*$B33,0)>0),1,0) -> 0 | T34: =IF(OR(OFFSET('Шаг 1 - коммерч. инфр.'!U35,60*$B34-1*$B33,0)>0,OFFSET('Шаг 1 - коммерч. инфр.'!U37,60*$B34-1*$B33,0)>0,OFFSET('Шаг 1 - коммерч. инфр.'!U37,60*$B34-1*$B33,0)>0,OFFSET('Шаг 1 - коммерч. инфр.'!U55,60*$B34-1*$B33,0)>0),1,0) -> 0 | U34: =IF(OR(OFFSET('Шаг 1 - коммерч. инфр.'!V35,60*$B34-1*$B33,0)>0,OFFSET('Шаг 1 - коммерч. инфр.'!V37,60*$B34-1*$B33,0)>0,OFFSET('Шаг 1 - коммерч. инфр.'!V37,60*$B34-1*$B33,0)>0,OFFSET('Шаг 1 - коммерч. инфр.'!V55,60*$B34-1*$B33,0)>0),1,0) -> 0 | V34: =IF(OR(OFFSET('Шаг 1 - коммерч. инфр.'!W35,60*$B34-1*$B33,0)>0,OFFSET('Шаг 1 - коммерч. инфр.'!W37,60*$B34-1*$B33,0)>0,OFFSET('Шаг 1 - коммерч. инфр.'!W37,60*$B34-1*$B33,0)>0,OFFSET('Шаг 1 - коммерч. инфр.'!W55,60*$B34-1*$B33,0)>0),1,0) -> 0 | W34: =IF(OR(OFFSET('Шаг 1 - коммерч. инфр.'!X35,60*$B34-1*$B33,0)>0,OFFSET('Шаг 1 - коммерч. инфр.'!X37,60*$B34-1*$B33,0)>0,OFFSET('Шаг 1 - коммерч. инфр.'!X37,60*$B34-1*$B33,0)>0,OFFSET('Шаг 1 - коммерч. инфр.'!X55,60*$B34-1*$B33,0)>0),1,0) -> 0 | X34: =IF(OR(OFFSET('Шаг 1 - коммерч. инфр.'!Y35,60*$B34-1*$B33,0)>0,OFFSET('Шаг 1 - коммерч. инфр.'!Y37,60*$B34-1*$B33,0)>0,OFFSET('Шаг 1 - коммерч. инфр.'!Y37,60*$B34-1*$B33,0)>0,OFFSET('Шаг 1 - коммерч. инфр.'!Y55,60*$B34-1*$B33,0)>0),1,0) -> 0 | Y34: =IF(OR(OFFSET('Шаг 1 - коммерч. инфр.'!Z35,60*$B34-1*$B33,0)>0,OFFSET('Шаг 1 - коммерч. инфр.'!Z37,60*$B34-1*$B33,0)>0,OFFSET('Шаг 1 - коммерч. инфр.'!Z37,60*$B34-1*$B33,0)>0,OFFSET('Шаг 1 - коммерч. инфр.'!Z55,60*$B34-1*$B33,0)>0),1,0) -> 0 | Z34: =IF(OR(OFFSET('Шаг 1 - коммерч. инфр.'!AA35,60*$B34-1*$B33,0)>0,OFFSET('Шаг 1 - коммерч. инфр.'!AA37,60*$B34-1*$B33,0)>0,OFFSET('Шаг 1 - коммерч. инфр.'!AA37,60*$B34-1*$B33,0)>0,OFFSET('Шаг 1 - коммерч. инфр.'!AA55,60*$B34-1*$B33,0)>0),1,0) -> 0
A35: =IF(B35>'Шаг 0 - Мастер-лист'!$E$9,"x","") ->  | B35: 28 | C35: 29 | D35: =IF(OFFSET('Шаг 1 - коммерч. инфр.'!B33,60*B35-1*B34,0)=0,"",OFFSET('Шаг 1 - коммерч. инфр.'!B33,60*B35-1*B34,0)) ->  | E35: =IF(OR(OFFSET('Шаг 1 - коммерч. инфр.'!F36,60*$B35-1*$B34,0)>0,OFFSET('Шаг 1 - коммерч. инфр.'!F38,60*$B35-1*$B34,0)>0,OFFSET('Шаг 1 - коммерч. инфр.'!F38,60*$B35-1*$B34,0)>0,OFFSET('Шаг 1 - коммерч. инфр.'!F56,60*$B35-1*$B34,0)>0),1,0) -> 0 | F35: =IF(OR(OFFSET('Шаг 1 - коммерч. инфр.'!G36,60*$B35-1*$B34,0)>0,OFFSET('Шаг 1 - коммерч. инфр.'!G38,60*$B35-1*$B34,0)>0,OFFSET('Шаг 1 - коммерч. инфр.'!G38,60*$B35-1*$B34,0)>0,OFFSET('Шаг 1 - коммерч. инфр.'!G56,60*$B35-1*$B34,0)>0),1,0) -> 0 | G35: =IF(OR(OFFSET('Шаг 1 - коммерч. инфр.'!H36,60*$B35-1*$B34,0)>0,OFFSET('Шаг 1 - коммерч. инфр.'!H38,60*$B35-1*$B34,0)>0,OFFSET('Шаг 1 - коммерч. инфр.'!H38,60*$B35-1*$B34,0)>0,OFFSET('Шаг 1 - коммерч. инфр.'!H56,60*$B35-1*$B34,0)>0),1,0) -> 0 | H35: =IF(OR(OFFSET('Шаг 1 - коммерч. инфр.'!I36,60*$B35-1*$B34,0)>0,OFFSET('Шаг 1 - коммерч. инфр.'!I38,60*$B35-1*$B34,0)>0,OFFSET('Шаг 1 - коммерч. инфр.'!I38,60*$B35-1*$B34,0)>0,OFFSET('Шаг 1 - коммерч. инфр.'!I56,60*$B35-1*$B34,0)>0),1,0) -> 0 | I35: =IF(OR(OFFSET('Шаг 1 - коммерч. инфр.'!J36,60*$B35-1*$B34,0)>0,OFFSET('Шаг 1 - коммерч. инфр.'!J38,60*$B35-1*$B34,0)>0,OFFSET('Шаг 1 - коммерч. инфр.'!J38,60*$B35-1*$B34,0)>0,OFFSET('Шаг 1 - коммерч. инфр.'!J56,60*$B35-1*$B34,0)>0),1,0) -> 0 | J35: =IF(OR(OFFSET('Шаг 1 - коммерч. инфр.'!K36,60*$B35-1*$B34,0)>0,OFFSET('Шаг 1 - коммерч. инфр.'!K38,60*$B35-1*$B34,0)>0,OFFSET('Шаг 1 - коммерч. инфр.'!K38,60*$B35-1*$B34,0)>0,OFFSET('Шаг 1 - коммерч. инфр.'!K56,60*$B35-1*$B34,0)>0),1,0) -> 0 | K35: =IF(OR(OFFSET('Шаг 1 - коммерч. инфр.'!L36,60*$B35-1*$B34,0)>0,OFFSET('Шаг 1 - коммерч. инфр.'!L38,60*$B35-1*$B34,0)>0,OFFSET('Шаг 1 - коммерч. инфр.'!L38,60*$B35-1*$B34,0)>0,OFFSET('Шаг 1 - коммерч. инфр.'!L56,60*$B35-1*$B34,0)>0),1,0) -> 0 | L35: =IF(OR(OFFSET('Шаг 1 - коммерч. инфр.'!M36,60*$B35-1*$B34,0)>0,OFFSET('Шаг 1 - коммерч. инфр.'!M38,60*$B35-1*$B34,0)>0,OFFSET('Шаг 1 - коммерч. инфр.'!M38,60*$B35-1*$B34,0)>0,OFFSET('Шаг 1 - коммерч. инфр.'!M56,60*$B35-1*$B34,0)>0),1,0) -> 0 | M35: =IF(OR(OFFSET('Шаг 1 - коммерч. инфр.'!N36,60*$B35-1*$B34,0)>0,OFFSET('Шаг 1 - коммерч. инфр.'!N38,60*$B35-1*$B34,0)>0,OFFSET('Шаг 1 - коммерч. инфр.'!N38,60*$B35-1*$B34,0)>0,OFFSET('Шаг 1 - коммерч. инфр.'!N56,60*$B35-1*$B34,0)>0),1,0) -> 0 | N35: =IF(OR(OFFSET('Шаг 1 - коммерч. инфр.'!O36,60*$B35-1*$B34,0)>0,OFFSET('Шаг 1 - коммерч. инфр.'!O38,60*$B35-1*$B34,0)>0,OFFSET('Шаг 1 - коммерч. инфр.'!O38,60*$B35-1*$B34,0)>0,OFFSET('Шаг 1 - коммерч. инфр.'!O56,60*$B35-1*$B34,0)>0),1,0) -> 0 | O35: =IF(OR(OFFSET('Шаг 1 - коммерч. инфр.'!P36,60*$B35-1*$B34,0)>0,OFFSET('Шаг 1 - коммерч. инфр.'!P38,60*$B35-1*$B34,0)>0,OFFSET('Шаг 1 - коммерч. инфр.'!P38,60*$B35-1*$B34,0)>0,OFFSET('Шаг 1 - коммерч. инфр.'!P56,60*$B35-1*$B34,0)>0),1,0) -> 0 | P35: =IF(OR(OFFSET('Шаг 1 - коммерч. инфр.'!Q36,60*$B35-1*$B34,0)>0,OFFSET('Шаг 1 - коммерч. инфр.'!Q38,60*$B35-1*$B34,0)>0,OFFSET('Шаг 1 - коммерч. инфр.'!Q38,60*$B35-1*$B34,0)>0,OFFSET('Шаг 1 - коммерч. инфр.'!Q56,60*$B35-1*$B34,0)>0),1,0) -> 0 | Q35: =IF(OR(OFFSET('Шаг 1 - коммерч. инфр.'!R36,60*$B35-1*$B34,0)>0,OFFSET('Шаг 1 - коммерч. инфр.'!R38,60*$B35-1*$B34,0)>0,OFFSET('Шаг 1 - коммерч. инфр.'!R38,60*$B35-1*$B34,0)>0,OFFSET('Шаг 1 - коммерч. инфр.'!R56,60*$B35-1*$B34,0)>0),1,0) -> 0 | R35: =IF(OR(OFFSET('Шаг 1 - коммерч. инфр.'!S36,60*$B35-1*$B34,0)>0,OFFSET('Шаг 1 - коммерч. инфр.'!S38,60*$B35-1*$B34,0)>0,OFFSET('Шаг 1 - коммерч. инфр.'!S38,60*$B35-1*$B34,0)>0,OFFSET('Шаг 1 - коммерч. инфр.'!S56,60*$B35-1*$B34,0)>0),1,0) -> 0 | S35: =IF(OR(OFFSET('Шаг 1 - коммерч. инфр.'!T36,60*$B35-1*$B34,0)>0,OFFSET('Шаг 1 - коммерч. инфр.'!T38,60*$B35-1*$B34,0)>0,OFFSET('Шаг 1 - коммерч. инфр.'!T38,60*$B35-1*$B34,0)>0,OFFSET('Шаг 1 - коммерч. инфр.'!T56,60*$B35-1*$B34,0)>0),1,0) -> 0 | T35: =IF(OR(OFFSET('Шаг 1 - коммерч. инфр.'!U36,60*$B35-1*$B34,0)>0,OFFSET('Шаг 1 - коммерч. инфр.'!U38,60*$B35-1*$B34,0)>0,OFFSET('Шаг 1 - коммерч. инфр.'!U38,60*$B35-1*$B34,0)>0,OFFSET('Шаг 1 - коммерч. инфр.'!U56,60*$B35-1*$B34,0)>0),1,0) -> 0 | U35: =IF(OR(OFFSET('Шаг 1 - коммерч. инфр.'!V36,60*$B35-1*$B34,0)>0,OFFSET('Шаг 1 - коммерч. инфр.'!V38,60*$B35-1*$B34,0)>0,OFFSET('Шаг 1 - коммерч. инфр.'!V38,60*$B35-1*$B34,0)>0,OFFSET('Шаг 1 - коммерч. инфр.'!V56,60*$B35-1*$B34,0)>0),1,0) -> 0 | V35: =IF(OR(OFFSET('Шаг 1 - коммерч. инфр.'!W36,60*$B35-1*$B34,0)>0,OFFSET('Шаг 1 - коммерч. инфр.'!W38,60*$B35-1*$B34,0)>0,OFFSET('Шаг 1 - коммерч. инфр.'!W38,60*$B35-1*$B34,0)>0,OFFSET('Шаг 1 - коммерч. инфр.'!W56,60*$B35-1*$B34,0)>0),1,0) -> 0 | W35: =IF(OR(OFFSET('Шаг 1 - коммерч. инфр.'!X36,60*$B35-1*$B34,0)>0,OFFSET('Шаг 1 - коммерч. инфр.'!X38,60*$B35-1*$B34,0)>0,OFFSET('Шаг 1 - коммерч. инфр.'!X38,60*$B35-1*$B34,0)>0,OFFSET('Шаг 1 - коммерч. инфр.'!X56,60*$B35-1*$B34,0)>0),1,0) -> 0 | X35: =IF(OR(OFFSET('Шаг 1 - коммерч. инфр.'!Y36,60*$B35-1*$B34,0)>0,OFFSET('Шаг 1 - коммерч. инфр.'!Y38,60*$B35-1*$B34,0)>0,OFFSET('Шаг 1 - коммерч. инфр.'!Y38,60*$B35-1*$B34,0)>0,OFFSET('Шаг 1 - коммерч. инфр.'!Y56,60*$B35-1*$B34,0)>0),1,0) -> 0 | Y35: =IF(OR(OFFSET('Шаг 1 - коммерч. инфр.'!Z36,60*$B35-1*$B34,0)>0,OFFSET('Шаг 1 - коммерч. инфр.'!Z38,60*$B35-1*$B34,0)>0,OFFSET('Шаг 1 - коммерч. инфр.'!Z38,60*$B35-1*$B34,0)>0,OFFSET('Шаг 1 - коммерч. инфр.'!Z56,60*$B35-1*$B34,0)>0),1,0) -> 0 | Z35: =IF(OR(OFFSET('Шаг 1 - коммерч. инфр.'!AA36,60*$B35-1*$B34,0)>0,OFFSET('Шаг 1 - коммерч. инфр.'!AA38,60*$B35-1*$B34,0)>0,OFFSET('Шаг 1 - коммерч. инфр.'!AA38,60*$B35-1*$B34,0)>0,OFFSET('Шаг 1 - коммерч. инфр.'!AA56,60*$B35-1*$B34,0)>0),1,0) -> 0
A36: =IF(B36>'Шаг 0 - Мастер-лист'!$E$9,"x","") ->  | B36: 29 | C36: 30 | D36: =IF(OFFSET('Шаг 1 - коммерч. инфр.'!B34,60*B36-1*B35,0)=0,"",OFFSET('Шаг 1 - коммерч. инфр.'!B34,60*B36-1*B35,0)) ->  | E36: =IF(OR(OFFSET('Шаг 1 - коммерч. инфр.'!F37,60*$B36-1*$B35,0)>0,OFFSET('Шаг 1 - коммерч. инфр.'!F39,60*$B36-1*$B35,0)>0,OFFSET('Шаг 1 - коммерч. инфр.'!F39,60*$B36-1*$B35,0)>0,OFFSET('Шаг 1 - коммерч. инфр.'!F57,60*$B36-1*$B35,0)>0),1,0) -> 0 | F36: =IF(OR(OFFSET('Шаг 1 - коммерч. инфр.'!G37,60*$B36-1*$B35,0)>0,OFFSET('Шаг 1 - коммерч. инфр.'!G39,60*$B36-1*$B35,0)>0,OFFSET('Шаг 1 - коммерч. инфр.'!G39,60*$B36-1*$B35,0)>0,OFFSET('Шаг 1 - коммерч. инфр.'!G57,60*$B36-1*$B35,0)>0),1,0) -> 0 | G36: =IF(OR(OFFSET('Шаг 1 - коммерч. инфр.'!H37,60*$B36-1*$B35,0)>0,OFFSET('Шаг 1 - коммерч. инфр.'!H39,60*$B36-1*$B35,0)>0,OFFSET('Шаг 1 - коммерч. инфр.'!H39,60*$B36-1*$B35,0)>0,OFFSET('Шаг 1 - коммерч. инфр.'!H57,60*$B36-1*$B35,0)>0),1,0) -> 0 | H36: =IF(OR(OFFSET('Шаг 1 - коммерч. инфр.'!I37,60*$B36-1*$B35,0)>0,OFFSET('Шаг 1 - коммерч. инфр.'!I39,60*$B36-1*$B35,0)>0,OFFSET('Шаг 1 - коммерч. инфр.'!I39,60*$B36-1*$B35,0)>0,OFFSET('Шаг 1 - коммерч. инфр.'!I57,60*$B36-1*$B35,0)>0),1,0) -> 0 | I36: =IF(OR(OFFSET('Шаг 1 - коммерч. инфр.'!J37,60*$B36-1*$B35,0)>0,OFFSET('Шаг 1 - коммерч. инфр.'!J39,60*$B36-1*$B35,0)>0,OFFSET('Шаг 1 - коммерч. инфр.'!J39,60*$B36-1*$B35,0)>0,OFFSET('Шаг 1 - коммерч. инфр.'!J57,60*$B36-1*$B35,0)>0),1,0) -> 0 | J36: =IF(OR(OFFSET('Шаг 1 - коммерч. инфр.'!K37,60*$B36-1*$B35,0)>0,OFFSET('Шаг 1 - коммерч. инфр.'!K39,60*$B36-1*$B35,0)>0,OFFSET('Шаг 1 - коммерч. инфр.'!K39,60*$B36-1*$B35,0)>0,OFFSET('Шаг 1 - коммерч. инфр.'!K57,60*$B36-1*$B35,0)>0),1,0) -> 0 | K36: =IF(OR(OFFSET('Шаг 1 - коммерч. инфр.'!L37,60*$B36-1*$B35,0)>0,OFFSET('Шаг 1 - коммерч. инфр.'!L39,60*$B36-1*$B35,0)>0,OFFSET('Шаг 1 - коммерч. инфр.'!L39,60*$B36-1*$B35,0)>0,OFFSET('Шаг 1 - коммерч. инфр.'!L57,60*$B36-1*$B35,0)>0),1,0) -> 0 | L36: =IF(OR(OFFSET('Шаг 1 - коммерч. инфр.'!M37,60*$B36-1*$B35,0)>0,OFFSET('Шаг 1 - коммерч. инфр.'!M39,60*$B36-1*$B35,0)>0,OFFSET('Шаг 1 - коммерч. инфр.'!M39,60*$B36-1*$B35,0)>0,OFFSET('Шаг 1 - коммерч. инфр.'!M57,60*$B36-1*$B35,0)>0),1,0) -> 0 | M36: =IF(OR(OFFSET('Шаг 1 - коммерч. инфр.'!N37,60*$B36-1*$B35,0)>0,OFFSET('Шаг 1 - коммерч. инфр.'!N39,60*$B36-1*$B35,0)>0,OFFSET('Шаг 1 - коммерч. инфр.'!N39,60*$B36-1*$B35,0)>0,OFFSET('Шаг 1 - коммерч. инфр.'!N57,60*$B36-1*$B35,0)>0),1,0) -> 0 | N36: =IF(OR(OFFSET('Шаг 1 - коммерч. инфр.'!O37,60*$B36-1*$B35,0)>0,OFFSET('Шаг 1 - коммерч. инфр.'!O39,60*$B36-1*$B35,0)>0,OFFSET('Шаг 1 - коммерч. инфр.'!O39,60*$B36-1*$B35,0)>0,OFFSET('Шаг 1 - коммерч. инфр.'!O57,60*$B36-1*$B35,0)>0),1,0) -> 0 | O36: =IF(OR(OFFSET('Шаг 1 - коммерч. инфр.'!P37,60*$B36-1*$B35,0)>0,OFFSET('Шаг 1 - коммерч. инфр.'!P39,60*$B36-1*$B35,0)>0,OFFSET('Шаг 1 - коммерч. инфр.'!P39,60*$B36-1*$B35,0)>0,OFFSET('Шаг 1 - коммерч. инфр.'!P57,60*$B36-1*$B35,0)>0),1,0) -> 0 | P36: =IF(OR(OFFSET('Шаг 1 - коммерч. инфр.'!Q37,60*$B36-1*$B35,0)>0,OFFSET('Шаг 1 - коммерч. инфр.'!Q39,60*$B36-1*$B35,0)>0,OFFSET('Шаг 1 - коммерч. инфр.'!Q39,60*$B36-1*$B35,0)>0,OFFSET('Шаг 1 - коммерч. инфр.'!Q57,60*$B36-1*$B35,0)>0),1,0) -> 0 | Q36: =IF(OR(OFFSET('Шаг 1 - коммерч. инфр.'!R37,60*$B36-1*$B35,0)>0,OFFSET('Шаг 1 - коммерч. инфр.'!R39,60*$B36-1*$B35,0)>0,OFFSET('Шаг 1 - коммерч. инфр.'!R39,60*$B36-1*$B35,0)>0,OFFSET('Шаг 1 - коммерч. инфр.'!R57,60*$B36-1*$B35,0)>0),1,0) -> 0 | R36: =IF(OR(OFFSET('Шаг 1 - коммерч. инфр.'!S37,60*$B36-1*$B35,0)>0,OFFSET('Шаг 1 - коммерч. инфр.'!S39,60*$B36-1*$B35,0)>0,OFFSET('Шаг 1 - коммерч. инфр.'!S39,60*$B36-1*$B35,0)>0,OFFSET('Шаг 1 - коммерч. инфр.'!S57,60*$B36-1*$B35,0)>0),1,0) -> 0 | S36: =IF(OR(OFFSET('Шаг 1 - коммерч. инфр.'!T37,60*$B36-1*$B35,0)>0,OFFSET('Шаг 1 - коммерч. инфр.'!T39,60*$B36-1*$B35,0)>0,OFFSET('Шаг 1 - коммерч. инфр.'!T39,60*$B36-1*$B35,0)>0,OFFSET('Шаг 1 - коммерч. инфр.'!T57,60*$B36-1*$B35,0)>0),1,0) -> 0 | T36: =IF(OR(OFFSET('Шаг 1 - коммерч. инфр.'!U37,60*$B36-1*$B35,0)>0,OFFSET('Шаг 1 - коммерч. инфр.'!U39,60*$B36-1*$B35,0)>0,OFFSET('Шаг 1 - коммерч. инфр.'!U39,60*$B36-1*$B35,0)>0,OFFSET('Шаг 1 - коммерч. инфр.'!U57,60*$B36-1*$B35,0)>0),1,0) -> 0 | U36: =IF(OR(OFFSET('Шаг 1 - коммерч. инфр.'!V37,60*$B36-1*$B35,0)>0,OFFSET('Шаг 1 - коммерч. инфр.'!V39,60*$B36-1*$B35,0)>0,OFFSET('Шаг 1 - коммерч. инфр.'!V39,60*$B36-1*$B35,0)>0,OFFSET('Шаг 1 - коммерч. инфр.'!V57,60*$B36-1*$B35,0)>0),1,0) -> 0 | V36: =IF(OR(OFFSET('Шаг 1 - коммерч. инфр.'!W37,60*$B36-1*$B35,0)>0,OFFSET('Шаг 1 - коммерч. инфр.'!W39,60*$B36-1*$B35,0)>0,OFFSET('Шаг 1 - коммерч. инфр.'!W39,60*$B36-1*$B35,0)>0,OFFSET('Шаг 1 - коммерч. инфр.'!W57,60*$B36-1*$B35,0)>0),1,0) -> 0 | W36: =IF(OR(OFFSET('Шаг 1 - коммерч. инфр.'!X37,60*$B36-1*$B35,0)>0,OFFSET('Шаг 1 - коммерч. инфр.'!X39,60*$B36-1*$B35,0)>0,OFFSET('Шаг 1 - коммерч. инфр.'!X39,60*$B36-1*$B35,0)>0,OFFSET('Шаг 1 - коммерч. инфр.'!X57,60*$B36-1*$B35,0)>0),1,0) -> 0 | X36: =IF(OR(OFFSET('Шаг 1 - коммерч. инфр.'!Y37,60*$B36-1*$B35,0)>0,OFFSET('Шаг 1 - коммерч. инфр.'!Y39,60*$B36-1*$B35,0)>0,OFFSET('Шаг 1 - коммерч. инфр.'!Y39,60*$B36-1*$B35,0)>0,OFFSET('Шаг 1 - коммерч. инфр.'!Y57,60*$B36-1*$B35,0)>0),1,0) -> 0 | Y36: =IF(OR(OFFSET('Шаг 1 - коммерч. инфр.'!Z37,60*$B36-1*$B35,0)>0,OFFSET('Шаг 1 - коммерч. инфр.'!Z39,60*$B36-1*$B35,0)>0,OFFSET('Шаг 1 - коммерч. инфр.'!Z39,60*$B36-1*$B35,0)>0,OFFSET('Шаг 1 - коммерч. инфр.'!Z57,60*$B36-1*$B35,0)>0),1,0) -> 0 | Z36: =IF(OR(OFFSET('Шаг 1 - коммерч. инфр.'!AA37,60*$B36-1*$B35,0)>0,OFFSET('Шаг 1 - коммерч. инфр.'!AA39,60*$B36-1*$B35,0)>0,OFFSET('Шаг 1 - коммерч. инфр.'!AA39,60*$B36-1*$B35,0)>0,OFFSET('Шаг 1 - коммерч. инфр.'!AA57,60*$B36-1*$B35,0)>0),1,0) -> 0
A37: =IF(B37>'Шаг 0 - Мастер-лист'!$E$9,"x","") ->  | B37: 30 | C37: 31 | D37: =IF(OFFSET('Шаг 1 - коммерч. инфр.'!B35,60*B37-1*B36,0)=0,"",OFFSET('Шаг 1 - коммерч. инфр.'!B35,60*B37-1*B36,0)) ->  | E37: =IF(OR(OFFSET('Шаг 1 - коммерч. инфр.'!F38,60*$B37-1*$B36,0)>0,OFFSET('Шаг 1 - коммерч. инфр.'!F40,60*$B37-1*$B36,0)>0,OFFSET('Шаг 1 - коммерч. инфр.'!F40,60*$B37-1*$B36,0)>0,OFFSET('Шаг 1 - коммерч. инфр.'!F58,60*$B37-1*$B36,0)>0),1,0) -> 0 | F37: =IF(OR(OFFSET('Шаг 1 - коммерч. инфр.'!G38,60*$B37-1*$B36,0)>0,OFFSET('Шаг 1 - коммерч. инфр.'!G40,60*$B37-1*$B36,0)>0,OFFSET('Шаг 1 - коммерч. инфр.'!G40,60*$B37-1*$B36,0)>0,OFFSET('Шаг 1 - коммерч. инфр.'!G58,60*$B37-1*$B36,0)>0),1,0) -> 0 | G37: =IF(OR(OFFSET('Шаг 1 - коммерч. инфр.'!H38,60*$B37-1*$B36,0)>0,OFFSET('Шаг 1 - коммерч. инфр.'!H40,60*$B37-1*$B36,0)>0,OFFSET('Шаг 1 - коммерч. инфр.'!H40,60*$B37-1*$B36,0)>0,OFFSET('Шаг 1 - коммерч. инфр.'!H58,60*$B37-1*$B36,0)>0),1,0) -> 0 | H37: =IF(OR(OFFSET('Шаг 1 - коммерч. инфр.'!I38,60*$B37-1*$B36,0)>0,OFFSET('Шаг 1 - коммерч. инфр.'!I40,60*$B37-1*$B36,0)>0,OFFSET('Шаг 1 - коммерч. инфр.'!I40,60*$B37-1*$B36,0)>0,OFFSET('Шаг 1 - коммерч. инфр.'!I58,60*$B37-1*$B36,0)>0),1,0) -> 0 | I37: =IF(OR(OFFSET('Шаг 1 - коммерч. инфр.'!J38,60*$B37-1*$B36,0)>0,OFFSET('Шаг 1 - коммерч. инфр.'!J40,60*$B37-1*$B36,0)>0,OFFSET('Шаг 1 - коммерч. инфр.'!J40,60*$B37-1*$B36,0)>0,OFFSET('Шаг 1 - коммерч. инфр.'!J58,60*$B37-1*$B36,0)>0),1,0) -> 0 | J37: =IF(OR(OFFSET('Шаг 1 - коммерч. инфр.'!K38,60*$B37-1*$B36,0)>0,OFFSET('Шаг 1 - коммерч. инфр.'!K40,60*$B37-1*$B36,0)>0,OFFSET('Шаг 1 - коммерч. инфр.'!K40,60*$B37-1*$B36,0)>0,OFFSET('Шаг 1 - коммерч. инфр.'!K58,60*$B37-1*$B36,0)>0),1,0) -> 0 | K37: =IF(OR(OFFSET('Шаг 1 - коммерч. инфр.'!L38,60*$B37-1*$B36,0)>0,OFFSET('Шаг 1 - коммерч. инфр.'!L40,60*$B37-1*$B36,0)>0,OFFSET('Шаг 1 - коммерч. инфр.'!L40,60*$B37-1*$B36,0)>0,OFFSET('Шаг 1 - коммерч. инфр.'!L58,60*$B37-1*$B36,0)>0),1,0) -> 0 | L37: =IF(OR(OFFSET('Шаг 1 - коммерч. инфр.'!M38,60*$B37-1*$B36,0)>0,OFFSET('Шаг 1 - коммерч. инфр.'!M40,60*$B37-1*$B36,0)>0,OFFSET('Шаг 1 - коммерч. инфр.'!M40,60*$B37-1*$B36,0)>0,OFFSET('Шаг 1 - коммерч. инфр.'!M58,60*$B37-1*$B36,0)>0),1,0) -> 0 | M37: =IF(OR(OFFSET('Шаг 1 - коммерч. инфр.'!N38,60*$B37-1*$B36,0)>0,OFFSET('Шаг 1 - коммерч. инфр.'!N40,60*$B37-1*$B36,0)>0,OFFSET('Шаг 1 - коммерч. инфр.'!N40,60*$B37-1*$B36,0)>0,OFFSET('Шаг 1 - коммерч. инфр.'!N58,60*$B37-1*$B36,0)>0),1,0) -> 0 | N37: =IF(OR(OFFSET('Шаг 1 - коммерч. инфр.'!O38,60*$B37-1*$B36,0)>0,OFFSET('Шаг 1 - коммерч. инфр.'!O40,60*$B37-1*$B36,0)>0,OFFSET('Шаг 1 - коммерч. инфр.'!O40,60*$B37-1*$B36,0)>0,OFFSET('Шаг 1 - коммерч. инфр.'!O58,60*$B37-1*$B36,0)>0),1,0) -> 0 | O37: =IF(OR(OFFSET('Шаг 1 - коммерч. инфр.'!P38,60*$B37-1*$B36,0)>0,OFFSET('Шаг 1 - коммерч. инфр.'!P40,60*$B37-1*$B36,0)>0,OFFSET('Шаг 1 - коммерч. инфр.'!P40,60*$B37-1*$B36,0)>0,OFFSET('Шаг 1 - коммерч. инфр.'!P58,60*$B37-1*$B36,0)>0),1,0) -> 0 | P37: =IF(OR(OFFSET('Шаг 1 - коммерч. инфр.'!Q38,60*$B37-1*$B36,0)>0,OFFSET('Шаг 1 - коммерч. инфр.'!Q40,60*$B37-1*$B36,0)>0,OFFSET('Шаг 1 - коммерч. инфр.'!Q40,60*$B37-1*$B36,0)>0,OFFSET('Шаг 1 - коммерч. инфр.'!Q58,60*$B37-1*$B36,0)>0),1,0) -> 0 | Q37: =IF(OR(OFFSET('Шаг 1 - коммерч. инфр.'!R38,60*$B37-1*$B36,0)>0,OFFSET('Шаг 1 - коммерч. инфр.'!R40,60*$B37-1*$B36,0)>0,OFFSET('Шаг 1 - коммерч. инфр.'!R40,60*$B37-1*$B36,0)>0,OFFSET('Шаг 1 - коммерч. инфр.'!R58,60*$B37-1*$B36,0)>0),1,0) -> 0 | R37: =IF(OR(OFFSET('Шаг 1 - коммерч. инфр.'!S38,60*$B37-1*$B36,0)>0,OFFSET('Шаг 1 - коммерч. инфр.'!S40,60*$B37-1*$B36,0)>0,OFFSET('Шаг 1 - коммерч. инфр.'!S40,60*$B37-1*$B36,0)>0,OFFSET('Шаг 1 - коммерч. инфр.'!S58,60*$B37-1*$B36,0)>0),1,0) -> 0 | S37: =IF(OR(OFFSET('Шаг 1 - коммерч. инфр.'!T38,60*$B37-1*$B36,0)>0,OFFSET('Шаг 1 - коммерч. инфр.'!T40,60*$B37-1*$B36,0)>0,OFFSET('Шаг 1 - коммерч. инфр.'!T40,60*$B37-1*$B36,0)>0,OFFSET('Шаг 1 - коммерч. инфр.'!T58,60*$B37-1*$B36,0)>0),1,0) -> 0 | T37: =IF(OR(OFFSET('Шаг 1 - коммерч. инфр.'!U38,60*$B37-1*$B36,0)>0,OFFSET('Шаг 1 - коммерч. инфр.'!U40,60*$B37-1*$B36,0)>0,OFFSET('Шаг 1 - коммерч. инфр.'!U40,60*$B37-1*$B36,0)>0,OFFSET('Шаг 1 - коммерч. инфр.'!U58,60*$B37-1*$B36,0)>0),1,0) -> 0 | U37: =IF(OR(OFFSET('Шаг 1 - коммерч. инфр.'!V38,60*$B37-1*$B36,0)>0,OFFSET('Шаг 1 - коммерч. инфр.'!V40,60*$B37-1*$B36,0)>0,OFFSET('Шаг 1 - коммерч. инфр.'!V40,60*$B37-1*$B36,0)>0,OFFSET('Шаг 1 - коммерч. инфр.'!V58,60*$B37-1*$B36,0)>0),1,0) -> 0 | V37: =IF(OR(OFFSET('Шаг 1 - коммерч. инфр.'!W38,60*$B37-1*$B36,0)>0,OFFSET('Шаг 1 - коммерч. инфр.'!W40,60*$B37-1*$B36,0)>0,OFFSET('Шаг 1 - коммерч. инфр.'!W40,60*$B37-1*$B36,0)>0,OFFSET('Шаг 1 - коммерч. инфр.'!W58,60*$B37-1*$B36,0)>0),1,0) -> 0 | W37: =IF(OR(OFFSET('Шаг 1 - коммерч. инфр.'!X38,60*$B37-1*$B36,0)>0,OFFSET('Шаг 1 - коммерч. инфр.'!X40,60*$B37-1*$B36,0)>0,OFFSET('Шаг 1 - коммерч. инфр.'!X40,60*$B37-1*$B36,0)>0,OFFSET('Шаг 1 - коммерч. инфр.'!X58,60*$B37-1*$B36,0)>0),1,0) -> 0 | X37: =IF(OR(OFFSET('Шаг 1 - коммерч. инфр.'!Y38,60*$B37-1*$B36,0)>0,OFFSET('Шаг 1 - коммерч. инфр.'!Y40,60*$B37-1*$B36,0)>0,OFFSET('Шаг 1 - коммерч. инфр.'!Y40,60*$B37-1*$B36,0)>0,OFFSET('Шаг 1 - коммерч. инфр.'!Y58,60*$B37-1*$B36,0)>0),1,0) -> 0 | Y37: =IF(OR(OFFSET('Шаг 1 - коммерч. инфр.'!Z38,60*$B37-1*$B36,0)>0,OFFSET('Шаг 1 - коммерч. инфр.'!Z40,60*$B37-1*$B36,0)>0,OFFSET('Шаг 1 - коммерч. инфр.'!Z40,60*$B37-1*$B36,0)>0,OFFSET('Шаг 1 - коммерч. инфр.'!Z58,60*$B37-1*$B36,0)>0),1,0) -> 0 | Z37: =IF(OR(OFFSET('Шаг 1 - коммерч. инфр.'!AA38,60*$B37-1*$B36,0)>0,OFFSET('Шаг 1 - коммерч. инфр.'!AA40,60*$B37-1*$B36,0)>0,OFFSET('Шаг 1 - коммерч. инфр.'!AA40,60*$B37-1*$B36,0)>0,OFFSET('Шаг 1 - коммерч. инфр.'!AA58,60*$B37-1*$B36,0)>0),1,0) -> 0
A38: =IF(B38>'Шаг 0 - Мастер-лист'!$E$9,"x","") ->  | B38: 31 | C38: 32 | D38: =IF(OFFSET('Шаг 1 - коммерч. инфр.'!B36,60*B38-1*B37,0)=0,"",OFFSET('Шаг 1 - коммерч. инфр.'!B36,60*B38-1*B37,0)) ->  | E38: =IF(OR(OFFSET('Шаг 1 - коммерч. инфр.'!F39,60*$B38-1*$B37,0)>0,OFFSET('Шаг 1 - коммерч. инфр.'!F41,60*$B38-1*$B37,0)>0,OFFSET('Шаг 1 - коммерч. инфр.'!F41,60*$B38-1*$B37,0)>0,OFFSET('Шаг 1 - коммерч. инфр.'!F59,60*$B38-1*$B37,0)>0),1,0) -> 0 | F38: =IF(OR(OFFSET('Шаг 1 - коммерч. инфр.'!G39,60*$B38-1*$B37,0)>0,OFFSET('Шаг 1 - коммерч. инфр.'!G41,60*$B38-1*$B37,0)>0,OFFSET('Шаг 1 - коммерч. инфр.'!G41,60*$B38-1*$B37,0)>0,OFFSET('Шаг 1 - коммерч. инфр.'!G59,60*$B38-1*$B37,0)>0),1,0) -> 0 | G38: =IF(OR(OFFSET('Шаг 1 - коммерч. инфр.'!H39,60*$B38-1*$B37,0)>0,OFFSET('Шаг 1 - коммерч. инфр.'!H41,60*$B38-1*$B37,0)>0,OFFSET('Шаг 1 - коммерч. инфр.'!H41,60*$B38-1*$B37,0)>0,OFFSET('Шаг 1 - коммерч. инфр.'!H59,60*$B38-1*$B37,0)>0),1,0) -> 0 | H38: =IF(OR(OFFSET('Шаг 1 - коммерч. инфр.'!I39,60*$B38-1*$B37,0)>0,OFFSET('Шаг 1 - коммерч. инфр.'!I41,60*$B38-1*$B37,0)>0,OFFSET('Шаг 1 - коммерч. инфр.'!I41,60*$B38-1*$B37,0)>0,OFFSET('Шаг 1 - коммерч. инфр.'!I59,60*$B38-1*$B37,0)>0),1,0) -> 0 | I38: =IF(OR(OFFSET('Шаг 1 - коммерч. инфр.'!J39,60*$B38-1*$B37,0)>0,OFFSET('Шаг 1 - коммерч. инфр.'!J41,60*$B38-1*$B37,0)>0,OFFSET('Шаг 1 - коммерч. инфр.'!J41,60*$B38-1*$B37,0)>0,OFFSET('Шаг 1 - коммерч. инфр.'!J59,60*$B38-1*$B37,0)>0),1,0) -> 0 | J38: =IF(OR(OFFSET('Шаг 1 - коммерч. инфр.'!K39,60*$B38-1*$B37,0)>0,OFFSET('Шаг 1 - коммерч. инфр.'!K41,60*$B38-1*$B37,0)>0,OFFSET('Шаг 1 - коммерч. инфр.'!K41,60*$B38-1*$B37,0)>0,OFFSET('Шаг 1 - коммерч. инфр.'!K59,60*$B38-1*$B37,0)>0),1,0) -> 0 | K38: =IF(OR(OFFSET('Шаг 1 - коммерч. инфр.'!L39,60*$B38-1*$B37,0)>0,OFFSET('Шаг 1 - коммерч. инфр.'!L41,60*$B38-1*$B37,0)>0,OFFSET('Шаг 1 - коммерч. инфр.'!L41,60*$B38-1*$B37,0)>0,OFFSET('Шаг 1 - коммерч. инфр.'!L59,60*$B38-1*$B37,0)>0),1,0) -> 0 | L38: =IF(OR(OFFSET('Шаг 1 - коммерч. инфр.'!M39,60*$B38-1*$B37,0)>0,OFFSET('Шаг 1 - коммерч. инфр.'!M41,60*$B38-1*$B37,0)>0,OFFSET('Шаг 1 - коммерч. инфр.'!M41,60*$B38-1*$B37,0)>0,OFFSET('Шаг 1 - коммерч. инфр.'!M59,60*$B38-1*$B37,0)>0),1,0) -> 0 | M38: =IF(OR(OFFSET('Шаг 1 - коммерч. инфр.'!N39,60*$B38-1*$B37,0)>0,OFFSET('Шаг 1 - коммерч. инфр.'!N41,60*$B38-1*$B37,0)>0,OFFSET('Шаг 1 - коммерч. инфр.'!N41,60*$B38-1*$B37,0)>0,OFFSET('Шаг 1 - коммерч. инфр.'!N59,60*$B38-1*$B37,0)>0),1,0) -> 0 | N38: =IF(OR(OFFSET('Шаг 1 - коммерч. инфр.'!O39,60*$B38-1*$B37,0)>0,OFFSET('Шаг 1 - коммерч. инфр.'!O41,60*$B38-1*$B37,0)>0,OFFSET('Шаг 1 - коммерч. инфр.'!O41,60*$B38-1*$B37,0)>0,OFFSET('Шаг 1 - коммерч. инфр.'!O59,60*$B38-1*$B37,0)>0),1,0) -> 0 | O38: =IF(OR(OFFSET('Шаг 1 - коммерч. инфр.'!P39,60*$B38-1*$B37,0)>0,OFFSET('Шаг 1 - коммерч. инфр.'!P41,60*$B38-1*$B37,0)>0,OFFSET('Шаг 1 - коммерч. инфр.'!P41,60*$B38-1*$B37,0)>0,OFFSET('Шаг 1 - коммерч. инфр.'!P59,60*$B38-1*$B37,0)>0),1,0) -> 0 | P38: =IF(OR(OFFSET('Шаг 1 - коммерч. инфр.'!Q39,60*$B38-1*$B37,0)>0,OFFSET('Шаг 1 - коммерч. инфр.'!Q41,60*$B38-1*$B37,0)>0,OFFSET('Шаг 1 - коммерч. инфр.'!Q41,60*$B38-1*$B37,0)>0,OFFSET('Шаг 1 - коммерч. инфр.'!Q59,60*$B38-1*$B37,0)>0),1,0) -> 0 | Q38: =IF(OR(OFFSET('Шаг 1 - коммерч. инфр.'!R39,60*$B38-1*$B37,0)>0,OFFSET('Шаг 1 - коммерч. инфр.'!R41,60*$B38-1*$B37,0)>0,OFFSET('Шаг 1 - коммерч. инфр.'!R41,60*$B38-1*$B37,0)>0,OFFSET('Шаг 1 - коммерч. инфр.'!R59,60*$B38-1*$B37,0)>0),1,0) -> 0 | R38: =IF(OR(OFFSET('Шаг 1 - коммерч. инфр.'!S39,60*$B38-1*$B37,0)>0,OFFSET('Шаг 1 - коммерч. инфр.'!S41,60*$B38-1*$B37,0)>0,OFFSET('Шаг 1 - коммерч. инфр.'!S41,60*$B38-1*$B37,0)>0,OFFSET('Шаг 1 - коммерч. инфр.'!S59,60*$B38-1*$B37,0)>0),1,0) -> 0 | S38: =IF(OR(OFFSET('Шаг 1 - коммерч. инфр.'!T39,60*$B38-1*$B37,0)>0,OFFSET('Шаг 1 - коммерч. инфр.'!T41,60*$B38-1*$B37,0)>0,OFFSET('Шаг 1 - коммерч. инфр.'!T41,60*$B38-1*$B37,0)>0,OFFSET('Шаг 1 - коммерч. инфр.'!T59,60*$B38-1*$B37,0)>0),1,0) -> 0 | T38: =IF(OR(OFFSET('Шаг 1 - коммерч. инфр.'!U39,60*$B38-1*$B37,0)>0,OFFSET('Шаг 1 - коммерч. инфр.'!U41,60*$B38-1*$B37,0)>0,OFFSET('Шаг 1 - коммерч. инфр.'!U41,60*$B38-1*$B37,0)>0,OFFSET('Шаг 1 - коммерч. инфр.'!U59,60*$B38-1*$B37,0)>0),1,0) -> 0 | U38: =IF(OR(OFFSET('Шаг 1 - коммерч. инфр.'!V39,60*$B38-1*$B37,0)>0,OFFSET('Шаг 1 - коммерч. инфр.'!V41,60*$B38-1*$B37,0)>0,OFFSET('Шаг 1 - коммерч. инфр.'!V41,60*$B38-1*$B37,0)>0,OFFSET('Шаг 1 - коммерч. инфр.'!V59,60*$B38-1*$B37,0)>0),1,0) -> 0 | V38: =IF(OR(OFFSET('Шаг 1 - коммерч. инфр.'!W39,60*$B38-1*$B37,0)>0,OFFSET('Шаг 1 - коммерч. инфр.'!W41,60*$B38-1*$B37,0)>0,OFFSET('Шаг 1 - коммерч. инфр.'!W41,60*$B38-1*$B37,0)>0,OFFSET('Шаг 1 - коммерч. инфр.'!W59,60*$B38-1*$B37,0)>0),1,0) -> 0 | W38: =IF(OR(OFFSET('Шаг 1 - коммерч. инфр.'!X39,60*$B38-1*$B37,0)>0,OFFSET('Шаг 1 - коммерч. инфр.'!X41,60*$B38-1*$B37,0)>0,OFFSET('Шаг 1 - коммерч. инфр.'!X41,60*$B38-1*$B37,0)>0,OFFSET('Шаг 1 - коммерч. инфр.'!X59,60*$B38-1*$B37,0)>0),1,0) -> 0 | X38: =IF(OR(OFFSET('Шаг 1 - коммерч. инфр.'!Y39,60*$B38-1*$B37,0)>0,OFFSET('Шаг 1 - коммерч. инфр.'!Y41,60*$B38-1*$B37,0)>0,OFFSET('Шаг 1 - коммерч. инфр.'!Y41,60*$B38-1*$B37,0)>0,OFFSET('Шаг 1 - коммерч. инфр.'!Y59,60*$B38-1*$B37,0)>0),1,0) -> 0 | Y38: =IF(OR(OFFSET('Шаг 1 - коммерч. инфр.'!Z39,60*$B38-1*$B37,0)>0,OFFSET('Шаг 1 - коммерч. инфр.'!Z41,60*$B38-1*$B37,0)>0,OFFSET('Шаг 1 - коммерч. инфр.'!Z41,60*$B38-1*$B37,0)>0,OFFSET('Шаг 1 - коммерч. инфр.'!Z59,60*$B38-1*$B37,0)>0),1,0) -> 0 | Z38: =IF(OR(OFFSET('Шаг 1 - коммерч. инфр.'!AA39,60*$B38-1*$B37,0)>0,OFFSET('Шаг 1 - коммерч. инфр.'!AA41,60*$B38-1*$B37,0)>0,OFFSET('Шаг 1 - коммерч. инфр.'!AA41,60*$B38-1*$B37,0)>0,OFFSET('Шаг 1 - коммерч. инфр.'!AA59,60*$B38-1*$B37,0)>0),1,0) -> 0
A39: =IF(B39>'Шаг 0 - Мастер-лист'!$E$9,"x","") ->  | B39: 32 | C39: 33 | D39: =IF(OFFSET('Шаг 1 - коммерч. инфр.'!B37,60*B39-1*B38,0)=0,"",OFFSET('Шаг 1 - коммерч. инфр.'!B37,60*B39-1*B38,0)) ->  | E39: =IF(OR(OFFSET('Шаг 1 - коммерч. инфр.'!F40,60*$B39-1*$B38,0)>0,OFFSET('Шаг 1 - коммерч. инфр.'!F42,60*$B39-1*$B38,0)>0,OFFSET('Шаг 1 - коммерч. инфр.'!F42,60*$B39-1*$B38,0)>0,OFFSET('Шаг 1 - коммерч. инфр.'!F60,60*$B39-1*$B38,0)>0),1,0) -> 0 | F39: =IF(OR(OFFSET('Шаг 1 - коммерч. инфр.'!G40,60*$B39-1*$B38,0)>0,OFFSET('Шаг 1 - коммерч. инфр.'!G42,60*$B39-1*$B38,0)>0,OFFSET('Шаг 1 - коммерч. инфр.'!G42,60*$B39-1*$B38,0)>0,OFFSET('Шаг 1 - коммерч. инфр.'!G60,60*$B39-1*$B38,0)>0),1,0) -> 0 | G39: =IF(OR(OFFSET('Шаг 1 - коммерч. инфр.'!H40,60*$B39-1*$B38,0)>0,OFFSET('Шаг 1 - коммерч. инфр.'!H42,60*$B39-1*$B38,0)>0,OFFSET('Шаг 1 - коммерч. инфр.'!H42,60*$B39-1*$B38,0)>0,OFFSET('Шаг 1 - коммерч. инфр.'!H60,60*$B39-1*$B38,0)>0),1,0) -> 0 | H39: =IF(OR(OFFSET('Шаг 1 - коммерч. инфр.'!I40,60*$B39-1*$B38,0)>0,OFFSET('Шаг 1 - коммерч. инфр.'!I42,60*$B39-1*$B38,0)>0,OFFSET('Шаг 1 - коммерч. инфр.'!I42,60*$B39-1*$B38,0)>0,OFFSET('Шаг 1 - коммерч. инфр.'!I60,60*$B39-1*$B38,0)>0),1,0) -> 0 | I39: =IF(OR(OFFSET('Шаг 1 - коммерч. инфр.'!J40,60*$B39-1*$B38,0)>0,OFFSET('Шаг 1 - коммерч. инфр.'!J42,60*$B39-1*$B38,0)>0,OFFSET('Шаг 1 - коммерч. инфр.'!J42,60*$B39-1*$B38,0)>0,OFFSET('Шаг 1 - коммерч. инфр.'!J60,60*$B39-1*$B38,0)>0),1,0) -> 0 | J39: =IF(OR(OFFSET('Шаг 1 - коммерч. инфр.'!K40,60*$B39-1*$B38,0)>0,OFFSET('Шаг 1 - коммерч. инфр.'!K42,60*$B39-1*$B38,0)>0,OFFSET('Шаг 1 - коммерч. инфр.'!K42,60*$B39-1*$B38,0)>0,OFFSET('Шаг 1 - коммерч. инфр.'!K60,60*$B39-1*$B38,0)>0),1,0) -> 0 | K39: =IF(OR(OFFSET('Шаг 1 - коммерч. инфр.'!L40,60*$B39-1*$B38,0)>0,OFFSET('Шаг 1 - коммерч. инфр.'!L42,60*$B39-1*$B38,0)>0,OFFSET('Шаг 1 - коммерч. инфр.'!L42,60*$B39-1*$B38,0)>0,OFFSET('Шаг 1 - коммерч. инфр.'!L60,60*$B39-1*$B38,0)>0),1,0) -> 0 | L39: =IF(OR(OFFSET('Шаг 1 - коммерч. инфр.'!M40,60*$B39-1*$B38,0)>0,OFFSET('Шаг 1 - коммерч. инфр.'!M42,60*$B39-1*$B38,0)>0,OFFSET('Шаг 1 - коммерч. инфр.'!M42,60*$B39-1*$B38,0)>0,OFFSET('Шаг 1 - коммерч. инфр.'!M60,60*$B39-1*$B38,0)>0),1,0) -> 0 | M39: =IF(OR(OFFSET('Шаг 1 - коммерч. инфр.'!N40,60*$B39-1*$B38,0)>0,OFFSET('Шаг 1 - коммерч. инфр.'!N42,60*$B39-1*$B38,0)>0,OFFSET('Шаг 1 - коммерч. инфр.'!N42,60*$B39-1*$B38,0)>0,OFFSET('Шаг 1 - коммерч. инфр.'!N60,60*$B39-1*$B38,0)>0),1,0) -> 0 | N39: =IF(OR(OFFSET('Шаг 1 - коммерч. инфр.'!O40,60*$B39-1*$B38,0)>0,OFFSET('Шаг 1 - коммерч. инфр.'!O42,60*$B39-1*$B38,0)>0,OFFSET('Шаг 1 - коммерч. инфр.'!O42,60*$B39-1*$B38,0)>0,OFFSET('Шаг 1 - коммерч. инфр.'!O60,60*$B39-1*$B38,0)>0),1,0) -> 0 | O39: =IF(OR(OFFSET('Шаг 1 - коммерч. инфр.'!P40,60*$B39-1*$B38,0)>0,OFFSET('Шаг 1 - коммерч. инфр.'!P42,60*$B39-1*$B38,0)>0,OFFSET('Шаг 1 - коммерч. инфр.'!P42,60*$B39-1*$B38,0)>0,OFFSET('Шаг 1 - коммерч. инфр.'!P60,60*$B39-1*$B38,0)>0),1,0) -> 0 | P39: =IF(OR(OFFSET('Шаг 1 - коммерч. инфр.'!Q40,60*$B39-1*$B38,0)>0,OFFSET('Шаг 1 - коммерч. инфр.'!Q42,60*$B39-1*$B38,0)>0,OFFSET('Шаг 1 - коммерч. инфр.'!Q42,60*$B39-1*$B38,0)>0,OFFSET('Шаг 1 - коммерч. инфр.'!Q60,60*$B39-1*$B38,0)>0),1,0) -> 0 | Q39: =IF(OR(OFFSET('Шаг 1 - коммерч. инфр.'!R40,60*$B39-1*$B38,0)>0,OFFSET('Шаг 1 - коммерч. инфр.'!R42,60*$B39-1*$B38,0)>0,OFFSET('Шаг 1 - коммерч. инфр.'!R42,60*$B39-1*$B38,0)>0,OFFSET('Шаг 1 - коммерч. инфр.'!R60,60*$B39-1*$B38,0)>0),1,0) -> 0 | R39: =IF(OR(OFFSET('Шаг 1 - коммерч. инфр.'!S40,60*$B39-1*$B38,0)>0,OFFSET('Шаг 1 - коммерч. инфр.'!S42,60*$B39-1*$B38,0)>0,OFFSET('Шаг 1 - коммерч. инфр.'!S42,60*$B39-1*$B38,0)>0,OFFSET('Шаг 1 - коммерч. инфр.'!S60,60*$B39-1*$B38,0)>0),1,0) -> 0 | S39: =IF(OR(OFFSET('Шаг 1 - коммерч. инфр.'!T40,60*$B39-1*$B38,0)>0,OFFSET('Шаг 1 - коммерч. инфр.'!T42,60*$B39-1*$B38,0)>0,OFFSET('Шаг 1 - коммерч. инфр.'!T42,60*$B39-1*$B38,0)>0,OFFSET('Шаг 1 - коммерч. инфр.'!T60,60*$B39-1*$B38,0)>0),1,0) -> 0 | T39: =IF(OR(OFFSET('Шаг 1 - коммерч. инфр.'!U40,60*$B39-1*$B38,0)>0,OFFSET('Шаг 1 - коммерч. инфр.'!U42,60*$B39-1*$B38,0)>0,OFFSET('Шаг 1 - коммерч. инфр.'!U42,60*$B39-1*$B38,0)>0,OFFSET('Шаг 1 - коммерч. инфр.'!U60,60*$B39-1*$B38,0)>0),1,0) -> 0 | U39: =IF(OR(OFFSET('Шаг 1 - коммерч. инфр.'!V40,60*$B39-1*$B38,0)>0,OFFSET('Шаг 1 - коммерч. инфр.'!V42,60*$B39-1*$B38,0)>0,OFFSET('Шаг 1 - коммерч. инфр.'!V42,60*$B39-1*$B38,0)>0,OFFSET('Шаг 1 - коммерч. инфр.'!V60,60*$B39-1*$B38,0)>0),1,0) -> 0 | V39: =IF(OR(OFFSET('Шаг 1 - коммерч. инфр.'!W40,60*$B39-1*$B38,0)>0,OFFSET('Шаг 1 - коммерч. инфр.'!W42,60*$B39-1*$B38,0)>0,OFFSET('Шаг 1 - коммерч. инфр.'!W42,60*$B39-1*$B38,0)>0,OFFSET('Шаг 1 - коммерч. инфр.'!W60,60*$B39-1*$B38,0)>0),1,0) -> 0 | W39: =IF(OR(OFFSET('Шаг 1 - коммерч. инфр.'!X40,60*$B39-1*$B38,0)>0,OFFSET('Шаг 1 - коммерч. инфр.'!X42,60*$B39-1*$B38,0)>0,OFFSET('Шаг 1 - коммерч. инфр.'!X42,60*$B39-1*$B38,0)>0,OFFSET('Шаг 1 - коммерч. инфр.'!X60,60*$B39-1*$B38,0)>0),1,0) -> 0 | X39: =IF(OR(OFFSET('Шаг 1 - коммерч. инфр.'!Y40,60*$B39-1*$B38,0)>0,OFFSET('Шаг 1 - коммерч. инфр.'!Y42,60*$B39-1*$B38,0)>0,OFFSET('Шаг 1 - коммерч. инфр.'!Y42,60*$B39-1*$B38,0)>0,OFFSET('Шаг 1 - коммерч. инфр.'!Y60,60*$B39-1*$B38,0)>0),1,0) -> 0 | Y39: =IF(OR(OFFSET('Шаг 1 - коммерч. инфр.'!Z40,60*$B39-1*$B38,0)>0,OFFSET('Шаг 1 - коммерч. инфр.'!Z42,60*$B39-1*$B38,0)>0,OFFSET('Шаг 1 - коммерч. инфр.'!Z42,60*$B39-1*$B38,0)>0,OFFSET('Шаг 1 - коммерч. инфр.'!Z60,60*$B39-1*$B38,0)>0),1,0) -> 0 | Z39: =IF(OR(OFFSET('Шаг 1 - коммерч. инфр.'!AA40,60*$B39-1*$B38,0)>0,OFFSET('Шаг 1 - коммерч. инфр.'!AA42,60*$B39-1*$B38,0)>0,OFFSET('Шаг 1 - коммерч. инфр.'!AA42,60*$B39-1*$B38,0)>0,OFFSET('Шаг 1 - коммерч. инфр.'!AA60,60*$B39-1*$B38,0)>0),1,0) -> 0
A40: =IF(B40>'Шаг 0 - Мастер-лист'!$E$9,"x","") ->  | B40: 33 | C40: 34 | D40: =IF(OFFSET('Шаг 1 - коммерч. инфр.'!B38,60*B40-1*B39,0)=0,"",OFFSET('Шаг 1 - коммерч. инфр.'!B38,60*B40-1*B39,0)) ->  | E40: =IF(OR(OFFSET('Шаг 1 - коммерч. инфр.'!F41,60*$B40-1*$B39,0)>0,OFFSET('Шаг 1 - коммерч. инфр.'!F43,60*$B40-1*$B39,0)>0,OFFSET('Шаг 1 - коммерч. инфр.'!F43,60*$B40-1*$B39,0)>0,OFFSET('Шаг 1 - коммерч. инфр.'!F61,60*$B40-1*$B39,0)>0),1,0) -> 0 | F40: =IF(OR(OFFSET('Шаг 1 - коммерч. инфр.'!G41,60*$B40-1*$B39,0)>0,OFFSET('Шаг 1 - коммерч. инфр.'!G43,60*$B40-1*$B39,0)>0,OFFSET('Шаг 1 - коммерч. инфр.'!G43,60*$B40-1*$B39,0)>0,OFFSET('Шаг 1 - коммерч. инфр.'!G61,60*$B40-1*$B39,0)>0),1,0) -> 0 | G40: =IF(OR(OFFSET('Шаг 1 - коммерч. инфр.'!H41,60*$B40-1*$B39,0)>0,OFFSET('Шаг 1 - коммерч. инфр.'!H43,60*$B40-1*$B39,0)>0,OFFSET('Шаг 1 - коммерч. инфр.'!H43,60*$B40-1*$B39,0)>0,OFFSET('Шаг 1 - коммерч. инфр.'!H61,60*$B40-1*$B39,0)>0),1,0) -> 0 | H40: =IF(OR(OFFSET('Шаг 1 - коммерч. инфр.'!I41,60*$B40-1*$B39,0)>0,OFFSET('Шаг 1 - коммерч. инфр.'!I43,60*$B40-1*$B39,0)>0,OFFSET('Шаг 1 - коммерч. инфр.'!I43,60*$B40-1*$B39,0)>0,OFFSET('Шаг 1 - коммерч. инфр.'!I61,60*$B40-1*$B39,0)>0),1,0) -> 0 | I40: =IF(OR(OFFSET('Шаг 1 - коммерч. инфр.'!J41,60*$B40-1*$B39,0)>0,OFFSET('Шаг 1 - коммерч. инфр.'!J43,60*$B40-1*$B39,0)>0,OFFSET('Шаг 1 - коммерч. инфр.'!J43,60*$B40-1*$B39,0)>0,OFFSET('Шаг 1 - коммерч. инфр.'!J61,60*$B40-1*$B39,0)>0),1,0) -> 0 | J40: =IF(OR(OFFSET('Шаг 1 - коммерч. инфр.'!K41,60*$B40-1*$B39,0)>0,OFFSET('Шаг 1 - коммерч. инфр.'!K43,60*$B40-1*$B39,0)>0,OFFSET('Шаг 1 - коммерч. инфр.'!K43,60*$B40-1*$B39,0)>0,OFFSET('Шаг 1 - коммерч. инфр.'!K61,60*$B40-1*$B39,0)>0),1,0) -> 0 | K40: =IF(OR(OFFSET('Шаг 1 - коммерч. инфр.'!L41,60*$B40-1*$B39,0)>0,OFFSET('Шаг 1 - коммерч. инфр.'!L43,60*$B40-1*$B39,0)>0,OFFSET('Шаг 1 - коммерч. инфр.'!L43,60*$B40-1*$B39,0)>0,OFFSET('Шаг 1 - коммерч. инфр.'!L61,60*$B40-1*$B39,0)>0),1,0) -> 0 | L40: =IF(OR(OFFSET('Шаг 1 - коммерч. инфр.'!M41,60*$B40-1*$B39,0)>0,OFFSET('Шаг 1 - коммерч. инфр.'!M43,60*$B40-1*$B39,0)>0,OFFSET('Шаг 1 - коммерч. инфр.'!M43,60*$B40-1*$B39,0)>0,OFFSET('Шаг 1 - коммерч. инфр.'!M61,60*$B40-1*$B39,0)>0),1,0) -> 0 | M40: =IF(OR(OFFSET('Шаг 1 - коммерч. инфр.'!N41,60*$B40-1*$B39,0)>0,OFFSET('Шаг 1 - коммерч. инфр.'!N43,60*$B40-1*$B39,0)>0,OFFSET('Шаг 1 - коммерч. инфр.'!N43,60*$B40-1*$B39,0)>0,OFFSET('Шаг 1 - коммерч. инфр.'!N61,60*$B40-1*$B39,0)>0),1,0) -> 0 | N40: =IF(OR(OFFSET('Шаг 1 - коммерч. инфр.'!O41,60*$B40-1*$B39,0)>0,OFFSET('Шаг 1 - коммерч. инфр.'!O43,60*$B40-1*$B39,0)>0,OFFSET('Шаг 1 - коммерч. инфр.'!O43,60*$B40-1*$B39,0)>0,OFFSET('Шаг 1 - коммерч. инфр.'!O61,60*$B40-1*$B39,0)>0),1,0) -> 0 | O40: =IF(OR(OFFSET('Шаг 1 - коммерч. инфр.'!P41,60*$B40-1*$B39,0)>0,OFFSET('Шаг 1 - коммерч. инфр.'!P43,60*$B40-1*$B39,0)>0,OFFSET('Шаг 1 - коммерч. инфр.'!P43,60*$B40-1*$B39,0)>0,OFFSET('Шаг 1 - коммерч. инфр.'!P61,60*$B40-1*$B39,0)>0),1,0) -> 0 | P40: =IF(OR(OFFSET('Шаг 1 - коммерч. инфр.'!Q41,60*$B40-1*$B39,0)>0,OFFSET('Шаг 1 - коммерч. инфр.'!Q43,60*$B40-1*$B39,0)>0,OFFSET('Шаг 1 - коммерч. инфр.'!Q43,60*$B40-1*$B39,0)>0,OFFSET('Шаг 1 - коммерч. инфр.'!Q61,60*$B40-1*$B39,0)>0),1,0) -> 0 | Q40: =IF(OR(OFFSET('Шаг 1 - коммерч. инфр.'!R41,60*$B40-1*$B39,0)>0,OFFSET('Шаг 1 - коммерч. инфр.'!R43,60*$B40-1*$B39,0)>0,OFFSET('Шаг 1 - коммерч. инфр.'!R43,60*$B40-1*$B39,0)>0,OFFSET('Шаг 1 - коммерч. инфр.'!R61,60*$B40-1*$B39,0)>0),1,0) -> 0 | R40: =IF(OR(OFFSET('Шаг 1 - коммерч. инфр.'!S41,60*$B40-1*$B39,0)>0,OFFSET('Шаг 1 - коммерч. инфр.'!S43,60*$B40-1*$B39,0)>0,OFFSET('Шаг 1 - коммерч. инфр.'!S43,60*$B40-1*$B39,0)>0,OFFSET('Шаг 1 - коммерч. инфр.'!S61,60*$B40-1*$B39,0)>0),1,0) -> 0 | S40: =IF(OR(OFFSET('Шаг 1 - коммерч. инфр.'!T41,60*$B40-1*$B39,0)>0,OFFSET('Шаг 1 - коммерч. инфр.'!T43,60*$B40-1*$B39,0)>0,OFFSET('Шаг 1 - коммерч. инфр.'!T43,60*$B40-1*$B39,0)>0,OFFSET('Шаг 1 - коммерч. инфр.'!T61,60*$B40-1*$B39,0)>0),1,0) -> 0 | T40: =IF(OR(OFFSET('Шаг 1 - коммерч. инфр.'!U41,60*$B40-1*$B39,0)>0,OFFSET('Шаг 1 - коммерч. инфр.'!U43,60*$B40-1*$B39,0)>0,OFFSET('Шаг 1 - коммерч. инфр.'!U43,60*$B40-1*$B39,0)>0,OFFSET('Шаг 1 - коммерч. инфр.'!U61,60*$B40-1*$B39,0)>0),1,0) -> 0 | U40: =IF(OR(OFFSET('Шаг 1 - коммерч. инфр.'!V41,60*$B40-1*$B39,0)>0,OFFSET('Шаг 1 - коммерч. инфр.'!V43,60*$B40-1*$B39,0)>0,OFFSET('Шаг 1 - коммерч. инфр.'!V43,60*$B40-1*$B39,0)>0,OFFSET('Шаг 1 - коммерч. инфр.'!V61,60*$B40-1*$B39,0)>0),1,0) -> 0 | V40: =IF(OR(OFFSET('Шаг 1 - коммерч. инфр.'!W41,60*$B40-1*$B39,0)>0,OFFSET('Шаг 1 - коммерч. инфр.'!W43,60*$B40-1*$B39,0)>0,OFFSET('Шаг 1 - коммерч. инфр.'!W43,60*$B40-1*$B39,0)>0,OFFSET('Шаг 1 - коммерч. инфр.'!W61,60*$B40-1*$B39,0)>0),1,0) -> 0 | W40: =IF(OR(OFFSET('Шаг 1 - коммерч. инфр.'!X41,60*$B40-1*$B39,0)>0,OFFSET('Шаг 1 - коммерч. инфр.'!X43,60*$B40-1*$B39,0)>0,OFFSET('Шаг 1 - коммерч. инфр.'!X43,60*$B40-1*$B39,0)>0,OFFSET('Шаг 1 - коммерч. инфр.'!X61,60*$B40-1*$B39,0)>0),1,0) -> 0 | X40: =IF(OR(OFFSET('Шаг 1 - коммерч. инфр.'!Y41,60*$B40-1*$B39,0)>0,OFFSET('Шаг 1 - коммерч. инфр.'!Y43,60*$B40-1*$B39,0)>0,OFFSET('Шаг 1 - коммерч. инфр.'!Y43,60*$B40-1*$B39,0)>0,OFFSET('Шаг 1 - коммерч. инфр.'!Y61,60*$B40-1*$B39,0)>0),1,0) -> 0 | Y40: =IF(OR(OFFSET('Шаг 1 - коммерч. инфр.'!Z41,60*$B40-1*$B39,0)>0,OFFSET('Шаг 1 - коммерч. инфр.'!Z43,60*$B40-1*$B39,0)>0,OFFSET('Шаг 1 - коммерч. инфр.'!Z43,60*$B40-1*$B39,0)>0,OFFSET('Шаг 1 - коммерч. инфр.'!Z61,60*$B40-1*$B39,0)>0),1,0) -> 0 | Z40: =IF(OR(OFFSET('Шаг 1 - коммерч. инфр.'!AA41,60*$B40-1*$B39,0)>0,OFFSET('Шаг 1 - коммерч. инфр.'!AA43,60*$B40-1*$B39,0)>0,OFFSET('Шаг 1 - коммерч. инфр.'!AA43,60*$B40-1*$B39,0)>0,OFFSET('Шаг 1 - коммерч. инфр.'!AA61,60*$B40-1*$B39,0)>0),1,0) -> 0
A41: =IF(B41>'Шаг 0 - Мастер-лист'!$E$9,"x","") ->  | B41: 34 | C41: 35 | D41: =IF(OFFSET('Шаг 1 - коммерч. инфр.'!B39,60*B41-1*B40,0)=0,"",OFFSET('Шаг 1 - коммерч. инфр.'!B39,60*B41-1*B40,0)) ->  | E41: =IF(OR(OFFSET('Шаг 1 - коммерч. инфр.'!F42,60*$B41-1*$B40,0)>0,OFFSET('Шаг 1 - коммерч. инфр.'!F44,60*$B41-1*$B40,0)>0,OFFSET('Шаг 1 - коммерч. инфр.'!F44,60*$B41-1*$B40,0)>0,OFFSET('Шаг 1 - коммерч. инфр.'!F62,60*$B41-1*$B40,0)>0),1,0) -> 0 | F41: =IF(OR(OFFSET('Шаг 1 - коммерч. инфр.'!G42,60*$B41-1*$B40,0)>0,OFFSET('Шаг 1 - коммерч. инфр.'!G44,60*$B41-1*$B40,0)>0,OFFSET('Шаг 1 - коммерч. инфр.'!G44,60*$B41-1*$B40,0)>0,OFFSET('Шаг 1 - коммерч. инфр.'!G62,60*$B41-1*$B40,0)>0),1,0) -> 0 | G41: =IF(OR(OFFSET('Шаг 1 - коммерч. инфр.'!H42,60*$B41-1*$B40,0)>0,OFFSET('Шаг 1 - коммерч. инфр.'!H44,60*$B41-1*$B40,0)>0,OFFSET('Шаг 1 - коммерч. инфр.'!H44,60*$B41-1*$B40,0)>0,OFFSET('Шаг 1 - коммерч. инфр.'!H62,60*$B41-1*$B40,0)>0),1,0) -> 0 | H41: =IF(OR(OFFSET('Шаг 1 - коммерч. инфр.'!I42,60*$B41-1*$B40,0)>0,OFFSET('Шаг 1 - коммерч. инфр.'!I44,60*$B41-1*$B40,0)>0,OFFSET('Шаг 1 - коммерч. инфр.'!I44,60*$B41-1*$B40,0)>0,OFFSET('Шаг 1 - коммерч. инфр.'!I62,60*$B41-1*$B40,0)>0),1,0) -> 0 | I41: =IF(OR(OFFSET('Шаг 1 - коммерч. инфр.'!J42,60*$B41-1*$B40,0)>0,OFFSET('Шаг 1 - коммерч. инфр.'!J44,60*$B41-1*$B40,0)>0,OFFSET('Шаг 1 - коммерч. инфр.'!J44,60*$B41-1*$B40,0)>0,OFFSET('Шаг 1 - коммерч. инфр.'!J62,60*$B41-1*$B40,0)>0),1,0) -> 0 | J41: =IF(OR(OFFSET('Шаг 1 - коммерч. инфр.'!K42,60*$B41-1*$B40,0)>0,OFFSET('Шаг 1 - коммерч. инфр.'!K44,60*$B41-1*$B40,0)>0,OFFSET('Шаг 1 - коммерч. инфр.'!K44,60*$B41-1*$B40,0)>0,OFFSET('Шаг 1 - коммерч. инфр.'!K62,60*$B41-1*$B40,0)>0),1,0) -> 0 | K41: =IF(OR(OFFSET('Шаг 1 - коммерч. инфр.'!L42,60*$B41-1*$B40,0)>0,OFFSET('Шаг 1 - коммерч. инфр.'!L44,60*$B41-1*$B40,0)>0,OFFSET('Шаг 1 - коммерч. инфр.'!L44,60*$B41-1*$B40,0)>0,OFFSET('Шаг 1 - коммерч. инфр.'!L62,60*$B41-1*$B40,0)>0),1,0) -> 0 | L41: =IF(OR(OFFSET('Шаг 1 - коммерч. инфр.'!M42,60*$B41-1*$B40,0)>0,OFFSET('Шаг 1 - коммерч. инфр.'!M44,60*$B41-1*$B40,0)>0,OFFSET('Шаг 1 - коммерч. инфр.'!M44,60*$B41-1*$B40,0)>0,OFFSET('Шаг 1 - коммерч. инфр.'!M62,60*$B41-1*$B40,0)>0),1,0) -> 0 | M41: =IF(OR(OFFSET('Шаг 1 - коммерч. инфр.'!N42,60*$B41-1*$B40,0)>0,OFFSET('Шаг 1 - коммерч. инфр.'!N44,60*$B41-1*$B40,0)>0,OFFSET('Шаг 1 - коммерч. инфр.'!N44,60*$B41-1*$B40,0)>0,OFFSET('Шаг 1 - коммерч. инфр.'!N62,60*$B41-1*$B40,0)>0),1,0) -> 0 | N41: =IF(OR(OFFSET('Шаг 1 - коммерч. инфр.'!O42,60*$B41-1*$B40,0)>0,OFFSET('Шаг 1 - коммерч. инфр.'!O44,60*$B41-1*$B40,0)>0,OFFSET('Шаг 1 - коммерч. инфр.'!O44,60*$B41-1*$B40,0)>0,OFFSET('Шаг 1 - коммерч. инфр.'!O62,60*$B41-1*$B40,0)>0),1,0) -> 0 | O41: =IF(OR(OFFSET('Шаг 1 - коммерч. инфр.'!P42,60*$B41-1*$B40,0)>0,OFFSET('Шаг 1 - коммерч. инфр.'!P44,60*$B41-1*$B40,0)>0,OFFSET('Шаг 1 - коммерч. инфр.'!P44,60*$B41-1*$B40,0)>0,OFFSET('Шаг 1 - коммерч. инфр.'!P62,60*$B41-1*$B40,0)>0),1,0) -> 0 | P41: =IF(OR(OFFSET('Шаг 1 - коммерч. инфр.'!Q42,60*$B41-1*$B40,0)>0,OFFSET('Шаг 1 - коммерч. инфр.'!Q44,60*$B41-1*$B40,0)>0,OFFSET('Шаг 1 - коммерч. инфр.'!Q44,60*$B41-1*$B40,0)>0,OFFSET('Шаг 1 - коммерч. инфр.'!Q62,60*$B41-1*$B40,0)>0),1,0) -> 0 | Q41: =IF(OR(OFFSET('Шаг 1 - коммерч. инфр.'!R42,60*$B41-1*$B40,0)>0,OFFSET('Шаг 1 - коммерч. инфр.'!R44,60*$B41-1*$B40,0)>0,OFFSET('Шаг 1 - коммерч. инфр.'!R44,60*$B41-1*$B40,0)>0,OFFSET('Шаг 1 - коммерч. инфр.'!R62,60*$B41-1*$B40,0)>0),1,0) -> 0 | R41: =IF(OR(OFFSET('Шаг 1 - коммерч. инфр.'!S42,60*$B41-1*$B40,0)>0,OFFSET('Шаг 1 - коммерч. инфр.'!S44,60*$B41-1*$B40,0)>0,OFFSET('Шаг 1 - коммерч. инфр.'!S44,60*$B41-1*$B40,0)>0,OFFSET('Шаг 1 - коммерч. инфр.'!S62,60*$B41-1*$B40,0)>0),1,0) -> 0 | S41: =IF(OR(OFFSET('Шаг 1 - коммерч. инфр.'!T42,60*$B41-1*$B40,0)>0,OFFSET('Шаг 1 - коммерч. инфр.'!T44,60*$B41-1*$B40,0)>0,OFFSET('Шаг 1 - коммерч. инфр.'!T44,60*$B41-1*$B40,0)>0,OFFSET('Шаг 1 - коммерч. инфр.'!T62,60*$B41-1*$B40,0)>0),1,0) -> 0 | T41: =IF(OR(OFFSET('Шаг 1 - коммерч. инфр.'!U42,60*$B41-1*$B40,0)>0,OFFSET('Шаг 1 - коммерч. инфр.'!U44,60*$B41-1*$B40,0)>0,OFFSET('Шаг 1 - коммерч. инфр.'!U44,60*$B41-1*$B40,0)>0,OFFSET('Шаг 1 - коммерч. инфр.'!U62,60*$B41-1*$B40,0)>0),1,0) -> 0 | U41: =IF(OR(OFFSET('Шаг 1 - коммерч. инфр.'!V42,60*$B41-1*$B40,0)>0,OFFSET('Шаг 1 - коммерч. инфр.'!V44,60*$B41-1*$B40,0)>0,OFFSET('Шаг 1 - коммерч. инфр.'!V44,60*$B41-1*$B40,0)>0,OFFSET('Шаг 1 - коммерч. инфр.'!V62,60*$B41-1*$B40,0)>0),1,0) -> 0 | V41: =IF(OR(OFFSET('Шаг 1 - коммерч. инфр.'!W42,60*$B41-1*$B40,0)>0,OFFSET('Шаг 1 - коммерч. инфр.'!W44,60*$B41-1*$B40,0)>0,OFFSET('Шаг 1 - коммерч. инфр.'!W44,60*$B41-1*$B40,0)>0,OFFSET('Шаг 1 - коммерч. инфр.'!W62,60*$B41-1*$B40,0)>0),1,0) -> 0 | W41: =IF(OR(OFFSET('Шаг 1 - коммерч. инфр.'!X42,60*$B41-1*$B40,0)>0,OFFSET('Шаг 1 - коммерч. инфр.'!X44,60*$B41-1*$B40,0)>0,OFFSET('Шаг 1 - коммерч. инфр.'!X44,60*$B41-1*$B40,0)>0,OFFSET('Шаг 1 - коммерч. инфр.'!X62,60*$B41-1*$B40,0)>0),1,0) -> 0 | X41: =IF(OR(OFFSET('Шаг 1 - коммерч. инфр.'!Y42,60*$B41-1*$B40,0)>0,OFFSET('Шаг 1 - коммерч. инфр.'!Y44,60*$B41-1*$B40,0)>0,OFFSET('Шаг 1 - коммерч. инфр.'!Y44,60*$B41-1*$B40,0)>0,OFFSET('Шаг 1 - коммерч. инфр.'!Y62,60*$B41-1*$B40,0)>0),1,0) -> 0 | Y41: =IF(OR(OFFSET('Шаг 1 - коммерч. инфр.'!Z42,60*$B41-1*$B40,0)>0,OFFSET('Шаг 1 - коммерч. инфр.'!Z44,60*$B41-1*$B40,0)>0,OFFSET('Шаг 1 - коммерч. инфр.'!Z44,60*$B41-1*$B40,0)>0,OFFSET('Шаг 1 - коммерч. инфр.'!Z62,60*$B41-1*$B40,0)>0),1,0) -> 0 | Z41: =IF(OR(OFFSET('Шаг 1 - коммерч. инфр.'!AA42,60*$B41-1*$B40,0)>0,OFFSET('Шаг 1 - коммерч. инфр.'!AA44,60*$B41-1*$B40,0)>0,OFFSET('Шаг 1 - коммерч. инфр.'!AA44,60*$B41-1*$B40,0)>0,OFFSET('Шаг 1 - коммерч. инфр.'!AA62,60*$B41-1*$B40,0)>0),1,0) -> 0
A42: =IF(B42>'Шаг 0 - Мастер-лист'!$E$9,"x","") ->  | B42: 35 | C42: 36 | D42: =IF(OFFSET('Шаг 1 - коммерч. инфр.'!B40,60*B42-1*B41,0)=0,"",OFFSET('Шаг 1 - коммерч. инфр.'!B40,60*B42-1*B41,0)) ->  | E42: =IF(OR(OFFSET('Шаг 1 - коммерч. инфр.'!F43,60*$B42-1*$B41,0)>0,OFFSET('Шаг 1 - коммерч. инфр.'!F45,60*$B42-1*$B41,0)>0,OFFSET('Шаг 1 - коммерч. инфр.'!F45,60*$B42-1*$B41,0)>0,OFFSET('Шаг 1 - коммерч. инфр.'!F63,60*$B42-1*$B41,0)>0),1,0) -> 0 | F42: =IF(OR(OFFSET('Шаг 1 - коммерч. инфр.'!G43,60*$B42-1*$B41,0)>0,OFFSET('Шаг 1 - коммерч. инфр.'!G45,60*$B42-1*$B41,0)>0,OFFSET('Шаг 1 - коммерч. инфр.'!G45,60*$B42-1*$B41,0)>0,OFFSET('Шаг 1 - коммерч. инфр.'!G63,60*$B42-1*$B41,0)>0),1,0) -> 0 | G42: =IF(OR(OFFSET('Шаг 1 - коммерч. инфр.'!H43,60*$B42-1*$B41,0)>0,OFFSET('Шаг 1 - коммерч. инфр.'!H45,60*$B42-1*$B41,0)>0,OFFSET('Шаг 1 - коммерч. инфр.'!H45,60*$B42-1*$B41,0)>0,OFFSET('Шаг 1 - коммерч. инфр.'!H63,60*$B42-1*$B41,0)>0),1,0) -> 0 | H42: =IF(OR(OFFSET('Шаг 1 - коммерч. инфр.'!I43,60*$B42-1*$B41,0)>0,OFFSET('Шаг 1 - коммерч. инфр.'!I45,60*$B42-1*$B41,0)>0,OFFSET('Шаг 1 - коммерч. инфр.'!I45,60*$B42-1*$B41,0)>0,OFFSET('Шаг 1 - коммерч. инфр.'!I63,60*$B42-1*$B41,0)>0),1,0) -> 0 | I42: =IF(OR(OFFSET('Шаг 1 - коммерч. инфр.'!J43,60*$B42-1*$B41,0)>0,OFFSET('Шаг 1 - коммерч. инфр.'!J45,60*$B42-1*$B41,0)>0,OFFSET('Шаг 1 - коммерч. инфр.'!J45,60*$B42-1*$B41,0)>0,OFFSET('Шаг 1 - коммерч. инфр.'!J63,60*$B42-1*$B41,0)>0),1,0) -> 0 | J42: =IF(OR(OFFSET('Шаг 1 - коммерч. инфр.'!K43,60*$B42-1*$B41,0)>0,OFFSET('Шаг 1 - коммерч. инфр.'!K45,60*$B42-1*$B41,0)>0,OFFSET('Шаг 1 - коммерч. инфр.'!K45,60*$B42-1*$B41,0)>0,OFFSET('Шаг 1 - коммерч. инфр.'!K63,60*$B42-1*$B41,0)>0),1,0) -> 0 | K42: =IF(OR(OFFSET('Шаг 1 - коммерч. инфр.'!L43,60*$B42-1*$B41,0)>0,OFFSET('Шаг 1 - коммерч. инфр.'!L45,60*$B42-1*$B41,0)>0,OFFSET('Шаг 1 - коммерч. инфр.'!L45,60*$B42-1*$B41,0)>0,OFFSET('Шаг 1 - коммерч. инфр.'!L63,60*$B42-1*$B41,0)>0),1,0) -> 0 | L42: =IF(OR(OFFSET('Шаг 1 - коммерч. инфр.'!M43,60*$B42-1*$B41,0)>0,OFFSET('Шаг 1 - коммерч. инфр.'!M45,60*$B42-1*$B41,0)>0,OFFSET('Шаг 1 - коммерч. инфр.'!M45,60*$B42-1*$B41,0)>0,OFFSET('Шаг 1 - коммерч. инфр.'!M63,60*$B42-1*$B41,0)>0),1,0) -> 0 | M42: =IF(OR(OFFSET('Шаг 1 - коммерч. инфр.'!N43,60*$B42-1*$B41,0)>0,OFFSET('Шаг 1 - коммерч. инфр.'!N45,60*$B42-1*$B41,0)>0,OFFSET('Шаг 1 - коммерч. инфр.'!N45,60*$B42-1*$B41,0)>0,OFFSET('Шаг 1 - коммерч. инфр.'!N63,60*$B42-1*$B41,0)>0),1,0) -> 0 | N42: =IF(OR(OFFSET('Шаг 1 - коммерч. инфр.'!O43,60*$B42-1*$B41,0)>0,OFFSET('Шаг 1 - коммерч. инфр.'!O45,60*$B42-1*$B41,0)>0,OFFSET('Шаг 1 - коммерч. инфр.'!O45,60*$B42-1*$B41,0)>0,OFFSET('Шаг 1 - коммерч. инфр.'!O63,60*$B42-1*$B41,0)>0),1,0) -> 0 | O42: =IF(OR(OFFSET('Шаг 1 - коммерч. инфр.'!P43,60*$B42-1*$B41,0)>0,OFFSET('Шаг 1 - коммерч. инфр.'!P45,60*$B42-1*$B41,0)>0,OFFSET('Шаг 1 - коммерч. инфр.'!P45,60*$B42-1*$B41,0)>0,OFFSET('Шаг 1 - коммерч. инфр.'!P63,60*$B42-1*$B41,0)>0),1,0) -> 0 | P42: =IF(OR(OFFSET('Шаг 1 - коммерч. инфр.'!Q43,60*$B42-1*$B41,0)>0,OFFSET('Шаг 1 - коммерч. инфр.'!Q45,60*$B42-1*$B41,0)>0,OFFSET('Шаг 1 - коммерч. инфр.'!Q45,60*$B42-1*$B41,0)>0,OFFSET('Шаг 1 - коммерч. инфр.'!Q63,60*$B42-1*$B41,0)>0),1,0) -> 0 | Q42: =IF(OR(OFFSET('Шаг 1 - коммерч. инфр.'!R43,60*$B42-1*$B41,0)>0,OFFSET('Шаг 1 - коммерч. инфр.'!R45,60*$B42-1*$B41,0)>0,OFFSET('Шаг 1 - коммерч. инфр.'!R45,60*$B42-1*$B41,0)>0,OFFSET('Шаг 1 - коммерч. инфр.'!R63,60*$B42-1*$B41,0)>0),1,0) -> 0 | R42: =IF(OR(OFFSET('Шаг 1 - коммерч. инфр.'!S43,60*$B42-1*$B41,0)>0,OFFSET('Шаг 1 - коммерч. инфр.'!S45,60*$B42-1*$B41,0)>0,OFFSET('Шаг 1 - коммерч. инфр.'!S45,60*$B42-1*$B41,0)>0,OFFSET('Шаг 1 - коммерч. инфр.'!S63,60*$B42-1*$B41,0)>0),1,0) -> 0 | S42: =IF(OR(OFFSET('Шаг 1 - коммерч. инфр.'!T43,60*$B42-1*$B41,0)>0,OFFSET('Шаг 1 - коммерч. инфр.'!T45,60*$B42-1*$B41,0)>0,OFFSET('Шаг 1 - коммерч. инфр.'!T45,60*$B42-1*$B41,0)>0,OFFSET('Шаг 1 - коммерч. инфр.'!T63,60*$B42-1*$B41,0)>0),1,0) -> 0 | T42: =IF(OR(OFFSET('Шаг 1 - коммерч. инфр.'!U43,60*$B42-1*$B41,0)>0,OFFSET('Шаг 1 - коммерч. инфр.'!U45,60*$B42-1*$B41,0)>0,OFFSET('Шаг 1 - коммерч. инфр.'!U45,60*$B42-1*$B41,0)>0,OFFSET('Шаг 1 - коммерч. инфр.'!U63,60*$B42-1*$B41,0)>0),1,0) -> 0 | U42: =IF(OR(OFFSET('Шаг 1 - коммерч. инфр.'!V43,60*$B42-1*$B41,0)>0,OFFSET('Шаг 1 - коммерч. инфр.'!V45,60*$B42-1*$B41,0)>0,OFFSET('Шаг 1 - коммерч. инфр.'!V45,60*$B42-1*$B41,0)>0,OFFSET('Шаг 1 - коммерч. инфр.'!V63,60*$B42-1*$B41,0)>0),1,0) -> 0 | V42: =IF(OR(OFFSET('Шаг 1 - коммерч. инфр.'!W43,60*$B42-1*$B41,0)>0,OFFSET('Шаг 1 - коммерч. инфр.'!W45,60*$B42-1*$B41,0)>0,OFFSET('Шаг 1 - коммерч. инфр.'!W45,60*$B42-1*$B41,0)>0,OFFSET('Шаг 1 - коммерч. инфр.'!W63,60*$B42-1*$B41,0)>0),1,0) -> 0 | W42: =IF(OR(OFFSET('Шаг 1 - коммерч. инфр.'!X43,60*$B42-1*$B41,0)>0,OFFSET('Шаг 1 - коммерч. инфр.'!X45,60*$B42-1*$B41,0)>0,OFFSET('Шаг 1 - коммерч. инфр.'!X45,60*$B42-1*$B41,0)>0,OFFSET('Шаг 1 - коммерч. инфр.'!X63,60*$B42-1*$B41,0)>0),1,0) -> 0 | X42: =IF(OR(OFFSET('Шаг 1 - коммерч. инфр.'!Y43,60*$B42-1*$B41,0)>0,OFFSET('Шаг 1 - коммерч. инфр.'!Y45,60*$B42-1*$B41,0)>0,OFFSET('Шаг 1 - коммерч. инфр.'!Y45,60*$B42-1*$B41,0)>0,OFFSET('Шаг 1 - коммерч. инфр.'!Y63,60*$B42-1*$B41,0)>0),1,0) -> 0 | Y42: =IF(OR(OFFSET('Шаг 1 - коммерч. инфр.'!Z43,60*$B42-1*$B41,0)>0,OFFSET('Шаг 1 - коммерч. инфр.'!Z45,60*$B42-1*$B41,0)>0,OFFSET('Шаг 1 - коммерч. инфр.'!Z45,60*$B42-1*$B41,0)>0,OFFSET('Шаг 1 - коммерч. инфр.'!Z63,60*$B42-1*$B41,0)>0),1,0) -> 0 | Z42: =IF(OR(OFFSET('Шаг 1 - коммерч. инфр.'!AA43,60*$B42-1*$B41,0)>0,OFFSET('Шаг 1 - коммерч. инфр.'!AA45,60*$B42-1*$B41,0)>0,OFFSET('Шаг 1 - коммерч. инфр.'!AA45,60*$B42-1*$B41,0)>0,OFFSET('Шаг 1 - коммерч. инфр.'!AA63,60*$B42-1*$B41,0)>0),1,0) -> 0
A43: =IF(B43>'Шаг 0 - Мастер-лист'!$E$9,"x","") ->  | B43: 36 | C43: 37 | D43: =IF(OFFSET('Шаг 1 - коммерч. инфр.'!B41,60*B43-1*B42,0)=0,"",OFFSET('Шаг 1 - коммерч. инфр.'!B41,60*B43-1*B42,0)) ->  | E43: =IF(OR(OFFSET('Шаг 1 - коммерч. инфр.'!F44,60*$B43-1*$B42,0)>0,OFFSET('Шаг 1 - коммерч. инфр.'!F46,60*$B43-1*$B42,0)>0,OFFSET('Шаг 1 - коммерч. инфр.'!F46,60*$B43-1*$B42,0)>0,OFFSET('Шаг 1 - коммерч. инфр.'!F64,60*$B43-1*$B42,0)>0),1,0) -> 0 | F43: =IF(OR(OFFSET('Шаг 1 - коммерч. инфр.'!G44,60*$B43-1*$B42,0)>0,OFFSET('Шаг 1 - коммерч. инфр.'!G46,60*$B43-1*$B42,0)>0,OFFSET('Шаг 1 - коммерч. инфр.'!G46,60*$B43-1*$B42,0)>0,OFFSET('Шаг 1 - коммерч. инфр.'!G64,60*$B43-1*$B42,0)>0),1,0) -> 0 | G43: =IF(OR(OFFSET('Шаг 1 - коммерч. инфр.'!H44,60*$B43-1*$B42,0)>0,OFFSET('Шаг 1 - коммерч. инфр.'!H46,60*$B43-1*$B42,0)>0,OFFSET('Шаг 1 - коммерч. инфр.'!H46,60*$B43-1*$B42,0)>0,OFFSET('Шаг 1 - коммерч. инфр.'!H64,60*$B43-1*$B42,0)>0),1,0) -> 0 | H43: =IF(OR(OFFSET('Шаг 1 - коммерч. инфр.'!I44,60*$B43-1*$B42,0)>0,OFFSET('Шаг 1 - коммерч. инфр.'!I46,60*$B43-1*$B42,0)>0,OFFSET('Шаг 1 - коммерч. инфр.'!I46,60*$B43-1*$B42,0)>0,OFFSET('Шаг 1 - коммерч. инфр.'!I64,60*$B43-1*$B42,0)>0),1,0) -> 0 | I43: =IF(OR(OFFSET('Шаг 1 - коммерч. инфр.'!J44,60*$B43-1*$B42,0)>0,OFFSET('Шаг 1 - коммерч. инфр.'!J46,60*$B43-1*$B42,0)>0,OFFSET('Шаг 1 - коммерч. инфр.'!J46,60*$B43-1*$B42,0)>0,OFFSET('Шаг 1 - коммерч. инфр.'!J64,60*$B43-1*$B42,0)>0),1,0) -> 0 | J43: =IF(OR(OFFSET('Шаг 1 - коммерч. инфр.'!K44,60*$B43-1*$B42,0)>0,OFFSET('Шаг 1 - коммерч. инфр.'!K46,60*$B43-1*$B42,0)>0,OFFSET('Шаг 1 - коммерч. инфр.'!K46,60*$B43-1*$B42,0)>0,OFFSET('Шаг 1 - коммерч. инфр.'!K64,60*$B43-1*$B42,0)>0),1,0) -> 0 | K43: =IF(OR(OFFSET('Шаг 1 - коммерч. инфр.'!L44,60*$B43-1*$B42,0)>0,OFFSET('Шаг 1 - коммерч. инфр.'!L46,60*$B43-1*$B42,0)>0,OFFSET('Шаг 1 - коммерч. инфр.'!L46,60*$B43-1*$B42,0)>0,OFFSET('Шаг 1 - коммерч. инфр.'!L64,60*$B43-1*$B42,0)>0),1,0) -> 0 | L43: =IF(OR(OFFSET('Шаг 1 - коммерч. инфр.'!M44,60*$B43-1*$B42,0)>0,OFFSET('Шаг 1 - коммерч. инфр.'!M46,60*$B43-1*$B42,0)>0,OFFSET('Шаг 1 - коммерч. инфр.'!M46,60*$B43-1*$B42,0)>0,OFFSET('Шаг 1 - коммерч. инфр.'!M64,60*$B43-1*$B42,0)>0),1,0) -> 0 | M43: =IF(OR(OFFSET('Шаг 1 - коммерч. инфр.'!N44,60*$B43-1*$B42,0)>0,OFFSET('Шаг 1 - коммерч. инфр.'!N46,60*$B43-1*$B42,0)>0,OFFSET('Шаг 1 - коммерч. инфр.'!N46,60*$B43-1*$B42,0)>0,OFFSET('Шаг 1 - коммерч. инфр.'!N64,60*$B43-1*$B42,0)>0),1,0) -> 0 | N43: =IF(OR(OFFSET('Шаг 1 - коммерч. инфр.'!O44,60*$B43-1*$B42,0)>0,OFFSET('Шаг 1 - коммерч. инфр.'!O46,60*$B43-1*$B42,0)>0,OFFSET('Шаг 1 - коммерч. инфр.'!O46,60*$B43-1*$B42,0)>0,OFFSET('Шаг 1 - коммерч. инфр.'!O64,60*$B43-1*$B42,0)>0),1,0) -> 0 | O43: =IF(OR(OFFSET('Шаг 1 - коммерч. инфр.'!P44,60*$B43-1*$B42,0)>0,OFFSET('Шаг 1 - коммерч. инфр.'!P46,60*$B43-1*$B42,0)>0,OFFSET('Шаг 1 - коммерч. инфр.'!P46,60*$B43-1*$B42,0)>0,OFFSET('Шаг 1 - коммерч. инфр.'!P64,60*$B43-1*$B42,0)>0),1,0) -> 0 | P43: =IF(OR(OFFSET('Шаг 1 - коммерч. инфр.'!Q44,60*$B43-1*$B42,0)>0,OFFSET('Шаг 1 - коммерч. инфр.'!Q46,60*$B43-1*$B42,0)>0,OFFSET('Шаг 1 - коммерч. инфр.'!Q46,60*$B43-1*$B42,0)>0,OFFSET('Шаг 1 - коммерч. инфр.'!Q64,60*$B43-1*$B42,0)>0),1,0) -> 0 | Q43: =IF(OR(OFFSET('Шаг 1 - коммерч. инфр.'!R44,60*$B43-1*$B42,0)>0,OFFSET('Шаг 1 - коммерч. инфр.'!R46,60*$B43-1*$B42,0)>0,OFFSET('Шаг 1 - коммерч. инфр.'!R46,60*$B43-1*$B42,0)>0,OFFSET('Шаг 1 - коммерч. инфр.'!R64,60*$B43-1*$B42,0)>0),1,0) -> 0 | R43: =IF(OR(OFFSET('Шаг 1 - коммерч. инфр.'!S44,60*$B43-1*$B42,0)>0,OFFSET('Шаг 1 - коммерч. инфр.'!S46,60*$B43-1*$B42,0)>0,OFFSET('Шаг 1 - коммерч. инфр.'!S46,60*$B43-1*$B42,0)>0,OFFSET('Шаг 1 - коммерч. инфр.'!S64,60*$B43-1*$B42,0)>0),1,0) -> 0 | S43: =IF(OR(OFFSET('Шаг 1 - коммерч. инфр.'!T44,60*$B43-1*$B42,0)>0,OFFSET('Шаг 1 - коммерч. инфр.'!T46,60*$B43-1*$B42,0)>0,OFFSET('Шаг 1 - коммерч. инфр.'!T46,60*$B43-1*$B42,0)>0,OFFSET('Шаг 1 - коммерч. инфр.'!T64,60*$B43-1*$B42,0)>0),1,0) -> 0 | T43: =IF(OR(OFFSET('Шаг 1 - коммерч. инфр.'!U44,60*$B43-1*$B42,0)>0,OFFSET('Шаг 1 - коммерч. инфр.'!U46,60*$B43-1*$B42,0)>0,OFFSET('Шаг 1 - коммерч. инфр.'!U46,60*$B43-1*$B42,0)>0,OFFSET('Шаг 1 - коммерч. инфр.'!U64,60*$B43-1*$B42,0)>0),1,0) -> 0 | U43: =IF(OR(OFFSET('Шаг 1 - коммерч. инфр.'!V44,60*$B43-1*$B42,0)>0,OFFSET('Шаг 1 - коммерч. инфр.'!V46,60*$B43-1*$B42,0)>0,OFFSET('Шаг 1 - коммерч. инфр.'!V46,60*$B43-1*$B42,0)>0,OFFSET('Шаг 1 - коммерч. инфр.'!V64,60*$B43-1*$B42,0)>0),1,0) -> 0 | V43: =IF(OR(OFFSET('Шаг 1 - коммерч. инфр.'!W44,60*$B43-1*$B42,0)>0,OFFSET('Шаг 1 - коммерч. инфр.'!W46,60*$B43-1*$B42,0)>0,OFFSET('Шаг 1 - коммерч. инфр.'!W46,60*$B43-1*$B42,0)>0,OFFSET('Шаг 1 - коммерч. инфр.'!W64,60*$B43-1*$B42,0)>0),1,0) -> 0 | W43: =IF(OR(OFFSET('Шаг 1 - коммерч. инфр.'!X44,60*$B43-1*$B42,0)>0,OFFSET('Шаг 1 - коммерч. инфр.'!X46,60*$B43-1*$B42,0)>0,OFFSET('Шаг 1 - коммерч. инфр.'!X46,60*$B43-1*$B42,0)>0,OFFSET('Шаг 1 - коммерч. инфр.'!X64,60*$B43-1*$B42,0)>0),1,0) -> 0 | X43: =IF(OR(OFFSET('Шаг 1 - коммерч. инфр.'!Y44,60*$B43-1*$B42,0)>0,OFFSET('Шаг 1 - коммерч. инфр.'!Y46,60*$B43-1*$B42,0)>0,OFFSET('Шаг 1 - коммерч. инфр.'!Y46,60*$B43-1*$B42,0)>0,OFFSET('Шаг 1 - коммерч. инфр.'!Y64,60*$B43-1*$B42,0)>0),1,0) -> 0 | Y43: =IF(OR(OFFSET('Шаг 1 - коммерч. инфр.'!Z44,60*$B43-1*$B42,0)>0,OFFSET('Шаг 1 - коммерч. инфр.'!Z46,60*$B43-1*$B42,0)>0,OFFSET('Шаг 1 - коммерч. инфр.'!Z46,60*$B43-1*$B42,0)>0,OFFSET('Шаг 1 - коммерч. инфр.'!Z64,60*$B43-1*$B42,0)>0),1,0) -> 0 | Z43: =IF(OR(OFFSET('Шаг 1 - коммерч. инфр.'!AA44,60*$B43-1*$B42,0)>0,OFFSET('Шаг 1 - коммерч. инфр.'!AA46,60*$B43-1*$B42,0)>0,OFFSET('Шаг 1 - коммерч. инфр.'!AA46,60*$B43-1*$B42,0)>0,OFFSET('Шаг 1 - коммерч. инфр.'!AA64,60*$B43-1*$B42,0)>0),1,0) -> 0
A44: =IF(B44>'Шаг 0 - Мастер-лист'!$E$9,"x","") ->  | B44: 37 | C44: 38 | D44: =IF(OFFSET('Шаг 1 - коммерч. инфр.'!B42,60*B44-1*B43,0)=0,"",OFFSET('Шаг 1 - коммерч. инфр.'!B42,60*B44-1*B43,0)) ->  | E44: =IF(OR(OFFSET('Шаг 1 - коммерч. инфр.'!F45,60*$B44-1*$B43,0)>0,OFFSET('Шаг 1 - коммерч. инфр.'!F47,60*$B44-1*$B43,0)>0,OFFSET('Шаг 1 - коммерч. инфр.'!F47,60*$B44-1*$B43,0)>0,OFFSET('Шаг 1 - коммерч. инфр.'!F65,60*$B44-1*$B43,0)>0),1,0) -> 0 | F44: =IF(OR(OFFSET('Шаг 1 - коммерч. инфр.'!G45,60*$B44-1*$B43,0)>0,OFFSET('Шаг 1 - коммерч. инфр.'!G47,60*$B44-1*$B43,0)>0,OFFSET('Шаг 1 - коммерч. инфр.'!G47,60*$B44-1*$B43,0)>0,OFFSET('Шаг 1 - коммерч. инфр.'!G65,60*$B44-1*$B43,0)>0),1,0) -> 0 | G44: =IF(OR(OFFSET('Шаг 1 - коммерч. инфр.'!H45,60*$B44-1*$B43,0)>0,OFFSET('Шаг 1 - коммерч. инфр.'!H47,60*$B44-1*$B43,0)>0,OFFSET('Шаг 1 - коммерч. инфр.'!H47,60*$B44-1*$B43,0)>0,OFFSET('Шаг 1 - коммерч. инфр.'!H65,60*$B44-1*$B43,0)>0),1,0) -> 0 | H44: =IF(OR(OFFSET('Шаг 1 - коммерч. инфр.'!I45,60*$B44-1*$B43,0)>0,OFFSET('Шаг 1 - коммерч. инфр.'!I47,60*$B44-1*$B43,0)>0,OFFSET('Шаг 1 - коммерч. инфр.'!I47,60*$B44-1*$B43,0)>0,OFFSET('Шаг 1 - коммерч. инфр.'!I65,60*$B44-1*$B43,0)>0),1,0) -> 0 | I44: =IF(OR(OFFSET('Шаг 1 - коммерч. инфр.'!J45,60*$B44-1*$B43,0)>0,OFFSET('Шаг 1 - коммерч. инфр.'!J47,60*$B44-1*$B43,0)>0,OFFSET('Шаг 1 - коммерч. инфр.'!J47,60*$B44-1*$B43,0)>0,OFFSET('Шаг 1 - коммерч. инфр.'!J65,60*$B44-1*$B43,0)>0),1,0) -> 0 | J44: =IF(OR(OFFSET('Шаг 1 - коммерч. инфр.'!K45,60*$B44-1*$B43,0)>0,OFFSET('Шаг 1 - коммерч. инфр.'!K47,60*$B44-1*$B43,0)>0,OFFSET('Шаг 1 - коммерч. инфр.'!K47,60*$B44-1*$B43,0)>0,OFFSET('Шаг 1 - коммерч. инфр.'!K65,60*$B44-1*$B43,0)>0),1,0) -> 0 | K44: =IF(OR(OFFSET('Шаг 1 - коммерч. инфр.'!L45,60*$B44-1*$B43,0)>0,OFFSET('Шаг 1 - коммерч. инфр.'!L47,60*$B44-1*$B43,0)>0,OFFSET('Шаг 1 - коммерч. инфр.'!L47,60*$B44-1*$B43,0)>0,OFFSET('Шаг 1 - коммерч. инфр.'!L65,60*$B44-1*$B43,0)>0),1,0) -> 0 | L44: =IF(OR(OFFSET('Шаг 1 - коммерч. инфр.'!M45,60*$B44-1*$B43,0)>0,OFFSET('Шаг 1 - коммерч. инфр.'!M47,60*$B44-1*$B43,0)>0,OFFSET('Шаг 1 - коммерч. инфр.'!M47,60*$B44-1*$B43,0)>0,OFFSET('Шаг 1 - коммерч. инфр.'!M65,60*$B44-1*$B43,0)>0),1,0) -> 0 | M44: =IF(OR(OFFSET('Шаг 1 - коммерч. инфр.'!N45,60*$B44-1*$B43,0)>0,OFFSET('Шаг 1 - коммерч. инфр.'!N47,60*$B44-1*$B43,0)>0,OFFSET('Шаг 1 - коммерч. инфр.'!N47,60*$B44-1*$B43,0)>0,OFFSET('Шаг 1 - коммерч. инфр.'!N65,60*$B44-1*$B43,0)>0),1,0) -> 0 | N44: =IF(OR(OFFSET('Шаг 1 - коммерч. инфр.'!O45,60*$B44-1*$B43,0)>0,OFFSET('Шаг 1 - коммерч. инфр.'!O47,60*$B44-1*$B43,0)>0,OFFSET('Шаг 1 - коммерч. инфр.'!O47,60*$B44-1*$B43,0)>0,OFFSET('Шаг 1 - коммерч. инфр.'!O65,60*$B44-1*$B43,0)>0),1,0) -> 0 | O44: =IF(OR(OFFSET('Шаг 1 - коммерч. инфр.'!P45,60*$B44-1*$B43,0)>0,OFFSET('Шаг 1 - коммерч. инфр.'!P47,60*$B44-1*$B43,0)>0,OFFSET('Шаг 1 - коммерч. инфр.'!P47,60*$B44-1*$B43,0)>0,OFFSET('Шаг 1 - коммерч. инфр.'!P65,60*$B44-1*$B43,0)>0),1,0) -> 0 | P44: =IF(OR(OFFSET('Шаг 1 - коммерч. инфр.'!Q45,60*$B44-1*$B43,0)>0,OFFSET('Шаг 1 - коммерч. инфр.'!Q47,60*$B44-1*$B43,0)>0,OFFSET('Шаг 1 - коммерч. инфр.'!Q47,60*$B44-1*$B43,0)>0,OFFSET('Шаг 1 - коммерч. инфр.'!Q65,60*$B44-1*$B43,0)>0),1,0) -> 0 | Q44: =IF(OR(OFFSET('Шаг 1 - коммерч. инфр.'!R45,60*$B44-1*$B43,0)>0,OFFSET('Шаг 1 - коммерч. инфр.'!R47,60*$B44-1*$B43,0)>0,OFFSET('Шаг 1 - коммерч. инфр.'!R47,60*$B44-1*$B43,0)>0,OFFSET('Шаг 1 - коммерч. инфр.'!R65,60*$B44-1*$B43,0)>0),1,0) -> 0 | R44: =IF(OR(OFFSET('Шаг 1 - коммерч. инфр.'!S45,60*$B44-1*$B43,0)>0,OFFSET('Шаг 1 - коммерч. инфр.'!S47,60*$B44-1*$B43,0)>0,OFFSET('Шаг 1 - коммерч. инфр.'!S47,60*$B44-1*$B43,0)>0,OFFSET('Шаг 1 - коммерч. инфр.'!S65,60*$B44-1*$B43,0)>0),1,0) -> 0 | S44: =IF(OR(OFFSET('Шаг 1 - коммерч. инфр.'!T45,60*$B44-1*$B43,0)>0,OFFSET('Шаг 1 - коммерч. инфр.'!T47,60*$B44-1*$B43,0)>0,OFFSET('Шаг 1 - коммерч. инфр.'!T47,60*$B44-1*$B43,0)>0,OFFSET('Шаг 1 - коммерч. инфр.'!T65,60*$B44-1*$B43,0)>0),1,0) -> 0 | T44: =IF(OR(OFFSET('Шаг 1 - коммерч. инфр.'!U45,60*$B44-1*$B43,0)>0,OFFSET('Шаг 1 - коммерч. инфр.'!U47,60*$B44-1*$B43,0)>0,OFFSET('Шаг 1 - коммерч. инфр.'!U47,60*$B44-1*$B43,0)>0,OFFSET('Шаг 1 - коммерч. инфр.'!U65,60*$B44-1*$B43,0)>0),1,0) -> 0 | U44: =IF(OR(OFFSET('Шаг 1 - коммерч. инфр.'!V45,60*$B44-1*$B43,0)>0,OFFSET('Шаг 1 - коммерч. инфр.'!V47,60*$B44-1*$B43,0)>0,OFFSET('Шаг 1 - коммерч. инфр.'!V47,60*$B44-1*$B43,0)>0,OFFSET('Шаг 1 - коммерч. инфр.'!V65,60*$B44-1*$B43,0)>0),1,0) -> 0 | V44: =IF(OR(OFFSET('Шаг 1 - коммерч. инфр.'!W45,60*$B44-1*$B43,0)>0,OFFSET('Шаг 1 - коммерч. инфр.'!W47,60*$B44-1*$B43,0)>0,OFFSET('Шаг 1 - коммерч. инфр.'!W47,60*$B44-1*$B43,0)>0,OFFSET('Шаг 1 - коммерч. инфр.'!W65,60*$B44-1*$B43,0)>0),1,0) -> 0 | W44: =IF(OR(OFFSET('Шаг 1 - коммерч. инфр.'!X45,60*$B44-1*$B43,0)>0,OFFSET('Шаг 1 - коммерч. инфр.'!X47,60*$B44-1*$B43,0)>0,OFFSET('Шаг 1 - коммерч. инфр.'!X47,60*$B44-1*$B43,0)>0,OFFSET('Шаг 1 - коммерч. инфр.'!X65,60*$B44-1*$B43,0)>0),1,0) -> 0 | X44: =IF(OR(OFFSET('Шаг 1 - коммерч. инфр.'!Y45,60*$B44-1*$B43,0)>0,OFFSET('Шаг 1 - коммерч. инфр.'!Y47,60*$B44-1*$B43,0)>0,OFFSET('Шаг 1 - коммерч. инфр.'!Y47,60*$B44-1*$B43,0)>0,OFFSET('Шаг 1 - коммерч. инфр.'!Y65,60*$B44-1*$B43,0)>0),1,0) -> 0 | Y44: =IF(OR(OFFSET('Шаг 1 - коммерч. инфр.'!Z45,60*$B44-1*$B43,0)>0,OFFSET('Шаг 1 - коммерч. инфр.'!Z47,60*$B44-1*$B43,0)>0,OFFSET('Шаг 1 - коммерч. инфр.'!Z47,60*$B44-1*$B43,0)>0,OFFSET('Шаг 1 - коммерч. инфр.'!Z65,60*$B44-1*$B43,0)>0),1,0) -> 0 | Z44: =IF(OR(OFFSET('Шаг 1 - коммерч. инфр.'!AA45,60*$B44-1*$B43,0)>0,OFFSET('Шаг 1 - коммерч. инфр.'!AA47,60*$B44-1*$B43,0)>0,OFFSET('Шаг 1 - коммерч. инфр.'!AA47,60*$B44-1*$B43,0)>0,OFFSET('Шаг 1 - коммерч. инфр.'!AA65,60*$B44-1*$B43,0)>0),1,0) -> 0
A45: =IF(B45>'Шаг 0 - Мастер-лист'!$E$9,"x","") ->  | B45: 38 | C45: 39 | D45: =IF(OFFSET('Шаг 1 - коммерч. инфр.'!B43,60*B45-1*B44,0)=0,"",OFFSET('Шаг 1 - коммерч. инфр.'!B43,60*B45-1*B44,0)) ->  | E45: =IF(OR(OFFSET('Шаг 1 - коммерч. инфр.'!F46,60*$B45-1*$B44,0)>0,OFFSET('Шаг 1 - коммерч. инфр.'!F48,60*$B45-1*$B44,0)>0,OFFSET('Шаг 1 - коммерч. инфр.'!F48,60*$B45-1*$B44,0)>0,OFFSET('Шаг 1 - коммерч. инфр.'!F66,60*$B45-1*$B44,0)>0),1,0) -> 0 | F45: =IF(OR(OFFSET('Шаг 1 - коммерч. инфр.'!G46,60*$B45-1*$B44,0)>0,OFFSET('Шаг 1 - коммерч. инфр.'!G48,60*$B45-1*$B44,0)>0,OFFSET('Шаг 1 - коммерч. инфр.'!G48,60*$B45-1*$B44,0)>0,OFFSET('Шаг 1 - коммерч. инфр.'!G66,60*$B45-1*$B44,0)>0),1,0) -> 0 | G45: =IF(OR(OFFSET('Шаг 1 - коммерч. инфр.'!H46,60*$B45-1*$B44,0)>0,OFFSET('Шаг 1 - коммерч. инфр.'!H48,60*$B45-1*$B44,0)>0,OFFSET('Шаг 1 - коммерч. инфр.'!H48,60*$B45-1*$B44,0)>0,OFFSET('Шаг 1 - коммерч. инфр.'!H66,60*$B45-1*$B44,0)>0),1,0) -> 0 | H45: =IF(OR(OFFSET('Шаг 1 - коммерч. инфр.'!I46,60*$B45-1*$B44,0)>0,OFFSET('Шаг 1 - коммерч. инфр.'!I48,60*$B45-1*$B44,0)>0,OFFSET('Шаг 1 - коммерч. инфр.'!I48,60*$B45-1*$B44,0)>0,OFFSET('Шаг 1 - коммерч. инфр.'!I66,60*$B45-1*$B44,0)>0),1,0) -> 0 | I45: =IF(OR(OFFSET('Шаг 1 - коммерч. инфр.'!J46,60*$B45-1*$B44,0)>0,OFFSET('Шаг 1 - коммерч. инфр.'!J48,60*$B45-1*$B44,0)>0,OFFSET('Шаг 1 - коммерч. инфр.'!J48,60*$B45-1*$B44,0)>0,OFFSET('Шаг 1 - коммерч. инфр.'!J66,60*$B45-1*$B44,0)>0),1,0) -> 0 | J45: =IF(OR(OFFSET('Шаг 1 - коммерч. инфр.'!K46,60*$B45-1*$B44,0)>0,OFFSET('Шаг 1 - коммерч. инфр.'!K48,60*$B45-1*$B44,0)>0,OFFSET('Шаг 1 - коммерч. инфр.'!K48,60*$B45-1*$B44,0)>0,OFFSET('Шаг 1 - коммерч. инфр.'!K66,60*$B45-1*$B44,0)>0),1,0) -> 0 | K45: =IF(OR(OFFSET('Шаг 1 - коммерч. инфр.'!L46,60*$B45-1*$B44,0)>0,OFFSET('Шаг 1 - коммерч. инфр.'!L48,60*$B45-1*$B44,0)>0,OFFSET('Шаг 1 - коммерч. инфр.'!L48,60*$B45-1*$B44,0)>0,OFFSET('Шаг 1 - коммерч. инфр.'!L66,60*$B45-1*$B44,0)>0),1,0) -> 0 | L45: =IF(OR(OFFSET('Шаг 1 - коммерч. инфр.'!M46,60*$B45-1*$B44,0)>0,OFFSET('Шаг 1 - коммерч. инфр.'!M48,60*$B45-1*$B44,0)>0,OFFSET('Шаг 1 - коммерч. инфр.'!M48,60*$B45-1*$B44,0)>0,OFFSET('Шаг 1 - коммерч. инфр.'!M66,60*$B45-1*$B44,0)>0),1,0) -> 0 | M45: =IF(OR(OFFSET('Шаг 1 - коммерч. инфр.'!N46,60*$B45-1*$B44,0)>0,OFFSET('Шаг 1 - коммерч. инфр.'!N48,60*$B45-1*$B44,0)>0,OFFSET('Шаг 1 - коммерч. инфр.'!N48,60*$B45-1*$B44,0)>0,OFFSET('Шаг 1 - коммерч. инфр.'!N66,60*$B45-1*$B44,0)>0),1,0) -> 0 | N45: =IF(OR(OFFSET('Шаг 1 - коммерч. инфр.'!O46,60*$B45-1*$B44,0)>0,OFFSET('Шаг 1 - коммерч. инфр.'!O48,60*$B45-1*$B44,0)>0,OFFSET('Шаг 1 - коммерч. инфр.'!O48,60*$B45-1*$B44,0)>0,OFFSET('Шаг 1 - коммерч. инфр.'!O66,60*$B45-1*$B44,0)>0),1,0) -> 0 | O45: =IF(OR(OFFSET('Шаг 1 - коммерч. инфр.'!P46,60*$B45-1*$B44,0)>0,OFFSET('Шаг 1 - коммерч. инфр.'!P48,60*$B45-1*$B44,0)>0,OFFSET('Шаг 1 - коммерч. инфр.'!P48,60*$B45-1*$B44,0)>0,OFFSET('Шаг 1 - коммерч. инфр.'!P66,60*$B45-1*$B44,0)>0),1,0) -> 0 | P45: =IF(OR(OFFSET('Шаг 1 - коммерч. инфр.'!Q46,60*$B45-1*$B44,0)>0,OFFSET('Шаг 1 - коммерч. инфр.'!Q48,60*$B45-1*$B44,0)>0,OFFSET('Шаг 1 - коммерч. инфр.'!Q48,60*$B45-1*$B44,0)>0,OFFSET('Шаг 1 - коммерч. инфр.'!Q66,60*$B45-1*$B44,0)>0),1,0) -> 0 | Q45: =IF(OR(OFFSET('Шаг 1 - коммерч. инфр.'!R46,60*$B45-1*$B44,0)>0,OFFSET('Шаг 1 - коммерч. инфр.'!R48,60*$B45-1*$B44,0)>0,OFFSET('Шаг 1 - коммерч. инфр.'!R48,60*$B45-1*$B44,0)>0,OFFSET('Шаг 1 - коммерч. инфр.'!R66,60*$B45-1*$B44,0)>0),1,0) -> 0 | R45: =IF(OR(OFFSET('Шаг 1 - коммерч. инфр.'!S46,60*$B45-1*$B44,0)>0,OFFSET('Шаг 1 - коммерч. инфр.'!S48,60*$B45-1*$B44,0)>0,OFFSET('Шаг 1 - коммерч. инфр.'!S48,60*$B45-1*$B44,0)>0,OFFSET('Шаг 1 - коммерч. инфр.'!S66,60*$B45-1*$B44,0)>0),1,0) -> 0 | S45: =IF(OR(OFFSET('Шаг 1 - коммерч. инфр.'!T46,60*$B45-1*$B44,0)>0,OFFSET('Шаг 1 - коммерч. инфр.'!T48,60*$B45-1*$B44,0)>0,OFFSET('Шаг 1 - коммерч. инфр.'!T48,60*$B45-1*$B44,0)>0,OFFSET('Шаг 1 - коммерч. инфр.'!T66,60*$B45-1*$B44,0)>0),1,0) -> 0 | T45: =IF(OR(OFFSET('Шаг 1 - коммерч. инфр.'!U46,60*$B45-1*$B44,0)>0,OFFSET('Шаг 1 - коммерч. инфр.'!U48,60*$B45-1*$B44,0)>0,OFFSET('Шаг 1 - коммерч. инфр.'!U48,60*$B45-1*$B44,0)>0,OFFSET('Шаг 1 - коммерч. инфр.'!U66,60*$B45-1*$B44,0)>0),1,0) -> 0 | U45: =IF(OR(OFFSET('Шаг 1 - коммерч. инфр.'!V46,60*$B45-1*$B44,0)>0,OFFSET('Шаг 1 - коммерч. инфр.'!V48,60*$B45-1*$B44,0)>0,OFFSET('Шаг 1 - коммерч. инфр.'!V48,60*$B45-1*$B44,0)>0,OFFSET('Шаг 1 - коммерч. инфр.'!V66,60*$B45-1*$B44,0)>0),1,0) -> 0 | V45: =IF(OR(OFFSET('Шаг 1 - коммерч. инфр.'!W46,60*$B45-1*$B44,0)>0,OFFSET('Шаг 1 - коммерч. инфр.'!W48,60*$B45-1*$B44,0)>0,OFFSET('Шаг 1 - коммерч. инфр.'!W48,60*$B45-1*$B44,0)>0,OFFSET('Шаг 1 - коммерч. инфр.'!W66,60*$B45-1*$B44,0)>0),1,0) -> 0 | W45: =IF(OR(OFFSET('Шаг 1 - коммерч. инфр.'!X46,60*$B45-1*$B44,0)>0,OFFSET('Шаг 1 - коммерч. инфр.'!X48,60*$B45-1*$B44,0)>0,OFFSET('Шаг 1 - коммерч. инфр.'!X48,60*$B45-1*$B44,0)>0,OFFSET('Шаг 1 - коммерч. инфр.'!X66,60*$B45-1*$B44,0)>0),1,0) -> 0 | X45: =IF(OR(OFFSET('Шаг 1 - коммерч. инфр.'!Y46,60*$B45-1*$B44,0)>0,OFFSET('Шаг 1 - коммерч. инфр.'!Y48,60*$B45-1*$B44,0)>0,OFFSET('Шаг 1 - коммерч. инфр.'!Y48,60*$B45-1*$B44,0)>0,OFFSET('Шаг 1 - коммерч. инфр.'!Y66,60*$B45-1*$B44,0)>0),1,0) -> 0 | Y45: =IF(OR(OFFSET('Шаг 1 - коммерч. инфр.'!Z46,60*$B45-1*$B44,0)>0,OFFSET('Шаг 1 - коммерч. инфр.'!Z48,60*$B45-1*$B44,0)>0,OFFSET('Шаг 1 - коммерч. инфр.'!Z48,60*$B45-1*$B44,0)>0,OFFSET('Шаг 1 - коммерч. инфр.'!Z66,60*$B45-1*$B44,0)>0),1,0) -> 0 | Z45: =IF(OR(OFFSET('Шаг 1 - коммерч. инфр.'!AA46,60*$B45-1*$B44,0)>0,OFFSET('Шаг 1 - коммерч. инфр.'!AA48,60*$B45-1*$B44,0)>0,OFFSET('Шаг 1 - коммерч. инфр.'!AA48,60*$B45-1*$B44,0)>0,OFFSET('Шаг 1 - коммерч. инфр.'!AA66,60*$B45-1*$B44,0)>0),1,0) -> 0
A46: =IF(B46>'Шаг 0 - Мастер-лист'!$E$9,"x","") ->  | B46: 39 | C46: 40 | D46: =IF(OFFSET('Шаг 1 - коммерч. инфр.'!B44,60*B46-1*B45,0)=0,"",OFFSET('Шаг 1 - коммерч. инфр.'!B44,60*B46-1*B45,0)) ->  | E46: =IF(OR(OFFSET('Шаг 1 - коммерч. инфр.'!F47,60*$B46-1*$B45,0)>0,OFFSET('Шаг 1 - коммерч. инфр.'!F49,60*$B46-1*$B45,0)>0,OFFSET('Шаг 1 - коммерч. инфр.'!F49,60*$B46-1*$B45,0)>0,OFFSET('Шаг 1 - коммерч. инфр.'!F67,60*$B46-1*$B45,0)>0),1,0) -> 0 | F46: =IF(OR(OFFSET('Шаг 1 - коммерч. инфр.'!G47,60*$B46-1*$B45,0)>0,OFFSET('Шаг 1 - коммерч. инфр.'!G49,60*$B46-1*$B45,0)>0,OFFSET('Шаг 1 - коммерч. инфр.'!G49,60*$B46-1*$B45,0)>0,OFFSET('Шаг 1 - коммерч. инфр.'!G67,60*$B46-1*$B45,0)>0),1,0) -> 0 | G46: =IF(OR(OFFSET('Шаг 1 - коммерч. инфр.'!H47,60*$B46-1*$B45,0)>0,OFFSET('Шаг 1 - коммерч. инфр.'!H49,60*$B46-1*$B45,0)>0,OFFSET('Шаг 1 - коммерч. инфр.'!H49,60*$B46-1*$B45,0)>0,OFFSET('Шаг 1 - коммерч. инфр.'!H67,60*$B46-1*$B45,0)>0),1,0) -> 0 | H46: =IF(OR(OFFSET('Шаг 1 - коммерч. инфр.'!I47,60*$B46-1*$B45,0)>0,OFFSET('Шаг 1 - коммерч. инфр.'!I49,60*$B46-1*$B45,0)>0,OFFSET('Шаг 1 - коммерч. инфр.'!I49,60*$B46-1*$B45,0)>0,OFFSET('Шаг 1 - коммерч. инфр.'!I67,60*$B46-1*$B45,0)>0),1,0) -> 0 | I46: =IF(OR(OFFSET('Шаг 1 - коммерч. инфр.'!J47,60*$B46-1*$B45,0)>0,OFFSET('Шаг 1 - коммерч. инфр.'!J49,60*$B46-1*$B45,0)>0,OFFSET('Шаг 1 - коммерч. инфр.'!J49,60*$B46-1*$B45,0)>0,OFFSET('Шаг 1 - коммерч. инфр.'!J67,60*$B46-1*$B45,0)>0),1,0) -> 0 | J46: =IF(OR(OFFSET('Шаг 1 - коммерч. инфр.'!K47,60*$B46-1*$B45,0)>0,OFFSET('Шаг 1 - коммерч. инфр.'!K49,60*$B46-1*$B45,0)>0,OFFSET('Шаг 1 - коммерч. инфр.'!K49,60*$B46-1*$B45,0)>0,OFFSET('Шаг 1 - коммерч. инфр.'!K67,60*$B46-1*$B45,0)>0),1,0) -> 0 | K46: =IF(OR(OFFSET('Шаг 1 - коммерч. инфр.'!L47,60*$B46-1*$B45,0)>0,OFFSET('Шаг 1 - коммерч. инфр.'!L49,60*$B46-1*$B45,0)>0,OFFSET('Шаг 1 - коммерч. инфр.'!L49,60*$B46-1*$B45,0)>0,OFFSET('Шаг 1 - коммерч. инфр.'!L67,60*$B46-1*$B45,0)>0),1,0) -> 0 | L46: =IF(OR(OFFSET('Шаг 1 - коммерч. инфр.'!M47,60*$B46-1*$B45,0)>0,OFFSET('Шаг 1 - коммерч. инфр.'!M49,60*$B46-1*$B45,0)>0,OFFSET('Шаг 1 - коммерч. инфр.'!M49,60*$B46-1*$B45,0)>0,OFFSET('Шаг 1 - коммерч. инфр.'!M67,60*$B46-1*$B45,0)>0),1,0) -> 0 | M46: =IF(OR(OFFSET('Шаг 1 - коммерч. инфр.'!N47,60*$B46-1*$B45,0)>0,OFFSET('Шаг 1 - коммерч. инфр.'!N49,60*$B46-1*$B45,0)>0,OFFSET('Шаг 1 - коммерч. инфр.'!N49,60*$B46-1*$B45,0)>0,OFFSET('Шаг 1 - коммерч. инфр.'!N67,60*$B46-1*$B45,0)>0),1,0) -> 0 | N46: =IF(OR(OFFSET('Шаг 1 - коммерч. инфр.'!O47,60*$B46-1*$B45,0)>0,OFFSET('Шаг 1 - коммерч. инфр.'!O49,60*$B46-1*$B45,0)>0,OFFSET('Шаг 1 - коммерч. инфр.'!O49,60*$B46-1*$B45,0)>0,OFFSET('Шаг 1 - коммерч. инфр.'!O67,60*$B46-1*$B45,0)>0),1,0) -> 0 | O46: =IF(OR(OFFSET('Шаг 1 - коммерч. инфр.'!P47,60*$B46-1*$B45,0)>0,OFFSET('Шаг 1 - коммерч. инфр.'!P49,60*$B46-1*$B45,0)>0,OFFSET('Шаг 1 - коммерч. инфр.'!P49,60*$B46-1*$B45,0)>0,OFFSET('Шаг 1 - коммерч. инфр.'!P67,60*$B46-1*$B45,0)>0),1,0) -> 0 | P46: =IF(OR(OFFSET('Шаг 1 - коммерч. инфр.'!Q47,60*$B46-1*$B45,0)>0,OFFSET('Шаг 1 - коммерч. инфр.'!Q49,60*$B46-1*$B45,0)>0,OFFSET('Шаг 1 - коммерч. инфр.'!Q49,60*$B46-1*$B45,0)>0,OFFSET('Шаг 1 - коммерч. инфр.'!Q67,60*$B46-1*$B45,0)>0),1,0) -> 0 | Q46: =IF(OR(OFFSET('Шаг 1 - коммерч. инфр.'!R47,60*$B46-1*$B45,0)>0,OFFSET('Шаг 1 - коммерч. инфр.'!R49,60*$B46-1*$B45,0)>0,OFFSET('Шаг 1 - коммерч. инфр.'!R49,60*$B46-1*$B45,0)>0,OFFSET('Шаг 1 - коммерч. инфр.'!R67,60*$B46-1*$B45,0)>0),1,0) -> 0 | R46: =IF(OR(OFFSET('Шаг 1 - коммерч. инфр.'!S47,60*$B46-1*$B45,0)>0,OFFSET('Шаг 1 - коммерч. инфр.'!S49,60*$B46-1*$B45,0)>0,OFFSET('Шаг 1 - коммерч. инфр.'!S49,60*$B46-1*$B45,0)>0,OFFSET('Шаг 1 - коммерч. инфр.'!S67,60*$B46-1*$B45,0)>0),1,0) -> 0 | S46: =IF(OR(OFFSET('Шаг 1 - коммерч. инфр.'!T47,60*$B46-1*$B45,0)>0,OFFSET('Шаг 1 - коммерч. инфр.'!T49,60*$B46-1*$B45,0)>0,OFFSET('Шаг 1 - коммерч. инфр.'!T49,60*$B46-1*$B45,0)>0,OFFSET('Шаг 1 - коммерч. инфр.'!T67,60*$B46-1*$B45,0)>0),1,0) -> 0 | T46: =IF(OR(OFFSET('Шаг 1 - коммерч. инфр.'!U47,60*$B46-1*$B45,0)>0,OFFSET('Шаг 1 - коммерч. инфр.'!U49,60*$B46-1*$B45,0)>0,OFFSET('Шаг 1 - коммерч. инфр.'!U49,60*$B46-1*$B45,0)>0,OFFSET('Шаг 1 - коммерч. инфр.'!U67,60*$B46-1*$B45,0)>0),1,0) -> 0 | U46: =IF(OR(OFFSET('Шаг 1 - коммерч. инфр.'!V47,60*$B46-1*$B45,0)>0,OFFSET('Шаг 1 - коммерч. инфр.'!V49,60*$B46-1*$B45,0)>0,OFFSET('Шаг 1 - коммерч. инфр.'!V49,60*$B46-1*$B45,0)>0,OFFSET('Шаг 1 - коммерч. инфр.'!V67,60*$B46-1*$B45,0)>0),1,0) -> 0 | V46: =IF(OR(OFFSET('Шаг 1 - коммерч. инфр.'!W47,60*$B46-1*$B45,0)>0,OFFSET('Шаг 1 - коммерч. инфр.'!W49,60*$B46-1*$B45,0)>0,OFFSET('Шаг 1 - коммерч. инфр.'!W49,60*$B46-1*$B45,0)>0,OFFSET('Шаг 1 - коммерч. инфр.'!W67,60*$B46-1*$B45,0)>0),1,0) -> 0 | W46: =IF(OR(OFFSET('Шаг 1 - коммерч. инфр.'!X47,60*$B46-1*$B45,0)>0,OFFSET('Шаг 1 - коммерч. инфр.'!X49,60*$B46-1*$B45,0)>0,OFFSET('Шаг 1 - коммерч. инфр.'!X49,60*$B46-1*$B45,0)>0,OFFSET('Шаг 1 - коммерч. инфр.'!X67,60*$B46-1*$B45,0)>0),1,0) -> 0 | X46: =IF(OR(OFFSET('Шаг 1 - коммерч. инфр.'!Y47,60*$B46-1*$B45,0)>0,OFFSET('Шаг 1 - коммерч. инфр.'!Y49,60*$B46-1*$B45,0)>0,OFFSET('Шаг 1 - коммерч. инфр.'!Y49,60*$B46-1*$B45,0)>0,OFFSET('Шаг 1 - коммерч. инфр.'!Y67,60*$B46-1*$B45,0)>0),1,0) -> 0 | Y46: =IF(OR(OFFSET('Шаг 1 - коммерч. инфр.'!Z47,60*$B46-1*$B45,0)>0,OFFSET('Шаг 1 - коммерч. инфр.'!Z49,60*$B46-1*$B45,0)>0,OFFSET('Шаг 1 - коммерч. инфр.'!Z49,60*$B46-1*$B45,0)>0,OFFSET('Шаг 1 - коммерч. инфр.'!Z67,60*$B46-1*$B45,0)>0),1,0) -> 0 | Z46: =IF(OR(OFFSET('Шаг 1 - коммерч. инфр.'!AA47,60*$B46-1*$B45,0)>0,OFFSET('Шаг 1 - коммерч. инфр.'!AA49,60*$B46-1*$B45,0)>0,OFFSET('Шаг 1 - коммерч. инфр.'!AA49,60*$B46-1*$B45,0)>0,OFFSET('Шаг 1 - коммерч. инфр.'!AA67,60*$B46-1*$B45,0)>0),1,0) -> 0
